Workbook

Sheet APA Assumptions
A2: APA Assumptions
F3: 2007-06-30 | G3: =EOMONTH(F3,12) -> 2008-06-30 | H3: =EOMONTH(G3,12) -> 2009-06-30 | I3: =EOMONTH(H3,12) -> 2010-06-30 | J3: =EOMONTH(I3,12) -> 2011-06-30 | K3: =EOMONTH(J3,12) -> 2012-06-30
B6: Target actual regulatory depreciation = allowed depreciation in final decision | E6: =+'APA_Act 2007-11 Real'!B9 -> OK
B8: Initial Tax Assets - Tax depreciation calculation | D8: 1
B9: =+'Tax Depn summary'!A24 -> Looping 1 | F9: =-'Tax Depn summary'!E24/1000 -> 0.1983 | G9: =-'Tax Depn summary'!F24/1000 -> 0.1983 | H9: =-'Tax Depn summary'!G24/1000 -> 0.0029 | I9: =-'Tax Depn summary'!H24/1000 -> 0.00025 | J9: =-'Tax Depn summary'!I24/1000 -> 0 | K9: =-'Tax Depn summary'!J24/1000 -> 0
B10: =+'Tax Depn summary'!A25 -> Looping 2 | F10: =-'Tax Depn summary'!E25/1000 -> 0.271 | G10: =-'Tax Depn summary'!F25/1000 -> 0.271 | H10: =-'Tax Depn summary'!G25/1000 -> 0.271 | I10: =-'Tax Depn summary'!H25/1000 -> 0.271 | J10: =-'Tax Depn summary'!I25/1000 -> 0.0025 | K10: =-'Tax Depn summary'!J25/1000 -> 0.0008
B11: =+'Tax Depn summary'!A26 -> Looping 3 | F11: =-'Tax Depn summary'!E26/1000 -> 0.5444 | G11: =-'Tax Depn summary'!F26/1000 -> 0.5444 | H11: =-'Tax Depn summary'!G26/1000 -> 0.5444 | I11: =-'Tax Depn summary'!H26/1000 -> 0.5444 | J11: =-'Tax Depn summary'!I26/1000 -> 0.5444 | K11: =-'Tax Depn summary'!J26/1000 -> 0.5444
B12: =+'Tax Depn summary'!A27 -> Looping 4 | F12: =-'Tax Depn summary'!E27/1000 -> 0.813 | G12: =-'Tax Depn summary'!F27/1000 -> 0.813 | H12: =-'Tax Depn summary'!G27/1000 -> 0.813 | I12: =-'Tax Depn summary'!H27/1000 -> 0.813 | J12: =-'Tax Depn summary'!I27/1000 -> 0.813 | K12: =-'Tax Depn summary'!J27/1000 -> 0.813
B13: =+'Tax Depn summary'!A28 -> Looping 5 | F13: =-'Tax Depn summary'!E28/1000 -> 2.681 | G13: =-'Tax Depn summary'!F28/1000 -> 2.681 | H13: =-'Tax Depn summary'!G28/1000 -> 2.681 | I13: =-'Tax Depn summary'!H28/1000 -> 2.681 | J13: =-'Tax Depn summary'!I28/1000 -> 2.681 | K13: =-'Tax Depn summary'!J28/1000 -> 2.681
B14: =+'Tax Depn summary'!A29 -> Looping 6 | F14: =-'Tax Depn summary'!E29/1000 -> 0.47725 | G14: =-'Tax Depn summary'!F29/1000 -> 0.47725 | H14: =-'Tax Depn summary'!G29/1000 -> 0.47725 | I14: =-'Tax Depn summary'!H29/1000 -> 0.47725 | J14: =-'Tax Depn summary'!I29/1000 -> 0.47725 | K14: =-'Tax Depn summary'!J29/1000 -> 0.47725
B15: =+'Tax Depn summary'!A30 -> Lateral | F15: =-'Tax Depn summary'!E30/1000 -> 1.1715 | G15: =-'Tax Depn summary'!F30/1000 -> 1.1715 | H15: =-'Tax Depn summary'!G30/1000 -> 1.1715 | I15: =-'Tax Depn summary'!H30/1000 -> 1.1715 | J15: =-'Tax Depn summary'!I30/1000 -> 1.1715 | K15: =-'Tax Depn summary'!J30/1000 -> 1.1715
B16: =+'Tax Depn summary'!A31 -> Dalby | F16: =-'Tax Depn summary'!E31/1000 -> 0.0443 | G16: =-'Tax Depn summary'!F31/1000 -> 0.0443 | H16: =-'Tax Depn summary'!G31/1000 -> 0.0443 | I16: =-'Tax Depn summary'!H31/1000 -> 0.0443 | J16: =-'Tax Depn summary'!I31/1000 -> 0.0443 | K16: =-'Tax Depn summary'!J31/1000 -> 0.0443
B17: =+'Tax Depn summary'!A32 -> Kogan | F17: =-'Tax Depn summary'!E32/1000 -> 0.0153 | G17: =-'Tax Depn summary'!F32/1000 -> 0.0153 | H17: =-'Tax Depn summary'!G32/1000 -> 0.0153 | I17: =-'Tax Depn summary'!H32/1000 -> 0.0153 | J17: =-'Tax Depn summary'!I32/1000 -> 0.0153 | K17: =-'Tax Depn summary'!J32/1000 -> 0.0153
B18: =+'Tax Depn summary'!A33 -> Oakey | F18: =-'Tax Depn summary'!E33/1000 -> 0.01875 | G18: =-'Tax Depn summary'!F33/1000 -> 0.01875 | H18: =-'Tax Depn summary'!G33/1000 -> 0.01875 | I18: =-'Tax Depn summary'!H33/1000 -> 0.01875 | J18: =-'Tax Depn summary'!I33/1000 -> 0.01875 | K18: =-'Tax Depn summary'!J33/1000 -> 0.01875
B19: =+'Tax Depn summary'!A34 -> Condamine | F19: =-'Tax Depn summary'!E34/1000 -> 0.01535 | G19: =-'Tax Depn summary'!F34/1000 -> 0.01535 | H19: =-'Tax Depn summary'!G34/1000 -> 0.01535 | I19: =-'Tax Depn summary'!H34/1000 -> 0.01535 | J19: =-'Tax Depn summary'!I34/1000 -> 0.01535 | K19: =-'Tax Depn summary'!J34/1000 -> 0.01535
B20: =+'Tax Depn summary'!A35 -> Yuleba | F20: =-'Tax Depn summary'!E35/1000 -> 0.018 | G20: =-'Tax Depn summary'!F35/1000 -> 0.01805 | H20: =-'Tax Depn summary'!G35/1000 -> 0.01805 | I20: =-'Tax Depn summary'!H35/1000 -> 0.01805 | J20: =-'Tax Depn summary'!I35/1000 -> 0.01805 | K20: =-'Tax Depn summary'!J35/1000 -> 0.01805
B21: =+'Tax Depn summary'!A36 -> Gatton | F21: =-'Tax Depn summary'!E36/1000 -> 0.05315 | G21: =-'Tax Depn summary'!F36/1000 -> 0.02045 | H21: =-'Tax Depn summary'!G36/1000 -> 0.0207 | I21: =-'Tax Depn summary'!H36/1000 -> 0.0207 | J21: =-'Tax Depn summary'!I36/1000 -> 0.0207 | K21: =-'Tax Depn summary'!J36/1000 -> 0.0207
B22: =+'Tax Depn summary'!A37 -> Other | F22: =-'Tax Depn summary'!E37/1000 -> 0.0304 | G22: =-'Tax Depn summary'!F37/1000 -> 0.0304 | H22: =-'Tax Depn summary'!G37/1000 -> 0.0304 | I22: =-'Tax Depn summary'!H37/1000 -> 0.0304 | J22: =-'Tax Depn summary'!I37/1000 -> 0.0304 | K22: =-'Tax Depn summary'!J37/1000 -> 0.0304
B24: =+'Tax Depn summary'!A39 -> Total tax depreciation | F24: =SUM(F9:F23) -> 6.3517 | G24: =SUM(G9:G23) -> 6.31905 | H24: 6.1239 | I24: 6.12125 | J24: 5.8525 | K24: 5.8508
B26: Excludes Negotiated service from target regulatory depreciation | D26: 1
B27: Lytton lateral | D27: =+NegService -> 1
B28: RBP8 | D28: =+NegService -> 1

Sheet AAI
C1: AAI Table - Net Capex | O1: AAI Table - Net Capex | Z1: AAI Table - Gross Capex
C3: $m (July-2006) | D3: 2006/07 | E3: 2007/08 | F3: 2008/09 | G3: 2009/10 | H3: 2010/11 | I3: 2011/12 | J3: Total | O3: $m (Nominal) | P3: 2006/07 | Q3: 2007/08 | R3: 2008/09 | S3: 2009/10 | T3: 2010/11 | U3: 2011/12 | V3: Total | Z3: $m (Nominal) | AA3: 2006/07 | AB3: 2007/08 | AC3: 2008/09 | AD3: 2009/10 | AE3: 2010/11 | AF3: 2011/12 | AG3: Total | AK3: =+Input!H246-1 -> 0.02983050847 | AL3: =+Input!I246-1 -> 0.05491525424 | AM3: =+Input!J246-1 -> 0.09966101695 | AN3: =+Input!K246-1 -> 0.126779661 | AO3: =+Input!L246-1 -> 0.1593220339 | AP3: =+Input!M246-1 -> 0.1979661017
B5: Pipeline | D5: =Input!H127 -> 0.06600608492 | E5: =Input!I127 -> 0 | F5: =Input!J127 -> 0 | G5: =Input!K127 -> 0 | H5: =Input!L127 -> 0.221061683 | I5: =Input!M127 -> 0 | J5: =SUM(D5:I5) -> 0.287067768 | N5: =+B5 -> Pipeline | P5: =Input!H59 -> 0.06797508 | Q5: =Input!I59 -> 0 | R5: =Input!J59 -> 0 | S5: =Input!K59 -> 0 | T5: =Input!L59 -> 0.25628168 | U5: =Input!M59 -> 0 | V5: =SUM(P5:U5) -> 0.32425676 | X5: PO | Y5: =+N5 -> Pipeline | AA5: =Input!H59 -> 0.06797508 | AB5: =Input!I59 -> 0 | AC5: =Input!J59 -> 0 | AD5: =Input!K59 -> 0 | AE5: =Input!L59 -> 0.25628168 | AF5: =Input!M59 -> 0 | AG5: =SUM(AA5:AF5) -> 0.32425676 | AK5: =IF(D5=0,"",+P5/D5-1) -> 0.02983050847 | AO5: 0.1593220339
B6: Compressors | J6: 0 | N6: Compressors | V6: =SUM(P6:U6) -> 0 | Y6: Compressors | AG6: =SUM(AA6:AF6) -> 0 | AK6: =IF(D6=0,"",+P6/D6-1) ->  | AL6: =IF(E6=0,"",+Q6/E6-1) ->  | AM6: =IF(F6=0,"",+R6/F6-1) ->  | AN6: =IF(G6=0,"",+S6/G6-1) ->  | AO6: =IF(H6=0,"",+T6/H6-1) ->  | AP6: =IF(I6=0,"",+U6/I6-1) -> 
B7: Easements | J7: 0 | N7: Easements | V7: 0 | Y7: Easements | AG7: 0
B8: Communications | J8: 0 | N8: Communications | V8: 0 | Y8: Communications | AG8: 0
B9: Pigging | C9: Pigging | D9: =+P9/(1+AK$3) -> 0 | E9: 0.5141357923 | F9: 0.459923433 | G9: 0.609324701 | H9: 0.3611738135 | I9: 0 | J9: 1.94455774 | N9: Pigging | P9: =+AA9 -> 0 | Q9: =+AB9 -> 0.54236969 | R9: 0.50575987 | S9: 0.68657468 | T9: 0.41871676 | U9: 0 | V9: 2.153421 | X9: SIB | Y9: Pigging | AA9: 0 | AB9: 0.54236969 | AC9: 0.50575987 | AD9: 0.68657468 | AE9: 0.41871676 | AF9: 0 | AG9: 2.153421 | AL9: 0.05491525424 | AM9: 0.09966101695 | AN9: 0.126779661 | AO9: 0.1593220339
B10: Coating defect assessment | C10: Pigging | D10: 0.01093778045 | E10: -0.007095375643 | F10: 0 | G10: 0 | H10: 0.01501238611 | I10: 0 | J10: 0.01885479092 | N10: Coating defect assessment | P10: =+AA10 -> 0.01126406 | Q10: -0.00748502 | R10: 0 | S10: 0 | T10: 0.01740419 | U10: 0 | V10: 0.02118323 | X10: SIB | Y10: Coating defect assessment | AA10: 0.01126406 | AB10: -0.00748502 | AC10: 0 | AD10: 0 | AE10: 0.01740419 | AF10: 0 | AG10: 0.02118323 | AK10: 0.02983050847 | AL10: 0.05491525424 | AO10: 0.1593220339
B11: Pipeline excavation and inspection | C11: Pigging | D11: 0.1654187642 | E11: 0.03098847976 | F11: 0 | G11: 0.07046609266 | H11: 0 | I11: 0 | J11: 0.2668733366 | N11: Pipeline excavation and inspection | P11: 0.17035329 | Q11: 0.03269022 | R11: 0 | S11: 0.07939976 | T11: 0 | U11: 0 | V11: 0.28244327 | X11: SIB | Y11: Pipeline excavation and inspection | AA11: 0.17035329 | AB11: 0.03269022 | AC11: 0 | AD11: 0.07939976 | AE11: 0 | AF11: 0 | AG11: 0.28244327 | AK11: 0.02983050847 | AL11: 0.05491525424 | AN11: 0.126779661
B12: Compressor overhauls | C12: Pigging | D12: 0.2716951359 | E12: 0.3763269973 | F12: 0.2275029088 | G12: 0.09404933694 | H12: 0 | I12: 0 | J12: 0.9695743789 | N12: Compressor overhauls | P12: 0.27979994 | Q12: 0.39699309 | R12: 0.25017608 | S12: 0.10597288 | T12: 0 | U12: 0 | V12: 1.03294199 | X12: SIB | Y12: Compressor overhauls | AA12: 0.27979994 | AB12: 0.39699309 | AC12: 0.25017608 | AD12: 0.10597288 | AE12: 0 | AF12: 0 | AG12: 1.03294199 | AK12: 0.02983050847 | AL12: 0.05491525424 | AM12: 0.09966101695 | AN12: 0.126779661
B13: Minor and stay-in-business | C13: Pigging | D13: =Input!H129-SUM(D9:D12) -> 0.7719986187 | E13: =Input!I129-SUM(E9:E12) -> 1.40401135 | F13: =Input!J129-SUM(F9:F12) -> 1.334959171 | G13: =Input!K129-SUM(G9:G12) -> 2.642143866 | H13: =Input!L129-SUM(H9:H12) -> 0.7922043342 | I13: =Input!M129-SUM(I9:I12) -> 1.835298175 | J13: 8.780615515 | N13: Minor and stay-in-business | P13: =+Input!H61-Input!H95-SUM(P9:P12) -> 0.79502773 | Q13: =+Input!I61-Input!I95-SUM(Q9:Q12) -> 1.48111299 | R13: =+Input!J61-Input!J95-SUM(R9:R12) -> 1.46800256 | S13: =+Input!K61-Input!K95-SUM(S9:S12) -> 2.97711397 | T13: =+Input!L61-Input!L95-SUM(T9:T12) -> 0.91841994 | U13: =+Input!M61-Input!M95-SUM(U9:U12) -> 2.198625 | V13: 9.83830219 | X13: SIB | Y13: Minor and stay-in-business | AA13: =+Input!H61-SUM(AA9:AA12) -> 0.79502773 | AB13: =+Input!I61-SUM(AB9:AB12) -> 1.48584999 | AC13: =+Input!J61-SUM(AC9:AC12) -> 1.46800256 | AD13: =+Input!K61-SUM(AD9:AD12) -> 2.97780997 | AE13: =+Input!L61-SUM(AE9:AE12) -> 0.91841994 | AF13: =+Input!M61-SUM(AF9:AF12) -> 2.198625 | AG13: 9.84373519 | AK13: 0.02983050847 | AL13: 0.05491525424 | AM13: 0.09966101695 | AN13: 0.126779661 | AO13: 0.1593220339 | AP13: 0.1979661017
B14: Access arrangement costs | C14: Pigging | D14: =Input!H126 -> 0.4973430686 | E14: =Input!I126 -> 0 | F14: =Input!J126 -> 0 | G14: =Input!K126 -> 0.001220291817 | H14: =Input!L126 -> 0.0492370095 | I14: =Input!M126 -> 0.497654707 | J14: 1.045455077 | N14: Access arrangement costs | P14: =+Input!H58 -> 0.5121790652 | Q14: =+Input!I58 -> 0 | R14: =+Input!J58 -> 0 | S14: =+Input!K58 -> 0.001375 | T14: =+Input!L58 -> 0.05708155 | U14: =+Input!M58 -> 0.5961734694 | V14: 1.166809085 | X14: AA | Y14: Access arrangement costs | AA14: =+Input!H58 -> 0.5121790652 | AB14: =+Input!I58 -> 0 | AC14: =+Input!J58 -> 0 | AD14: =+Input!K58 -> 0.001375 | AE14: =+Input!L58 -> 0.05708155 | AF14: =+Input!M58 -> 0.5961734694 | AG14: 1.166809085 | AK14: 0.02983050847 | AN14: 0.126779661 | AO14: 0.1593220339 | AP14: 0.1979661017
B15: Group IT | C15: Pigging | D15: =+Input!H128 -> 0 | E15: =+Input!I128 -> 0 | F15: =+Input!J128 -> 0.1268537466 | G15: =+Input!K128 -> 0.2487611107 | H15: =+Input!L128 -> 0.7895085863 | I15: =+Input!M128 -> 0.799856489 | J15: 1.964979933 | N15: Group IT | P15: =+Input!H60 -> 0 | Q15: =+Input!I60 -> 0 | R15: =+Input!J60 -> 0.13949612 | S15: =+Input!K60 -> 0.28029896 | T15: =+Input!L60 -> 0.9152947 | U15: =+Input!M60 -> 0.95820096 | V15: 2.29329074 | X15: SIB | Y15: Group IT | AA15: =+Input!H60 -> 0 | AB15: =+Input!I60 -> 0 | AC15: =+Input!J60 -> 0.13949612 | AD15: =+Input!K60 -> 0.28029896 | AE15: =+Input!L60 -> 0.9152947 | AF15: =+Input!M60 -> 0.95820096 | AG15: 2.29329074 | AM15: 0.09966101695 | AN15: 0.126779661 | AO15: 0.1593220339 | AP15: 0.1979661017
B16: PMA | C16: Pigging | D16: =+Input!H130 -> 0 | E16: =+Input!I130 -> 28.50305925 | F16: =+Input!J130 -> 0 | G16: =+Input!K130 -> 0 | H16: =+Input!L130 -> 0 | I16: =+Input!M130 -> 0 | J16: 28.50305925 | N16: PMA | P16: =Input!H62 -> 0 | Q16: =Input!I62 -> 30.068312 | R16: =Input!J62 -> 0 | S16: =Input!K62 -> 0 | T16: =Input!L62 -> 0 | U16: =Input!M62 -> 0 | V16: 30.068312 | X16: PMA | Y16: PMA | AA16: =Input!H62 -> 0 | AB16: =Input!I62 -> 30.068312 | AC16: =Input!J62 -> 0 | AD16: =Input!K62 -> 0 | AE16: =Input!L62 -> 0 | AF16: =Input!M62 -> 0 | AG16: 30.068312 | AL16: 0.05491525424
B17: Regulators and meter stations | C17: Pigging | D17: =+Input!H131 -> 0.7144933404 | E17: =+Input!I131 -> 0.1252253576 | F17: =+Input!J131 -> 0.3219318177 | G17: =+Input!K131 -> 0.002761089952 | H17: =+Input!L131 -> 0 | I17: =+Input!M131 -> 0 | J17: 1.164411606 | N17: Regulators and meter stations | P17: =Input!H63 -> 0.73580704 | Q17: =Input!I63 -> 0.13210214 | R17: =Input!J63 -> 0.35401587 | S17: =Input!K63 -> 0.00311114 | T17: =Input!L63 -> 0 | U17: =Input!M63 -> 0 | V17: 1.22503619 | X17: SIB | Y17: Regulators and meter stations | AA17: =Input!H63 -> 0.73580704 | AB17: =Input!I63 -> 0.13210214 | AC17: =Input!J63 -> 0.35401587 | AD17: =Input!K63 -> 0.00311114 | AE17: =Input!L63 -> 0 | AF17: =Input!M63 -> 0 | AG17: 1.22503619 | AK17: 0.02983050847 | AL17: 0.05491525424 | AM17: 0.09966101695 | AN17: 0.126779661
B18: Lytton lateral | C18: Pigging | D18: =+Input!H132 -> 0 | E18: =+Input!I132 -> 0 | F18: =+Input!J132 -> 0 | G18: =+Input!K132 -> 5.64471126 | H18: =+Input!L132 -> 2.322736877 | I18: =+Input!M132 -> 0 | J18: 7.967448137 | N18: Lytton lateral | P18: =Input!H64 -> 0 | Q18: =Input!I64 -> 0 | R18: =Input!J64 -> 0 | S18: =Input!K64 -> 6.36034584 | T18: =Input!L64 -> 2.69280004 | U18: =Input!M64 -> 0 | V18: 9.05314588 | X18: PL | Y18: Lytton lateral | AA18: =Input!H64 -> 0 | AB18: =Input!I64 -> 0 | AC18: =Input!J64 -> 0 | AD18: =Input!K64 -> 6.36034584 | AE18: =Input!L64 -> 2.69280004 | AF18: =Input!M64 -> 0 | AG18: 9.05314588 | AN18: 0.126779661 | AO18: 0.1593220339
B19: RBP 8 | C19: Pigging | D19: =+Input!H133 -> 0 | E19: =+Input!I133 -> 0.1393581801 | F19: =+Input!J133 -> 0.3110047776 | G19: =+Input!K133 -> 0.442527512 | H19: =+Input!L133 -> 4.122955124 | I19: =+Input!M133 -> 38.3594648 | J19: 43.3753104 | N19: RBP 8 | P19: =Input!H65 -> 0 | Q19: =Input!I65 -> 0.14701107 | R19: =Input!J65 -> 0.34199983 | S19: =Input!K65 -> 0.498631 | T19: =Input!L65 -> 4.77983272 | U19: =Input!M65 -> 45.95333851 | V19: 51.72081313 | X19: PR | Y19: RBP 8 | AA19: =Input!H65 -> 0 | AB19: =Input!I65 -> 0.14701107 | AC19: =Input!J65 -> 0.34199983 | AD19: =Input!K65 -> 0.498631 | AE19: =Input!L65 -> 4.77983272 | AF19: =Input!M65 -> 45.95333851 | AG19: 51.72081313 | AL19: 0.05491525424 | AM19: 0.09966101695 | AN19: 0.126779661 | AO19: 0.1593220339 | AP19: 0.1979661017
B20: Total | D20: =SUM(D5:D19) -> 2.497892793 | E20: 31.08601004 | F20: 2.782175855 | G20: 9.755965261 | H20: 8.673889813 | I20: 41.49227418 | J20: 96.28820793 | N20: Total | P20: =SUM(P5:P19) -> 2.572406205 | Q20: 32.79310618 | R20: 3.05945033 | S20: 10.99282323 | T20: 10.05583158 | U20: 49.70633794 | V20: 109.1799555 | Y20: Total | AA20: =SUM(AA5:AA19) -> 2.572406205 | AB20: 32.79784318 | AC20: 3.05945033 | AD20: 10.99351923 | AE20: 10.05583158 | AF20: 49.70633794 | AG20: 109.1853885 | AK20: 0.02983050847 | AL20: 0.05491525424 | AM20: 0.09966101695 | AN20: 0.126779661 | AO20: 0.1593220339 | AP20: 0.1979661017
C22: Check | D22: =+Input!H139-D20 -> 0 | E22: =+Input!I139-E20 -> 0 | F22: =+Input!J139-F20 -> 0 | G22: =+Input!K139-G20 -> 0 | H22: =+Input!L139-H20 -> 0 | I22: =+Input!M139-I20 -> 0 | O22: Check | P22: =+Input!H71-P20-Input!H105 -> 0 | Q22: =+Input!I71-Q20-Input!I105 -> -1.340941247e-15 | R22: =+Input!J71-R20-Input!J105 -> 0 | S22: =+Input!K71-S20-Input!K105 -> 1.36219161e-15 | T22: =+Input!L71-T20-Input!L105 -> 0 | U22: =+Input!M71-U20-Input!M105 -> 0 | AA22: =+Input!H71-AA20 -> 0 | AB22: =+Input!I71-AB20 -> 0 | AC22: =+Input!J71-AC20 -> 0 | AD22: =+Input!K71-AD20 -> 0 | AE22: =+Input!L71-AE20 -> 0 | AF22: =+Input!M71-AF20 -> 0
B24: =+Input!F252 -> Nominal vanilla WACC (fixed real time varying) | D24: =+vanilla1 -> 0.08023076433 | E24: =+vanilla2 -> 0.09927406032 | F24: =+vanilla3 -> 0.08055006139 | G24: =+vanilla4 -> 0.08500018871 | H24: =+vanilla5 -> 0.08969551117 | I24: =+vanilla5 -> 0.08969551117 | N24: =+Input!R252 -> 0 | P24: =+vanilla1 -> 0.08023076433 | Q24: =+vanilla2 -> 0.09927406032 | R24: =+vanilla3 -> 0.08055006139 | S24: =+vanilla4 -> 0.08500018871 | T24: =+vanilla5 -> 0.08969551117 | U24: =+vanilla5 -> 0.08969551117
B25: Capex (incl. vanilla WACC) | D25: =+D20*(1+vanilla1)^0.5 -> 2.596163655 | E25: =+E20*(1+vanilla2)^0.5 -> 32.59252241 | F25: =+F20*(1+vanilla3)^0.5 -> 2.892058167 | G25: =+G20*(1+vanilla4)^0.5 -> 10.16213949 | H25: =+H20*(1+vanilla5)^0.5 -> 9.05454188 | I25: =+I20*(1+vanilla6)^0.5 -> 43.13815167 | N25: Capex (incl. vanilla WACC) | P25: =+P20*(1+vanilla1)^0.5 -> 2.673608537 | Q25: =+Q20*(1+vanilla2)^0.5 -> 34.38234907 | R25: =+R20*(1+vanilla3)^0.5 -> 3.180283624 | S25: =+S20*(1+vanilla4)^0.5 -> 11.45049209 | T25: =+T20*(1+vanilla5)^0.5 -> 10.49712991 | U25: =+U20*(1+vanilla6)^0.5 -> 51.67804339
B26: Actual CPI Indexation (one year lagged) | D26: =+Input!H246 -> 1.029830508 | E26: =+Input!I246 -> 1.054915254 | F26: =+Input!J246 -> 1.099661017 | G26: =+Input!K246 -> 1.126779661 | H26: =+Input!L246 -> 1.159322034 | I26: =+Input!M246 -> 1.197966102 | N26: Actual CPI Indexation (one year lagged) | P26: =+Input!T246 -> 0 | Q26: =+Input!U246 -> 0 | R26: =+Input!V246 -> 0 | S26: =+Input!W246 -> 0 | T26: =+Input!X246 -> 0 | U26: =+Input!Y246 -> 0
B27: Capex ( for asset base - $Nominal) | D27: =+D25*D26 -> 2.673608537 | E27: 34.38234907 | F27: 3.180283624 | G27: 11.45049209 | H27: 10.49712991 | I27: 51.67804339 | N27: Capex ( for asset base - $Nominal) | P27: =+P25*P26 -> 0 | Q27: 0 | R27: 0 | S27: 0 | T27: 0 | U27: 0
D28: =+D27-D35 -> 0 | E28: 0 | F28: 0 | G28: 0 | H28: 0 | I28: 0 | P28: =+P27-P35 -> 0 | Q28: 0 | R28: 0 | S28: 0 | T28: 0 | U28: 0
C30: AAI Table - Asset Base
C32: $m (Nominal) | D32: 2006/07 | E32: 2007/08 | F32: 2008/09 | G32: 2009/10 | H32: 2010/11 | I32: 2011/12 | J32: Total
B34: Opening capital base | D34: =+'Total actual RAB roll forward'!H7 -> 296.3508366 | E34: =+'Total actual RAB roll forward'!I7 -> 300.2223425 | F34: =+'Total actual RAB roll forward'!J7 -> 340.8783385 | G34: =+'Total actual RAB roll forward'!K7 -> 345.6595342 | H34: =+'Total actual RAB roll forward'!L7 -> 359.9762658 | I34: =+'Total actual RAB roll forward'!M7 -> 374.7964347 | J34: =+D34 -> 296.3508366
B35: Plus capex | C35: Pigging | D35: =+'Total actual RAB roll forward'!H39 -> 2.673608537 | E35: =+'Total actual RAB roll forward'!I39 -> 34.38234907 | F35: =+'Total actual RAB roll forward'!J39 -> 3.180283624 | G35: =+'Total actual RAB roll forward'!K39 -> 11.45049209 | H35: =+'Total actual RAB roll forward'!L39 -> 10.49712991 | I35: =+'Total actual RAB roll forward'!M39 -> 51.67804339 | J35: =SUM(D35:I35) -> 113.8619066
B36: Plus speculative capex | C36: Pigging | J36: 0
B37: Plus reused redundant assets | C37: Pigging | J37: 0
B38: Less depreciation | C38: Pigging | D38: =+'Actual RAB roll forward'!H663 -> -6.020654899 | E38: =+'Actual RAB roll forward'!I663 -> -6.460719755 | F38: =+'Actual RAB roll forward'!J663 -> -6.805458858 | G38: =+'Actual RAB roll forward'!K663 -> -7.116707339 | H38: =+'Actual RAB roll forward'!L663 -> -7.676169784 | I38: =+'Actual RAB roll forward'!M663 -> -8.148271476 | J38: -42.22798211
B39: Plus indexation | C39: Pigging | D39: =+'Actual RAB roll forward'!H695 -> 7.218552306 | E39: =+'Actual RAB roll forward'!I695 -> 12.73436671 | F39: =+'Actual RAB roll forward'!J695 -> 8.406370864 | G39: =+'Actual RAB roll forward'!K695 -> 9.982946835 | H39: =+'Actual RAB roll forward'!L695 -> 11.99920886 | I39: =+'Actual RAB roll forward'!M695 -> 9.369910869 | J39: 59.71135645
B40: Less redundant assets | C40: Pigging | J40: 0
B41: Less disposals | C41: Pigging | J41: 0
B42: Closing capital base | D42: =SUM(D34:D41) -> 300.2223425 | E42: 340.8783385 | F42: 345.6595342 | G42: 359.9762658 | H42: 374.7964347 | I42: 427.6961175 | J42: 427.6961175
C44: Check | D44: =+'Total actual RAB roll forward'!H201-D42 -> 0 | E44: =+'Total actual RAB roll forward'!I201-E42 -> 0 | F44: =+'Total actual RAB roll forward'!J201-F42 -> 0 | G44: =+'Total actual RAB roll forward'!K201-G42 -> 0 | H44: =+'Total actual RAB roll forward'!L201-H42 -> 0 | I44: =+'Total actual RAB roll forward'!M201-I42 -> 0
C46: Implied CPI Indexation | D46: =+D39/D34 -> 0.02435813035 | E46: 0.04241645244 | F46: 0.02466091245 | G46: 0.02888086643 | H46: 0.03333333333 | I46: 0.025
C47: Actual CPI | D47: =+Input!H245 -> 0.02435813035 | E47: =+Input!I245 -> 0.04241645244 | F47: =+Input!J245 -> 0.02466091245 | G47: =+Input!K245 -> 0.02888086643 | H47: =+Input!L245 -> 0.03333333333 | I47: =+Input!M245 -> 0.025
C50: Regulatory depreciation ($2006) | D50: =+D87 -> 5846.258049 | E50: 6124.39694 | F50: 6188.687926 | G50: 6315.970713 | H50: 6621.257562 | I50: 6801.754627
C51: Regulatory depreciation ($Nominal) | D51: =+D50*D26 -> 6020.654899 | E51: 6460.719755 | F51: 6805.458858 | G51: 7116.707339 | H51: 7676.169784 | I51: 8148.271476
C52: Check | D52: =+D51/1000+D38 -> 0 | E52: 0 | F52: 0 | G52: 0 | H52: 0 | I52: 0
C55: Depreciation ($m - $ 2006) | D55: 2006/07 | E55: 2007/08 | F55: 2008/09 | G55: 2009/10 | H55: 2010/11 | I55: 2011/12 | J55: Total
A57: =+A168 -> P | B57: =+Input!F41 -> OriginalPipeline | D57: =-'Actual RAB roll forward'!H88*1000 -> 1533.922946 | E57: =-'Actual RAB roll forward'!I88*1000 -> 1506.519697 | F57: =-'Actual RAB roll forward'!J88*1000 -> 693.5566907 | G57: =-'Actual RAB roll forward'!K88*1000 -> 602.1222921 | H57: =-'Actual RAB roll forward'!L88*1000 -> 474.2724847 | I57: =-'Actual RAB roll forward'!M88*1000 -> 377.8731415 | J57: =SUM(D57:I57) -> 5188.267253
A58: =+A169 -> P | B58: =+Input!F42 -> Looping 1 | D58: =-'Actual RAB roll forward'!H101*1000 -> 133.8491144 | E58: =-'Actual RAB roll forward'!I101*1000 -> 131.4579248 | F58: =-'Actual RAB roll forward'!J101*1000 -> 60.51930385 | G58: =-'Actual RAB roll forward'!K101*1000 -> 52.54079795 | H58: =-'Actual RAB roll forward'!L101*1000 -> 41.38470725 | I58: =-'Actual RAB roll forward'!M101*1000 -> 32.97296353 | J58: =SUM(D58:I58) -> 452.7248119
A59: P | B59: =+Input!F43 -> Looping 2 | D59: =-'Actual RAB roll forward'!H114*1000 -> 155.7412705 | E59: =-'Actual RAB roll forward'!I114*1000 -> 152.9589816 | F59: =-'Actual RAB roll forward'!J114*1000 -> 70.41774845 | G59: =-'Actual RAB roll forward'!K114*1000 -> 61.13429035 | H59: =-'Actual RAB roll forward'!L114*1000 -> 48.15352656 | I59: =-'Actual RAB roll forward'!M114*1000 -> 38.36597092 | J59: 526.7717884
A60: P | B60: =+Input!F44 -> Looping 3 | D60: =-'Actual RAB roll forward'!H127*1000 -> 259.8764212 | E60: =-'Actual RAB roll forward'!I127*1000 -> 255.2337772 | F60: =-'Actual RAB roll forward'!J127*1000 -> 117.5020109 | G60: =-'Actual RAB roll forward'!K127*1000 -> 102.011243 | H60: =-'Actual RAB roll forward'!L127*1000 -> 80.35099568 | I60: =-'Actual RAB roll forward'!M127*1000 -> 64.0190695 | J60: 878.9935175
A61: P | B61: =+Input!F45 -> Looping 4 | D61: =-'Actual RAB roll forward'!H140*1000 -> 355.1767295 | E61: =-'Actual RAB roll forward'!I140*1000 -> 348.8315631 | F61: =-'Actual RAB roll forward'!J140*1000 -> 160.5916371 | G61: =-'Actual RAB roll forward'!K140*1000 -> 139.4201886 | H61: =-'Actual RAB roll forward'!L140*1000 -> 109.8168265 | I61: =-'Actual RAB roll forward'!M140*1000 -> 87.49575518 | J61: 1201.3327
A62: P | B62: =+Input!F46 -> Looping 5 | D62: =-'Actual RAB roll forward'!H153*1000 -> 1099.289824 | E62: =-'Actual RAB roll forward'!I153*1000 -> 1079.651215 | F62: =-'Actual RAB roll forward'!J153*1000 -> 497.0391858 | G62: =-'Actual RAB roll forward'!K153*1000 -> 431.5124889 | H62: =-'Actual RAB roll forward'!L153*1000 -> 339.8885957 | I62: =-'Actual RAB roll forward'!M153*1000 -> 270.8037585 | J62: 3718.185068
A63: P | B63: =+Input!F47 -> Looping 6 | D63: =-'Actual RAB roll forward'!H166*1000 -> 194.8368158 | E63: =-'Actual RAB roll forward'!I166*1000 -> 191.3560922 | F63: =-'Actual RAB roll forward'!J166*1000 -> 88.09463181 | G63: =-'Actual RAB roll forward'!K166*1000 -> 76.4807583 | H63: =-'Actual RAB roll forward'!L166*1000 -> 60.24144886 | I63: =-'Actual RAB roll forward'!M166*1000 -> 47.99693482 | J63: 659.0066818
A64: P | B64: =+Input!F48 -> Lateral | D64: =-'Actual RAB roll forward'!H179*1000 -> 509.8856117 | E64: =-'Actual RAB roll forward'!I179*1000 -> 500.7765999 | F64: =-'Actual RAB roll forward'!J179*1000 -> 230.5425956 | G64: =-'Actual RAB roll forward'!K179*1000 -> 200.1492278 | H64: =-'Actual RAB roll forward'!L179*1000 -> 157.6511497 | I64: =-'Actual RAB roll forward'!M179*1000 -> 125.6074031 | J64: 1724.612588
A65: C | B65: =+Input!F49 -> DalbyCompressor | D65: =-'Actual RAB roll forward'!H192*1000 -> 204.4660445 | E65: =-'Actual RAB roll forward'!I192*1000 -> 200.8132966 | F65: =-'Actual RAB roll forward'!J192*1000 -> 92.44844636 | G65: =-'Actual RAB roll forward'!K192*1000 -> 80.26059178 | H65: =-'Actual RAB roll forward'!L192*1000 -> 63.21870288 | I65: =-'Actual RAB roll forward'!M192*1000 -> 50.36904023 | J65: 691.5761224
A66: C | B66: =+Input!F50 -> KoganCompressor | D66: =-'Actual RAB roll forward'!H205*1000 -> 121.0828705 | E66: =-'Actual RAB roll forward'!I205*1000 -> 118.9197475 | F66: =-'Actual RAB roll forward'!J205*1000 -> 54.74710134 | G66: =-'Actual RAB roll forward'!K205*1000 -> 47.52956837 | H66: =-'Actual RAB roll forward'!L205*1000 -> 37.43752188 | I66: =-'Actual RAB roll forward'!M205*1000 -> 29.82807239 | J66: 409.5448821
A67: C | B67: =+Input!F51 -> OakeyCompressor | D67: =-'Actual RAB roll forward'!H218*1000 -> 155.5033771 | E67: =-'Actual RAB roll forward'!I218*1000 -> 152.7253381 | F67: =-'Actual RAB roll forward'!J218*1000 -> 70.31018597 | G67: =-'Actual RAB roll forward'!K218*1000 -> 61.04090827 | H67: =-'Actual RAB roll forward'!L218*1000 -> 48.07997248 | I67: =-'Actual RAB roll forward'!M218*1000 -> 38.30736724 | J67: 525.9671492
A68: C | B68: =+Input!F52 -> CondamineCompressor | D68: =-'Actual RAB roll forward'!H231*1000 -> 217.0713869 | E68: =-'Actual RAB roll forward'!I231*1000 -> 213.1934469 | F68: =-'Actual RAB roll forward'!J231*1000 -> 98.14789792 | G68: =-'Actual RAB roll forward'!K231*1000 -> 85.20866146 | H68: =-'Actual RAB roll forward'!L231*1000 -> 67.11613923 | I68: =-'Actual RAB roll forward'!M231*1000 -> 53.4742942 | J68: 734.2118265
A69: C | B69: =+Input!F53 -> YulebaCompressor | D69: =-'Actual RAB roll forward'!H244*1000 -> 272.2787186 | E69: =-'Actual RAB roll forward'!I244*1000 -> 267.4145098 | F69: =-'Actual RAB roll forward'!J244*1000 -> 123.1096565 | G69: =-'Actual RAB roll forward'!K244*1000 -> 106.8796099 | H69: =-'Actual RAB roll forward'!L244*1000 -> 84.18565268 | I69: =-'Actual RAB roll forward'!M244*1000 -> 67.07430449 | J69: 920.942452
A70: C | B70: =+Input!F54 -> GattonCompressor | D70: =-'Actual RAB roll forward'!H257*1000 -> 288.075209 | E70: =-'Actual RAB roll forward'!I257*1000 -> 282.9287989 | F70: =-'Actual RAB roll forward'!J257*1000 -> 130.251972 | G70: =-'Actual RAB roll forward'!K257*1000 -> 113.0803249 | H70: =-'Actual RAB roll forward'!L257*1000 -> 89.06975772 | I70: =-'Actual RAB roll forward'!M257*1000 -> 70.96567954 | J70: 974.3717422
A71: E | B71: =+Input!F55 -> Easements | D71: =-'Actual RAB roll forward'!H270*1000 -> 13.78536314 | E71: =-'Actual RAB roll forward'!I270*1000 -> 13.78536314 | F71: =-'Actual RAB roll forward'!J270*1000 -> 13.78536314 | G71: =-'Actual RAB roll forward'!K270*1000 -> 13.78536314 | H71: =-'Actual RAB roll forward'!L270*1000 -> 13.78536314 | I71: =-'Actual RAB roll forward'!M270*1000 -> 13.78536314 | J71: 82.71217887
A72: COM | B72: =+Input!F56 -> Communications | D72: =-'Actual RAB roll forward'!H283*1000 -> 331.416346 | E72: =-'Actual RAB roll forward'!I283*1000 -> 331.416346 | F72: =-'Actual RAB roll forward'!J283*1000 -> 331.416346 | G72: =-'Actual RAB roll forward'!K283*1000 -> 331.416346 | H72: =-'Actual RAB roll forward'!L283*1000 -> 331.416346 | I72: =-'Actual RAB roll forward'!M283*1000 -> 331.416346 | J72: 1988.498076
A73: SIB | B73: =+Input!F57 -> Other | D73: =-'Actual RAB roll forward'!H296*1000 -> 0 | E73: =-'Actual RAB roll forward'!I296*1000 -> 0 | F73: =-'Actual RAB roll forward'!J296*1000 -> 0 | G73: =-'Actual RAB roll forward'!K296*1000 -> 0 | H73: =-'Actual RAB roll forward'!L296*1000 -> 0 | I73: =-'Actual RAB roll forward'!M296*1000 -> 0 | J73: 0
A74: AA | B74: =+Input!F58 -> Capitalised AA costs | D74: =-'Actual RAB roll forward'!H309*1000 -> 0 | E74: =-'Actual RAB roll forward'!I309*1000 -> 103.3818587 | F74: =-'Actual RAB roll forward'!J309*1000 -> 103.3818587 | G74: =-'Actual RAB roll forward'!K309*1000 -> 103.3818587 | H74: =-'Actual RAB roll forward'!L309*1000 -> 103.636078 | I74: =-'Actual RAB roll forward'!M309*1000 -> 113.9156314 | J74: 527.6972855
A75: P | B75: =+Input!F59 -> Pipelines / Laterals | D75: =-'Actual RAB roll forward'!H322*1000 -> 0 | E75: =-'Actual RAB roll forward'!I322*1000 -> 0.8575357957 | F75: =-'Actual RAB roll forward'!J322*1000 -> 0.8575357957 | G75: =-'Actual RAB roll forward'!K322*1000 -> 0.8575357957 | H75: =-'Actual RAB roll forward'!L322*1000 -> 0.8575357957 | I75: =-'Actual RAB roll forward'!M322*1000 -> 3.742072478 | J75: 7.17221566
A76: SIB | B76: =+Input!F60 -> Group IT | D76: =-'Actual RAB roll forward'!H335*1000 -> 0 | E76: =-'Actual RAB roll forward'!I335*1000 -> 0 | F76: =-'Actual RAB roll forward'!J335*1000 -> 0 | G76: =-'Actual RAB roll forward'!K335*1000 -> 26.37276958 | H76: =-'Actual RAB roll forward'!L335*1000 -> 78.19634706 | I76: =-'Actual RAB roll forward'!M335*1000 -> 243.0275523 | J76: 347.5966689
A77: SIB | B77: =+Input!F61 -> SIB Capex | D77: =-'Actual RAB roll forward'!H348*1000 -> 0 | E77: =-'Actual RAB roll forward'!I348*1000 -> 253.6097829 | F77: =-'Actual RAB roll forward'!J348*1000 -> 739.7541048 | G77: =-'Actual RAB roll forward'!K348*1000 -> 1160.206071 | H77: =-'Actual RAB roll forward'!L348*1000 -> 1871.846692 | I77: =-'Actual RAB roll forward'!M348*1000 -> 2115.779719 | J77: 6141.196369
A78: PMA | B78: =+Input!F62 -> PMA | D78: =-'Actual RAB roll forward'!H361*1000 -> 0 | E78: =-'Actual RAB roll forward'!I361*1000 -> 0 | F78: =-'Actual RAB roll forward'!J361*1000 -> 2490.366236 | G78: =-'Actual RAB roll forward'!K361*1000 -> 2490.366236 | H78: =-'Actual RAB roll forward'!L361*1000 -> 2490.366236 | I78: =-'Actual RAB roll forward'!M361*1000 -> 2490.366236 | J78: 9961.464944
A79: REG | B79: =+Input!F63 -> Regulators and meters | D79: =-'Actual RAB roll forward'!H374*1000 -> 0 | E79: =-'Actual RAB roll forward'!I374*1000 -> 18.56506459 | F79: =-'Actual RAB roll forward'!J374*1000 -> 21.84741755 | G79: =-'Actual RAB roll forward'!K374*1000 -> 30.21358122 | H79: =-'Actual RAB roll forward'!L374*1000 -> 30.28548231 | I79: =-'Actual RAB roll forward'!M374*1000 -> 30.28548231 | J79: 131.197028
A80: PL | B80: =+Input!F64 -> Lytton lateral | D80: =-'Actual RAB roll forward'!H387*1000 -> 0 | E80: =-'Actual RAB roll forward'!I387*1000 -> 0 | F80: =-'Actual RAB roll forward'!J387*1000 -> 0 | G80: =-'Actual RAB roll forward'!K387*1000 -> 0 | H80: =-'Actual RAB roll forward'!L387*1000 -> 0 | I80: =-'Actual RAB roll forward'!M387*1000 -> 104.2824692 | J80: 104.2824692
A81: P8 | B81: =+Input!F65 -> RBP Expansion 8 | D81: =-'Actual RAB roll forward'!H400*1000 -> 0 | E81: =-'Actual RAB roll forward'!I400*1000 -> 0 | F81: =-'Actual RAB roll forward'!J400*1000 -> 0 | G81: =-'Actual RAB roll forward'!K400*1000 -> 0 | H81: =-'Actual RAB roll forward'!L400*1000 -> 0 | I81: =-'Actual RAB roll forward'!M400*1000 -> 0 | J81: 0
A82: 0 | B82: =+Input!F66 -> Asset26 | D82: =-'Actual RAB roll forward'!H413*1000 -> 0 | E82: =-'Actual RAB roll forward'!I413*1000 -> 0 | F82: =-'Actual RAB roll forward'!J413*1000 -> 0 | G82: =-'Actual RAB roll forward'!K413*1000 -> 0 | H82: =-'Actual RAB roll forward'!L413*1000 -> 0 | I82: =-'Actual RAB roll forward'!M413*1000 -> 0 | J82: =SUM(D82:I82) -> 0
A83: 0 | B83: =+Input!F67 -> Asset27 | D83: =-'Actual RAB roll forward'!H426*1000 -> 0 | E83: =-'Actual RAB roll forward'!I426*1000 -> 0 | F83: =-'Actual RAB roll forward'!J426*1000 -> 0 | G83: =-'Actual RAB roll forward'!K426*1000 -> 0 | H83: =-'Actual RAB roll forward'!L426*1000 -> 0 | I83: =-'Actual RAB roll forward'!M426*1000 -> 0 | J83: =SUM(D83:I83) -> 0
A84: 0 | B84: =+Input!F68 -> Asset28 | D84: =-'Actual RAB roll forward'!H439*1000 -> 0 | E84: =-'Actual RAB roll forward'!I439*1000 -> 0 | F84: =-'Actual RAB roll forward'!J439*1000 -> 0 | G84: =-'Actual RAB roll forward'!K439*1000 -> 0 | H84: =-'Actual RAB roll forward'!L439*1000 -> 0 | I84: =-'Actual RAB roll forward'!M439*1000 -> 0 | J84: =SUM(D84:I84) -> 0
A85: 0 | B85: =+Input!F69 -> Asset29 | D85: =-'Actual RAB roll forward'!H452*1000 -> 0 | E85: =-'Actual RAB roll forward'!I452*1000 -> 0 | F85: =-'Actual RAB roll forward'!J452*1000 -> 0 | G85: =-'Actual RAB roll forward'!K452*1000 -> 0 | H85: =-'Actual RAB roll forward'!L452*1000 -> 0 | I85: =-'Actual RAB roll forward'!M452*1000 -> 0 | J85: =SUM(D85:I85) -> 0
A86: 0 | B86: =+Input!F70 -> Asset30 | D86: =-'Actual RAB roll forward'!H465*1000 -> 0 | E86: =-'Actual RAB roll forward'!I465*1000 -> 0 | F86: =-'Actual RAB roll forward'!J465*1000 -> 0 | G86: =-'Actual RAB roll forward'!K465*1000 -> 0 | H86: =-'Actual RAB roll forward'!L465*1000 -> 0 | I86: =-'Actual RAB roll forward'!M465*1000 -> 0 | J86: =SUM(D86:I86) -> 0
B87: Total depreciation | D87: =SUM(D57:D86) -> 5846.258049 | E87: 6124.39694 | F87: 6188.687926 | G87: 6315.970713 | H87: 6621.257562 | I87: 6801.754627 | J87: 37898.32582
C89: Check | D89: =-'Actual RAB roll forward'!H75*1000-D87 -> 0 | E89: =-'Actual RAB roll forward'!I75*1000-E87 -> 0 | F89: =-'Actual RAB roll forward'!J75*1000-F87 -> 0 | G89: =-'Actual RAB roll forward'!K75*1000-G87 -> 0 | H89: =-'Actual RAB roll forward'!L75*1000-H87 -> 0 | I89: =-'Actual RAB roll forward'!M75*1000-I87 -> 0
C92: Tax Depreciation ($m) | D92: 2006/07 | E92: 2007/08 | F92: 2008/09 | G92: 2009/10 | H92: 2010/11 | I92: 2011/12 | J92: Total
B94: =+B57 -> OriginalPipeline | D94: =-'Tax value roll forward'!H84*1000 -> 0 | E94: =-'Tax value roll forward'!I84*1000 -> 0 | F94: =-'Tax value roll forward'!J84*1000 -> 0 | G94: =-'Tax value roll forward'!K84*1000 -> 0 | H94: =-'Tax value roll forward'!L84*1000 -> 0 | I94: =-'Tax value roll forward'!M84*1000 -> 0 | J94: =SUM(D94:I94) -> 0
B95: =+B58 -> Looping 1 | D95: =-'Tax value roll forward'!H97*1000 -> 198.3 | E95: =-'Tax value roll forward'!I97*1000 -> 198.3 | F95: =-'Tax value roll forward'!J97*1000 -> 2.9 | G95: =-'Tax value roll forward'!K97*1000 -> 0.25 | H95: =-'Tax value roll forward'!L97*1000 -> 0 | I95: =-'Tax value roll forward'!M97*1000 -> 0 | J95: =SUM(D95:I95) -> 399.75
B96: Looping 2 | D96: =-'Tax value roll forward'!H110*1000 -> 271 | E96: =-'Tax value roll forward'!I110*1000 -> 271 | F96: =-'Tax value roll forward'!J110*1000 -> 271 | G96: =-'Tax value roll forward'!K110*1000 -> 271 | H96: =-'Tax value roll forward'!L110*1000 -> 2.5 | I96: =-'Tax value roll forward'!M110*1000 -> 0.8 | J96: 1087.3
B97: Looping 3 | D97: =-'Tax value roll forward'!H123*1000 -> 544.4 | E97: =-'Tax value roll forward'!I123*1000 -> 544.4 | F97: =-'Tax value roll forward'!J123*1000 -> 544.4 | G97: =-'Tax value roll forward'!K123*1000 -> 544.4 | H97: =-'Tax value roll forward'!L123*1000 -> 544.4 | I97: =-'Tax value roll forward'!M123*1000 -> 544.4 | J97: 3266.4
B98: Looping 4 | D98: =-'Tax value roll forward'!H136*1000 -> 813 | E98: =-'Tax value roll forward'!I136*1000 -> 813 | F98: =-'Tax value roll forward'!J136*1000 -> 813 | G98: =-'Tax value roll forward'!K136*1000 -> 813 | H98: =-'Tax value roll forward'!L136*1000 -> 813 | I98: =-'Tax value roll forward'!M136*1000 -> 813 | J98: 4878
B99: Looping 5 | D99: =-'Tax value roll forward'!H149*1000 -> 2681 | E99: =-'Tax value roll forward'!I149*1000 -> 2681 | F99: =-'Tax value roll forward'!J149*1000 -> 2681 | G99: =-'Tax value roll forward'!K149*1000 -> 2681 | H99: =-'Tax value roll forward'!L149*1000 -> 2681 | I99: =-'Tax value roll forward'!M149*1000 -> 2681 | J99: 16086
B100: Looping 6 | D100: =-'Tax value roll forward'!H162*1000 -> 477.25 | E100: =-'Tax value roll forward'!I162*1000 -> 477.25 | F100: =-'Tax value roll forward'!J162*1000 -> 477.25 | G100: =-'Tax value roll forward'!K162*1000 -> 477.25 | H100: =-'Tax value roll forward'!L162*1000 -> 477.25 | I100: =-'Tax value roll forward'!M162*1000 -> 477.25 | J100: 2863.5
B101: Lateral | D101: =-'Tax value roll forward'!H175*1000 -> 1171.5 | E101: =-'Tax value roll forward'!I175*1000 -> 1171.5 | F101: =-'Tax value roll forward'!J175*1000 -> 1171.5 | G101: =-'Tax value roll forward'!K175*1000 -> 1171.5 | H101: =-'Tax value roll forward'!L175*1000 -> 1171.5 | I101: =-'Tax value roll forward'!M175*1000 -> 1171.5 | J101: 7029
B102: DalbyCompressor | D102: =-'Tax value roll forward'!H188*1000 -> 44.3 | E102: =-'Tax value roll forward'!I188*1000 -> 44.3 | F102: =-'Tax value roll forward'!J188*1000 -> 44.3 | G102: =-'Tax value roll forward'!K188*1000 -> 44.3 | H102: =-'Tax value roll forward'!L188*1000 -> 44.3 | I102: =-'Tax value roll forward'!M188*1000 -> 44.3 | J102: 265.8
B103: KoganCompressor | D103: =-'Tax value roll forward'!H201*1000 -> 15.3 | E103: =-'Tax value roll forward'!I201*1000 -> 15.3 | F103: =-'Tax value roll forward'!J201*1000 -> 15.3 | G103: =-'Tax value roll forward'!K201*1000 -> 15.3 | H103: =-'Tax value roll forward'!L201*1000 -> 15.3 | I103: =-'Tax value roll forward'!M201*1000 -> 15.3 | J103: 91.8
B104: OakeyCompressor | D104: =-'Tax value roll forward'!H214*1000 -> 18.75 | E104: =-'Tax value roll forward'!I214*1000 -> 18.75 | F104: =-'Tax value roll forward'!J214*1000 -> 18.75 | G104: =-'Tax value roll forward'!K214*1000 -> 18.75 | H104: =-'Tax value roll forward'!L214*1000 -> 18.75 | I104: =-'Tax value roll forward'!M214*1000 -> 18.75 | J104: 112.5
B105: CondamineCompressor | D105: =-'Tax value roll forward'!H227*1000 -> 15.35 | E105: =-'Tax value roll forward'!I227*1000 -> 15.35 | F105: =-'Tax value roll forward'!J227*1000 -> 15.35 | G105: =-'Tax value roll forward'!K227*1000 -> 15.35 | H105: =-'Tax value roll forward'!L227*1000 -> 15.35 | I105: =-'Tax value roll forward'!M227*1000 -> 15.35 | J105: 92.1
B106: YulebaCompressor | D106: =-'Tax value roll forward'!H240*1000 -> 18 | E106: =-'Tax value roll forward'!I240*1000 -> 18.05 | F106: =-'Tax value roll forward'!J240*1000 -> 18.05 | G106: =-'Tax value roll forward'!K240*1000 -> 18.05 | H106: =-'Tax value roll forward'!L240*1000 -> 18.05 | I106: =-'Tax value roll forward'!M240*1000 -> 18.05 | J106: 108.25
B107: GattonCompressor | D107: =-'Tax value roll forward'!H253*1000 -> 53.15 | E107: =-'Tax value roll forward'!I253*1000 -> 20.45 | F107: =-'Tax value roll forward'!J253*1000 -> 20.7 | G107: =-'Tax value roll forward'!K253*1000 -> 20.7 | H107: =-'Tax value roll forward'!L253*1000 -> 20.7 | I107: =-'Tax value roll forward'!M253*1000 -> 20.7 | J107: 156.4
B108: Easements | D108: =-'Tax value roll forward'!H266*1000 -> 0 | E108: =-'Tax value roll forward'!I266*1000 -> 0 | F108: =-'Tax value roll forward'!J266*1000 -> 0 | G108: =-'Tax value roll forward'!K266*1000 -> 0 | H108: =-'Tax value roll forward'!L266*1000 -> 0 | I108: =-'Tax value roll forward'!M266*1000 -> 0 | J108: 0
B109: Communications | D109: =-'Tax value roll forward'!H279*1000 -> 0 | E109: =-'Tax value roll forward'!I279*1000 -> 0 | F109: =-'Tax value roll forward'!J279*1000 -> 0 | G109: =-'Tax value roll forward'!K279*1000 -> 0 | H109: =-'Tax value roll forward'!L279*1000 -> 0 | I109: =-'Tax value roll forward'!M279*1000 -> 0 | J109: 0
B110: Other | D110: =-'Tax value roll forward'!H292*1000 -> 30.4 | E110: =-'Tax value roll forward'!I292*1000 -> 30.4 | F110: =-'Tax value roll forward'!J292*1000 -> 30.4 | G110: =-'Tax value roll forward'!K292*1000 -> 30.4 | H110: =-'Tax value roll forward'!L292*1000 -> 30.4 | I110: =-'Tax value roll forward'!M292*1000 -> 30.4 | J110: 182.4
B111: Capitalised AA costs | D111: =-'Tax value roll forward'!H305*1000 -> 0 | E111: =-'Tax value roll forward'!I305*1000 -> 102.435813 | F111: =-'Tax value roll forward'!J305*1000 -> 102.435813 | G111: =-'Tax value roll forward'!K305*1000 -> 102.435813 | H111: =-'Tax value roll forward'!L305*1000 -> 102.710813 | I111: =-'Tax value roll forward'!M305*1000 -> 114.127123 | J111: 524.1453752
B112: Pipelines / Laterals | D112: =-'Tax value roll forward'!H318*1000 -> 0 | E112: =-'Tax value roll forward'!I318*1000 -> 3.398754 | F112: =-'Tax value roll forward'!J318*1000 -> 3.398754 | G112: =-'Tax value roll forward'!K318*1000 -> 3.398754 | H112: =-'Tax value roll forward'!L318*1000 -> 3.398754 | I112: =-'Tax value roll forward'!M318*1000 -> 16.212838 | J112: 29.807854
B113: Group IT | D113: =-'Tax value roll forward'!H331*1000 -> 0 | E113: =-'Tax value roll forward'!I331*1000 -> 0 | F113: =-'Tax value roll forward'!J331*1000 -> 0 | G113: =-'Tax value roll forward'!K331*1000 -> 27.899224 | H113: =-'Tax value roll forward'!L331*1000 -> 83.959016 | I113: =-'Tax value roll forward'!M331*1000 -> 267.017956 | J113: 378.876196
B114: SIB Capex | D114: =-'Tax value roll forward'!H344*1000 -> 0 | E114: =-'Tax value roll forward'!I344*1000 -> 251.289004 | F114: =-'Tax value roll forward'!J344*1000 -> 740.425198 | G114: =-'Tax value roll forward'!K344*1000 -> 1185.2129 | H114: =-'Tax value roll forward'!L344*1000 -> 1955.025158 | I114: =-'Tax value roll forward'!M344*1000 -> 2225.933336 | J114: 6357.885596
B115: PMA | D115: =-'Tax value roll forward'!H357*1000 -> 0 | E115: =-'Tax value roll forward'!I357*1000 -> 0 | F115: =-'Tax value roll forward'!J357*1000 -> 6013.6624 | G115: =-'Tax value roll forward'!K357*1000 -> 6013.6624 | H115: =-'Tax value roll forward'!L357*1000 -> 6013.6624 | I115: =-'Tax value roll forward'!M357*1000 -> 6013.6624 | J115: 24054.6496
B116: Regulators and meters | D116: =-'Tax value roll forward'!H370*1000 -> 0 | E116: =-'Tax value roll forward'!I370*1000 -> 36.790352 | F116: =-'Tax value roll forward'!J370*1000 -> 43.395459 | G116: =-'Tax value roll forward'!K370*1000 -> 61.0962525 | H116: =-'Tax value roll forward'!L370*1000 -> 61.2518095 | I116: =-'Tax value roll forward'!M370*1000 -> 61.2518095 | J116: 263.7856825
B117: Lytton lateral | D117: =-'Tax value roll forward'!H383*1000 -> 0 | E117: =-'Tax value roll forward'!I383*1000 -> 0 | F117: =-'Tax value roll forward'!J383*1000 -> 0 | G117: =-'Tax value roll forward'!K383*1000 -> 0 | H117: =-'Tax value roll forward'!L383*1000 -> 0 | I117: =-'Tax value roll forward'!M383*1000 -> 463.2578704 | J117: 463.2578704
B118: RBP Expansion 8 | D118: =-'Tax value roll forward'!H396*1000 -> 0 | E118: =-'Tax value roll forward'!I396*1000 -> 0 | F118: =-'Tax value roll forward'!J396*1000 -> 0 | G118: =-'Tax value roll forward'!K396*1000 -> 0 | H118: =-'Tax value roll forward'!L396*1000 -> 0 | I118: =-'Tax value roll forward'!M396*1000 -> 0 | J118: 0
B119: Asset26 | D119: =-'Tax value roll forward'!H409*1000 -> 0 | E119: =-'Tax value roll forward'!I409*1000 -> 0 | F119: =-'Tax value roll forward'!J409*1000 -> 0 | G119: =-'Tax value roll forward'!K409*1000 -> 0 | H119: =-'Tax value roll forward'!L409*1000 -> 0 | I119: =-'Tax value roll forward'!M409*1000 -> 0 | J119: =SUM(D119:I119) -> 0
B120: Asset27 | D120: =-'Tax value roll forward'!H422*1000 -> 0 | E120: =-'Tax value roll forward'!I422*1000 -> 0 | F120: =-'Tax value roll forward'!J422*1000 -> 0 | G120: =-'Tax value roll forward'!K422*1000 -> 0 | H120: =-'Tax value roll forward'!L422*1000 -> 0 | I120: =-'Tax value roll forward'!M422*1000 -> 0 | J120: =SUM(D120:I120) -> 0
B121: Asset28 | D121: =-'Tax value roll forward'!H435*1000 -> 0 | E121: =-'Tax value roll forward'!I435*1000 -> 0 | F121: =-'Tax value roll forward'!J435*1000 -> 0 | G121: =-'Tax value roll forward'!K435*1000 -> 0 | H121: =-'Tax value roll forward'!L435*1000 -> 0 | I121: =-'Tax value roll forward'!M435*1000 -> 0 | J121: =SUM(D121:I121) -> 0
B122: Asset29 | D122: =-'Tax value roll forward'!H448*1000 -> 0 | E122: =-'Tax value roll forward'!I448*1000 -> 0 | F122: =-'Tax value roll forward'!J448*1000 -> 0 | G122: =-'Tax value roll forward'!K448*1000 -> 0 | H122: =-'Tax value roll forward'!L448*1000 -> 0 | I122: =-'Tax value roll forward'!M448*1000 -> 0 | J122: =SUM(D122:I122) -> 0
B123: Asset30 | D123: =-'Tax value roll forward'!H461*1000 -> 0 | E123: =-'Tax value roll forward'!I461*1000 -> 0 | F123: =-'Tax value roll forward'!J461*1000 -> 0 | G123: =-'Tax value roll forward'!K461*1000 -> 0 | H123: =-'Tax value roll forward'!L461*1000 -> 0 | I123: =-'Tax value roll forward'!M461*1000 -> 0 | J123: =SUM(D123:I123) -> 0
B124: Total depreciation | D124: =SUM(D94:D123) -> 6351.7 | E124: 6712.963923 | F124: 13027.21762 | G124: 13514.95534 | H124: 14072.50795 | I124: 15012.26333 | J124: 68691.60817
C126: Check | D126: =-'Tax value roll forward'!H71*1000-D124 -> 0 | E126: =-'Tax value roll forward'!I71*1000-E124 -> 0 | F126: =-'Tax value roll forward'!J71*1000-F124 -> 0 | G126: =-'Tax value roll forward'!K71*1000-G124 -> 0 | H126: =-'Tax value roll forward'!L71*1000-H124 -> 0 | I126: =-'Tax value roll forward'!M71*1000-I124 -> 0
C129: Tax WDV ($m) | D129: 2005/06 | E129: 2006/07 | F129: 2007/08 | G129: 2008/09 | H129: 2009/10 | I129: 2010/11 | J129: 2011/12
B131: =+B94 -> OriginalPipeline | D131: ='Tax value roll forward'!H8*1000 -> 0 | E131: ='Tax value roll forward'!I8*1000 -> 0 | F131: ='Tax value roll forward'!J8*1000 -> 0 | G131: ='Tax value roll forward'!K8*1000 -> 0 | H131: ='Tax value roll forward'!L8*1000 -> 0 | I131: ='Tax value roll forward'!M8*1000 -> 0 | J131: ='Tax value roll forward'!N8*1000 -> 0
B132: =+B95 -> Looping 1 | D132: ='Tax value roll forward'!H9*1000 -> 399.75 | E132: ='Tax value roll forward'!I9*1000 -> 201.45 | F132: ='Tax value roll forward'!J9*1000 -> 3.15 | G132: ='Tax value roll forward'!K9*1000 -> 0.25 | H132: ='Tax value roll forward'!L9*1000 -> -1.366094737e-14 | I132: ='Tax value roll forward'!M9*1000 -> -1.366094737e-14 | J132: ='Tax value roll forward'!N9*1000 -> -1.366094737e-14
B133: Looping 2 | D133: ='Tax value roll forward'!H10*1000 -> 1087.3 | E133: ='Tax value roll forward'!I10*1000 -> 816.3 | F133: ='Tax value roll forward'!J10*1000 -> 545.3 | G133: ='Tax value roll forward'!K10*1000 -> 274.3 | H133: ='Tax value roll forward'!L10*1000 -> 3.3 | I133: ='Tax value roll forward'!M10*1000 -> 0.8 | J133: ='Tax value roll forward'!N10*1000 -> -1.414883835e-13
B134: Looping 3 | D134: ='Tax value roll forward'!H11*1000 -> 6531 | E134: ='Tax value roll forward'!I11*1000 -> 5986.6 | F134: ='Tax value roll forward'!J11*1000 -> 5442.2 | G134: ='Tax value roll forward'!K11*1000 -> 4897.8 | H134: ='Tax value roll forward'!L11*1000 -> 4353.4 | I134: ='Tax value roll forward'!M11*1000 -> 3809 | J134: ='Tax value roll forward'!N11*1000 -> 3264.6
B135: Looping 4 | D135: ='Tax value roll forward'!H12*1000 -> 12195 | E135: ='Tax value roll forward'!I12*1000 -> 11382 | F135: ='Tax value roll forward'!J12*1000 -> 10569 | G135: ='Tax value roll forward'!K12*1000 -> 9756 | H135: ='Tax value roll forward'!L12*1000 -> 8943 | I135: ='Tax value roll forward'!M12*1000 -> 8130 | J135: ='Tax value roll forward'!N12*1000 -> 7317
B136: Looping 5 | D136: ='Tax value roll forward'!H13*1000 -> 45610 | E136: ='Tax value roll forward'!I13*1000 -> 42929 | F136: ='Tax value roll forward'!J13*1000 -> 40248 | G136: ='Tax value roll forward'!K13*1000 -> 37567 | H136: ='Tax value roll forward'!L13*1000 -> 34886 | I136: ='Tax value roll forward'!M13*1000 -> 32205 | J136: ='Tax value roll forward'!N13*1000 -> 29524
B137: Looping 6 | D137: ='Tax value roll forward'!H14*1000 -> 8178.2 | E137: ='Tax value roll forward'!I14*1000 -> 7700.95 | F137: ='Tax value roll forward'!J14*1000 -> 7223.7 | G137: ='Tax value roll forward'!K14*1000 -> 6746.45 | H137: ='Tax value roll forward'!L14*1000 -> 6269.2 | I137: ='Tax value roll forward'!M14*1000 -> 5791.95 | J137: ='Tax value roll forward'!N14*1000 -> 5314.7
B138: Lateral | D138: ='Tax value roll forward'!H15*1000 -> 17680.9 | E138: ='Tax value roll forward'!I15*1000 -> 16509.4 | F138: ='Tax value roll forward'!J15*1000 -> 15337.9 | G138: ='Tax value roll forward'!K15*1000 -> 14166.4 | H138: ='Tax value roll forward'!L15*1000 -> 12994.9 | I138: ='Tax value roll forward'!M15*1000 -> 11823.4 | J138: ='Tax value roll forward'!N15*1000 -> 10651.9
B139: DalbyCompressor | D139: ='Tax value roll forward'!H16*1000 -> 686.6 | E139: ='Tax value roll forward'!I16*1000 -> 642.3 | F139: ='Tax value roll forward'!J16*1000 -> 598 | G139: ='Tax value roll forward'!K16*1000 -> 553.7 | H139: ='Tax value roll forward'!L16*1000 -> 509.4 | I139: ='Tax value roll forward'!M16*1000 -> 465.1 | J139: ='Tax value roll forward'!N16*1000 -> 420.8
B140: KoganCompressor | D140: ='Tax value roll forward'!H17*1000 -> 169.55 | E140: ='Tax value roll forward'!I17*1000 -> 154.25 | F140: ='Tax value roll forward'!J17*1000 -> 138.95 | G140: ='Tax value roll forward'!K17*1000 -> 123.65 | H140: ='Tax value roll forward'!L17*1000 -> 108.35 | I140: ='Tax value roll forward'!M17*1000 -> 93.05 | J140: ='Tax value roll forward'!N17*1000 -> 77.75
B141: OakeyCompressor | D141: ='Tax value roll forward'!H18*1000 -> 227.45 | E141: ='Tax value roll forward'!I18*1000 -> 208.7 | F141: ='Tax value roll forward'!J18*1000 -> 189.95 | G141: ='Tax value roll forward'!K18*1000 -> 171.2 | H141: ='Tax value roll forward'!L18*1000 -> 152.45 | I141: ='Tax value roll forward'!M18*1000 -> 133.7 | J141: ='Tax value roll forward'!N18*1000 -> 114.95
B142: CondamineCompressor | D142: ='Tax value roll forward'!H19*1000 -> 169.8 | E142: ='Tax value roll forward'!I19*1000 -> 154.45 | F142: ='Tax value roll forward'!J19*1000 -> 139.1 | G142: ='Tax value roll forward'!K19*1000 -> 123.75 | H142: ='Tax value roll forward'!L19*1000 -> 108.4 | I142: ='Tax value roll forward'!M19*1000 -> 93.05 | J142: ='Tax value roll forward'!N19*1000 -> 77.7
B143: YulebaCompressor | D143: ='Tax value roll forward'!H20*1000 -> 215.8 | E143: ='Tax value roll forward'!I20*1000 -> 197.8 | F143: ='Tax value roll forward'!J20*1000 -> 179.75 | G143: ='Tax value roll forward'!K20*1000 -> 161.7 | H143: ='Tax value roll forward'!L20*1000 -> 143.65 | I143: ='Tax value roll forward'!M20*1000 -> 125.6 | J143: ='Tax value roll forward'!N20*1000 -> 107.55
B144: GattonCompressor | D144: ='Tax value roll forward'!H21*1000 -> 280.45 | E144: ='Tax value roll forward'!I21*1000 -> 227.3 | F144: ='Tax value roll forward'!J21*1000 -> 206.85 | G144: ='Tax value roll forward'!K21*1000 -> 186.15 | H144: ='Tax value roll forward'!L21*1000 -> 165.45 | I144: ='Tax value roll forward'!M21*1000 -> 144.75 | J144: ='Tax value roll forward'!N21*1000 -> 124.05
B145: Easements | D145: ='Tax value roll forward'!H22*1000 -> 0 | E145: ='Tax value roll forward'!I22*1000 -> 0 | F145: ='Tax value roll forward'!J22*1000 -> 0 | G145: ='Tax value roll forward'!K22*1000 -> 0 | H145: ='Tax value roll forward'!L22*1000 -> 0 | I145: ='Tax value roll forward'!M22*1000 -> 0 | J145: ='Tax value roll forward'!N22*1000 -> 0
B146: Communications | D146: ='Tax value roll forward'!H23*1000 -> 0 | E146: ='Tax value roll forward'!I23*1000 -> 0 | F146: ='Tax value roll forward'!J23*1000 -> 0 | G146: ='Tax value roll forward'!K23*1000 -> 0 | H146: ='Tax value roll forward'!L23*1000 -> 0 | I146: ='Tax value roll forward'!M23*1000 -> 0 | J146: ='Tax value roll forward'!N23*1000 -> 0
B147: Other | D147: ='Tax value roll forward'!H24*1000 -> 390.15 | E147: ='Tax value roll forward'!I24*1000 -> 359.75 | F147: ='Tax value roll forward'!J24*1000 -> 329.35 | G147: ='Tax value roll forward'!K24*1000 -> 298.95 | H147: ='Tax value roll forward'!L24*1000 -> 268.55 | I147: ='Tax value roll forward'!M24*1000 -> 238.15 | J147: ='Tax value roll forward'!N24*1000 -> 207.75
B148: Capitalised AA costs | D148: ='Tax value roll forward'!H25*1000 -> 0 | E148: ='Tax value roll forward'!I25*1000 -> 512.1790652 | F148: ='Tax value roll forward'!J25*1000 -> 409.7432521 | G148: ='Tax value roll forward'!K25*1000 -> 307.3074391 | H148: ='Tax value roll forward'!L25*1000 -> 206.2466261 | I148: ='Tax value roll forward'!M25*1000 -> 160.617363 | J148: ='Tax value roll forward'!N25*1000 -> 642.6637094
B149: Pipelines / Laterals | D149: ='Tax value roll forward'!H26*1000 -> 0 | E149: ='Tax value roll forward'!I26*1000 -> 67.97508 | F149: ='Tax value roll forward'!J26*1000 -> 64.576326 | G149: ='Tax value roll forward'!K26*1000 -> 61.177572 | H149: ='Tax value roll forward'!L26*1000 -> 57.778818 | I149: ='Tax value roll forward'!M26*1000 -> 310.661744 | J149: ='Tax value roll forward'!N26*1000 -> 294.448906
B150: Group IT | D150: ='Tax value roll forward'!H27*1000 -> 0 | E150: ='Tax value roll forward'!I27*1000 -> 0 | F150: ='Tax value roll forward'!J27*1000 -> 0 | G150: ='Tax value roll forward'!K27*1000 -> 139.49612 | H150: ='Tax value roll forward'!L27*1000 -> 391.895856 | I150: ='Tax value roll forward'!M27*1000 -> 1223.23154 | J150: ='Tax value roll forward'!N27*1000 -> 1914.414544
B151: SIB Capex | D151: ='Tax value roll forward'!H28*1000 -> 0 | E151: ='Tax value roll forward'!I28*1000 -> 1256.44502 | F151: ='Tax value roll forward'!J28*1000 -> 3450.836986 | G151: ='Tax value roll forward'!K28*1000 -> 4934.350298 | H151: ='Tax value roll forward'!L28*1000 -> 7598.198688 | I151: ='Tax value roll forward'!M28*1000 -> 6997.71442 | J151: ='Tax value roll forward'!N28*1000 -> 6970.406084
B152: PMA | D152: ='Tax value roll forward'!H29*1000 -> 0 | E152: ='Tax value roll forward'!I29*1000 -> 0 | F152: ='Tax value roll forward'!J29*1000 -> 30068.312 | G152: ='Tax value roll forward'!K29*1000 -> 24054.6496 | H152: ='Tax value roll forward'!L29*1000 -> 18040.9872 | I152: ='Tax value roll forward'!M29*1000 -> 12027.3248 | J152: ='Tax value roll forward'!N29*1000 -> 6013.6624
B153: Regulators and meters | D153: ='Tax value roll forward'!H30*1000 -> 0 | E153: ='Tax value roll forward'!I30*1000 -> 735.80704 | F153: ='Tax value roll forward'!J30*1000 -> 831.118828 | G153: ='Tax value roll forward'!K30*1000 -> 1141.739239 | H153: ='Tax value roll forward'!L30*1000 -> 1083.754126 | I153: ='Tax value roll forward'!M30*1000 -> 1022.502317 | J153: ='Tax value roll forward'!N30*1000 -> 961.2505075
B154: Lytton lateral | D154: ='Tax value roll forward'!H31*1000 -> 0 | E154: ='Tax value roll forward'!I31*1000 -> 0 | F154: ='Tax value roll forward'!J31*1000 -> 0 | G154: ='Tax value roll forward'!K31*1000 -> 0 | H154: ='Tax value roll forward'!L31*1000 -> 0 | I154: ='Tax value roll forward'!M31*1000 -> 9265.157408 | J154: ='Tax value roll forward'!N31*1000 -> 8801.899538
B155: RBP Expansion 8 | D155: ='Tax value roll forward'!H32*1000 -> 0 | E155: ='Tax value roll forward'!I32*1000 -> 0 | F155: ='Tax value roll forward'!J32*1000 -> 0 | G155: ='Tax value roll forward'!K32*1000 -> 0 | H155: ='Tax value roll forward'!L32*1000 -> 0 | I155: ='Tax value roll forward'!M32*1000 -> 0 | J155: ='Tax value roll forward'!N32*1000 -> 51917.65394
B156: Asset26 | D156: ='Tax value roll forward'!H33*1000 -> 0 | E156: ='Tax value roll forward'!I33*1000 -> 0 | F156: ='Tax value roll forward'!J33*1000 -> 0 | G156: ='Tax value roll forward'!K33*1000 -> 0 | H156: ='Tax value roll forward'!L33*1000 -> 0 | I156: ='Tax value roll forward'!M33*1000 -> 0 | J156: ='Tax value roll forward'!N33*1000 -> 0
B157: Asset27 | D157: ='Tax value roll forward'!H34*1000 -> 0 | E157: ='Tax value roll forward'!I34*1000 -> 0 | F157: ='Tax value roll forward'!J34*1000 -> 0 | G157: ='Tax value roll forward'!K34*1000 -> 0 | H157: ='Tax value roll forward'!L34*1000 -> 0 | I157: ='Tax value roll forward'!M34*1000 -> 0 | J157: ='Tax value roll forward'!N34*1000 -> 0
B158: Asset28 | D158: ='Tax value roll forward'!H35*1000 -> 0 | E158: ='Tax value roll forward'!I35*1000 -> 0 | F158: ='Tax value roll forward'!J35*1000 -> 0 | G158: ='Tax value roll forward'!K35*1000 -> 0 | H158: ='Tax value roll forward'!L35*1000 -> 0 | I158: ='Tax value roll forward'!M35*1000 -> 0 | J158: ='Tax value roll forward'!N35*1000 -> 0
B159: Asset29 | D159: ='Tax value roll forward'!H36*1000 -> 0 | E159: ='Tax value roll forward'!I36*1000 -> 0 | F159: ='Tax value roll forward'!J36*1000 -> 0 | G159: ='Tax value roll forward'!K36*1000 -> 0 | H159: ='Tax value roll forward'!L36*1000 -> 0 | I159: ='Tax value roll forward'!M36*1000 -> 0 | J159: ='Tax value roll forward'!N36*1000 -> 0
B160: Asset30 | D160: ='Tax value roll forward'!H37*1000 -> 0 | E160: ='Tax value roll forward'!I37*1000 -> 0 | F160: ='Tax value roll forward'!J37*1000 -> 0 | G160: ='Tax value roll forward'!K37*1000 -> 0 | H160: ='Tax value roll forward'!L37*1000 -> 0 | I160: ='Tax value roll forward'!M37*1000 -> 0 | J160: ='Tax value roll forward'!N37*1000 -> 0
B161: Total depreciation | D161: =SUM(D131:D160) -> 93821.95 | E161: 90042.65621 | F161: 115975.7874 | G161: 105666.0203 | H161: 96284.91131 | I161: 94060.75959 | J161: 134719.1496
C163: Check | D163: ='Tax value roll forward'!H7*1000-D161 -> 0 | E163: ='Tax value roll forward'!I7*1000-E161 -> 0 | F163: ='Tax value roll forward'!J7*1000-F161 -> 0 | G163: ='Tax value roll forward'!K7*1000-G161 -> 0 | H163: ='Tax value roll forward'!L7*1000-H161 -> 0 | I163: ='Tax value roll forward'!M7*1000-I161 -> 0 | J163: ='Tax value roll forward'!N7*1000-J161 -> 0
C166: RAB WDV ($'000) | D166: 2005/06 | E166: 2006/07 | F166: 2007/08 | G166: 2008/09 | H166: 2009/10 | I166: 2010/11 | J166: 2011/12
A168: P | B168: =+B131 -> OriginalPipeline | D168: =+'Total actual RAB roll forward'!G202*1000 -> 38897.15225 | E168: =+'Total actual RAB roll forward'!H202*1000 -> 38264.93351 | F168: =+'Total actual RAB roll forward'!I202*1000 -> 38298.74563 | G168: =+'Total actual RAB roll forward'!J202*1000 -> 38480.55039 | H168: =+'Total actual RAB roll forward'!K202*1000 -> 38913.44287 | I168: =+'Total actual RAB roll forward'!L202*1000 -> 39660.72309 | J168: =+'Total actual RAB roll forward'!M202*1000 -> 40199.56195
A169: P | B169: =+B132 -> Looping 1 | D169: =+'Total actual RAB roll forward'!G203*1000 -> 9149.42114 | E169: =+'Total actual RAB roll forward'!H203*1000 -> 9234.442031 | F169: =+'Total actual RAB roll forward'!I203*1000 -> 9487.457332 | G169: =+'Total actual RAB roll forward'!J203*1000 -> 9654.875968 | H169: =+'Total actual RAB roll forward'!K203*1000 -> 9874.515248 | I169: =+'Total actual RAB roll forward'!L203*1000 -> 10155.68755 | J169: =+'Total actual RAB roll forward'!M203*1000 -> 10370.07925
A170: P | B170: Looping 2 | D170: =+'Total actual RAB roll forward'!G204*1000 -> 10989.30213 | E170: =+'Total actual RAB roll forward'!H204*1000 -> 11096.59388 | F170: =+'Total actual RAB roll forward'!I204*1000 -> 11405.91326 | G170: =+'Total actual RAB roll forward'!J204*1000 -> 11609.75783 | H170: =+'Total actual RAB roll forward'!K204*1000 -> 11876.17283 | I170: =+'Total actual RAB roll forward'!L204*1000 -> 12216.21981 | J170: =+'Total actual RAB roll forward'!M204*1000 -> 12475.66417
A171: P | B171: Looping 3 | D171: =+'Total actual RAB roll forward'!G205*1000 -> 20629.36217 | E171: =+'Total actual RAB roll forward'!H205*1000 -> 20864.2262 | F171: =+'Total actual RAB roll forward'!I205*1000 -> 21479.96265 | G171: =+'Total actual RAB roll forward'!J205*1000 -> 21880.46575 | H171: =+'Total actual RAB roll forward'!K205*1000 -> 22397.44836 | I171: =+'Total actual RAB roll forward'!L205*1000 -> 23050.8773 | J171: =+'Total actual RAB roll forward'!M205*1000 -> 23550.45655
A172: P | B172: Looping 4 | D172: =+'Total actual RAB roll forward'!G206*1000 -> 29369.20521 | E172: =+'Total actual RAB roll forward'!H206*1000 -> 29718.81231 | F172: =+'Total actual RAB roll forward'!I206*1000 -> 30611.39116 | G172: =+'Total actual RAB roll forward'!J206*1000 -> 31189.69964 | H172: =+'Total actual RAB roll forward'!K206*1000 -> 31933.38935 | I172: =+'Total actual RAB roll forward'!L206*1000 -> 32870.5226 | J172: =+'Total actual RAB roll forward'!M206*1000 -> 33587.46872
A173: P | B173: Looping 5 | D173: =+'Total actual RAB roll forward'!G207*1000 -> 93323.14355 | E173: =+'Total actual RAB roll forward'!H207*1000 -> 94464.23865 | F173: =+'Total actual RAB roll forward'!I207*1000 -> 97332.136 | G173: =+'Total actual RAB roll forward'!J207*1000 -> 99185.86067 | H173: =+'Total actual RAB roll forward'!K207*1000 -> 101564.2148 | I173: =+'Total actual RAB roll forward'!L207*1000 -> 104555.6483 | J173: =+'Total actual RAB roll forward'!M207*1000 -> 106845.1257
A174: P | B174: Looping 6 | D174: =+'Total actual RAB roll forward'!G208*1000 -> 16540.48253 | E174: =+'Total actual RAB roll forward'!H208*1000 -> 16742.72887 | F174: =+'Total actual RAB roll forward'!I208*1000 -> 17251.03157 | G174: =+'Total actual RAB roll forward'!J208*1000 -> 17579.58351 | H174: =+'Total actual RAB roll forward'!K208*1000 -> 18001.12015 | I174: =+'Total actual RAB roll forward'!L208*1000 -> 18531.31825 | J174: =+'Total actual RAB roll forward'!M208*1000 -> 18937.10251
A175: P | B175: Lateral | D175: =+'Total actual RAB roll forward'!G209*1000 -> 42161.9265 | E175: =+'Total actual RAB roll forward'!H209*1000 -> 42663.81645 | F175: =+'Total actual RAB roll forward'!I209*1000 -> 43945.18731 | G175: =+'Total actual RAB roll forward'!J209*1000 -> 44775.39703 | H175: =+'Total actual RAB roll forward'!K209*1000 -> 45843.02521 | I175: =+'Total actual RAB roll forward'!L209*1000 -> 47188.3576 | J175: =+'Total actual RAB roll forward'!M209*1000 -> 48217.59313
A176: C | B176: DalbyCompressor | D176: =+'Total actual RAB roll forward'!G210*1000 -> 2479.706653 | E176: =+'Total actual RAB roll forward'!H210*1000 -> 2329.5423 | F176: =+'Total actual RAB roll forward'!I210*1000 -> 2216.512211 | G176: =+'Total actual RAB roll forward'!J210*1000 -> 2169.511472 | H176: =+'Total actual RAB roll forward'!K210*1000 -> 2141.73284 | I176: =+'Total actual RAB roll forward'!L210*1000 -> 2139.8331 | J176: =+'Total actual RAB roll forward'!M210*1000 -> 2132.988525
A177: C | B177: KoganCompressor | D177: =+'Total actual RAB roll forward'!G211*1000 -> 1468.458982 | E177: =+'Total actual RAB roll forward'!H211*1000 -> 1379.533063 | F177: =+'Total actual RAB roll forward'!I211*1000 -> 1312.597706 | G177: =+'Total actual RAB roll forward'!J211*1000 -> 1284.76431 | H177: =+'Total actual RAB roll forward'!K211*1000 -> 1268.314066 | I177: =+'Total actual RAB roll forward'!L211*1000 -> 1267.189057 | J177: =+'Total actual RAB roll forward'!M211*1000 -> 1263.135764
A178: C | B178: OakeyCompressor | D178: =+'Total actual RAB roll forward'!G212*1000 -> 2057.346764 | E178: =+'Total actual RAB roll forward'!H212*1000 -> 1947.317762 | F178: =+'Total actual RAB roll forward'!I212*1000 -> 1868.803785 | G178: =+'Total actual RAB roll forward'!J212*1000 -> 1837.572821 | H178: =+'Total actual RAB roll forward'!K212*1000 -> 1821.863862 | I178: =+'Total actual RAB roll forward'!L212*1000 -> 1826.852486 | J178: =+'Total actual RAB roll forward'!M212*1000 -> 1826.632871
A179: C | B179: CondamineCompressor | D179: =+'Total actual RAB roll forward'!G213*1000 -> 3111.231734 | E179: =+'Total actual RAB roll forward'!H213*1000 -> 2963.468786 | F179: =+'Total actual RAB roll forward'!I213*1000 -> 2864.267599 | G179: =+'Total actual RAB roll forward'!J213*1000 -> 2826.973634 | H179: =+'Total actual RAB roll forward'!K213*1000 -> 2812.607696 | I179: =+'Total actual RAB roll forward'!L213*1000 -> 2828.552066 | J179: =+'Total actual RAB roll forward'!M213*1000 -> 2835.205476
A180: C | B180: YulebaCompressor | D180: =+'Total actual RAB roll forward'!G214*1000 -> 4502.890475 | E180: =+'Total actual RAB roll forward'!H214*1000 -> 4332.171537 | F180: =+'Total actual RAB roll forward'!I214*1000 -> 4233.82724 | G180: =+'Total actual RAB roll forward'!J214*1000 -> 4202.858392 | H180: =+'Total actual RAB roll forward'!K214*1000 -> 4203.810814 | I180: =+'Total actual RAB roll forward'!L214*1000 -> 4246.339559 | J180: =+'Total actual RAB roll forward'!M214*1000 -> 4272.145305
A181: C | B181: GattonCompressor | D181: =+'Total actual RAB roll forward'!G215*1000 -> 5081.738288 | E181: =+'Total actual RAB roll forward'!H215*1000 -> 4908.851293 | F181: =+'Total actual RAB roll forward'!I215*1000 -> 4818.601445 | G181: =+'Total actual RAB roll forward'!J215*1000 -> 4794.199537 | H181: =+'Total actual RAB roll forward'!K215*1000 -> 4805.243563 | I181: =+'Total actual RAB roll forward'!L215*1000 -> 4862.157816 | J181: =+'Total actual RAB roll forward'!M215*1000 -> 4898.697283
A182: E | B182: Easements | D182: =+'Total actual RAB roll forward'!G216*1000 -> 13275.30471 | E182: =+'Total actual RAB roll forward'!H216*1000 -> 13584.46972 | F182: =+'Total actual RAB roll forward'!I216*1000 -> 14146.13235 | G182: =+'Total actual RAB roll forward'!J216*1000 -> 14479.82965 | H182: =+'Total actual RAB roll forward'!K216*1000 -> 14882.48661 | I182: =+'Total actual RAB roll forward'!L216*1000 -> 15362.58782 | J182: =+'Total actual RAB roll forward'!M216*1000 -> 15730.13812
A183: COM | B183: Communications | D183: =+'Total actual RAB roll forward'!G217*1000 -> 3314.16346 | E183: =+'Total actual RAB roll forward'!H217*1000 -> 3053.587622 | F183: =+'Total actual RAB roll forward'!I217*1000 -> 2833.493817 | G183: =+'Total actual RAB roll forward'!J217*1000 -> 2538.924724 | H183: =+'Total actual RAB roll forward'!K217*1000 -> 2238.817872 | I183: =+'Total actual RAB roll forward'!L217*1000 -> 1929.226862 | J183: =+'Total actual RAB roll forward'!M217*1000 -> 1580.431985
A184: SIB | B184: Other | D184: =+'Total actual RAB roll forward'!G218*1000 -> 0 | E184: =+'Total actual RAB roll forward'!H218*1000 -> 0 | F184: =+'Total actual RAB roll forward'!I218*1000 -> 0 | G184: =+'Total actual RAB roll forward'!J218*1000 -> 0 | H184: =+'Total actual RAB roll forward'!K218*1000 -> 0 | I184: =+'Total actual RAB roll forward'!L218*1000 -> 0 | J184: =+'Total actual RAB roll forward'!M218*1000 -> 0
A185: AA | B185: Capitalised AA costs | D185: =+'Total actual RAB roll forward'!G219*1000 -> 0 | E185: =+'Total actual RAB roll forward'!H219*1000 -> 532.3289605 | F185: =+'Total actual RAB roll forward'!I219*1000 -> 445.8493668 | G185: =+'Total actual RAB roll forward'!J219*1000 -> 343.1594191 | H185: =+'Total actual RAB roll forward'!K219*1000 -> 238.0138308 | I185: =+'Total actual RAB roll forward'!L219*1000 -> 185.3865997 | J185: =+'Total actual RAB roll forward'!M219*1000 -> 673.3761319
A186: P | B186: Pipelines / Laterals | D186: =+'Total actual RAB roll forward'!G220*1000 -> 0 | E186: =+'Total actual RAB roll forward'!H220*1000 -> 70.64932196 | F186: =+'Total actual RAB roll forward'!I220*1000 -> 72.74138797 | G186: =+'Total actual RAB roll forward'!J220*1000 -> 73.59225829 | H186: =+'Total actual RAB roll forward'!K220*1000 -> 74.75141258 | I186: =+'Total actual RAB roll forward'!L220*1000 -> 343.7775208 | J186: =+'Total actual RAB roll forward'!M220*1000 -> 347.8890829
A187: SIB | B187: Group IT | D187: =+'Total actual RAB roll forward'!G221*1000 -> 0 | E187: =+'Total actual RAB roll forward'!H221*1000 -> 0 | F187: =+'Total actual RAB roll forward'!I221*1000 -> 0 | G187: =+'Total actual RAB roll forward'!J221*1000 -> 145.0055331 | H187: =+'Total actual RAB roll forward'!K221*1000 -> 411.4458834 | I187: =+'Total actual RAB roll forward'!L221*1000 -> 1289.968239 | J187: =+'Total actual RAB roll forward'!M221*1000 -> 2027.288672
A188: SIB | B188: SIB Capex | D188: =+'Total actual RAB roll forward'!G222*1000 -> 0 | E188: =+'Total actual RAB roll forward'!H222*1000 -> 1305.875458 | F188: =+'Total actual RAB roll forward'!I222*1000 -> 3657.934539 | G188: =+'Total actual RAB roll forward'!J222*1000 -> 5246.436973 | H188: =+'Total actual RAB roll forward'!K222*1000 -> 8099.972904 | I188: =+'Total actual RAB roll forward'!L222*1000 -> 7613.883556 | J188: =+'Total actual RAB roll forward'!M222*1000 -> 7555.436303
A189: PMA | B189: PMA | D189: =+'Total actual RAB roll forward'!G223*1000 -> 0 | E189: =+'Total actual RAB roll forward'!H223*1000 -> 0 | F189: =+'Total actual RAB roll forward'!I223*1000 -> 31525.50397 | G189: =+'Total actual RAB roll forward'!J223*1000 -> 29564.393 | H189: =+'Total actual RAB roll forward'!K223*1000 -> 27612.14426 | I189: =+'Total actual RAB roll forward'!L223*1000 -> 25645.41262 | J189: =+'Total actual RAB roll forward'!M223*1000 -> 23303.1736
A190: REG | B190: Regulators and meters | D190: =+'Total actual RAB roll forward'!G224*1000 -> 0 | E190: =+'Total actual RAB roll forward'!H224*1000 -> 764.7547965 | F190: =+'Total actual RAB roll forward'!I224*1000 -> 916.1125802 | G190: =+'Total actual RAB roll forward'!J224*1000 -> 1282.677761 | H190: =+'Total actual RAB roll forward'!K224*1000 -> 1288.919224 | I190: =+'Total actual RAB roll forward'!L224*1000 -> 1296.772572 | J190: =+'Total actual RAB roll forward'!M224*1000 -> 1292.910905
A191: PL | B191: Lytton lateral | D191: =+'Total actual RAB roll forward'!G225*1000 -> 0 | E191: =+'Total actual RAB roll forward'!H225*1000 -> 0 | F191: =+'Total actual RAB roll forward'!I225*1000 -> 0 | G191: =+'Total actual RAB roll forward'!J225*1000 -> 0 | H191: =+'Total actual RAB roll forward'!K225*1000 -> 6625.148811 | I191: =+'Total actual RAB roll forward'!L225*1000 -> 9656.960182 | J191: =+'Total actual RAB roll forward'!M225*1000 -> 9773.457323
A192: P8 | B192: RBP Expansion 8 | D192: =+'Total actual RAB roll forward'!G226*1000 -> 0 | E192: =+'Total actual RAB roll forward'!H226*1000 -> 0 | F192: =+'Total actual RAB roll forward'!I226*1000 -> 154.1356253 | G192: =+'Total actual RAB roll forward'!J226*1000 -> 513.4438977 | H192: =+'Total actual RAB roll forward'!K226*1000 -> 1047.663318 | I192: =+'Total actual RAB roll forward'!L226*1000 -> 6072.180233 | J192: =+'Total actual RAB roll forward'!M226*1000 -> 54000.15816
B193: Asset26 | D193: =+'Total actual RAB roll forward'!G227*1000 -> 0 | E193: =+'Total actual RAB roll forward'!H227*1000 -> 0 | F193: =+'Total actual RAB roll forward'!I227*1000 -> 0 | G193: =+'Total actual RAB roll forward'!J227*1000 -> 0 | H193: =+'Total actual RAB roll forward'!K227*1000 -> 0 | I193: =+'Total actual RAB roll forward'!L227*1000 -> 0 | J193: =+'Total actual RAB roll forward'!M227*1000 -> 0
B194: Asset27 | D194: =+'Total actual RAB roll forward'!G228*1000 -> 0 | E194: =+'Total actual RAB roll forward'!H228*1000 -> 0 | F194: =+'Total actual RAB roll forward'!I228*1000 -> 0 | G194: =+'Total actual RAB roll forward'!J228*1000 -> 0 | H194: =+'Total actual RAB roll forward'!K228*1000 -> 0 | I194: =+'Total actual RAB roll forward'!L228*1000 -> 0 | J194: =+'Total actual RAB roll forward'!M228*1000 -> 0
B195: Asset28 | D195: =+'Total actual RAB roll forward'!G229*1000 -> 0 | E195: =+'Total actual RAB roll forward'!H229*1000 -> 0 | F195: =+'Total actual RAB roll forward'!I229*1000 -> 0 | G195: =+'Total actual RAB roll forward'!J229*1000 -> 0 | H195: =+'Total actual RAB roll forward'!K229*1000 -> 0 | I195: =+'Total actual RAB roll forward'!L229*1000 -> 0 | J195: =+'Total actual RAB roll forward'!M229*1000 -> 0
B196: Asset29 | D196: =+'Total actual RAB roll forward'!G230*1000 -> 0 | E196: =+'Total actual RAB roll forward'!H230*1000 -> 0 | F196: =+'Total actual RAB roll forward'!I230*1000 -> 0 | G196: =+'Total actual RAB roll forward'!J230*1000 -> 0 | H196: =+'Total actual RAB roll forward'!K230*1000 -> 0 | I196: =+'Total actual RAB roll forward'!L230*1000 -> 0 | J196: =+'Total actual RAB roll forward'!M230*1000 -> 0
B197: Asset30 | D197: =+'Total actual RAB roll forward'!G231*1000 -> 0 | E197: =+'Total actual RAB roll forward'!H231*1000 -> 0 | F197: =+'Total actual RAB roll forward'!I231*1000 -> 0 | G197: =+'Total actual RAB roll forward'!J231*1000 -> 0 | H197: =+'Total actual RAB roll forward'!K231*1000 -> 0 | I197: =+'Total actual RAB roll forward'!L231*1000 -> 0 | J197: =+'Total actual RAB roll forward'!M231*1000 -> 0
B198: Total depreciation | D198: =SUM(D168:D197) -> 296350.8366 | E198: 300222.3425 | F198: 340878.3385 | G198: 345659.5342 | H198: 359976.2658 | I198: 374796.4347 | J198: 427696.1175
C200: Check | D200: =+'Total actual RAB roll forward'!G201*1000-D198 -> 0 | E200: =+'Total actual RAB roll forward'!H201*1000-E198 -> 0 | F200: =+'Total actual RAB roll forward'!I201*1000-F198 -> 0 | G200: =+'Total actual RAB roll forward'!J201*1000-G198 -> 0 | H200: =+'Total actual RAB roll forward'!K201*1000-H198 -> 0 | I200: =+'Total actual RAB roll forward'!L201*1000-I198 -> 0 | J200: =+'Total actual RAB roll forward'!M201*1000-J198 -> 0
B202: =+C166 -> RAB WDV ($'000)
A203: P | C203: Pipelines | D203: =SUMIF($A$168:$A$197,$A203,D$168:D$197) -> 261059.9955 | E203: =SUMIF($A$168:$A$197,$A203,E$168:E$197) -> 263120.4412 | F203: 269884.5663 | G203: 274429.783 | H203: 280478.0802 | I203: 288573.132 | J203: 294530.9411
A204: PL | C204: Pipelines - Lytton | D204: 0 | E204: 0 | F204: 0 | G204: 0 | H204: 6625.148811 | I204: 9656.960182 | J204: 9773.457323
A205: P8 | C205: Pipelines - RBP8 | D205: 0 | E205: 0 | F205: 154.1356253 | G205: 513.4438977 | H205: 1047.663318 | I205: 6072.180233 | J205: 54000.15816
A206: C | C206: Compression | D206: 18701.3729 | E206: 17860.88474 | F206: 17314.60999 | G206: 17115.88017 | H206: 17053.57284 | I206: 17170.92408 | J206: 17228.80522
A207: COM | C207: Communications | D207: 3314.16346 | E207: 3053.587622 | F207: 2833.493817 | G207: 2538.924724 | H207: 2238.817872 | I207: 1929.226862 | J207: 1580.431985
A208: E | C208: Easements | D208: 13275.30471 | E208: 13584.46972 | F208: 14146.13235 | G208: 14479.82965 | H208: 14882.48661 | I208: 15362.58782 | J208: 15730.13812
A209: AA | C209: Capitalised AA costs | D209: 0 | E209: 532.3289605 | F209: 445.8493668 | G209: 343.1594191 | H209: 238.0138308 | I209: 185.3865997 | J209: 673.3761319
A210: PMA | C210: PMA | D210: 0 | E210: 0 | F210: 31525.50397 | G210: 29564.393 | H210: 27612.14426 | I210: 25645.41262 | J210: 23303.1736
A211: REG | C211: Regulator & Meter stations | D211: 0 | E211: 764.7547965 | F211: 916.1125802 | G211: 1282.677761 | H211: 1288.919224 | I211: 1296.772572 | J211: 1292.910905
A212: SIB | C212: Minor and SIB | D212: 0 | E212: 1305.875458 | F212: 3657.934539 | G212: 5391.442506 | H212: 8511.418787 | I212: 8903.851794 | J212: 9582.724976
D214: =SUM(D203:D213) -> 296350.8366 | E214: =SUM(E203:E213) -> 300222.3425 | F214: 340878.3385 | G214: 345659.5342 | H214: 359976.2658 | I214: 374796.4347 | J214: 427696.1175
D215: =+D214-D198 -> 0 | E215: =+E214-E198 -> 0 | F215: 0 | G215: 0 | H215: 0 | I215: 0 | J215: 0
B217: Gross capex ($'000) | E217: =+E166 -> 2006/07 | F217: =+F166 -> 2007/08 | G217: 2008/09 | H217: 2009/10 | I217: 2010/11 | J217: 2011/12
A219: PO | C219: Pipelines - Other | E219: =SUMIF($X$5:$X$19,$A219,AA$5:AA$19)*1000 -> 67.97508 | F219: 0 | G219: 0 | H219: 0 | I219: 256.28168 | J219: 0
A220: PL | C220: Pipelines - Lytton lateral | E220: 0 | F220: 0 | G220: 0 | H220: 6360.34584 | I220: 2692.80004 | J220: 0
A221: PR | C221: Pipelines - RBP8 | E221: 0 | F221: 147.01107 | G221: 341.99983 | H221: 498.631 | I221: 4779.83272 | J221: 45953.33851
A222: PMA | C222: PMA | E222: 0 | F222: 30068.312 | G222: 0 | H222: 0 | I222: 0 | J222: 0
A223: SIB | C223: =+C212 -> Minor and SIB | E223: 1992.25206 | F223: 2582.52011 | G223: 2717.4505 | H223: 4133.16739 | I223: 2269.83559 | J223: 3156.82596
A224: AA | C224: =+C209 -> Capitalised AA costs | E224: 512.1790652 | F224: 0 | G224: 0 | H224: 1.375 | I224: 57.08155 | J224: 596.1734694
E226: =SUM(E219:E225) -> 2572.406205 | F226: 32797.84318 | G226: 3059.45033 | H226: 10993.51923 | I226: 10055.83158 | J226: 49706.33794
E227: =+AA20*1000-E226 -> 0 | F227: 0 | G227: 0 | H227: 0 | I227: 0 | J227: 0
B229: Disposal ($'000) | E229: =+E217 -> 2006/07 | F229: =+F217 -> 2007/08 | G229: 2008/09 | H229: 2009/10 | I229: 2010/11 | J229: 2011/12
A231: PO | C231: =+C219 -> Pipelines - Other
A232: PL | C232: =+C220 -> Pipelines - Lytton lateral
A233: PR | C233: Pipelines - RBP8
A234: PMA | C234: PMA
... 17 more rows

Sheet Intro
I3: Roll Forward Model
L4: Version: 2.0
L5: Date: February 2011
B8: Introduction
C14: This Roll Forward Model (RFM) is used by the Australian Energy Regulator to determine the opening
C15: regulatory asset base for a transmission network service provider.
C25: Amendment record:
C27: Date | F27: Details of amendments
C28: February 2011 | F28: Asset lives roll forward tab - Updated formula in cells F51:60 to correctly refer to A4stdlife.

Sheet Input
F2: ="Input Variables - RFM "&Intro!L4 -> Input Variables - RFM Version: 2.0 | G2: Input cells are in blue
F5: ="Opening Regulatory Asset Base for "&CONCATENATE(LEFT(V7, 4)-1 &"-" &IF(V7>"2009-10",,"0") &RIGHT(V7,2)-1) &" and Opening Tax Asset Base for "&V7&" ($m Nominal)" -> Opening Regulatory Asset Base for 2005-06 and Opening Tax Asset Base for 2006-07 ($m Nominal)
G6: Asset Class Name | J6: Opening Asset Value | K6: Average Remaining Life (Year) | L6: Standard Life (Year) | M6: Forecast Net Capex | N6: Forecast Regulatory Depreciation | O6: Prudent Additional Capex Allowance | P6: Foregone Return on Additional Capex | Q6: Forecast Assets Under Construction | R6: Actual Assets Under Construction | S6: Opening Tax Asset Value | T6: Average Tax Remaining Life (Year) | U6: Tax Standard Life (Year) | V6: Base Financial Year | W6: Length of Regulatory Control Period (Year)
F7: Asset Class 1 | G7: =ICB_Final!A13 &ICB_Final!$A$12 -> OriginalPipeline | J7: =+ICB_Final!I13 -> 38.89715225 | K7: 23 | L7: 60 | M7: 0 | N7: 0 | Q7: 0 | R7: 0 | U7: 20 | V7: 2006-07 | W7: 6
F8: Asset Class 2 | G8: =""&ICB_Final!A14 -> Looping 1 | J8: =+ICB_Final!I14 -> 9.14942114 | K8: 62 | L8: 80 | M8: 0 | N8: 0 | Q8: 0 | R8: 0 | S8: =+'Tax Depn summary'!C42/1000 -> 0.39975 | T8: =+'Tax Depn summary'!D42 -> 2.024890557 | U8: 20
F9: Asset Class 3 | G9: =""&ICB_Final!A15 -> Looping 2 | J9: =+ICB_Final!I15 -> 10.98930213 | K9: 64 | L9: 80 | M9: 0 | N9: 0 | Q9: 0 | R9: 0 | S9: =+'Tax Depn summary'!C43/1000 -> 1.0873 | T9: =+'Tax Depn summary'!D43 -> 4.01664674 | U9: 20
F10: Asset Class 4 | G10: =""&ICB_Final!A16 -> Looping 3 | J10: =+ICB_Final!I16 -> 20.62936217 | K10: 72 | L10: 80 | M10: 0 | N10: 0 | Q10: 0 | R10: 0 | S10: =+'Tax Depn summary'!C44/1000 -> 6.531 | T10: =+'Tax Depn summary'!D44 -> 11.99669361 | U10: 20
F11: Asset Class 5 | G11: =""&ICB_Final!A17 -> Looping 4 | J11: =+ICB_Final!I17 -> 29.36920521 | K11: 75 | L11: 80 | S11: =+'Tax Depn summary'!C45/1000 -> 12.195 | T11: =+'Tax Depn summary'!D45 -> 15 | U11: 20
F12: Asset Class 6 | G12: =""&ICB_Final!A18 -> Looping 5 | J12: =+ICB_Final!I18 -> 93.32314355 | K12: 77 | L12: 80 | S12: =+'Tax Depn summary'!C46/1000 -> 45.61 | T12: =+'Tax Depn summary'!D46 -> 17.01230884 | U12: 20
F13: Asset Class 7 | G13: =""&ICB_Final!A19 -> Looping 6 | J13: =+ICB_Final!I19 -> 16.54048253 | K13: 77 | L13: 80 | S13: =+'Tax Depn summary'!C47/1000 -> 8.1782 | T13: =+'Tax Depn summary'!D47 -> 17.13609219 | U13: 20
F14: Asset Class 8 | G14: =""&ICB_Final!A20 -> Lateral | J14: =+ICB_Final!I20 -> 42.1619265 | K14: 75 | L14: 80 | S14: =+'Tax Depn summary'!C48/1000 -> 17.6809 | T14: =+'Tax Depn summary'!D48 -> 15.09253094 | U14: 20
F15: Asset Class 9 | G15: =ICB_Final!A24 &ICB_Final!$A$23 -> DalbyCompressor | J15: =+ICB_Final!I24 -> 2.479706653 | K15: 11 | L15: 35 | S15: =+'Tax Depn summary'!C49/1000 -> 0.6866 | T15: =+'Tax Depn summary'!D49 -> 15.49887133 | U15: 20
F16: Asset Class 10 | G16: =ICB_Final!A25 &ICB_Final!$A$23 -> KoganCompressor | J16: =+ICB_Final!I25 -> 1.468458982 | K16: 11 | L16: 35 | S16: =+'Tax Depn summary'!C50/1000 -> 0.16955 | T16: =+'Tax Depn summary'!D50 -> 11.08169935 | U16: 20
F17: Asset Class 11 | G17: =ICB_Final!A26 &ICB_Final!$A$23 -> OakeyCompressor | J17: =+ICB_Final!I26 -> 2.057346764 | K17: 12 | L17: 35 | S17: =+'Tax Depn summary'!C51/1000 -> 0.22745 | T17: =+'Tax Depn summary'!D51 -> 12.13066667 | U17: 20
F18: Asset Class 12 | G18: =ICB_Final!A27 &ICB_Final!$A$23 -> CondamineCompressor | J18: =+ICB_Final!I27 -> 3.111231734 | K18: 13 | L18: 35 | S18: =+'Tax Depn summary'!C52/1000 -> 0.1698 | T18: =+'Tax Depn summary'!D52 -> 11.06188925 | U18: 20
F19: Asset Class 13 | G19: =ICB_Final!A28 &ICB_Final!$A$23 -> YulebaCompressor | J19: =+ICB_Final!I28 -> 4.502890475 | K19: 15 | L19: 35 | S19: =+'Tax Depn summary'!C53/1000 -> 0.2158 | T19: =+'Tax Depn summary'!D53 -> 11.96351039 | U19: 20
F20: Asset Class 14 | G20: =ICB_Final!A29 &ICB_Final!$A$23 -> GattonCompressor | J20: =+ICB_Final!I29 -> 5.081738288 | K20: 16 | L20: 35 | S20: =+'Tax Depn summary'!C54/1000 -> 0.28045 | T20: =+'Tax Depn summary'!D54 -> 9.726342711 | U20: 20
F21: Asset Class 15 | G21: =""&ICB_Final!A32 -> Easements | J21: =+ICB_Final!I32 -> 13.27530471 | K21: 963 | L21: 1000 | U21: 20
F22: Asset Class 16 | G22: =""&ICB_Final!A34 -> Communications | J22: =+ICB_Final!I34 -> 3.31416346 | K22: 10 | L22: 15 | U22: 20
F23: Asset Class 17 | G23: Other | K23: 5 | L23: 5 | S23: =+'Tax Depn summary'!$C$55/1000 -> 0.39015 | T23: =+'Tax Depn summary'!$D$55 -> 12.83388158 | U23: 20
F24: Asset Class 18 | G24: Capitalised AA costs | K24: 5 | L24: 5 | U24: 5
F25: Asset Class 19 | G25: Pipelines / Laterals | K25: 80 | L25: 80 | U25: 20
F26: Asset Class 20 | G26: Group IT | K26: 5 | L26: 5 | U26: =+A18taxstdlife -> 5
F27: Asset Class 21 | G27: SIB Capex | K27: 5 | L27: 5 | U27: =+A18taxstdlife -> 5
F28: Asset Class 22 | G28: PMA | K28: 12 | L28: 12 | U28: =+A18taxstdlife -> 5
F29: Asset Class 23 | G29: Regulators and meters | K29: 40 | L29: 40 | U29: 20
F30: Asset Class 24 | G30: Lytton lateral | K30: 80 | L30: 80 | U30: 20
F31: Asset Class 25 | G31: RBP Expansion 8 | K31: 35 | L31: 35 | U31: 20
F32: Asset Class 26 | G32: Asset26 | K32: n/a | L32: n/a | U32: 20
F33: Asset Class 27 | G33: Asset27 | K33: n/a | L33: n/a | U33: 20
F34: Asset Class 28 | G34: Asset28 | K34: n/a | L34: n/a | U34: 20
F35: Asset Class 29 | G35: Asset29 | K35: n/a | L35: n/a | U35: 20
F36: Asset Class 30 | G36: Asset30 | K36: n/a | L36: n/a | U36: 20
F37: Total | J37: =SUM(J7:J36) -> 296.3508366 | M37: =SUM(M7:M36) -> 0 | N37: 0 | O37: 0 | P37: 0 | Q37: 0 | R37: 0
F39: Actual Capital Expenditure – As Incurred ($m Nominal)
F40: Year | G40: =CONCATENATE(LEFT(H40, 4)-1 &"-" &IF(H40>"2009-10",,"0") &RIGHT(H40,2)-1) -> 2005-06 | H40: =V7 -> 2006-07 | I40: =CONCATENATE(LEFT(H40, 4)+1 &"-" &IF(H40>"2007-08",,"0") &RIGHT(H40,2)+1) -> 2007-08 | J40: =CONCATENATE(LEFT(I40, 4)+1 &"-" &IF(I40>"2007-08",,"0") &RIGHT(I40,2)+1) -> 2008-09 | K40: 2009-10 | L40: 2010-11 | M40: 2011-12 | N40: 2012-13 | O40: 2013-14 | P40: 2014-15 | Q40: =CONCATENATE(LEFT(P40, 4)+1 &"-" &IF(P40>"2007-08",,"0") &RIGHT(P40,2)+1) -> 2015-16
F41: =Asset1 -> OriginalPipeline | G41: 0 | H41: 0 | I41: 0 | J41: 0 | K41: 0 | L41: 0
F42: =Asset2 -> Looping 1 | G42: 0 | H42: 0 | I42: 0 | J42: 0 | K42: 0 | L42: 0
F43: =Asset3 -> Looping 2 | G43: 0 | H43: 0 | I43: 0 | J43: 0 | K43: 0 | L43: 0
F44: =Asset4 -> Looping 3 | G44: 0 | H44: 0 | I44: 0 | J44: 0 | K44: 0 | L44: 0
F45: =Asset5 -> Looping 4 | G45: =1.609192*0 -> 0 | H45: 0 | I45: 0 | J45: 0 | K45: 0 | L45: 0
F46: =Asset6 -> Looping 5 | G46: 0 | H46: 0 | I46: 0 | J46: 0 | K46: 0 | L46: 0
F47: =Asset7 -> Looping 6
F48: =Asset8 -> Lateral
F49: =Asset9 -> DalbyCompressor
F50: =Asset10 -> KoganCompressor
F51: =Asset11 -> OakeyCompressor
F52: =Asset12 -> CondamineCompressor
F53: =Asset13 -> YulebaCompressor
F54: =Asset14 -> GattonCompressor
F55: =Asset15 -> Easements
F56: =Asset16 -> Communications
F57: =Asset17 -> Other
F58: =Asset18 -> Capitalised AA costs | H58: 0.5121790652 | I58: 0 | J58: 0 | K58: 0.001375 | L58: 0.05708155 | M58: 0.5961734694
F59: =Asset19 -> Pipelines / Laterals | H59: 0.06797508 | I59: 0 | J59: 0 | K59: 0 | L59: 0.25628168 | M59: 0
F60: =Asset20 -> Group IT | J60: 0.13949612 | K60: 0.28029896 | L60: 0.9152947 | M60: 0.95820096
F61: =Asset21 -> SIB Capex | H61: 1.25644502 | I61: 2.45041797 | J61: 2.22393851 | K61: 3.84975729 | L61: 1.35454089 | M61: 2.198625
F62: =Asset22 -> PMA | I62: 30.068312
F63: =Asset23 -> Regulators and meters | H63: 0.73580704 | I63: 0.13210214 | J63: 0.35401587 | K63: 0.00311114 | L63: 0
F64: =Asset24 -> Lytton lateral | K64: 6.36034584 | L64: 2.69280004
F65: =Asset25 -> RBP Expansion 8 | I65: 0.14701107 | J65: 0.34199983 | K65: 0.498631 | L65: 4.77983272 | M65: 45.95333851
F66: =Asset26 -> Asset26
F67: =Asset27 -> Asset27
F68: =Asset28 -> Asset28
F69: =Asset29 -> Asset29
F70: =Asset30 -> Asset30
F71: Total | G71: =SUM(G41:G70) -> 0 | H71: 2.572406205 | I71: 32.79784318 | J71: 3.05945033 | K71: 10.99351923 | L71: 10.05583158 | M71: 49.70633794 | N71: 0 | O71: 0 | P71: 0 | Q71: 0
R72: =SUM(G71:Q71) -> 109.1853885
F73: Actual Asset Disposal – As Incurred ($m Nominal)
F74: Year | G74: =G40 -> 2005-06 | H74: =H40 -> 2006-07 | I74: 2007-08 | J74: 2008-09 | K74: 2009-10 | L74: 2010-11 | M74: 2011-12 | N74: 2012-13 | O74: 2013-14 | P74: 2014-15 | Q74: 2015-16
F75: =Asset1 -> OriginalPipeline | G75: 0 | H75: 0 | I75: 0 | J75: 0 | K75: 0 | L75: 0
F76: =Asset2 -> Looping 1 | G76: 0 | H76: 0 | I76: 0 | J76: 0 | K76: 0 | L76: 0
F77: =Asset3 -> Looping 2 | G77: 0 | H77: 0 | I77: 0 | J77: 0 | K77: 0 | L77: 0
F78: =Asset4 -> Looping 3 | G78: 0 | H78: 0 | I78: 0 | J78: 0 | K78: 0 | L78: 0
F79: =Asset5 -> Looping 4 | G79: 0 | H79: 0 | I79: 0 | J79: 0 | K79: 0 | L79: 0
F80: =Asset6 -> Looping 5 | G80: 0 | H80: 0 | I80: 0 | J80: 0 | K80: 0 | L80: 0
F81: =Asset7 -> Looping 6
F82: =Asset8 -> Lateral
F83: =Asset9 -> DalbyCompressor
F84: =Asset10 -> KoganCompressor
F85: =Asset11 -> OakeyCompressor
F86: =Asset12 -> CondamineCompressor
F87: =Asset13 -> YulebaCompressor
F88: =Asset14 -> GattonCompressor
F89: =Asset15 -> Easements
F90: =Asset16 -> Communications
F91: =Asset17 -> Other
F92: =Asset18 -> Capitalised AA costs
F93: =Asset19 -> Pipelines / Laterals
F94: =Asset20 -> Group IT
F95: =Asset21 -> SIB Capex | I95: 0.004737 | K95: 0.000696
F96: =Asset22 -> PMA
F97: =Asset23 -> Regulators and meters
F98: =Asset24 -> Lytton lateral
F99: =Asset25 -> RBP Expansion 8
F100: =Asset26 -> Asset26
F101: =Asset27 -> Asset27
F102: =Asset28 -> Asset28
F103: =Asset29 -> Asset29
F104: =Asset30 -> Asset30
F105: Total | G105: =SUM(G75:G104) -> 0 | H105: 0 | I105: 0.004737 | J105: 0 | K105: 0.000696 | L105: 0 | M105: 0 | N105: 0 | O105: 0 | P105: 0 | Q105: 0
R106: =SUM(G105:Q105) -> 0.005433
F107: ="Actual Net Capital Expenditure – As Incurred ($m Real "&CONCATENATE(LEFT(V7, 4)-1 &"-" &IF(V7>"2009-10",,"0") &RIGHT(V7,2)-1)&")" -> Actual Net Capital Expenditure – As Incurred ($m Real 2005-06)
F108: Year | G108: =G40 -> 2005-06 | H108: =H40 -> 2006-07 | I108: 2007-08 | J108: 2008-09 | K108: 2009-10 | L108: 2010-11 | M108: 2011-12 | N108: 2012-13 | O108: 2013-14 | P108: 2014-15 | Q108: 2015-16
F109: =Asset1 -> OriginalPipeline | G109: =(G41-G75)/G$246 -> 0 | H109: 0 | I109: 0 | J109: 0 | K109: 0 | L109: 0 | M109: 0 | N109: 0 | O109: 0 | P109: 0 | Q109: 0
F110: =Asset2 -> Looping 1 | G110: =(G42-G76)/G$246 -> 0 | H110: 0 | I110: 0 | J110: 0 | K110: 0 | L110: 0 | M110: 0 | N110: 0 | O110: 0 | P110: 0 | Q110: 0
F111: =Asset3 -> Looping 2 | G111: =(G43-G77)/G$246 -> 0 | H111: 0 | I111: 0 | J111: 0 | K111: 0 | L111: 0 | M111: 0 | N111: 0 | O111: 0 | P111: 0 | Q111: 0
F112: =Asset4 -> Looping 3 | G112: =(G44-G78)/G$246 -> 0 | H112: 0 | I112: 0 | J112: 0 | K112: 0 | L112: 0 | M112: 0 | N112: 0 | O112: 0 | P112: 0 | Q112: 0
F113: =Asset5 -> Looping 4 | G113: =(G45-G79)/G$246 -> 0 | H113: 0 | I113: 0 | J113: 0 | K113: 0 | L113: 0 | M113: 0 | N113: 0 | O113: 0 | P113: 0 | Q113: 0
F114: =Asset6 -> Looping 5 | G114: =(G46-G80)/G$246 -> 0 | H114: 0 | I114: 0 | J114: 0 | K114: 0 | L114: 0 | M114: 0 | N114: 0 | O114: 0 | P114: 0 | Q114: 0
F115: =Asset7 -> Looping 6 | G115: =(G47-G81)/G$246 -> 0 | H115: 0 | I115: 0 | J115: 0 | K115: 0 | L115: 0 | M115: 0 | N115: 0 | O115: 0 | P115: 0 | Q115: 0
F116: =Asset8 -> Lateral | G116: =(G48-G82)/G$246 -> 0 | H116: 0 | I116: 0 | J116: 0 | K116: 0 | L116: 0 | M116: 0 | N116: 0 | O116: 0 | P116: 0 | Q116: 0
F117: =Asset9 -> DalbyCompressor | G117: =(G49-G83)/G$246 -> 0 | H117: 0 | I117: 0 | J117: 0 | K117: 0 | L117: 0 | M117: 0 | N117: 0 | O117: 0 | P117: 0 | Q117: 0
F118: =Asset10 -> KoganCompressor | G118: =(G50-G84)/G$246 -> 0 | H118: 0 | I118: 0 | J118: 0 | K118: 0 | L118: 0 | M118: 0 | N118: 0 | O118: 0 | P118: 0 | Q118: 0
F119: =Asset11 -> OakeyCompressor | G119: =(G51-G85)/G$246 -> 0 | H119: 0 | I119: 0 | J119: 0 | K119: 0 | L119: 0 | M119: 0 | N119: 0 | O119: 0 | P119: 0 | Q119: 0
F120: =Asset12 -> CondamineCompressor | G120: =(G52-G86)/G$246 -> 0 | H120: 0 | I120: 0 | J120: 0 | K120: 0 | L120: 0 | M120: 0 | N120: 0 | O120: 0 | P120: 0 | Q120: 0
F121: =Asset13 -> YulebaCompressor | G121: =(G53-G87)/G$246 -> 0 | H121: 0 | I121: 0 | J121: 0 | K121: 0 | L121: 0 | M121: 0 | N121: 0 | O121: 0 | P121: 0 | Q121: 0
F122: =Asset14 -> GattonCompressor | G122: =(G54-G88)/G$246 -> 0 | H122: 0 | I122: 0 | J122: 0 | K122: 0 | L122: 0 | M122: 0 | N122: 0 | O122: 0 | P122: 0 | Q122: 0
F123: =Asset15 -> Easements | G123: =(G55-G89)/G$246 -> 0 | H123: 0 | I123: 0 | J123: 0 | K123: 0 | L123: 0 | M123: 0 | N123: 0 | O123: 0 | P123: 0 | Q123: 0
F124: =Asset16 -> Communications | G124: =(G56-G90)/G$246 -> 0 | H124: 0 | I124: 0 | J124: 0 | K124: 0 | L124: 0 | M124: 0 | N124: 0 | O124: 0 | P124: 0 | Q124: 0
F125: =Asset17 -> Other | G125: =(G57-G91)/G$246 -> 0 | H125: =(H57-H91)/H$246 -> 0 | I125: 0 | J125: 0 | K125: 0 | L125: 0 | M125: 0 | N125: 0 | O125: 0 | P125: 0 | Q125: 0
F126: =Asset18 -> Capitalised AA costs | G126: =(G58-G92)/G$246 -> 0 | H126: 0.4973430686 | I126: 0 | J126: 0 | K126: 0.001220291817 | L126: 0.0492370095 | M126: 0.497654707 | N126: 0 | O126: 0 | P126: 0 | Q126: 0
F127: =Asset19 -> Pipelines / Laterals | G127: =(G59-G93)/G$246 -> 0 | H127: 0.06600608492 | I127: 0 | J127: 0 | K127: 0 | L127: 0.221061683 | M127: 0 | N127: 0 | O127: 0 | P127: 0 | Q127: 0
F128: =Asset20 -> Group IT | G128: =(G60-G94)/G$246 -> 0 | H128: 0 | I128: 0 | J128: 0.1268537466 | K128: 0.2487611107 | L128: 0.7895085863 | M128: 0.799856489 | N128: 0 | O128: 0 | P128: 0 | Q128: 0
F129: =Asset21 -> SIB Capex | G129: =(G61-G95)/G$246 -> 0 | H129: 1.220050299 | I129: 2.318367243 | J129: 2.022385513 | K129: 3.415983997 | L129: 1.168390534 | M129: 1.835298175 | N129: 0 | O129: 0 | P129: 0 | Q129: 0
F130: =Asset22 -> PMA | G130: =(G62-G96)/G$246 -> 0 | H130: 0 | I130: 28.50305925 | J130: 0 | K130: 0 | L130: 0 | M130: 0 | N130: 0 | O130: 0 | P130: 0 | Q130: 0
F131: =Asset23 -> Regulators and meters | G131: =(G63-G97)/G$246 -> 0 | H131: 0.7144933404 | I131: 0.1252253576 | J131: 0.3219318177 | K131: 0.002761089952 | L131: 0 | M131: 0 | N131: 0 | O131: 0 | P131: 0 | Q131: 0
F132: =Asset24 -> Lytton lateral | G132: =(G64-G98)/G$246 -> 0 | H132: 0 | I132: 0 | J132: 0 | K132: 5.64471126 | L132: 2.322736877 | M132: 0 | N132: 0 | O132: 0 | P132: 0 | Q132: 0
F133: =Asset25 -> RBP Expansion 8 | G133: =(G65-G99)/G$246 -> 0 | H133: 0 | I133: 0.1393581801 | J133: 0.3110047776 | K133: 0.442527512 | L133: 4.122955124 | M133: 38.3594648 | N133: 0 | O133: 0 | P133: 0 | Q133: 0
F134: =Asset26 -> Asset26 | G134: =(G66-G100)/G$246 -> 0 | H134: 0 | I134: 0 | J134: 0 | K134: 0 | L134: 0 | M134: 0 | N134: 0 | O134: 0 | P134: 0 | Q134: 0
F135: =Asset27 -> Asset27 | G135: =(G67-G101)/G$246 -> 0 | H135: =(H67-H101)/H$246 -> 0 | I135: 0 | J135: 0 | K135: 0 | L135: 0 | M135: 0 | N135: 0 | O135: 0 | P135: 0 | Q135: 0
F136: =Asset28 -> Asset28 | G136: =(G68-G102)/G$246 -> 0 | H136: 0 | I136: 0 | J136: 0 | K136: 0 | L136: 0 | M136: 0 | N136: 0 | O136: 0 | P136: 0 | Q136: 0
F137: =Asset29 -> Asset29 | G137: =(G69-G103)/G$246 -> 0 | H137: 0 | I137: 0 | J137: 0 | K137: 0 | L137: 0 | M137: 0 | N137: 0 | O137: 0 | P137: 0 | Q137: 0
F138: =Asset30 -> Asset30 | G138: =(G70-G104)/G$246 -> 0 | H138: =(H70-H104)/H$246 -> 0 | I138: 0 | J138: 0 | K138: 0 | L138: 0 | M138: 0 | N138: 0 | O138: 0 | P138: =(P70-P104)/P$246 -> 0 | Q138: =(Q70-Q104)/Q$246 -> 0
F139: Total | G139: =SUM(G109:G138) -> 0 | H139: =SUM(H109:H138) -> 2.497892793 | I139: 31.08601004 | J139: 2.782175855 | K139: 9.755965261 | L139: 8.673889813 | M139: 41.49227418 | N139: 0 | O139: 0 | P139: 0 | Q139: 0
R140: =SUM(G139:Q139) -> 96.28820793
F141: Actual Capital Expenditure – As Commissioned ($m Nominal)
F142: Year | G142: =G40 -> 2005-06 | H142: =H40 -> 2006-07 | I142: 2007-08 | J142: 2008-09 | K142: 2009-10 | L142: 2010-11 | M142: 2011-12 | N142: 2012-13 | O142: 2013-14 | P142: 2014-15 | Q142: 2015-16
F143: =Asset1 -> OriginalPipeline | G143: 0 | H143: =+H41 -> 0 | I143: 0 | J143: 0 | K143: 0 | L143: 0
F144: =Asset2 -> Looping 1 | G144: 0 | H144: 0 | I144: 0 | J144: 0 | K144: 0 | L144: 0
F145: =Asset3 -> Looping 2 | G145: 0 | H145: 0 | I145: 0 | J145: 0 | K145: 0 | L145: 0
F146: =Asset4 -> Looping 3 | G146: 0 | H146: 0 | I146: 0 | J146: 0 | K146: 0 | L146: 0
F147: =Asset5 -> Looping 4 | G147: 0 | H147: 0 | I147: 0 | J147: 0 | K147: 0 | L147: 0
F148: =Asset6 -> Looping 5 | G148: 0 | H148: 0 | I148: 0 | J148: 0 | K148: 0 | L148: 0
F149: =Asset7 -> Looping 6 | H149: 0 | I149: 0 | J149: 0 | K149: 0 | L149: 0
F150: =Asset8 -> Lateral | H150: 0 | I150: 0 | J150: 0 | K150: 0 | L150: 0
F151: =Asset9 -> DalbyCompressor | H151: 0 | I151: 0 | J151: 0 | K151: 0 | L151: 0
F152: =Asset10 -> KoganCompressor | H152: 0 | I152: 0 | J152: 0 | K152: 0 | L152: 0
F153: =Asset11 -> OakeyCompressor | H153: 0 | I153: 0 | J153: 0 | K153: 0 | L153: 0
F154: =Asset12 -> CondamineCompressor | H154: 0 | I154: 0 | J154: 0 | K154: 0 | L154: 0
F155: =Asset13 -> YulebaCompressor | H155: 0 | I155: 0 | J155: 0 | K155: 0 | L155: 0
F156: =Asset14 -> GattonCompressor | H156: 0 | I156: 0 | J156: 0 | K156: 0 | L156: 0
F157: =Asset15 -> Easements | H157: =+H55 -> 0 | I157: =+I55 -> 0 | J157: =+J55 -> 0 | K157: =+K55 -> 0 | L157: =+L55 -> 0
F158: =Asset16 -> Communications | H158: =+H56 -> 0 | I158: 0 | J158: 0 | K158: 0 | L158: 0
F159: =Asset17 -> Other | H159: 0 | I159: 0 | J159: 0 | K159: 0 | L159: 0 | M159: =+M57 -> 0
F160: =Asset18 -> Capitalised AA costs | H160: =+H58 -> 0.5121790652 | I160: 0 | J160: 0 | K160: 0.001375 | L160: 0.05708155 | M160: 0.5961734694
F161: =Asset19 -> Pipelines / Laterals | H161: 0.06797508 | I161: 0 | J161: 0 | K161: =+K59 -> 0 | L161: =+L59 -> 0.25628168 | M161: =+M59 -> 0
F162: =Asset20 -> Group IT | H162: 0 | I162: 0 | J162: 0.13949612 | K162: 0.28029896 | L162: 0.9152947 | M162: 0.95820096
F163: =Asset21 -> SIB Capex | H163: 1.25644502 | I163: 2.45041797 | J163: 2.22393851 | K163: 3.84975729 | L163: 1.35454089 | M163: 2.198625
F164: =Asset22 -> PMA | H164: =+H62 -> 0 | I164: 30.068312 | J164: 0 | K164: 0 | L164: 0 | M164: 0
F165: =Asset23 -> Regulators and meters | H165: 0.73580704 | I165: 0.13210214 | J165: 0.35401587 | K165: 0.00311114 | L165: 0 | M165: 0
F166: =Asset24 -> Lytton lateral | H166: 0 | I166: 0 | J166: 0 | K166: 0 | L166: =+L64+K64*(1+L245) -> 9.265157408 | M166: 0
F167: =Asset25 -> RBP Expansion 8 | H167: 0 | I167: 0 | J167: 0 | K167: 0 | L167: 0 | M167: =+M65+I65*M255+J65*M256+K65*M257+L65*M258 -> 51.91765394
F168: =Asset26 -> Asset26 | H168: =+H66 -> 0 | I168: =+I66 -> 0 | J168: =+J66 -> 0 | K168: =+K66 -> 0 | L168: =+L66 -> 0
F169: =Asset27 -> Asset27
F170: =Asset28 -> Asset28
F171: =Asset29 -> Asset29
F172: =Asset30 -> Asset30
F173: Total | G173: =SUM(G143:G172) -> 0 | H173: =SUM(H143:H172) -> 2.572406205 | I173: 32.65083211 | J173: 2.7174505 | K173: 4.13454239 | L173: 11.84835623 | M173: =SUM(M143:M172) -> 55.67065337 | N173: =SUM(N143:N172) -> 0 | O173: 0 | P173: 0 | Q173: 0
R174: =SUM(G173:Q173) -> 109.5942408
F175: Actual Asset Disposal – As De-commissioned ($m Nominal)
F176: Year | G176: =G40 -> 2005-06 | H176: =H40 -> 2006-07 | I176: 2007-08 | J176: 2008-09 | K176: 2009-10 | L176: 2010-11 | M176: 2011-12 | N176: 2012-13 | O176: 2013-14 | P176: 2014-15 | Q176: 2015-16
F177: =Asset1 -> OriginalPipeline | G177: 0 | H177: 0 | I177: 0 | J177: 0 | K177: 0 | L177: 0
F178: =Asset2 -> Looping 1 | G178: 0 | H178: 0 | I178: 0 | J178: 0 | K178: 0 | L178: 0
F179: =Asset3 -> Looping 2 | G179: 0 | H179: 0 | I179: 0 | J179: 0 | K179: 0 | L179: 0
F180: =Asset4 -> Looping 3 | G180: 0 | H180: 0 | I180: 0 | J180: 0 | K180: 0 | L180: 0
F181: =Asset5 -> Looping 4 | G181: 0 | H181: 0 | I181: 0 | J181: 0 | K181: 0 | L181: 0
F182: =Asset6 -> Looping 5 | G182: 0 | H182: 0 | I182: 0 | J182: 0 | K182: 0 | L182: 0
F183: =Asset7 -> Looping 6
F184: =Asset8 -> Lateral
F185: =Asset9 -> DalbyCompressor
F186: =Asset10 -> KoganCompressor
F187: =Asset11 -> OakeyCompressor
F188: =Asset12 -> CondamineCompressor
F189: =Asset13 -> YulebaCompressor
F190: =Asset14 -> GattonCompressor
F191: =Asset15 -> Easements
F192: =Asset16 -> Communications
F193: =Asset17 -> Other | H193: =+H91 -> 0 | I193: =+I91 -> 0 | J193: =+J91 -> 0 | K193: 0 | L193: 0 | M193: 0 | N193: 0 | O193: 0 | P193: 0 | Q193: 0
F194: =Asset18 -> Capitalised AA costs
F195: =Asset19 -> Pipelines / Laterals
F196: =Asset20 -> Group IT
F197: =Asset21 -> SIB Capex | H197: =+H95 -> 0 | I197: =+I95 -> 0.004737 | J197: =+J95 -> 0 | K197: 0.000696 | L197: 0 | M197: 0 | N197: 0 | O197: 0 | P197: 0 | Q197: 0
F198: =Asset22 -> PMA
F199: =Asset23 -> Regulators and meters
F200: =Asset24 -> Lytton lateral
F201: =Asset25 -> RBP Expansion 8
F202: =Asset26 -> Asset26
F203: =Asset27 -> Asset27
F204: =Asset28 -> Asset28
... 52 more rows

Sheet Adjustment for previous period
B2: ="Adjustments for Previous Regulatory Control Period - RFM "&Intro!L4 -> Adjustments for Previous Regulatory Control Period - RFM Version: 2.0
B4: Year | F4: =CONCATENATE(LEFT(G4, 4)-1 &"-" &IF(G4>"2009-10",,"0") &RIGHT(G4,2)-1) -> 2004-05 | G4: =Input!G40 -> 2005-06 | H4: =Input!H40 -> 2006-07 | I4: =Input!I40 -> 2007-08 | J4: =Input!J40 -> 2008-09 | K4: =Input!K40 -> 2009-10 | L4: =Input!L40 -> 2010-11 | M4: =Input!M40 -> 2011-12 | N4: =Input!N40 -> 2012-13 | O4: =Input!O40 -> 2013-14 | P4: =Input!P40 -> 2014-15 | Q4: =Input!Q40 -> 2015-16
B6: Actual CPI Inflation Rate | F6: 0.02359472588 | G6: =Input!G245 -> 0.02983050847
B7: Nominal Vanilla WACC (fixed real time varying) | H7: =vanilla1 -> 0.08023076433 | I7: =vanilla2 -> 0.09927406032 | J7: =vanilla3 -> 0.08055006139 | K7: =vanilla4 -> 0.08500018871 | L7: =vanilla5 -> 0.08969551117 | M7: =vanilla6 -> 0.08090764414 | N7: =vanilla7 -> 0 | O7: =vanilla8 -> 0 | P7: =vanilla9 -> 0 | Q7: =vanilla10 -> 0
B9: Nominal Adjustments for Difference Between Forecast and Actual Capex
B11: Nominal Forecast Net Capex (previous regulatory control period) | G11: =SUM(G12:G41) -> 0
C12: =Asset1 -> OriginalPipeline | G12: =Input!M7 -> 0
C13: =Asset2 -> Looping 1 | G13: =Input!M8 -> 0
C14: =Asset3 -> Looping 2 | G14: =Input!M9 -> 0
C15: =Asset4 -> Looping 3 | G15: =Input!M10 -> 0
C16: =Asset5 -> Looping 4 | G16: =Input!M11 -> 0
C17: =Asset6 -> Looping 5 | G17: =Input!M12 -> 0
C18: =Asset7 -> Looping 6 | G18: =Input!M13 -> 0
C19: =Asset8 -> Lateral | G19: =Input!M14 -> 0
C20: =Asset9 -> DalbyCompressor | G20: =Input!M15 -> 0
C21: =Asset10 -> KoganCompressor | G21: =Input!M16 -> 0
C22: =Asset11 -> OakeyCompressor | G22: =Input!M17 -> 0
C23: =Asset12 -> CondamineCompressor | G23: =Input!M18 -> 0
C24: =Asset13 -> YulebaCompressor | G24: =Input!M19 -> 0
C25: =Asset14 -> GattonCompressor | G25: =Input!M20 -> 0
C26: =Asset15 -> Easements | G26: =Input!M21 -> 0
C27: =Asset16 -> Communications | G27: =Input!M22 -> 0
C28: =Asset17 -> Other | G28: =Input!M23 -> 0
C29: =Asset18 -> Capitalised AA costs | G29: =Input!M24 -> 0
C30: =Asset19 -> Pipelines / Laterals | G30: =Input!M25 -> 0
C31: =Asset20 -> Group IT | G31: =Input!M26 -> 0
C32: =Asset21 -> SIB Capex | G32: =Input!M27 -> 0
C33: =Asset22 -> PMA | G33: =Input!M28 -> 0
C34: =Asset23 -> Regulators and meters | G34: =Input!M29 -> 0
C35: =Asset24 -> Lytton lateral | G35: =Input!M30 -> 0
C36: =Asset25 -> RBP Expansion 8 | G36: =Input!M31 -> 0
C37: =Asset26 -> Asset26 | G37: =Input!M32 -> 0
C38: =Asset27 -> Asset27 | G38: =Input!M33 -> 0
C39: =Asset28 -> Asset28 | G39: =Input!M34 -> 0
C40: =Asset29 -> Asset29 | G40: =Input!M35 -> 0
C41: =Asset30 -> Asset30 | G41: =Input!M36 -> 0
B43: Nominal Actual Net Capex | G43: =SUM(G44:G73) -> 0
C44: =Asset1 -> OriginalPipeline | G44: =Input!G109*(1+previous_vanilla)^0.5 -> 0
C45: =Asset2 -> Looping 1 | G45: =Input!G110*(1+previous_vanilla)^0.5 -> 0
C46: =Asset3 -> Looping 2 | G46: =Input!G111*(1+previous_vanilla)^0.5 -> 0
C47: =Asset4 -> Looping 3 | G47: =Input!G112*(1+previous_vanilla)^0.5 -> 0
C48: =Asset5 -> Looping 4 | G48: =Input!G113*(1+previous_vanilla)^0.5 -> 0
C49: =Asset6 -> Looping 5 | G49: =Input!G114*(1+previous_vanilla)^0.5 -> 0
C50: =Asset7 -> Looping 6 | G50: =Input!G115*(1+previous_vanilla)^0.5 -> 0
C51: =Asset8 -> Lateral | G51: =Input!G116*(1+previous_vanilla)^0.5 -> 0
C52: =Asset9 -> DalbyCompressor | G52: =Input!G117*(1+previous_vanilla)^0.5 -> 0
C53: =Asset10 -> KoganCompressor | G53: =Input!G118*(1+previous_vanilla)^0.5 -> 0
C54: =Asset11 -> OakeyCompressor | G54: =Input!G119*(1+previous_vanilla)^0.5 -> 0
C55: =Asset12 -> CondamineCompressor | G55: =Input!G120*(1+previous_vanilla)^0.5 -> 0
C56: =Asset13 -> YulebaCompressor | G56: =Input!G121*(1+previous_vanilla)^0.5 -> 0
C57: =Asset14 -> GattonCompressor | G57: =Input!G122*(1+previous_vanilla)^0.5 -> 0
C58: =Asset15 -> Easements | G58: =Input!G123*(1+previous_vanilla)^0.5 -> 0
C59: =Asset16 -> Communications | G59: =Input!G124*(1+previous_vanilla)^0.5 -> 0
C60: =Asset17 -> Other | G60: =Input!G125*(1+previous_vanilla)^0.5 -> 0
C61: =Asset18 -> Capitalised AA costs | G61: =Input!G126*(1+previous_vanilla)^0.5 -> 0
C62: =Asset19 -> Pipelines / Laterals | G62: =Input!G127*(1+previous_vanilla)^0.5 -> 0
C63: =Asset20 -> Group IT | G63: =Input!G128*(1+previous_vanilla)^0.5 -> 0
C64: =Asset21 -> SIB Capex | G64: =Input!G129*(1+previous_vanilla)^0.5 -> 0
C65: =Asset22 -> PMA | G65: =Input!G130*(1+previous_vanilla)^0.5 -> 0
C66: =Asset23 -> Regulators and meters | G66: =Input!G131*(1+previous_vanilla)^0.5 -> 0
C67: =Asset24 -> Lytton lateral | G67: =Input!G132*(1+previous_vanilla)^0.5 -> 0
C68: =Asset25 -> RBP Expansion 8 | G68: =Input!G133*(1+previous_vanilla)^0.5 -> 0
C69: =Asset26 -> Asset26 | G69: =Input!G134*(1+previous_vanilla)^0.5 -> 0
C70: =Asset27 -> Asset27 | G70: =Input!G135*(1+previous_vanilla)^0.5 -> 0
C71: =Asset28 -> Asset28 | G71: =Input!G136*(1+previous_vanilla)^0.5 -> 0
C72: =Asset29 -> Asset29 | G72: =Input!G137*(1+previous_vanilla)^0.5 -> 0
C73: =Asset30 -> Asset30 | G73: =Input!G138*(1+previous_vanilla)^0.5 -> 0
B75: Nominal Difference Between Actual and Forecast Net Capex | G75: =SUM(G76:G105) -> 0
C76: =Asset1 -> OriginalPipeline | G76: =G44*(1+$F$6)/(1+$G$6)-G12 -> 0
C77: =Asset2 -> Looping 1 | G77: 0
C78: =Asset3 -> Looping 2 | G78: 0
C79: =Asset4 -> Looping 3 | G79: 0
C80: =Asset5 -> Looping 4 | G80: 0
C81: =Asset6 -> Looping 5 | G81: 0
C82: =Asset7 -> Looping 6 | G82: 0
C83: =Asset8 -> Lateral | G83: 0
C84: =Asset9 -> DalbyCompressor | G84: 0
C85: =Asset10 -> KoganCompressor | G85: 0
C86: =Asset11 -> OakeyCompressor | G86: 0
C87: =Asset12 -> CondamineCompressor | G87: 0
C88: =Asset13 -> YulebaCompressor | G88: 0
C89: =Asset14 -> GattonCompressor | G89: 0
C90: =Asset15 -> Easements | G90: 0
C91: =Asset16 -> Communications | G91: 0
C92: =Asset17 -> Other | G92: 0
C93: =Asset18 -> Capitalised AA costs | G93: 0
C94: =Asset19 -> Pipelines / Laterals | G94: 0
C95: =Asset20 -> Group IT | G95: =G63*(1+$F$6)/(1+$G$6)-G31 -> 0
C96: =Asset21 -> SIB Capex | G96: 0
C97: =Asset22 -> PMA | G97: 0
C98: =Asset23 -> Regulators and meters | G98: 0
C99: =Asset24 -> Lytton lateral | G99: 0
C100: =Asset25 -> RBP Expansion 8 | G100: 0
C101: =Asset26 -> Asset26 | G101: 0
C102: =Asset27 -> Asset27 | G102: 0
C103: =Asset28 -> Asset28 | G103: 0
C104: =Asset29 -> Asset29 | G104: 0
C105: =Asset30 -> Asset30 | G105: 0
B107: Compounded Return on Difference - Net Capex | H107: =SUM(H108,H110,H112,H114,H116,H118,H120,H122,H124,H126,H128,H130,H132,H134,H136,H138,H140,H142,H144,H146,H148,H150,H152,H154,H156,H158,H160,H162,H164,H166) -> 0 | I107: 0 | J107: 0 | K107: 0 | L107: 0 | M107: 0 | N107: 0 | O107: 0 | P107: 0 | Q107: 0
C108: =Asset1 -> OriginalPipeline | H108: =($G76+(SUM($G108:G108)))*H$7 -> 0 | I108: =($G76+(SUM($G108:H108)))*I$7 -> 0 | J108: =($G76+(SUM($G108:I108)))*J$7 -> 0 | K108: =($G76+(SUM($G108:J108)))*K$7 -> 0 | L108: =($G76+(SUM($G108:K108)))*L$7 -> 0 | M108: =IF(COUNT($H108:L108)>=Input!$W$7,0,($G76+(SUM($G108:L108)))*M$7) -> 0 | N108: =IF(COUNT($H108:M108)>=Input!$W$7,0,($G76+(SUM($G108:M108)))*N$7) -> 0 | O108: =IF(COUNT($H108:N108)>=Input!$W$7,0,($G76+(SUM($G108:N108)))*O$7) -> 0 | P108: =IF(COUNT($H108:O108)>=Input!$W$7,0,($G76+(SUM($G108:O108)))*P$7) -> 0 | Q108: =IF(COUNT($H108:P108)>=Input!$W$7,0,($G76+(SUM($G108:P108)))*Q$7) -> 0
C109: Sub-total | L109: =IF(COUNT($H108:L108)=Input!$W$7,SUM($G108:L108),0) -> 0 | M109: =IF(COUNT($H108:M108)=Input!$W$7,SUM($G108:M108),0) -> 0 | N109: =IF(COUNT($H108:N108)=Input!$W$7,SUM($G108:N108),0) -> 0 | O109: =IF(COUNT($H108:O108)=Input!$W$7,SUM($G108:O108),0) -> 0 | P109: =IF(COUNT($H108:P108)=Input!$W$7,SUM($G108:P108),0) -> 0 | Q109: =IF(COUNT($H108:Q108)=Input!$W$7,SUM($G108:Q108),0) -> 0
C110: =Asset2 -> Looping 1 | H110: =($G77+(SUM($G110:G110)))*H$7 -> 0 | I110: =($G77+(SUM($G110:H110)))*I$7 -> 0 | J110: =($G77+(SUM($G110:I110)))*J$7 -> 0 | K110: =($G77+(SUM($G110:J110)))*K$7 -> 0 | L110: =($G77+(SUM($G110:K110)))*L$7 -> 0 | M110: =IF(COUNT($H110:L110)>=Input!$W$7,0,($G77+(SUM($G110:L110)))*M$7) -> 0 | N110: =IF(COUNT($H110:M110)>=Input!$W$7,0,($G77+(SUM($G110:M110)))*N$7) -> 0 | O110: =IF(COUNT($H110:N110)>=Input!$W$7,0,($G77+(SUM($G110:N110)))*O$7) -> 0 | P110: =IF(COUNT($H110:O110)>=Input!$W$7,0,($G77+(SUM($G110:O110)))*P$7) -> 0 | Q110: =IF(COUNT($H110:P110)>=Input!$W$7,0,($G77+(SUM($G110:P110)))*Q$7) -> 0
C111: Sub-total | L111: =IF(COUNT($H110:L110)=Input!$W$7,SUM($G110:L110),0) -> 0 | M111: =IF(COUNT($H110:M110)=Input!$W$7,SUM($G110:M110),0) -> 0 | N111: =IF(COUNT($H110:N110)=Input!$W$7,SUM($G110:N110),0) -> 0 | O111: =IF(COUNT($H110:O110)=Input!$W$7,SUM($G110:O110),0) -> 0 | P111: =IF(COUNT($H110:P110)=Input!$W$7,SUM($G110:P110),0) -> 0 | Q111: =IF(COUNT($H110:Q110)=Input!$W$7,SUM($G110:Q110),0) -> 0
C112: =Asset3 -> Looping 2 | H112: =($G78+(SUM($G112:G112)))*H$7 -> 0 | I112: =($G78+(SUM($G112:H112)))*I$7 -> 0 | J112: =($G78+(SUM($G112:I112)))*J$7 -> 0 | K112: =($G78+(SUM($G112:J112)))*K$7 -> 0 | L112: =($G78+(SUM($G112:K112)))*L$7 -> 0 | M112: =IF(COUNT($H112:L112)>=Input!$W$7,0,($G78+(SUM($G112:L112)))*M$7) -> 0 | N112: =IF(COUNT($H112:M112)>=Input!$W$7,0,($G78+(SUM($G112:M112)))*N$7) -> 0 | O112: =IF(COUNT($H112:N112)>=Input!$W$7,0,($G78+(SUM($G112:N112)))*O$7) -> 0 | P112: =IF(COUNT($H112:O112)>=Input!$W$7,0,($G78+(SUM($G112:O112)))*P$7) -> 0 | Q112: =IF(COUNT($H112:P112)>=Input!$W$7,0,($G78+(SUM($G112:P112)))*Q$7) -> 0
C113: Sub-total | L113: =IF(COUNT($H112:L112)=Input!$W$7,SUM($G112:L112),0) -> 0 | M113: =IF(COUNT($H112:M112)=Input!$W$7,SUM($G112:M112),0) -> 0 | N113: =IF(COUNT($H112:N112)=Input!$W$7,SUM($G112:N112),0) -> 0 | O113: =IF(COUNT($H112:O112)=Input!$W$7,SUM($G112:O112),0) -> 0 | P113: =IF(COUNT($H112:P112)=Input!$W$7,SUM($G112:P112),0) -> 0 | Q113: =IF(COUNT($H112:Q112)=Input!$W$7,SUM($G112:Q112),0) -> 0
C114: =Asset4 -> Looping 3 | H114: =($G79+(SUM($G114:G114)))*H$7 -> 0 | I114: =($G79+(SUM($G114:H114)))*I$7 -> 0 | J114: =($G79+(SUM($G114:I114)))*J$7 -> 0 | K114: =($G79+(SUM($G114:J114)))*K$7 -> 0 | L114: =($G79+(SUM($G114:K114)))*L$7 -> 0 | M114: =IF(COUNT($H114:L114)>=Input!$W$7,0,($G79+(SUM($G114:L114)))*M$7) -> 0 | N114: =IF(COUNT($H114:M114)>=Input!$W$7,0,($G79+(SUM($G114:M114)))*N$7) -> 0 | O114: =IF(COUNT($H114:N114)>=Input!$W$7,0,($G79+(SUM($G114:N114)))*O$7) -> 0 | P114: =IF(COUNT($H114:O114)>=Input!$W$7,0,($G79+(SUM($G114:O114)))*P$7) -> 0 | Q114: =IF(COUNT($H114:P114)>=Input!$W$7,0,($G79+(SUM($G114:P114)))*Q$7) -> 0
C115: Sub-total | L115: =IF(COUNT($H114:L114)=Input!$W$7,SUM($G114:L114),0) -> 0 | M115: =IF(COUNT($H114:M114)=Input!$W$7,SUM($G114:M114),0) -> 0 | N115: =IF(COUNT($H114:N114)=Input!$W$7,SUM($G114:N114),0) -> 0 | O115: =IF(COUNT($H114:O114)=Input!$W$7,SUM($G114:O114),0) -> 0 | P115: =IF(COUNT($H114:P114)=Input!$W$7,SUM($G114:P114),0) -> 0 | Q115: =IF(COUNT($H114:Q114)=Input!$W$7,SUM($G114:Q114),0) -> 0
C116: =Asset5 -> Looping 4 | H116: =($G80+(SUM($G116:G116)))*H$7 -> 0 | I116: =($G80+(SUM($G116:H116)))*I$7 -> 0 | J116: =($G80+(SUM($G116:I116)))*J$7 -> 0 | K116: =($G80+(SUM($G116:J116)))*K$7 -> 0 | L116: =($G80+(SUM($G116:K116)))*L$7 -> 0 | M116: =IF(COUNT($H116:L116)>=Input!$W$7,0,($G80+(SUM($G116:L116)))*M$7) -> 0 | N116: =IF(COUNT($H116:M116)>=Input!$W$7,0,($G80+(SUM($G116:M116)))*N$7) -> 0 | O116: =IF(COUNT($H116:N116)>=Input!$W$7,0,($G80+(SUM($G116:N116)))*O$7) -> 0 | P116: =IF(COUNT($H116:O116)>=Input!$W$7,0,($G80+(SUM($G116:O116)))*P$7) -> 0 | Q116: =IF(COUNT($H116:P116)>=Input!$W$7,0,($G80+(SUM($G116:P116)))*Q$7) -> 0
C117: Sub-total | L117: =IF(COUNT($H116:L116)=Input!$W$7,SUM($G116:L116),0) -> 0 | M117: =IF(COUNT($H116:M116)=Input!$W$7,SUM($G116:M116),0) -> 0 | N117: =IF(COUNT($H116:N116)=Input!$W$7,SUM($G116:N116),0) -> 0 | O117: =IF(COUNT($H116:O116)=Input!$W$7,SUM($G116:O116),0) -> 0 | P117: =IF(COUNT($H116:P116)=Input!$W$7,SUM($G116:P116),0) -> 0 | Q117: =IF(COUNT($H116:Q116)=Input!$W$7,SUM($G116:Q116),0) -> 0
C118: =Asset6 -> Looping 5 | H118: =($G81+(SUM($G118:G118)))*H$7 -> 0 | I118: =($G81+(SUM($G118:H118)))*I$7 -> 0 | J118: =($G81+(SUM($G118:I118)))*J$7 -> 0 | K118: =($G81+(SUM($G118:J118)))*K$7 -> 0 | L118: =($G81+(SUM($G118:K118)))*L$7 -> 0 | M118: =IF(COUNT($H118:L118)>=Input!$W$7,0,($G81+(SUM($G118:L118)))*M$7) -> 0 | N118: =IF(COUNT($H118:M118)>=Input!$W$7,0,($G81+(SUM($G118:M118)))*N$7) -> 0 | O118: =IF(COUNT($H118:N118)>=Input!$W$7,0,($G81+(SUM($G118:N118)))*O$7) -> 0 | P118: =IF(COUNT($H118:O118)>=Input!$W$7,0,($G81+(SUM($G118:O118)))*P$7) -> 0 | Q118: =IF(COUNT($H118:P118)>=Input!$W$7,0,($G81+(SUM($G118:P118)))*Q$7) -> 0
C119: Sub-total | L119: =IF(COUNT($H118:L118)=Input!$W$7,SUM($G118:L118),0) -> 0 | M119: =IF(COUNT($H118:M118)=Input!$W$7,SUM($G118:M118),0) -> 0 | N119: =IF(COUNT($H118:N118)=Input!$W$7,SUM($G118:N118),0) -> 0 | O119: =IF(COUNT($H118:O118)=Input!$W$7,SUM($G118:O118),0) -> 0 | P119: =IF(COUNT($H118:P118)=Input!$W$7,SUM($G118:P118),0) -> 0 | Q119: =IF(COUNT($H118:Q118)=Input!$W$7,SUM($G118:Q118),0) -> 0
C120: =Asset7 -> Looping 6 | H120: =($G82+(SUM($G120:G120)))*H$7 -> 0 | I120: =($G82+(SUM($G120:H120)))*I$7 -> 0 | J120: =($G82+(SUM($G120:I120)))*J$7 -> 0 | K120: =($G82+(SUM($G120:J120)))*K$7 -> 0 | L120: =($G82+(SUM($G120:K120)))*L$7 -> 0 | M120: =IF(COUNT($H120:L120)>=Input!$W$7,0,($G82+(SUM($G120:L120)))*M$7) -> 0 | N120: =IF(COUNT($H120:M120)>=Input!$W$7,0,($G82+(SUM($G120:M120)))*N$7) -> 0 | O120: =IF(COUNT($H120:N120)>=Input!$W$7,0,($G82+(SUM($G120:N120)))*O$7) -> 0 | P120: =IF(COUNT($H120:O120)>=Input!$W$7,0,($G82+(SUM($G120:O120)))*P$7) -> 0 | Q120: =IF(COUNT($H120:P120)>=Input!$W$7,0,($G82+(SUM($G120:P120)))*Q$7) -> 0
C121: Sub-total | L121: =IF(COUNT($H120:L120)=Input!$W$7,SUM($G120:L120),0) -> 0 | M121: =IF(COUNT($H120:M120)=Input!$W$7,SUM($G120:M120),0) -> 0 | N121: =IF(COUNT($H120:N120)=Input!$W$7,SUM($G120:N120),0) -> 0 | O121: =IF(COUNT($H120:O120)=Input!$W$7,SUM($G120:O120),0) -> 0 | P121: =IF(COUNT($H120:P120)=Input!$W$7,SUM($G120:P120),0) -> 0 | Q121: =IF(COUNT($H120:Q120)=Input!$W$7,SUM($G120:Q120),0) -> 0
C122: =Asset8 -> Lateral | H122: =($G83+(SUM($G122:G122)))*H$7 -> 0 | I122: =($G83+(SUM($G122:H122)))*I$7 -> 0 | J122: =($G83+(SUM($G122:I122)))*J$7 -> 0 | K122: =($G83+(SUM($G122:J122)))*K$7 -> 0 | L122: =($G83+(SUM($G122:K122)))*L$7 -> 0 | M122: =IF(COUNT($H122:L122)>=Input!$W$7,0,($G83+(SUM($G122:L122)))*M$7) -> 0 | N122: =IF(COUNT($H122:M122)>=Input!$W$7,0,($G83+(SUM($G122:M122)))*N$7) -> 0 | O122: =IF(COUNT($H122:N122)>=Input!$W$7,0,($G83+(SUM($G122:N122)))*O$7) -> 0 | P122: =IF(COUNT($H122:O122)>=Input!$W$7,0,($G83+(SUM($G122:O122)))*P$7) -> 0 | Q122: =IF(COUNT($H122:P122)>=Input!$W$7,0,($G83+(SUM($G122:P122)))*Q$7) -> 0
C123: Sub-total | L123: =IF(COUNT($H122:L122)=Input!$W$7,SUM($G122:L122),0) -> 0 | M123: =IF(COUNT($H122:M122)=Input!$W$7,SUM($G122:M122),0) -> 0 | N123: =IF(COUNT($H122:N122)=Input!$W$7,SUM($G122:N122),0) -> 0 | O123: =IF(COUNT($H122:O122)=Input!$W$7,SUM($G122:O122),0) -> 0 | P123: =IF(COUNT($H122:P122)=Input!$W$7,SUM($G122:P122),0) -> 0 | Q123: =IF(COUNT($H122:Q122)=Input!$W$7,SUM($G122:Q122),0) -> 0
C124: =Asset9 -> DalbyCompressor | H124: =($G84+(SUM($G124:G124)))*H$7 -> 0 | I124: =($G84+(SUM($G124:H124)))*I$7 -> 0 | J124: =($G84+(SUM($G124:I124)))*J$7 -> 0 | K124: =($G84+(SUM($G124:J124)))*K$7 -> 0 | L124: =($G84+(SUM($G124:K124)))*L$7 -> 0 | M124: =IF(COUNT($H124:L124)>=Input!$W$7,0,($G84+(SUM($G124:L124)))*M$7) -> 0 | N124: =IF(COUNT($H124:M124)>=Input!$W$7,0,($G84+(SUM($G124:M124)))*N$7) -> 0 | O124: =IF(COUNT($H124:N124)>=Input!$W$7,0,($G84+(SUM($G124:N124)))*O$7) -> 0 | P124: =IF(COUNT($H124:O124)>=Input!$W$7,0,($G84+(SUM($G124:O124)))*P$7) -> 0 | Q124: =IF(COUNT($H124:P124)>=Input!$W$7,0,($G84+(SUM($G124:P124)))*Q$7) -> 0
C125: Sub-total | L125: =IF(COUNT($H124:L124)=Input!$W$7,SUM($G124:L124),0) -> 0 | M125: =IF(COUNT($H124:M124)=Input!$W$7,SUM($G124:M124),0) -> 0 | N125: =IF(COUNT($H124:N124)=Input!$W$7,SUM($G124:N124),0) -> 0 | O125: =IF(COUNT($H124:O124)=Input!$W$7,SUM($G124:O124),0) -> 0 | P125: =IF(COUNT($H124:P124)=Input!$W$7,SUM($G124:P124),0) -> 0 | Q125: =IF(COUNT($H124:Q124)=Input!$W$7,SUM($G124:Q124),0) -> 0
C126: =Asset10 -> KoganCompressor | H126: =($G85+(SUM($G126:G126)))*H$7 -> 0 | I126: =($G85+(SUM($G126:H126)))*I$7 -> 0 | J126: =($G85+(SUM($G126:I126)))*J$7 -> 0 | K126: =($G85+(SUM($G126:J126)))*K$7 -> 0 | L126: =($G85+(SUM($G126:K126)))*L$7 -> 0 | M126: =IF(COUNT($H126:L126)>=Input!$W$7,0,($G85+(SUM($G126:L126)))*M$7) -> 0 | N126: =IF(COUNT($H126:M126)>=Input!$W$7,0,($G85+(SUM($G126:M126)))*N$7) -> 0 | O126: =IF(COUNT($H126:N126)>=Input!$W$7,0,($G85+(SUM($G126:N126)))*O$7) -> 0 | P126: =IF(COUNT($H126:O126)>=Input!$W$7,0,($G85+(SUM($G126:O126)))*P$7) -> 0 | Q126: =IF(COUNT($H126:P126)>=Input!$W$7,0,($G85+(SUM($G126:P126)))*Q$7) -> 0
C127: Sub-total | L127: =IF(COUNT($H126:L126)=Input!$W$7,SUM($G126:L126),0) -> 0 | M127: =IF(COUNT($H126:M126)=Input!$W$7,SUM($G126:M126),0) -> 0 | N127: =IF(COUNT($H126:N126)=Input!$W$7,SUM($G126:N126),0) -> 0 | O127: =IF(COUNT($H126:O126)=Input!$W$7,SUM($G126:O126),0) -> 0 | P127: =IF(COUNT($H126:P126)=Input!$W$7,SUM($G126:P126),0) -> 0 | Q127: =IF(COUNT($H126:Q126)=Input!$W$7,SUM($G126:Q126),0) -> 0
C128: =Asset11 -> OakeyCompressor | H128: =($G86+(SUM($G128:G128)))*H$7 -> 0 | I128: =($G86+(SUM($G128:H128)))*I$7 -> 0 | J128: =($G86+(SUM($G128:I128)))*J$7 -> 0 | K128: =($G86+(SUM($G128:J128)))*K$7 -> 0 | L128: =($G86+(SUM($G128:K128)))*L$7 -> 0 | M128: =IF(COUNT($H128:L128)>=Input!$W$7,0,($G86+(SUM($G128:L128)))*M$7) -> 0 | N128: =IF(COUNT($H128:M128)>=Input!$W$7,0,($G86+(SUM($G128:M128)))*N$7) -> 0 | O128: =IF(COUNT($H128:N128)>=Input!$W$7,0,($G86+(SUM($G128:N128)))*O$7) -> 0 | P128: =IF(COUNT($H128:O128)>=Input!$W$7,0,($G86+(SUM($G128:O128)))*P$7) -> 0 | Q128: =IF(COUNT($H128:P128)>=Input!$W$7,0,($G86+(SUM($G128:P128)))*Q$7) -> 0
C129: Sub-total | L129: =IF(COUNT($H128:L128)=Input!$W$7,SUM($G128:L128),0) -> 0 | M129: =IF(COUNT($H128:M128)=Input!$W$7,SUM($G128:M128),0) -> 0 | N129: =IF(COUNT($H128:N128)=Input!$W$7,SUM($G128:N128),0) -> 0 | O129: =IF(COUNT($H128:O128)=Input!$W$7,SUM($G128:O128),0) -> 0 | P129: =IF(COUNT($H128:P128)=Input!$W$7,SUM($G128:P128),0) -> 0 | Q129: =IF(COUNT($H128:Q128)=Input!$W$7,SUM($G128:Q128),0) -> 0
C130: =Asset12 -> CondamineCompressor | H130: =($G87+(SUM($G130:G130)))*H$7 -> 0 | I130: =($G87+(SUM($G130:H130)))*I$7 -> 0 | J130: =($G87+(SUM($G130:I130)))*J$7 -> 0 | K130: =($G87+(SUM($G130:J130)))*K$7 -> 0 | L130: =($G87+(SUM($G130:K130)))*L$7 -> 0 | M130: =IF(COUNT($H130:L130)>=Input!$W$7,0,($G87+(SUM($G130:L130)))*M$7) -> 0 | N130: =IF(COUNT($H130:M130)>=Input!$W$7,0,($G87+(SUM($G130:M130)))*N$7) -> 0 | O130: =IF(COUNT($H130:N130)>=Input!$W$7,0,($G87+(SUM($G130:N130)))*O$7) -> 0 | P130: =IF(COUNT($H130:O130)>=Input!$W$7,0,($G87+(SUM($G130:O130)))*P$7) -> 0 | Q130: =IF(COUNT($H130:P130)>=Input!$W$7,0,($G87+(SUM($G130:P130)))*Q$7) -> 0
C131: Sub-total | L131: =IF(COUNT($H130:L130)=Input!$W$7,SUM($G130:L130),0) -> 0 | M131: =IF(COUNT($H130:M130)=Input!$W$7,SUM($G130:M130),0) -> 0 | N131: =IF(COUNT($H130:N130)=Input!$W$7,SUM($G130:N130),0) -> 0 | O131: =IF(COUNT($H130:O130)=Input!$W$7,SUM($G130:O130),0) -> 0 | P131: =IF(COUNT($H130:P130)=Input!$W$7,SUM($G130:P130),0) -> 0 | Q131: =IF(COUNT($H130:Q130)=Input!$W$7,SUM($G130:Q130),0) -> 0
C132: =Asset13 -> YulebaCompressor | H132: =($G88+(SUM($G132:G132)))*H$7 -> 0 | I132: =($G88+(SUM($G132:H132)))*I$7 -> 0 | J132: =($G88+(SUM($G132:I132)))*J$7 -> 0 | K132: =($G88+(SUM($G132:J132)))*K$7 -> 0 | L132: =($G88+(SUM($G132:K132)))*L$7 -> 0 | M132: =IF(COUNT($H132:L132)>=Input!$W$7,0,($G88+(SUM($G132:L132)))*M$7) -> 0 | N132: =IF(COUNT($H132:M132)>=Input!$W$7,0,($G88+(SUM($G132:M132)))*N$7) -> 0 | O132: =IF(COUNT($H132:N132)>=Input!$W$7,0,($G88+(SUM($G132:N132)))*O$7) -> 0 | P132: =IF(COUNT($H132:O132)>=Input!$W$7,0,($G88+(SUM($G132:O132)))*P$7) -> 0 | Q132: =IF(COUNT($H132:P132)>=Input!$W$7,0,($G88+(SUM($G132:P132)))*Q$7) -> 0
C133: Sub-total | L133: =IF(COUNT($H132:L132)=Input!$W$7,SUM($G132:L132),0) -> 0 | M133: =IF(COUNT($H132:M132)=Input!$W$7,SUM($G132:M132),0) -> 0 | N133: =IF(COUNT($H132:N132)=Input!$W$7,SUM($G132:N132),0) -> 0 | O133: =IF(COUNT($H132:O132)=Input!$W$7,SUM($G132:O132),0) -> 0 | P133: =IF(COUNT($H132:P132)=Input!$W$7,SUM($G132:P132),0) -> 0 | Q133: =IF(COUNT($H132:Q132)=Input!$W$7,SUM($G132:Q132),0) -> 0
C134: =Asset14 -> GattonCompressor | H134: =($G89+(SUM($G134:G134)))*H$7 -> 0 | I134: =($G89+(SUM($G134:H134)))*I$7 -> 0 | J134: =($G89+(SUM($G134:I134)))*J$7 -> 0 | K134: =($G89+(SUM($G134:J134)))*K$7 -> 0 | L134: =($G89+(SUM($G134:K134)))*L$7 -> 0 | M134: =IF(COUNT($H134:L134)>=Input!$W$7,0,($G89+(SUM($G134:L134)))*M$7) -> 0 | N134: =IF(COUNT($H134:M134)>=Input!$W$7,0,($G89+(SUM($G134:M134)))*N$7) -> 0 | O134: =IF(COUNT($H134:N134)>=Input!$W$7,0,($G89+(SUM($G134:N134)))*O$7) -> 0 | P134: =IF(COUNT($H134:O134)>=Input!$W$7,0,($G89+(SUM($G134:O134)))*P$7) -> 0 | Q134: =IF(COUNT($H134:P134)>=Input!$W$7,0,($G89+(SUM($G134:P134)))*Q$7) -> 0
C135: Sub-total | L135: =IF(COUNT($H134:L134)=Input!$W$7,SUM($G134:L134),0) -> 0 | M135: =IF(COUNT($H134:M134)=Input!$W$7,SUM($G134:M134),0) -> 0 | N135: =IF(COUNT($H134:N134)=Input!$W$7,SUM($G134:N134),0) -> 0 | O135: =IF(COUNT($H134:O134)=Input!$W$7,SUM($G134:O134),0) -> 0 | P135: =IF(COUNT($H134:P134)=Input!$W$7,SUM($G134:P134),0) -> 0 | Q135: =IF(COUNT($H134:Q134)=Input!$W$7,SUM($G134:Q134),0) -> 0
C136: =Asset15 -> Easements | H136: =($G90+(SUM($G136:G136)))*H$7 -> 0 | I136: =($G90+(SUM($G136:H136)))*I$7 -> 0 | J136: =($G90+(SUM($G136:I136)))*J$7 -> 0 | K136: =($G90+(SUM($G136:J136)))*K$7 -> 0 | L136: =($G90+(SUM($G136:K136)))*L$7 -> 0 | M136: =IF(COUNT($H136:L136)>=Input!$W$7,0,($G90+(SUM($G136:L136)))*M$7) -> 0 | N136: =IF(COUNT($H136:M136)>=Input!$W$7,0,($G90+(SUM($G136:M136)))*N$7) -> 0 | O136: =IF(COUNT($H136:N136)>=Input!$W$7,0,($G90+(SUM($G136:N136)))*O$7) -> 0 | P136: =IF(COUNT($H136:O136)>=Input!$W$7,0,($G90+(SUM($G136:O136)))*P$7) -> 0 | Q136: =IF(COUNT($H136:P136)>=Input!$W$7,0,($G90+(SUM($G136:P136)))*Q$7) -> 0
C137: Sub-total | L137: =IF(COUNT($H136:L136)=Input!$W$7,SUM($G136:L136),0) -> 0 | M137: =IF(COUNT($H136:M136)=Input!$W$7,SUM($G136:M136),0) -> 0 | N137: =IF(COUNT($H136:N136)=Input!$W$7,SUM($G136:N136),0) -> 0 | O137: =IF(COUNT($H136:O136)=Input!$W$7,SUM($G136:O136),0) -> 0 | P137: =IF(COUNT($H136:P136)=Input!$W$7,SUM($G136:P136),0) -> 0 | Q137: =IF(COUNT($H136:Q136)=Input!$W$7,SUM($G136:Q136),0) -> 0
C138: =Asset16 -> Communications | H138: =($G91+(SUM($G138:G138)))*H$7 -> 0 | I138: =($G91+(SUM($G138:H138)))*I$7 -> 0 | J138: =($G91+(SUM($G138:I138)))*J$7 -> 0 | K138: =($G91+(SUM($G138:J138)))*K$7 -> 0 | L138: =($G91+(SUM($G138:K138)))*L$7 -> 0 | M138: =IF(COUNT($H138:L138)>=Input!$W$7,0,($G91+(SUM($G138:L138)))*M$7) -> 0 | N138: =IF(COUNT($H138:M138)>=Input!$W$7,0,($G91+(SUM($G138:M138)))*N$7) -> 0 | O138: =IF(COUNT($H138:N138)>=Input!$W$7,0,($G91+(SUM($G138:N138)))*O$7) -> 0 | P138: =IF(COUNT($H138:O138)>=Input!$W$7,0,($G91+(SUM($G138:O138)))*P$7) -> 0 | Q138: =IF(COUNT($H138:P138)>=Input!$W$7,0,($G91+(SUM($G138:P138)))*Q$7) -> 0
C139: Sub-total | L139: =IF(COUNT($H138:L138)=Input!$W$7,SUM($G138:L138),0) -> 0 | M139: =IF(COUNT($H138:M138)=Input!$W$7,SUM($G138:M138),0) -> 0 | N139: =IF(COUNT($H138:N138)=Input!$W$7,SUM($G138:N138),0) -> 0 | O139: =IF(COUNT($H138:O138)=Input!$W$7,SUM($G138:O138),0) -> 0 | P139: =IF(COUNT($H138:P138)=Input!$W$7,SUM($G138:P138),0) -> 0 | Q139: =IF(COUNT($H138:Q138)=Input!$W$7,SUM($G138:Q138),0) -> 0
C140: =Asset17 -> Other | H140: =($G92+(SUM($G140:G140)))*H$7 -> 0 | I140: =($G92+(SUM($G140:H140)))*I$7 -> 0 | J140: =($G92+(SUM($G140:I140)))*J$7 -> 0 | K140: =($G92+(SUM($G140:J140)))*K$7 -> 0 | L140: =($G92+(SUM($G140:K140)))*L$7 -> 0 | M140: =IF(COUNT($H140:L140)>=Input!$W$7,0,($G92+(SUM($G140:L140)))*M$7) -> 0 | N140: =IF(COUNT($H140:M140)>=Input!$W$7,0,($G92+(SUM($G140:M140)))*N$7) -> 0 | O140: =IF(COUNT($H140:N140)>=Input!$W$7,0,($G92+(SUM($G140:N140)))*O$7) -> 0 | P140: =IF(COUNT($H140:O140)>=Input!$W$7,0,($G92+(SUM($G140:O140)))*P$7) -> 0 | Q140: =IF(COUNT($H140:P140)>=Input!$W$7,0,($G92+(SUM($G140:P140)))*Q$7) -> 0
C141: Sub-total | L141: =IF(COUNT($H140:L140)=Input!$W$7,SUM($G140:L140),0) -> 0 | M141: =IF(COUNT($H140:M140)=Input!$W$7,SUM($G140:M140),0) -> 0 | N141: =IF(COUNT($H140:N140)=Input!$W$7,SUM($G140:N140),0) -> 0 | O141: =IF(COUNT($H140:O140)=Input!$W$7,SUM($G140:O140),0) -> 0 | P141: =IF(COUNT($H140:P140)=Input!$W$7,SUM($G140:P140),0) -> 0 | Q141: =IF(COUNT($H140:Q140)=Input!$W$7,SUM($G140:Q140),0) -> 0
C142: =Asset18 -> Capitalised AA costs | H142: =($G93+(SUM($G142:G142)))*H$7 -> 0 | I142: =($G93+(SUM($G142:H142)))*I$7 -> 0 | J142: =($G93+(SUM($G142:I142)))*J$7 -> 0 | K142: =($G93+(SUM($G142:J142)))*K$7 -> 0 | L142: =($G93+(SUM($G142:K142)))*L$7 -> 0 | M142: =IF(COUNT($H142:L142)>=Input!$W$7,0,($G93+(SUM($G142:L142)))*M$7) -> 0 | N142: =IF(COUNT($H142:M142)>=Input!$W$7,0,($G93+(SUM($G142:M142)))*N$7) -> 0 | O142: =IF(COUNT($H142:N142)>=Input!$W$7,0,($G93+(SUM($G142:N142)))*O$7) -> 0 | P142: =IF(COUNT($H142:O142)>=Input!$W$7,0,($G93+(SUM($G142:O142)))*P$7) -> 0 | Q142: =IF(COUNT($H142:P142)>=Input!$W$7,0,($G93+(SUM($G142:P142)))*Q$7) -> 0
C143: Sub-total | L143: =IF(COUNT($H142:L142)=Input!$W$7,SUM($G142:L142),0) -> 0 | M143: =IF(COUNT($H142:M142)=Input!$W$7,SUM($G142:M142),0) -> 0 | N143: =IF(COUNT($H142:N142)=Input!$W$7,SUM($G142:N142),0) -> 0 | O143: =IF(COUNT($H142:O142)=Input!$W$7,SUM($G142:O142),0) -> 0 | P143: =IF(COUNT($H142:P142)=Input!$W$7,SUM($G142:P142),0) -> 0 | Q143: =IF(COUNT($H142:Q142)=Input!$W$7,SUM($G142:Q142),0) -> 0
C144: =Asset19 -> Pipelines / Laterals | H144: =($G94+(SUM($G144:G144)))*H$7 -> 0 | I144: =($G94+(SUM($G144:H144)))*I$7 -> 0 | J144: =($G94+(SUM($G144:I144)))*J$7 -> 0 | K144: =($G94+(SUM($G144:J144)))*K$7 -> 0 | L144: =($G94+(SUM($G144:K144)))*L$7 -> 0 | M144: =IF(COUNT($H144:L144)>=Input!$W$7,0,($G94+(SUM($G144:L144)))*M$7) -> 0 | N144: =IF(COUNT($H144:M144)>=Input!$W$7,0,($G94+(SUM($G144:M144)))*N$7) -> 0 | O144: =IF(COUNT($H144:N144)>=Input!$W$7,0,($G94+(SUM($G144:N144)))*O$7) -> 0 | P144: =IF(COUNT($H144:O144)>=Input!$W$7,0,($G94+(SUM($G144:O144)))*P$7) -> 0 | Q144: =IF(COUNT($H144:P144)>=Input!$W$7,0,($G94+(SUM($G144:P144)))*Q$7) -> 0
C145: Sub-total | L145: =IF(COUNT($H144:L144)=Input!$W$7,SUM($G144:L144),0) -> 0 | M145: =IF(COUNT($H144:M144)=Input!$W$7,SUM($G144:M144),0) -> 0 | N145: =IF(COUNT($H144:N144)=Input!$W$7,SUM($G144:N144),0) -> 0 | O145: =IF(COUNT($H144:O144)=Input!$W$7,SUM($G144:O144),0) -> 0 | P145: =IF(COUNT($H144:P144)=Input!$W$7,SUM($G144:P144),0) -> 0 | Q145: =IF(COUNT($H144:Q144)=Input!$W$7,SUM($G144:Q144),0) -> 0
C146: =Asset20 -> Group IT | H146: =($G95+(SUM($G146:G146)))*H$7 -> 0 | I146: =($G95+(SUM($G146:H146)))*I$7 -> 0 | J146: =($G95+(SUM($G146:I146)))*J$7 -> 0 | K146: =($G95+(SUM($G146:J146)))*K$7 -> 0 | L146: =($G95+(SUM($G146:K146)))*L$7 -> 0 | M146: =IF(COUNT($H146:L146)>=Input!$W$7,0,($G95+(SUM($G146:L146)))*M$7) -> 0 | N146: =IF(COUNT($H146:M146)>=Input!$W$7,0,($G95+(SUM($G146:M146)))*N$7) -> 0 | O146: =IF(COUNT($H146:N146)>=Input!$W$7,0,($G95+(SUM($G146:N146)))*O$7) -> 0 | P146: =IF(COUNT($H146:O146)>=Input!$W$7,0,($G95+(SUM($G146:O146)))*P$7) -> 0 | Q146: =IF(COUNT($H146:P146)>=Input!$W$7,0,($G95+(SUM($G146:P146)))*Q$7) -> 0
C147: Sub-total | L147: =IF(COUNT($H146:L146)=Input!$W$7,SUM($G146:L146),0) -> 0 | M147: =IF(COUNT($H146:M146)=Input!$W$7,SUM($G146:M146),0) -> 0 | N147: =IF(COUNT($H146:N146)=Input!$W$7,SUM($G146:N146),0) -> 0 | O147: =IF(COUNT($H146:O146)=Input!$W$7,SUM($G146:O146),0) -> 0 | P147: =IF(COUNT($H146:P146)=Input!$W$7,SUM($G146:P146),0) -> 0 | Q147: =IF(COUNT($H146:Q146)=Input!$W$7,SUM($G146:Q146),0) -> 0
C148: =Asset21 -> SIB Capex | H148: =($G96+(SUM($G148:G148)))*H$7 -> 0 | I148: =($G96+(SUM($G148:H148)))*I$7 -> 0 | J148: =($G96+(SUM($G148:I148)))*J$7 -> 0 | K148: =($G96+(SUM($G148:J148)))*K$7 -> 0 | L148: =($G96+(SUM($G148:K148)))*L$7 -> 0 | M148: =IF(COUNT($H148:L148)>=Input!$W$7,0,($G96+(SUM($G148:L148)))*M$7) -> 0 | N148: =IF(COUNT($H148:M148)>=Input!$W$7,0,($G96+(SUM($G148:M148)))*N$7) -> 0 | O148: =IF(COUNT($H148:N148)>=Input!$W$7,0,($G96+(SUM($G148:N148)))*O$7) -> 0 | P148: =IF(COUNT($H148:O148)>=Input!$W$7,0,($G96+(SUM($G148:O148)))*P$7) -> 0 | Q148: =IF(COUNT($H148:P148)>=Input!$W$7,0,($G96+(SUM($G148:P148)))*Q$7) -> 0
C149: Sub-total | L149: =IF(COUNT($H148:L148)=Input!$W$7,SUM($G148:L148),0) -> 0 | M149: =IF(COUNT($H148:M148)=Input!$W$7,SUM($G148:M148),0) -> 0 | N149: =IF(COUNT($H148:N148)=Input!$W$7,SUM($G148:N148),0) -> 0 | O149: =IF(COUNT($H148:O148)=Input!$W$7,SUM($G148:O148),0) -> 0 | P149: =IF(COUNT($H148:P148)=Input!$W$7,SUM($G148:P148),0) -> 0 | Q149: =IF(COUNT($H148:Q148)=Input!$W$7,SUM($G148:Q148),0) -> 0
C150: =Asset22 -> PMA | H150: =($G97+(SUM($G150:G150)))*H$7 -> 0 | I150: =($G97+(SUM($G150:H150)))*I$7 -> 0 | J150: =($G97+(SUM($G150:I150)))*J$7 -> 0 | K150: =($G97+(SUM($G150:J150)))*K$7 -> 0 | L150: =($G97+(SUM($G150:K150)))*L$7 -> 0 | M150: =IF(COUNT($H150:L150)>=Input!$W$7,0,($G97+(SUM($G150:L150)))*M$7) -> 0 | N150: =IF(COUNT($H150:M150)>=Input!$W$7,0,($G97+(SUM($G150:M150)))*N$7) -> 0 | O150: =IF(COUNT($H150:N150)>=Input!$W$7,0,($G97+(SUM($G150:N150)))*O$7) -> 0 | P150: =IF(COUNT($H150:O150)>=Input!$W$7,0,($G97+(SUM($G150:O150)))*P$7) -> 0 | Q150: =IF(COUNT($H150:P150)>=Input!$W$7,0,($G97+(SUM($G150:P150)))*Q$7) -> 0
C151: Sub-total | L151: =IF(COUNT($H150:L150)=Input!$W$7,SUM($G150:L150),0) -> 0 | M151: =IF(COUNT($H150:M150)=Input!$W$7,SUM($G150:M150),0) -> 0 | N151: =IF(COUNT($H150:N150)=Input!$W$7,SUM($G150:N150),0) -> 0 | O151: =IF(COUNT($H150:O150)=Input!$W$7,SUM($G150:O150),0) -> 0 | P151: =IF(COUNT($H150:P150)=Input!$W$7,SUM($G150:P150),0) -> 0 | Q151: =IF(COUNT($H150:Q150)=Input!$W$7,SUM($G150:Q150),0) -> 0
C152: =Asset23 -> Regulators and meters | H152: =($G98+(SUM($G152:G152)))*H$7 -> 0 | I152: =($G98+(SUM($G152:H152)))*I$7 -> 0 | J152: =($G98+(SUM($G152:I152)))*J$7 -> 0 | K152: =($G98+(SUM($G152:J152)))*K$7 -> 0 | L152: =($G98+(SUM($G152:K152)))*L$7 -> 0 | M152: =IF(COUNT($H152:L152)>=Input!$W$7,0,($G98+(SUM($G152:L152)))*M$7) -> 0 | N152: =IF(COUNT($H152:M152)>=Input!$W$7,0,($G98+(SUM($G152:M152)))*N$7) -> 0 | O152: =IF(COUNT($H152:N152)>=Input!$W$7,0,($G98+(SUM($G152:N152)))*O$7) -> 0 | P152: =IF(COUNT($H152:O152)>=Input!$W$7,0,($G98+(SUM($G152:O152)))*P$7) -> 0 | Q152: =IF(COUNT($H152:P152)>=Input!$W$7,0,($G98+(SUM($G152:P152)))*Q$7) -> 0
C153: Sub-total | L153: =IF(COUNT($H152:L152)=Input!$W$7,SUM($G152:L152),0) -> 0 | M153: =IF(COUNT($H152:M152)=Input!$W$7,SUM($G152:M152),0) -> 0 | N153: =IF(COUNT($H152:N152)=Input!$W$7,SUM($G152:N152),0) -> 0 | O153: =IF(COUNT($H152:O152)=Input!$W$7,SUM($G152:O152),0) -> 0 | P153: =IF(COUNT($H152:P152)=Input!$W$7,SUM($G152:P152),0) -> 0 | Q153: =IF(COUNT($H152:Q152)=Input!$W$7,SUM($G152:Q152),0) -> 0
C154: =Asset24 -> Lytton lateral | H154: =($G99+(SUM($G154:G154)))*H$7 -> 0 | I154: =($G99+(SUM($G154:H154)))*I$7 -> 0 | J154: =($G99+(SUM($G154:I154)))*J$7 -> 0 | K154: =($G99+(SUM($G154:J154)))*K$7 -> 0 | L154: =($G99+(SUM($G154:K154)))*L$7 -> 0 | M154: =IF(COUNT($H154:L154)>=Input!$W$7,0,($G99+(SUM($G154:L154)))*M$7) -> 0 | N154: =IF(COUNT($H154:M154)>=Input!$W$7,0,($G99+(SUM($G154:M154)))*N$7) -> 0 | O154: =IF(COUNT($H154:N154)>=Input!$W$7,0,($G99+(SUM($G154:N154)))*O$7) -> 0 | P154: =IF(COUNT($H154:O154)>=Input!$W$7,0,($G99+(SUM($G154:O154)))*P$7) -> 0 | Q154: =IF(COUNT($H154:P154)>=Input!$W$7,0,($G99+(SUM($G154:P154)))*Q$7) -> 0
C155: Sub-total | L155: =IF(COUNT($H154:L154)=Input!$W$7,SUM($G154:L154),0) -> 0 | M155: =IF(COUNT($H154:M154)=Input!$W$7,SUM($G154:M154),0) -> 0 | N155: =IF(COUNT($H154:N154)=Input!$W$7,SUM($G154:N154),0) -> 0 | O155: =IF(COUNT($H154:O154)=Input!$W$7,SUM($G154:O154),0) -> 0 | P155: =IF(COUNT($H154:P154)=Input!$W$7,SUM($G154:P154),0) -> 0 | Q155: =IF(COUNT($H154:Q154)=Input!$W$7,SUM($G154:Q154),0) -> 0
C156: =Asset25 -> RBP Expansion 8 | H156: =($G100+(SUM($G156:G156)))*H$7 -> 0 | I156: =($G100+(SUM($G156:H156)))*I$7 -> 0 | J156: =($G100+(SUM($G156:I156)))*J$7 -> 0 | K156: =($G100+(SUM($G156:J156)))*K$7 -> 0 | L156: =($G100+(SUM($G156:K156)))*L$7 -> 0 | M156: =IF(COUNT($H156:L156)>=Input!$W$7,0,($G100+(SUM($G156:L156)))*M$7) -> 0 | N156: =IF(COUNT($H156:M156)>=Input!$W$7,0,($G100+(SUM($G156:M156)))*N$7) -> 0 | O156: =IF(COUNT($H156:N156)>=Input!$W$7,0,($G100+(SUM($G156:N156)))*O$7) -> 0 | P156: =IF(COUNT($H156:O156)>=Input!$W$7,0,($G100+(SUM($G156:O156)))*P$7) -> 0 | Q156: =IF(COUNT($H156:P156)>=Input!$W$7,0,($G100+(SUM($G156:P156)))*Q$7) -> 0
C157: Sub-total | L157: =IF(COUNT($H156:L156)=Input!$W$7,SUM($G156:L156),0) -> 0 | M157: =IF(COUNT($H156:M156)=Input!$W$7,SUM($G156:M156),0) -> 0 | N157: =IF(COUNT($H156:N156)=Input!$W$7,SUM($G156:N156),0) -> 0 | O157: =IF(COUNT($H156:O156)=Input!$W$7,SUM($G156:O156),0) -> 0 | P157: =IF(COUNT($H156:P156)=Input!$W$7,SUM($G156:P156),0) -> 0 | Q157: =IF(COUNT($H156:Q156)=Input!$W$7,SUM($G156:Q156),0) -> 0
C158: =Asset26 -> Asset26 | H158: =($G101+(SUM($G158:G158)))*H$7 -> 0 | I158: =($G101+(SUM($G158:H158)))*I$7 -> 0 | J158: =($G101+(SUM($G158:I158)))*J$7 -> 0 | K158: =($G101+(SUM($G158:J158)))*K$7 -> 0 | L158: =($G101+(SUM($G158:K158)))*L$7 -> 0 | M158: =IF(COUNT($H158:L158)>=Input!$W$7,0,($G101+(SUM($G158:L158)))*M$7) -> 0 | N158: =IF(COUNT($H158:M158)>=Input!$W$7,0,($G101+(SUM($G158:M158)))*N$7) -> 0 | O158: =IF(COUNT($H158:N158)>=Input!$W$7,0,($G101+(SUM($G158:N158)))*O$7) -> 0 | P158: =IF(COUNT($H158:O158)>=Input!$W$7,0,($G101+(SUM($G158:O158)))*P$7) -> 0 | Q158: =IF(COUNT($H158:P158)>=Input!$W$7,0,($G101+(SUM($G158:P158)))*Q$7) -> 0
C159: Sub-total | L159: =IF(COUNT($H158:L158)=Input!$W$7,SUM($G158:L158),0) -> 0 | M159: =IF(COUNT($H158:M158)=Input!$W$7,SUM($G158:M158),0) -> 0 | N159: =IF(COUNT($H158:N158)=Input!$W$7,SUM($G158:N158),0) -> 0 | O159: =IF(COUNT($H158:O158)=Input!$W$7,SUM($G158:O158),0) -> 0 | P159: =IF(COUNT($H158:P158)=Input!$W$7,SUM($G158:P158),0) -> 0 | Q159: =IF(COUNT($H158:Q158)=Input!$W$7,SUM($G158:Q158),0) -> 0
C160: =Asset27 -> Asset27 | H160: =($G102+(SUM($G160:G160)))*H$7 -> 0 | I160: =($G102+(SUM($G160:H160)))*I$7 -> 0 | J160: =($G102+(SUM($G160:I160)))*J$7 -> 0 | K160: =($G102+(SUM($G160:J160)))*K$7 -> 0 | L160: =($G102+(SUM($G160:K160)))*L$7 -> 0 | M160: =IF(COUNT($H160:L160)>=Input!$W$7,0,($G102+(SUM($G160:L160)))*M$7) -> 0 | N160: =IF(COUNT($H160:M160)>=Input!$W$7,0,($G102+(SUM($G160:M160)))*N$7) -> 0 | O160: =IF(COUNT($H160:N160)>=Input!$W$7,0,($G102+(SUM($G160:N160)))*O$7) -> 0 | P160: =IF(COUNT($H160:O160)>=Input!$W$7,0,($G102+(SUM($G160:O160)))*P$7) -> 0 | Q160: =IF(COUNT($H160:P160)>=Input!$W$7,0,($G102+(SUM($G160:P160)))*Q$7) -> 0
C161: Sub-total | L161: =IF(COUNT($H160:L160)=Input!$W$7,SUM($G160:L160),0) -> 0 | M161: =IF(COUNT($H160:M160)=Input!$W$7,SUM($G160:M160),0) -> 0 | N161: =IF(COUNT($H160:N160)=Input!$W$7,SUM($G160:N160),0) -> 0 | O161: =IF(COUNT($H160:O160)=Input!$W$7,SUM($G160:O160),0) -> 0 | P161: =IF(COUNT($H160:P160)=Input!$W$7,SUM($G160:P160),0) -> 0 | Q161: =IF(COUNT($H160:Q160)=Input!$W$7,SUM($G160:Q160),0) -> 0
C162: =Asset28 -> Asset28 | H162: =($G103+(SUM($G162:G162)))*H$7 -> 0 | I162: =($G103+(SUM($G162:H162)))*I$7 -> 0 | J162: =($G103+(SUM($G162:I162)))*J$7 -> 0 | K162: =($G103+(SUM($G162:J162)))*K$7 -> 0 | L162: =($G103+(SUM($G162:K162)))*L$7 -> 0 | M162: =IF(COUNT($H162:L162)>=Input!$W$7,0,($G103+(SUM($G162:L162)))*M$7) -> 0 | N162: =IF(COUNT($H162:M162)>=Input!$W$7,0,($G103+(SUM($G162:M162)))*N$7) -> 0 | O162: =IF(COUNT($H162:N162)>=Input!$W$7,0,($G103+(SUM($G162:N162)))*O$7) -> 0 | P162: =IF(COUNT($H162:O162)>=Input!$W$7,0,($G103+(SUM($G162:O162)))*P$7) -> 0 | Q162: =IF(COUNT($H162:P162)>=Input!$W$7,0,($G103+(SUM($G162:P162)))*Q$7) -> 0
C163: Sub-total | L163: =IF(COUNT($H162:L162)=Input!$W$7,SUM($G162:L162),0) -> 0 | M163: =IF(COUNT($H162:M162)=Input!$W$7,SUM($G162:M162),0) -> 0 | N163: =IF(COUNT($H162:N162)=Input!$W$7,SUM($G162:N162),0) -> 0 | O163: =IF(COUNT($H162:O162)=Input!$W$7,SUM($G162:O162),0) -> 0 | P163: =IF(COUNT($H162:P162)=Input!$W$7,SUM($G162:P162),0) -> 0 | Q163: =IF(COUNT($H162:Q162)=Input!$W$7,SUM($G162:Q162),0) -> 0
C164: =Asset29 -> Asset29 | H164: =($G104+(SUM($G164:G164)))*H$7 -> 0 | I164: =($G104+(SUM($G164:H164)))*I$7 -> 0 | J164: =($G104+(SUM($G164:I164)))*J$7 -> 0 | K164: =($G104+(SUM($G164:J164)))*K$7 -> 0 | L164: =($G104+(SUM($G164:K164)))*L$7 -> 0 | M164: =IF(COUNT($H164:L164)>=Input!$W$7,0,($G104+(SUM($G164:L164)))*M$7) -> 0 | N164: =IF(COUNT($H164:M164)>=Input!$W$7,0,($G104+(SUM($G164:M164)))*N$7) -> 0 | O164: =IF(COUNT($H164:N164)>=Input!$W$7,0,($G104+(SUM($G164:N164)))*O$7) -> 0 | P164: =IF(COUNT($H164:O164)>=Input!$W$7,0,($G104+(SUM($G164:O164)))*P$7) -> 0 | Q164: =IF(COUNT($H164:P164)>=Input!$W$7,0,($G104+(SUM($G164:P164)))*Q$7) -> 0
C165: Sub-total | L165: =IF(COUNT($H164:L164)=Input!$W$7,SUM($G164:L164),0) -> 0 | M165: =IF(COUNT($H164:M164)=Input!$W$7,SUM($G164:M164),0) -> 0 | N165: =IF(COUNT($H164:N164)=Input!$W$7,SUM($G164:N164),0) -> 0 | O165: =IF(COUNT($H164:O164)=Input!$W$7,SUM($G164:O164),0) -> 0 | P165: =IF(COUNT($H164:P164)=Input!$W$7,SUM($G164:P164),0) -> 0 | Q165: =IF(COUNT($H164:Q164)=Input!$W$7,SUM($G164:Q164),0) -> 0
C166: =Asset30 -> Asset30 | H166: =($G105+(SUM($G166:G166)))*H$7 -> 0 | I166: =($G105+(SUM($G166:H166)))*I$7 -> 0 | J166: =($G105+(SUM($G166:I166)))*J$7 -> 0 | K166: =($G105+(SUM($G166:J166)))*K$7 -> 0 | L166: =($G105+(SUM($G166:K166)))*L$7 -> 0 | M166: =IF(COUNT($H166:L166)>=Input!$W$7,0,($G105+(SUM($G166:L166)))*M$7) -> 0 | N166: =IF(COUNT($H166:M166)>=Input!$W$7,0,($G105+(SUM($G166:M166)))*N$7) -> 0 | O166: =IF(COUNT($H166:N166)>=Input!$W$7,0,($G105+(SUM($G166:N166)))*O$7) -> 0 | P166: =IF(COUNT($H166:O166)>=Input!$W$7,0,($G105+(SUM($G166:O166)))*P$7) -> 0 | Q166: =IF(COUNT($H166:P166)>=Input!$W$7,0,($G105+(SUM($G166:P166)))*Q$7) -> 0
C167: Sub-total | L167: =IF(COUNT($H166:L166)=Input!$W$7,SUM($G166:L166),0) -> 0 | M167: =IF(COUNT($H166:M166)=Input!$W$7,SUM($G166:M166),0) -> 0 | N167: =IF(COUNT($H166:N166)=Input!$W$7,SUM($G166:N166),0) -> 0 | O167: =IF(COUNT($H166:O166)=Input!$W$7,SUM($G166:O166),0) -> 0 | P167: =IF(COUNT($H166:P166)=Input!$W$7,SUM($G166:P166),0) -> 0 | Q167: =IF(COUNT($H166:Q166)=Input!$W$7,SUM($G166:Q166),0) -> 0
B168: Total Return at End of Regulatory Period | L168: =IF(COUNT($H107:L107)=Input!$W$7, SUM($G107:L107), 0) -> 0 | M168: =IF(COUNT($H107:M107)=Input!$W$7, SUM($G107:M107), 0) -> 0 | N168: =IF(COUNT($H107:N107)=Input!$W$7, SUM($G107:N107), 0) -> 0 | O168: =IF(COUNT($H107:O107)=Input!$W$7, SUM($G107:O107), 0) -> 0 | P168: =IF(COUNT($H107:P107)=Input!$W$7, SUM($G107:P107), 0) -> 0 | Q168: =IF(COUNT($H107:Q107)=Input!$W$7, SUM($G107:Q107), 0) -> 0
B170: Nominal Adjustments for Difference Between Forecast and Actual Assets Under Construction
B172: Nominal Forecast Assets Under Construction (previous regulatory period) | G172: =SUM(G173:G202) -> 0
C173: =Asset1 -> OriginalPipeline | G173: =Input!Q7 -> 0
C174: =Asset2 -> Looping 1 | G174: =Input!Q8 -> 0
C175: =Asset3 -> Looping 2 | G175: =Input!Q9 -> 0
C176: =Asset4 -> Looping 3 | G176: =Input!Q10 -> 0
C177: =Asset5 -> Looping 4 | G177: =Input!Q11 -> 0
C178: =Asset6 -> Looping 5 | G178: =Input!Q12 -> 0
C179: =Asset7 -> Looping 6 | G179: =Input!Q13 -> 0
C180: =Asset8 -> Lateral | G180: =Input!Q14 -> 0
C181: =Asset9 -> DalbyCompressor | G181: =Input!Q15 -> 0
C182: =Asset10 -> KoganCompressor | G182: =Input!Q16 -> 0
C183: =Asset11 -> OakeyCompressor | G183: =Input!Q17 -> 0
C184: =Asset12 -> CondamineCompressor | G184: =Input!Q18 -> 0
C185: =Asset13 -> YulebaCompressor | G185: =Input!Q19 -> 0
C186: =Asset14 -> GattonCompressor | G186: =Input!Q20 -> 0
C187: =Asset15 -> Easements | G187: =Input!Q21 -> 0
C188: =Asset16 -> Communications | G188: =Input!Q22 -> 0
C189: =Asset17 -> Other | G189: =Input!Q23 -> 0
C190: =Asset18 -> Capitalised AA costs | G190: =Input!Q24 -> 0
C191: =Asset19 -> Pipelines / Laterals | G191: =Input!Q25 -> 0
C192: =Asset20 -> Group IT | G192: =Input!Q26 -> 0
C193: =Asset21 -> SIB Capex | G193: =Input!Q27 -> 0
C194: =Asset22 -> PMA | G194: =Input!Q28 -> 0
C195: =Asset23 -> Regulators and meters | G195: =Input!Q29 -> 0
C196: =Asset24 -> Lytton lateral | G196: =Input!Q30 -> 0
C197: =Asset25 -> RBP Expansion 8 | G197: =Input!Q31 -> 0
C198: =Asset26 -> Asset26 | G198: =Input!Q32 -> 0
C199: =Asset27 -> Asset27 | G199: =Input!Q33 -> 0
C200: =Asset28 -> Asset28 | G200: =Input!Q34 -> 0
C201: =Asset29 -> Asset29 | G201: =Input!Q35 -> 0
C202: =Asset30 -> Asset30 | G202: =Input!Q36 -> 0
B204: Nominal Actual Assets Under Construction | G204: =SUM(G205:G234) -> 0
C205: =Asset1 -> OriginalPipeline | G205: =Input!R7 -> 0
C206: =Asset2 -> Looping 1 | G206: =Input!R8 -> 0
C207: =Asset3 -> Looping 2 | G207: =Input!R9 -> 0
C208: =Asset4 -> Looping 3 | G208: =Input!R10 -> 0
C209: =Asset5 -> Looping 4 | G209: =Input!R11 -> 0
C210: =Asset6 -> Looping 5 | G210: =Input!R12 -> 0
C211: =Asset7 -> Looping 6 | G211: =Input!R13 -> 0
... 303 more rows

Sheet Actual RAB roll forward
C2: ="Asset Base Roll Forward - RFM "&Intro!L4 -> Asset Base Roll Forward - RFM Version: 2.0
G3: 0 | H3: =G3+1 -> 1 | I3: 2 | J3: 3 | K3: 4 | L3: 5 | M3: 6 | N3: 7 | O3: 8 | P3: 9 | Q3: 10 | R3: 11
C4: Year | G4: =Input!G40 -> 2005-06 | H4: =Input!H40 -> 2006-07 | I4: =Input!I40 -> 2007-08 | J4: =Input!J40 -> 2008-09 | K4: =Input!K40 -> 2009-10 | L4: =Input!L40 -> 2010-11 | M4: =Input!M40 -> 2011-12 | N4: =Input!N40 -> 2012-13 | O4: =Input!O40 -> 2013-14 | P4: =Input!P40 -> 2014-15 | Q4: =Input!Q40 -> 2015-16 | R4: =CONCATENATE(LEFT(Q4, 4)+1 &"-" &IF(Q4>"2007-08",,"0") &RIGHT(Q4,2)+1) -> 2016-17
C6: Actual CPI Inflation Rate | G6: =Input!G245 -> 0.02983050847 | H6: =Input!H245 -> 0.02435813035 | I6: =Input!I245 -> 0.04241645244 | J6: =Input!J245 -> 0.02466091245 | K6: =Input!K245 -> 0.02888086643 | L6: =Input!L245 -> 0.03333333333 | M6: =Input!M245 -> 0.025 | N6: =Input!N245 -> 0 | O6: =Input!O245 -> 0 | P6: =Input!P245 -> 0 | Q6: =Input!Q245 -> 0
C7: Actual CPI (one year lagged) | G7: =Input!G246 -> 1 | H7: =Input!H246 -> 1.029830508 | I7: =Input!I246 -> 1.054915254 | J7: =Input!J246 -> 1.099661017 | K7: =Input!K246 -> 1.126779661 | L7: =Input!L246 -> 1.159322034 | M7: =Input!M246 -> 1.197966102 | N7: =Input!N246 -> 1.227915254 | O7: =Input!O246 -> 1.227915254 | P7: =Input!P246 -> 1.227915254 | Q7: =Input!Q246 -> 1.227915254
C9: ="Asset Values ($m Real "&G4&")" -> Asset Values ($m Real 2005-06)
C11: Real Actual Net Capex - As Incurred | H11: =SUM(H12:H41) -> 2.596163655 | I11: =SUM(I12:I41) -> 32.59252241 | J11: 2.892058167 | K11: 10.16213949 | L11: 9.05454188 | M11: 43.13815167 | N11: 0 | O11: 0 | P11: 0 | Q11: =SUM(Q12:Q41) -> 0
D12: =Asset1 -> OriginalPipeline | H12: =Input!H109*(1+vanilla1)^0.5 -> 0 | I12: =Input!I109*(1+vanilla2)^0.5 -> 0 | J12: =Input!J109*(1+vanilla3)^0.5 -> 0 | K12: =Input!K109*(1+vanilla4)^0.5 -> 0 | L12: =Input!L109*(1+vanilla5)^0.5 -> 0 | M12: =Input!M109*(1+vanilla6)^0.5 -> 0 | N12: =Input!N109*(1+vanilla7)^0.5 -> 0 | O12: =Input!O109*(1+vanilla8)^0.5 -> 0 | P12: =Input!P109*(1+vanilla9)^0.5 -> 0 | Q12: =Input!Q109*(1+vanilla10)^0.5 -> 0
D13: =Asset2 -> Looping 1 | H13: =Input!H110*(1+vanilla1)^0.5 -> 0 | I13: =Input!I110*(1+vanilla2)^0.5 -> 0 | J13: =Input!J110*(1+vanilla3)^0.5 -> 0 | K13: =Input!K110*(1+vanilla4)^0.5 -> 0 | L13: =Input!L110*(1+vanilla5)^0.5 -> 0 | M13: =Input!M110*(1+vanilla6)^0.5 -> 0 | N13: =Input!N110*(1+vanilla7)^0.5 -> 0 | O13: =Input!O110*(1+vanilla8)^0.5 -> 0 | P13: =Input!P110*(1+vanilla9)^0.5 -> 0 | Q13: =Input!Q110*(1+vanilla10)^0.5 -> 0
D14: =Asset3 -> Looping 2 | H14: =Input!H111*(1+vanilla1)^0.5 -> 0 | I14: =Input!I111*(1+vanilla2)^0.5 -> 0 | J14: =Input!J111*(1+vanilla3)^0.5 -> 0 | K14: =Input!K111*(1+vanilla4)^0.5 -> 0 | L14: =Input!L111*(1+vanilla5)^0.5 -> 0 | M14: =Input!M111*(1+vanilla6)^0.5 -> 0 | N14: =Input!N111*(1+vanilla7)^0.5 -> 0 | O14: =Input!O111*(1+vanilla8)^0.5 -> 0 | P14: =Input!P111*(1+vanilla9)^0.5 -> 0 | Q14: =Input!Q111*(1+vanilla10)^0.5 -> 0
D15: =Asset4 -> Looping 3 | H15: =Input!H112*(1+vanilla1)^0.5 -> 0 | I15: =Input!I112*(1+vanilla2)^0.5 -> 0 | J15: =Input!J112*(1+vanilla3)^0.5 -> 0 | K15: =Input!K112*(1+vanilla4)^0.5 -> 0 | L15: =Input!L112*(1+vanilla5)^0.5 -> 0 | M15: =Input!M112*(1+vanilla6)^0.5 -> 0 | N15: =Input!N112*(1+vanilla7)^0.5 -> 0 | O15: =Input!O112*(1+vanilla8)^0.5 -> 0 | P15: =Input!P112*(1+vanilla9)^0.5 -> 0 | Q15: =Input!Q112*(1+vanilla10)^0.5 -> 0
D16: =Asset5 -> Looping 4 | H16: =Input!H113*(1+vanilla1)^0.5 -> 0 | I16: =Input!I113*(1+vanilla2)^0.5 -> 0 | J16: =Input!J113*(1+vanilla3)^0.5 -> 0 | K16: =Input!K113*(1+vanilla4)^0.5 -> 0 | L16: =Input!L113*(1+vanilla5)^0.5 -> 0 | M16: =Input!M113*(1+vanilla6)^0.5 -> 0 | N16: =Input!N113*(1+vanilla7)^0.5 -> 0 | O16: =Input!O113*(1+vanilla8)^0.5 -> 0 | P16: =Input!P113*(1+vanilla9)^0.5 -> 0 | Q16: =Input!Q113*(1+vanilla10)^0.5 -> 0
D17: =Asset6 -> Looping 5 | H17: =Input!H114*(1+vanilla1)^0.5 -> 0 | I17: =Input!I114*(1+vanilla2)^0.5 -> 0 | J17: =Input!J114*(1+vanilla3)^0.5 -> 0 | K17: =Input!K114*(1+vanilla4)^0.5 -> 0 | L17: =Input!L114*(1+vanilla5)^0.5 -> 0 | M17: =Input!M114*(1+vanilla6)^0.5 -> 0 | N17: =Input!N114*(1+vanilla7)^0.5 -> 0 | O17: =Input!O114*(1+vanilla8)^0.5 -> 0 | P17: =Input!P114*(1+vanilla9)^0.5 -> 0 | Q17: =Input!Q114*(1+vanilla10)^0.5 -> 0
D18: =Asset7 -> Looping 6 | H18: =Input!H115*(1+vanilla1)^0.5 -> 0 | I18: =Input!I115*(1+vanilla2)^0.5 -> 0 | J18: =Input!J115*(1+vanilla3)^0.5 -> 0 | K18: =Input!K115*(1+vanilla4)^0.5 -> 0 | L18: =Input!L115*(1+vanilla5)^0.5 -> 0 | M18: =Input!M115*(1+vanilla6)^0.5 -> 0 | N18: =Input!N115*(1+vanilla7)^0.5 -> 0 | O18: =Input!O115*(1+vanilla8)^0.5 -> 0 | P18: =Input!P115*(1+vanilla9)^0.5 -> 0 | Q18: =Input!Q115*(1+vanilla10)^0.5 -> 0
D19: =Asset8 -> Lateral | H19: =Input!H116*(1+vanilla1)^0.5 -> 0 | I19: =Input!I116*(1+vanilla2)^0.5 -> 0 | J19: =Input!J116*(1+vanilla3)^0.5 -> 0 | K19: =Input!K116*(1+vanilla4)^0.5 -> 0 | L19: =Input!L116*(1+vanilla5)^0.5 -> 0 | M19: =Input!M116*(1+vanilla6)^0.5 -> 0 | N19: =Input!N116*(1+vanilla7)^0.5 -> 0 | O19: =Input!O116*(1+vanilla8)^0.5 -> 0 | P19: =Input!P116*(1+vanilla9)^0.5 -> 0 | Q19: =Input!Q116*(1+vanilla10)^0.5 -> 0
D20: =Asset9 -> DalbyCompressor | H20: =Input!H117*(1+vanilla1)^0.5 -> 0 | I20: =Input!I117*(1+vanilla2)^0.5 -> 0 | J20: =Input!J117*(1+vanilla3)^0.5 -> 0 | K20: =Input!K117*(1+vanilla4)^0.5 -> 0 | L20: =Input!L117*(1+vanilla5)^0.5 -> 0 | M20: =Input!M117*(1+vanilla6)^0.5 -> 0 | N20: =Input!N117*(1+vanilla7)^0.5 -> 0 | O20: =Input!O117*(1+vanilla8)^0.5 -> 0 | P20: =Input!P117*(1+vanilla9)^0.5 -> 0 | Q20: =Input!Q117*(1+vanilla10)^0.5 -> 0
D21: =Asset10 -> KoganCompressor | H21: =Input!H118*(1+vanilla1)^0.5 -> 0 | I21: =Input!I118*(1+vanilla2)^0.5 -> 0 | J21: =Input!J118*(1+vanilla3)^0.5 -> 0 | K21: =Input!K118*(1+vanilla4)^0.5 -> 0 | L21: =Input!L118*(1+vanilla5)^0.5 -> 0 | M21: =Input!M118*(1+vanilla6)^0.5 -> 0 | N21: =Input!N118*(1+vanilla7)^0.5 -> 0 | O21: =Input!O118*(1+vanilla8)^0.5 -> 0 | P21: =Input!P118*(1+vanilla9)^0.5 -> 0 | Q21: =Input!Q118*(1+vanilla10)^0.5 -> 0
D22: =Asset11 -> OakeyCompressor | H22: =Input!H119*(1+vanilla1)^0.5 -> 0 | I22: =Input!I119*(1+vanilla2)^0.5 -> 0 | J22: =Input!J119*(1+vanilla3)^0.5 -> 0 | K22: =Input!K119*(1+vanilla4)^0.5 -> 0 | L22: =Input!L119*(1+vanilla5)^0.5 -> 0 | M22: =Input!M119*(1+vanilla6)^0.5 -> 0 | N22: =Input!N119*(1+vanilla7)^0.5 -> 0 | O22: =Input!O119*(1+vanilla8)^0.5 -> 0 | P22: =Input!P119*(1+vanilla9)^0.5 -> 0 | Q22: =Input!Q119*(1+vanilla10)^0.5 -> 0
D23: =Asset12 -> CondamineCompressor | H23: =Input!H120*(1+vanilla1)^0.5 -> 0 | I23: =Input!I120*(1+vanilla2)^0.5 -> 0 | J23: =Input!J120*(1+vanilla3)^0.5 -> 0 | K23: =Input!K120*(1+vanilla4)^0.5 -> 0 | L23: =Input!L120*(1+vanilla5)^0.5 -> 0 | M23: =Input!M120*(1+vanilla6)^0.5 -> 0 | N23: =Input!N120*(1+vanilla7)^0.5 -> 0 | O23: =Input!O120*(1+vanilla8)^0.5 -> 0 | P23: =Input!P120*(1+vanilla9)^0.5 -> 0 | Q23: =Input!Q120*(1+vanilla10)^0.5 -> 0
D24: =Asset13 -> YulebaCompressor | H24: =Input!H121*(1+vanilla1)^0.5 -> 0 | I24: =Input!I121*(1+vanilla2)^0.5 -> 0 | J24: =Input!J121*(1+vanilla3)^0.5 -> 0 | K24: =Input!K121*(1+vanilla4)^0.5 -> 0 | L24: =Input!L121*(1+vanilla5)^0.5 -> 0 | M24: =Input!M121*(1+vanilla6)^0.5 -> 0 | N24: =Input!N121*(1+vanilla7)^0.5 -> 0 | O24: =Input!O121*(1+vanilla8)^0.5 -> 0 | P24: =Input!P121*(1+vanilla9)^0.5 -> 0 | Q24: =Input!Q121*(1+vanilla10)^0.5 -> 0
D25: =Asset14 -> GattonCompressor | H25: =Input!H122*(1+vanilla1)^0.5 -> 0 | I25: =Input!I122*(1+vanilla2)^0.5 -> 0 | J25: =Input!J122*(1+vanilla3)^0.5 -> 0 | K25: =Input!K122*(1+vanilla4)^0.5 -> 0 | L25: =Input!L122*(1+vanilla5)^0.5 -> 0 | M25: =Input!M122*(1+vanilla6)^0.5 -> 0 | N25: =Input!N122*(1+vanilla7)^0.5 -> 0 | O25: =Input!O122*(1+vanilla8)^0.5 -> 0 | P25: =Input!P122*(1+vanilla9)^0.5 -> 0 | Q25: =Input!Q122*(1+vanilla10)^0.5 -> 0
D26: =Asset15 -> Easements | H26: =Input!H123*(1+vanilla1)^0.5 -> 0 | I26: =Input!I123*(1+vanilla2)^0.5 -> 0 | J26: =Input!J123*(1+vanilla3)^0.5 -> 0 | K26: =Input!K123*(1+vanilla4)^0.5 -> 0 | L26: =Input!L123*(1+vanilla5)^0.5 -> 0 | M26: =Input!M123*(1+vanilla6)^0.5 -> 0 | N26: =Input!N123*(1+vanilla7)^0.5 -> 0 | O26: =Input!O123*(1+vanilla8)^0.5 -> 0 | P26: =Input!P123*(1+vanilla9)^0.5 -> 0 | Q26: =Input!Q123*(1+vanilla10)^0.5 -> 0
D27: =Asset16 -> Communications | H27: =Input!H124*(1+vanilla1)^0.5 -> 0 | I27: =Input!I124*(1+vanilla2)^0.5 -> 0 | J27: =Input!J124*(1+vanilla3)^0.5 -> 0 | K27: =Input!K124*(1+vanilla4)^0.5 -> 0 | L27: =Input!L124*(1+vanilla5)^0.5 -> 0 | M27: =Input!M124*(1+vanilla6)^0.5 -> 0 | N27: =Input!N124*(1+vanilla7)^0.5 -> 0 | O27: =Input!O124*(1+vanilla8)^0.5 -> 0 | P27: =Input!P124*(1+vanilla9)^0.5 -> 0 | Q27: =Input!Q124*(1+vanilla10)^0.5 -> 0
D28: =Asset17 -> Other | H28: =Input!H125*(1+vanilla1)^0.5 -> 0 | I28: =Input!I125*(1+vanilla2)^0.5 -> 0 | J28: =Input!J125*(1+vanilla3)^0.5 -> 0 | K28: =Input!K125*(1+vanilla4)^0.5 -> 0 | L28: =Input!L125*(1+vanilla5)^0.5 -> 0 | M28: =Input!M125*(1+vanilla6)^0.5 -> 0 | N28: =Input!N125*(1+vanilla7)^0.5 -> 0 | O28: =Input!O125*(1+vanilla8)^0.5 -> 0 | P28: =Input!P125*(1+vanilla9)^0.5 -> 0 | Q28: =Input!Q125*(1+vanilla10)^0.5 -> 0
D29: =Asset18 -> Capitalised AA costs | H29: =Input!H126*(1+vanilla1)^0.5 -> 0.5169092934 | I29: =Input!I126*(1+vanilla2)^0.5 -> 0 | J29: =Input!J126*(1+vanilla3)^0.5 -> 0 | K29: =Input!K126*(1+vanilla4)^0.5 -> 0.001271096743 | L29: =Input!L126*(1+vanilla5)^0.5 -> 0.05139776665 | M29: =Input!M126*(1+vanilla6)^0.5 -> 0.5173952178 | N29: =Input!N126*(1+vanilla7)^0.5 -> 0 | O29: =Input!O126*(1+vanilla8)^0.5 -> 0 | P29: =Input!P126*(1+vanilla9)^0.5 -> 0 | Q29: =Input!Q126*(1+vanilla10)^0.5 -> 0
D30: =Asset19 -> Pipelines / Laterals | H30: =Input!H127*(1+vanilla1)^0.5 -> 0.06860286365 | I30: =Input!I127*(1+vanilla2)^0.5 -> 0 | J30: =Input!J127*(1+vanilla3)^0.5 -> 0 | K30: =Input!K127*(1+vanilla4)^0.5 -> 0 | L30: =Input!L127*(1+vanilla5)^0.5 -> 0.2307629345 | M30: =Input!M127*(1+vanilla6)^0.5 -> 0 | N30: =Input!N127*(1+vanilla7)^0.5 -> 0 | O30: =Input!O127*(1+vanilla8)^0.5 -> 0 | P30: =Input!P127*(1+vanilla9)^0.5 -> 0 | Q30: =Input!Q127*(1+vanilla10)^0.5 -> 0
D31: =Asset20 -> Group IT | H31: =Input!H128*(1+vanilla1)^0.5 -> 0 | I31: =Input!I128*(1+vanilla2)^0.5 -> 0 | J31: =Input!J128*(1+vanilla3)^0.5 -> 0.1318638479 | K31: =Input!K128*(1+vanilla4)^0.5 -> 0.2591178874 | L31: =Input!L128*(1+vanilla5)^0.5 -> 0.8241560261 | M31: =Input!M128*(1+vanilla6)^0.5 -> 0.831584463 | N31: =Input!N128*(1+vanilla7)^0.5 -> 0 | O31: =Input!O128*(1+vanilla8)^0.5 -> 0 | P31: =Input!P128*(1+vanilla9)^0.5 -> 0 | Q31: =Input!Q128*(1+vanilla10)^0.5 -> 0
D32: =Asset21 -> SIB Capex | H32: =Input!H129*(1+vanilla1)^0.5 -> 1.268048914 | I32: =Input!I129*(1+vanilla2)^0.5 -> 2.430721609 | J32: =Input!J129*(1+vanilla3)^0.5 -> 2.10225983 | K32: =Input!K129*(1+vanilla4)^0.5 -> 3.558203105 | L32: =Input!L129*(1+vanilla5)^0.5 -> 1.219665139 | M32: =Input!M129*(1+vanilla6)^0.5 -> 1.9080991 | N32: =Input!N129*(1+vanilla7)^0.5 -> 0 | O32: =Input!O129*(1+vanilla8)^0.5 -> 0 | P32: =Input!P129*(1+vanilla9)^0.5 -> 0 | Q32: =Input!Q129*(1+vanilla10)^0.5 -> 0
D33: =Asset22 -> PMA | H33: =Input!H130*(1+vanilla1)^0.5 -> 0 | I33: =Input!I130*(1+vanilla2)^0.5 -> 29.88439483 | J33: =Input!J130*(1+vanilla3)^0.5 -> 0 | K33: =Input!K130*(1+vanilla4)^0.5 -> 0 | L33: =Input!L130*(1+vanilla5)^0.5 -> 0 | M33: =Input!M130*(1+vanilla6)^0.5 -> 0 | N33: =Input!N130*(1+vanilla7)^0.5 -> 0 | O33: =Input!O130*(1+vanilla8)^0.5 -> 0 | P33: =Input!P130*(1+vanilla9)^0.5 -> 0 | Q33: =Input!Q130*(1+vanilla10)^0.5 -> 0
D34: =Asset23 -> Regulators and meters | H34: =Input!H131*(1+vanilla1)^0.5 -> 0.7426025838 | I34: =Input!I131*(1+vanilla2)^0.5 -> 0.1312941182 | J34: =Input!J131*(1+vanilla3)^0.5 -> 0.3346465468 | K34: =Input!K131*(1+vanilla4)^0.5 -> 0.002876043579 | L34: =Input!L131*(1+vanilla5)^0.5 -> 0 | M34: =Input!M131*(1+vanilla6)^0.5 -> 0 | N34: =Input!N131*(1+vanilla7)^0.5 -> 0 | O34: =Input!O131*(1+vanilla8)^0.5 -> 0 | P34: =Input!P131*(1+vanilla9)^0.5 -> 0 | Q34: =Input!Q131*(1+vanilla10)^0.5 -> 0
D35: =Asset24 -> Lytton lateral | H35: =Input!H132*(1+vanilla1)^0.5 -> 0 | I35: =Input!I132*(1+vanilla2)^0.5 -> 0 | J35: =Input!J132*(1+vanilla3)^0.5 -> 0 | K35: =Input!K132*(1+vanilla4)^0.5 -> 5.879719914 | L35: =Input!L132*(1+vanilla5)^0.5 -> 2.424669759 | M35: =Input!M132*(1+vanilla6)^0.5 -> 0 | N35: =Input!N132*(1+vanilla7)^0.5 -> 0 | O35: =Input!O132*(1+vanilla8)^0.5 -> 0 | P35: =Input!P132*(1+vanilla9)^0.5 -> 0 | Q35: =Input!Q132*(1+vanilla10)^0.5 -> 0
D36: =Asset25 -> RBP Expansion 8 | H36: =Input!H133*(1+vanilla1)^0.5 -> 0 | I36: =Input!I133*(1+vanilla2)^0.5 -> 0.1461118556 | J36: =Input!J133*(1+vanilla3)^0.5 -> 0.3232879422 | K36: =Input!K133*(1+vanilla4)^0.5 -> 0.4609514473 | L36: =Input!L133*(1+vanilla5)^0.5 -> 4.303890255 | M36: =Input!M133*(1+vanilla6)^0.5 -> 39.88107289 | N36: =Input!N133*(1+vanilla7)^0.5 -> 0 | O36: =Input!O133*(1+vanilla8)^0.5 -> 0 | P36: =Input!P133*(1+vanilla9)^0.5 -> 0 | Q36: =Input!Q133*(1+vanilla10)^0.5 -> 0
D37: =Asset26 -> Asset26 | H37: =Input!H134*(1+vanilla1)^0.5 -> 0 | I37: =Input!I134*(1+vanilla2)^0.5 -> 0 | J37: =Input!J134*(1+vanilla3)^0.5 -> 0 | K37: =Input!K134*(1+vanilla4)^0.5 -> 0 | L37: =Input!L134*(1+vanilla5)^0.5 -> 0 | M37: =Input!M134*(1+vanilla6)^0.5 -> 0 | N37: =Input!N134*(1+vanilla7)^0.5 -> 0 | O37: =Input!O134*(1+vanilla8)^0.5 -> 0 | P37: =Input!P134*(1+vanilla9)^0.5 -> 0 | Q37: =Input!Q134*(1+vanilla10)^0.5 -> 0
D38: =Asset27 -> Asset27 | H38: =Input!H135*(1+vanilla1)^0.5 -> 0 | I38: =Input!I135*(1+vanilla2)^0.5 -> 0 | J38: =Input!J135*(1+vanilla3)^0.5 -> 0 | K38: =Input!K135*(1+vanilla4)^0.5 -> 0 | L38: =Input!L135*(1+vanilla5)^0.5 -> 0 | M38: =Input!M135*(1+vanilla6)^0.5 -> 0 | N38: =Input!N135*(1+vanilla7)^0.5 -> 0 | O38: =Input!O135*(1+vanilla8)^0.5 -> 0 | P38: =Input!P135*(1+vanilla9)^0.5 -> 0 | Q38: =Input!Q135*(1+vanilla10)^0.5 -> 0
D39: =Asset28 -> Asset28 | H39: =Input!H136*(1+vanilla1)^0.5 -> 0 | I39: =Input!I136*(1+vanilla2)^0.5 -> 0 | J39: =Input!J136*(1+vanilla3)^0.5 -> 0 | K39: =Input!K136*(1+vanilla4)^0.5 -> 0 | L39: =Input!L136*(1+vanilla5)^0.5 -> 0 | M39: =Input!M136*(1+vanilla6)^0.5 -> 0 | N39: =Input!N136*(1+vanilla7)^0.5 -> 0 | O39: =Input!O136*(1+vanilla8)^0.5 -> 0 | P39: =Input!P136*(1+vanilla9)^0.5 -> 0 | Q39: =Input!Q136*(1+vanilla10)^0.5 -> 0
D40: =Asset29 -> Asset29 | H40: =Input!H137*(1+vanilla1)^0.5 -> 0 | I40: =Input!I137*(1+vanilla2)^0.5 -> 0 | J40: =Input!J137*(1+vanilla3)^0.5 -> 0 | K40: =Input!K137*(1+vanilla4)^0.5 -> 0 | L40: =Input!L137*(1+vanilla5)^0.5 -> 0 | M40: =Input!M137*(1+vanilla6)^0.5 -> 0 | N40: =Input!N137*(1+vanilla7)^0.5 -> 0 | O40: =Input!O137*(1+vanilla8)^0.5 -> 0 | P40: =Input!P137*(1+vanilla9)^0.5 -> 0 | Q40: =Input!Q137*(1+vanilla10)^0.5 -> 0
D41: =Asset30 -> Asset30 | H41: =Input!H138*(1+vanilla1)^0.5 -> 0 | I41: =Input!I138*(1+vanilla2)^0.5 -> 0 | J41: =Input!J138*(1+vanilla3)^0.5 -> 0 | K41: =Input!K138*(1+vanilla4)^0.5 -> 0 | L41: =Input!L138*(1+vanilla5)^0.5 -> 0 | M41: =Input!M138*(1+vanilla6)^0.5 -> 0 | N41: =Input!N138*(1+vanilla7)^0.5 -> 0 | O41: =Input!O138*(1+vanilla8)^0.5 -> 0 | P41: =Input!P138*(1+vanilla9)^0.5 -> 0 | Q41: =Input!Q138*(1+vanilla10)^0.5 -> 0
C43: Real Actual Net Capex - As Commissioned | H43: =SUM(H44:H73) -> 2.596163655 | I43: =SUM(I44:I73) -> 32.44641056 | J43: 2.568770224 | K43: 3.821468133 | L43: 10.6685794 | M43: 48.31434356 | N43: 0 | O43: 0 | P43: 0 | Q43: =SUM(Q44:Q73) -> 0
D44: =Asset1 -> OriginalPipeline | H44: =Input!H211*(1+vanilla1)^0.5 -> 0 | I44: =Input!I211*(1+vanilla2)^0.5 -> 0 | J44: =Input!J211*(1+vanilla3)^0.5 -> 0 | K44: =Input!K211*(1+vanilla4)^0.5 -> 0 | L44: =Input!L211*(1+vanilla5)^0.5 -> 0 | M44: =Input!M211*(1+vanilla6)^0.5 -> 0 | N44: =Input!N211*(1+vanilla7)^0.5 -> 0 | O44: =Input!O211*(1+vanilla8)^0.5 -> 0 | P44: =Input!P211*(1+vanilla9)^0.5 -> 0 | Q44: =Input!Q211*(1+vanilla10)^0.5 -> 0
D45: =Asset2 -> Looping 1 | H45: =Input!H212*(1+vanilla1)^0.5 -> 0 | I45: =Input!I212*(1+vanilla2)^0.5 -> 0 | J45: =Input!J212*(1+vanilla3)^0.5 -> 0 | K45: =Input!K212*(1+vanilla4)^0.5 -> 0 | L45: =Input!L212*(1+vanilla5)^0.5 -> 0 | M45: =Input!M212*(1+vanilla6)^0.5 -> 0 | N45: =Input!N212*(1+vanilla7)^0.5 -> 0 | O45: =Input!O212*(1+vanilla8)^0.5 -> 0 | P45: =Input!P212*(1+vanilla9)^0.5 -> 0 | Q45: =Input!Q212*(1+vanilla10)^0.5 -> 0
D46: =Asset3 -> Looping 2 | H46: =Input!H213*(1+vanilla1)^0.5 -> 0 | I46: =Input!I213*(1+vanilla2)^0.5 -> 0 | J46: =Input!J213*(1+vanilla3)^0.5 -> 0 | K46: =Input!K213*(1+vanilla4)^0.5 -> 0 | L46: =Input!L213*(1+vanilla5)^0.5 -> 0 | M46: =Input!M213*(1+vanilla6)^0.5 -> 0 | N46: =Input!N213*(1+vanilla7)^0.5 -> 0 | O46: =Input!O213*(1+vanilla8)^0.5 -> 0 | P46: =Input!P213*(1+vanilla9)^0.5 -> 0 | Q46: =Input!Q213*(1+vanilla10)^0.5 -> 0
D47: =Asset4 -> Looping 3 | H47: =Input!H214*(1+vanilla1)^0.5 -> 0 | I47: =Input!I214*(1+vanilla2)^0.5 -> 0 | J47: =Input!J214*(1+vanilla3)^0.5 -> 0 | K47: =Input!K214*(1+vanilla4)^0.5 -> 0 | L47: =Input!L214*(1+vanilla5)^0.5 -> 0 | M47: =Input!M214*(1+vanilla6)^0.5 -> 0 | N47: =Input!N214*(1+vanilla7)^0.5 -> 0 | O47: =Input!O214*(1+vanilla8)^0.5 -> 0 | P47: =Input!P214*(1+vanilla9)^0.5 -> 0 | Q47: =Input!Q214*(1+vanilla10)^0.5 -> 0
D48: =Asset5 -> Looping 4 | H48: =Input!H215*(1+vanilla1)^0.5 -> 0 | I48: =Input!I215*(1+vanilla2)^0.5 -> 0 | J48: =Input!J215*(1+vanilla3)^0.5 -> 0 | K48: =Input!K215*(1+vanilla4)^0.5 -> 0 | L48: =Input!L215*(1+vanilla5)^0.5 -> 0 | M48: =Input!M215*(1+vanilla6)^0.5 -> 0 | N48: =Input!N215*(1+vanilla7)^0.5 -> 0 | O48: =Input!O215*(1+vanilla8)^0.5 -> 0 | P48: =Input!P215*(1+vanilla9)^0.5 -> 0 | Q48: =Input!Q215*(1+vanilla10)^0.5 -> 0
D49: =Asset6 -> Looping 5 | H49: =Input!H216*(1+vanilla1)^0.5 -> 0 | I49: =Input!I216*(1+vanilla2)^0.5 -> 0 | J49: =Input!J216*(1+vanilla3)^0.5 -> 0 | K49: =Input!K216*(1+vanilla4)^0.5 -> 0 | L49: =Input!L216*(1+vanilla5)^0.5 -> 0 | M49: =Input!M216*(1+vanilla6)^0.5 -> 0 | N49: =Input!N216*(1+vanilla7)^0.5 -> 0 | O49: =Input!O216*(1+vanilla8)^0.5 -> 0 | P49: =Input!P216*(1+vanilla9)^0.5 -> 0 | Q49: =Input!Q216*(1+vanilla10)^0.5 -> 0
D50: =Asset7 -> Looping 6 | H50: =Input!H217*(1+vanilla1)^0.5 -> 0 | I50: =Input!I217*(1+vanilla2)^0.5 -> 0 | J50: =Input!J217*(1+vanilla3)^0.5 -> 0 | K50: =Input!K217*(1+vanilla4)^0.5 -> 0 | L50: =Input!L217*(1+vanilla5)^0.5 -> 0 | M50: =Input!M217*(1+vanilla6)^0.5 -> 0 | N50: =Input!N217*(1+vanilla7)^0.5 -> 0 | O50: =Input!O217*(1+vanilla8)^0.5 -> 0 | P50: =Input!P217*(1+vanilla9)^0.5 -> 0 | Q50: =Input!Q217*(1+vanilla10)^0.5 -> 0
D51: =Asset8 -> Lateral | H51: =Input!H218*(1+vanilla1)^0.5 -> 0 | I51: =Input!I218*(1+vanilla2)^0.5 -> 0 | J51: =Input!J218*(1+vanilla3)^0.5 -> 0 | K51: =Input!K218*(1+vanilla4)^0.5 -> 0 | L51: =Input!L218*(1+vanilla5)^0.5 -> 0 | M51: =Input!M218*(1+vanilla6)^0.5 -> 0 | N51: =Input!N218*(1+vanilla7)^0.5 -> 0 | O51: =Input!O218*(1+vanilla8)^0.5 -> 0 | P51: =Input!P218*(1+vanilla9)^0.5 -> 0 | Q51: =Input!Q218*(1+vanilla10)^0.5 -> 0
D52: =Asset9 -> DalbyCompressor | H52: =Input!H219*(1+vanilla1)^0.5 -> 0 | I52: =Input!I219*(1+vanilla2)^0.5 -> 0 | J52: =Input!J219*(1+vanilla3)^0.5 -> 0 | K52: =Input!K219*(1+vanilla4)^0.5 -> 0 | L52: =Input!L219*(1+vanilla5)^0.5 -> 0 | M52: =Input!M219*(1+vanilla6)^0.5 -> 0 | N52: =Input!N219*(1+vanilla7)^0.5 -> 0 | O52: =Input!O219*(1+vanilla8)^0.5 -> 0 | P52: =Input!P219*(1+vanilla9)^0.5 -> 0 | Q52: =Input!Q219*(1+vanilla10)^0.5 -> 0
D53: =Asset10 -> KoganCompressor | H53: =Input!H220*(1+vanilla1)^0.5 -> 0 | I53: =Input!I220*(1+vanilla2)^0.5 -> 0 | J53: =Input!J220*(1+vanilla3)^0.5 -> 0 | K53: =Input!K220*(1+vanilla4)^0.5 -> 0 | L53: =Input!L220*(1+vanilla5)^0.5 -> 0 | M53: =Input!M220*(1+vanilla6)^0.5 -> 0 | N53: =Input!N220*(1+vanilla7)^0.5 -> 0 | O53: =Input!O220*(1+vanilla8)^0.5 -> 0 | P53: =Input!P220*(1+vanilla9)^0.5 -> 0 | Q53: =Input!Q220*(1+vanilla10)^0.5 -> 0
D54: =Asset11 -> OakeyCompressor | H54: =Input!H221*(1+vanilla1)^0.5 -> 0 | I54: =Input!I221*(1+vanilla2)^0.5 -> 0 | J54: =Input!J221*(1+vanilla3)^0.5 -> 0 | K54: =Input!K221*(1+vanilla4)^0.5 -> 0 | L54: =Input!L221*(1+vanilla5)^0.5 -> 0 | M54: =Input!M221*(1+vanilla6)^0.5 -> 0 | N54: =Input!N221*(1+vanilla7)^0.5 -> 0 | O54: =Input!O221*(1+vanilla8)^0.5 -> 0 | P54: =Input!P221*(1+vanilla9)^0.5 -> 0 | Q54: =Input!Q221*(1+vanilla10)^0.5 -> 0
D55: =Asset12 -> CondamineCompressor | H55: =Input!H222*(1+vanilla1)^0.5 -> 0 | I55: =Input!I222*(1+vanilla2)^0.5 -> 0 | J55: =Input!J222*(1+vanilla3)^0.5 -> 0 | K55: =Input!K222*(1+vanilla4)^0.5 -> 0 | L55: =Input!L222*(1+vanilla5)^0.5 -> 0 | M55: =Input!M222*(1+vanilla6)^0.5 -> 0 | N55: =Input!N222*(1+vanilla7)^0.5 -> 0 | O55: =Input!O222*(1+vanilla8)^0.5 -> 0 | P55: =Input!P222*(1+vanilla9)^0.5 -> 0 | Q55: =Input!Q222*(1+vanilla10)^0.5 -> 0
D56: =Asset13 -> YulebaCompressor | H56: =Input!H223*(1+vanilla1)^0.5 -> 0 | I56: =Input!I223*(1+vanilla2)^0.5 -> 0 | J56: =Input!J223*(1+vanilla3)^0.5 -> 0 | K56: =Input!K223*(1+vanilla4)^0.5 -> 0 | L56: =Input!L223*(1+vanilla5)^0.5 -> 0 | M56: =Input!M223*(1+vanilla6)^0.5 -> 0 | N56: =Input!N223*(1+vanilla7)^0.5 -> 0 | O56: =Input!O223*(1+vanilla8)^0.5 -> 0 | P56: =Input!P223*(1+vanilla9)^0.5 -> 0 | Q56: =Input!Q223*(1+vanilla10)^0.5 -> 0
D57: =Asset14 -> GattonCompressor | H57: =Input!H224*(1+vanilla1)^0.5 -> 0 | I57: =Input!I224*(1+vanilla2)^0.5 -> 0 | J57: =Input!J224*(1+vanilla3)^0.5 -> 0 | K57: =Input!K224*(1+vanilla4)^0.5 -> 0 | L57: =Input!L224*(1+vanilla5)^0.5 -> 0 | M57: =Input!M224*(1+vanilla6)^0.5 -> 0 | N57: =Input!N224*(1+vanilla7)^0.5 -> 0 | O57: =Input!O224*(1+vanilla8)^0.5 -> 0 | P57: =Input!P224*(1+vanilla9)^0.5 -> 0 | Q57: =Input!Q224*(1+vanilla10)^0.5 -> 0
D58: =Asset15 -> Easements | H58: =Input!H225*(1+vanilla1)^0.5 -> 0 | I58: =Input!I225*(1+vanilla2)^0.5 -> 0 | J58: =Input!J225*(1+vanilla3)^0.5 -> 0 | K58: =Input!K225*(1+vanilla4)^0.5 -> 0 | L58: =Input!L225*(1+vanilla5)^0.5 -> 0 | M58: =Input!M225*(1+vanilla6)^0.5 -> 0 | N58: =Input!N225*(1+vanilla7)^0.5 -> 0 | O58: =Input!O225*(1+vanilla8)^0.5 -> 0 | P58: =Input!P225*(1+vanilla9)^0.5 -> 0 | Q58: =Input!Q225*(1+vanilla10)^0.5 -> 0
D59: =Asset16 -> Communications | H59: =Input!H226*(1+vanilla1)^0.5 -> 0 | I59: =Input!I226*(1+vanilla2)^0.5 -> 0 | J59: =Input!J226*(1+vanilla3)^0.5 -> 0 | K59: =Input!K226*(1+vanilla4)^0.5 -> 0 | L59: =Input!L226*(1+vanilla5)^0.5 -> 0 | M59: =Input!M226*(1+vanilla6)^0.5 -> 0 | N59: =Input!N226*(1+vanilla7)^0.5 -> 0 | O59: =Input!O226*(1+vanilla8)^0.5 -> 0 | P59: =Input!P226*(1+vanilla9)^0.5 -> 0 | Q59: =Input!Q226*(1+vanilla10)^0.5 -> 0
D60: =Asset17 -> Other | H60: =Input!H227*(1+vanilla1)^0.5 -> 0 | I60: =Input!I227*(1+vanilla2)^0.5 -> 0 | J60: =Input!J227*(1+vanilla3)^0.5 -> 0 | K60: =Input!K227*(1+vanilla4)^0.5 -> 0 | L60: =Input!L227*(1+vanilla5)^0.5 -> 0 | M60: =Input!M227*(1+vanilla6)^0.5 -> 0 | N60: =Input!N227*(1+vanilla7)^0.5 -> 0 | O60: =Input!O227*(1+vanilla8)^0.5 -> 0 | P60: =Input!P227*(1+vanilla9)^0.5 -> 0 | Q60: =Input!Q227*(1+vanilla10)^0.5 -> 0
D61: =Asset18 -> Capitalised AA costs | H61: =Input!H228*(1+vanilla1)^0.5 -> 0.5169092934 | I61: =Input!I228*(1+vanilla2)^0.5 -> 0 | J61: =Input!J228*(1+vanilla3)^0.5 -> 0 | K61: =Input!K228*(1+vanilla4)^0.5 -> 0.001271096743 | L61: =Input!L228*(1+vanilla5)^0.5 -> 0.05139776665 | M61: =Input!M228*(1+vanilla6)^0.5 -> 0.5173952178 | N61: =Input!N228*(1+vanilla7)^0.5 -> 0 | O61: =Input!O228*(1+vanilla8)^0.5 -> 0 | P61: =Input!P228*(1+vanilla9)^0.5 -> 0 | Q61: =Input!Q228*(1+vanilla10)^0.5 -> 0
D62: =Asset19 -> Pipelines / Laterals | H62: =Input!H229*(1+vanilla1)^0.5 -> 0.06860286365 | I62: =Input!I229*(1+vanilla2)^0.5 -> 0 | J62: =Input!J229*(1+vanilla3)^0.5 -> 0 | K62: =Input!K229*(1+vanilla4)^0.5 -> 0 | L62: =Input!L229*(1+vanilla5)^0.5 -> 0.2307629345 | M62: =Input!M229*(1+vanilla6)^0.5 -> 0 | N62: =Input!N229*(1+vanilla7)^0.5 -> 0 | O62: =Input!O229*(1+vanilla8)^0.5 -> 0 | P62: =Input!P229*(1+vanilla9)^0.5 -> 0 | Q62: =Input!Q229*(1+vanilla10)^0.5 -> 0
D63: =Asset20 -> Group IT | H63: =Input!H230*(1+vanilla1)^0.5 -> 0 | I63: =Input!I230*(1+vanilla2)^0.5 -> 0 | J63: =Input!J230*(1+vanilla3)^0.5 -> 0.1318638479 | K63: =Input!K230*(1+vanilla4)^0.5 -> 0.2591178874 | L63: =Input!L230*(1+vanilla5)^0.5 -> 0.8241560261 | M63: =Input!M230*(1+vanilla6)^0.5 -> 0.831584463 | N63: =Input!N230*(1+vanilla7)^0.5 -> 0 | O63: =Input!O230*(1+vanilla8)^0.5 -> 0 | P63: =Input!P230*(1+vanilla9)^0.5 -> 0 | Q63: =Input!Q230*(1+vanilla10)^0.5 -> 0
D64: =Asset21 -> SIB Capex | H64: =Input!H231*(1+vanilla1)^0.5 -> 1.268048914 | I64: =Input!I231*(1+vanilla2)^0.5 -> 2.430721609 | J64: =Input!J231*(1+vanilla3)^0.5 -> 2.10225983 | K64: =Input!K231*(1+vanilla4)^0.5 -> 3.558203105 | L64: =Input!L231*(1+vanilla5)^0.5 -> 1.219665139 | M64: =Input!M231*(1+vanilla6)^0.5 -> 1.9080991 | N64: =Input!N231*(1+vanilla7)^0.5 -> 0 | O64: =Input!O231*(1+vanilla8)^0.5 -> 0 | P64: =Input!P231*(1+vanilla9)^0.5 -> 0 | Q64: =Input!Q231*(1+vanilla10)^0.5 -> 0
D65: =Asset22 -> PMA | H65: =Input!H232*(1+vanilla1)^0.5 -> 0 | I65: =Input!I232*(1+vanilla2)^0.5 -> 29.88439483 | J65: =Input!J232*(1+vanilla3)^0.5 -> 0 | K65: =Input!K232*(1+vanilla4)^0.5 -> 0 | L65: =Input!L232*(1+vanilla5)^0.5 -> 0 | M65: =Input!M232*(1+vanilla6)^0.5 -> 0 | N65: =Input!N232*(1+vanilla7)^0.5 -> 0 | O65: =Input!O232*(1+vanilla8)^0.5 -> 0 | P65: =Input!P232*(1+vanilla9)^0.5 -> 0 | Q65: =Input!Q232*(1+vanilla10)^0.5 -> 0
D66: =Asset23 -> Regulators and meters | H66: =Input!H233*(1+vanilla1)^0.5 -> 0.7426025838 | I66: =Input!I233*(1+vanilla2)^0.5 -> 0.1312941182 | J66: =Input!J233*(1+vanilla3)^0.5 -> 0.3346465468 | K66: =Input!K233*(1+vanilla4)^0.5 -> 0.002876043579 | L66: =Input!L233*(1+vanilla5)^0.5 -> 0 | M66: =Input!M233*(1+vanilla6)^0.5 -> 0 | N66: =Input!N233*(1+vanilla7)^0.5 -> 0 | O66: =Input!O233*(1+vanilla8)^0.5 -> 0 | P66: =Input!P233*(1+vanilla9)^0.5 -> 0 | Q66: =Input!Q233*(1+vanilla10)^0.5 -> 0
D67: =Asset24 -> Lytton lateral | H67: =Input!H234*(1+vanilla1)^0.5 -> 0 | I67: =Input!I234*(1+vanilla2)^0.5 -> 0 | J67: =Input!J234*(1+vanilla3)^0.5 -> 0 | K67: =Input!K234*(1+vanilla4)^0.5 -> 0 | L67: =Input!L234*(1+vanilla5)^0.5 -> 8.342597538 | M67: =Input!M234*(1+vanilla6)^0.5 -> 0 | N67: =Input!N234*(1+vanilla7)^0.5 -> 0 | O67: =Input!O234*(1+vanilla8)^0.5 -> 0 | P67: =Input!P234*(1+vanilla9)^0.5 -> 0 | Q67: =Input!Q234*(1+vanilla10)^0.5 -> 0
D68: =Asset25 -> RBP Expansion 8 | H68: =Input!H235*(1+vanilla1)^0.5 -> 0 | I68: =Input!I235*(1+vanilla2)^0.5 -> 0 | J68: =Input!J235*(1+vanilla3)^0.5 -> 0 | K68: =Input!K235*(1+vanilla4)^0.5 -> 0 | L68: =Input!L235*(1+vanilla5)^0.5 -> 0 | M68: =Input!M235*(1+vanilla6)^0.5 -> 45.05726478 | N68: =Input!N235*(1+vanilla7)^0.5 -> 0 | O68: =Input!O235*(1+vanilla8)^0.5 -> 0 | P68: =Input!P235*(1+vanilla9)^0.5 -> 0 | Q68: =Input!Q235*(1+vanilla10)^0.5 -> 0
D69: =Asset26 -> Asset26 | H69: =Input!H236*(1+vanilla1)^0.5 -> 0 | I69: =Input!I236*(1+vanilla2)^0.5 -> 0 | J69: =Input!J236*(1+vanilla3)^0.5 -> 0 | K69: =Input!K236*(1+vanilla4)^0.5 -> 0 | L69: =Input!L236*(1+vanilla5)^0.5 -> 0 | M69: =Input!M236*(1+vanilla6)^0.5 -> 0 | N69: =Input!N236*(1+vanilla7)^0.5 -> 0 | O69: =Input!O236*(1+vanilla8)^0.5 -> 0 | P69: =Input!P236*(1+vanilla9)^0.5 -> 0 | Q69: =Input!Q236*(1+vanilla10)^0.5 -> 0
D70: =Asset27 -> Asset27 | H70: =Input!H237*(1+vanilla1)^0.5 -> 0 | I70: =Input!I237*(1+vanilla2)^0.5 -> 0 | J70: =Input!J237*(1+vanilla3)^0.5 -> 0 | K70: =Input!K237*(1+vanilla4)^0.5 -> 0 | L70: =Input!L237*(1+vanilla5)^0.5 -> 0 | M70: =Input!M237*(1+vanilla6)^0.5 -> 0 | N70: =Input!N237*(1+vanilla7)^0.5 -> 0 | O70: =Input!O237*(1+vanilla8)^0.5 -> 0 | P70: =Input!P237*(1+vanilla9)^0.5 -> 0 | Q70: =Input!Q237*(1+vanilla10)^0.5 -> 0
D71: =Asset28 -> Asset28 | H71: =Input!H238*(1+vanilla1)^0.5 -> 0 | I71: =Input!I238*(1+vanilla2)^0.5 -> 0 | J71: =Input!J238*(1+vanilla3)^0.5 -> 0 | K71: =Input!K238*(1+vanilla4)^0.5 -> 0 | L71: =Input!L238*(1+vanilla5)^0.5 -> 0 | M71: =Input!M238*(1+vanilla6)^0.5 -> 0 | N71: =Input!N238*(1+vanilla7)^0.5 -> 0 | O71: =Input!O238*(1+vanilla8)^0.5 -> 0 | P71: =Input!P238*(1+vanilla9)^0.5 -> 0 | Q71: =Input!Q238*(1+vanilla10)^0.5 -> 0
D72: =Asset29 -> Asset29 | H72: =Input!H239*(1+vanilla1)^0.5 -> 0 | I72: =Input!I239*(1+vanilla2)^0.5 -> 0 | J72: =Input!J239*(1+vanilla3)^0.5 -> 0 | K72: =Input!K239*(1+vanilla4)^0.5 -> 0 | L72: =Input!L239*(1+vanilla5)^0.5 -> 0 | M72: =Input!M239*(1+vanilla6)^0.5 -> 0 | N72: =Input!N239*(1+vanilla7)^0.5 -> 0 | O72: =Input!O239*(1+vanilla8)^0.5 -> 0 | P72: =Input!P239*(1+vanilla9)^0.5 -> 0 | Q72: =Input!Q239*(1+vanilla10)^0.5 -> 0
D73: =Asset30 -> Asset30 | H73: =Input!H240*(1+vanilla1)^0.5 -> 0 | I73: =Input!I240*(1+vanilla2)^0.5 -> 0 | J73: =Input!J240*(1+vanilla3)^0.5 -> 0 | K73: =Input!K240*(1+vanilla4)^0.5 -> 0 | L73: =Input!L240*(1+vanilla5)^0.5 -> 0 | M73: =Input!M240*(1+vanilla6)^0.5 -> 0 | N73: =Input!N240*(1+vanilla7)^0.5 -> 0 | O73: =Input!O240*(1+vanilla8)^0.5 -> 0 | P73: =Input!P240*(1+vanilla9)^0.5 -> 0 | Q73: =Input!Q240*(1+vanilla10)^0.5 -> 0
C75: Real Actual Straight-line Depreciation | H75: =H88+H101+H114+H127+H140+H153+H166+H179+H192+H205+H218+H231+H244+H257+H270+H283+H296+H309+H322+H335+H348+H361+H374+H387+H400+H413+H426+H439+H452+H465 -> -5.846258049 | I75: =I88+I101+I114+I127+I140+I153+I166+I179+I192+I205+I218+I231+I244+I257+I270+I283+I296+I309+I322+I335+I348+I361+I374+I387+I400+I413+I426+I439+I452+I465 -> -6.12439694 | J75: =J88+J101+J114+J127+J140+J153+J166+J179+J192+J205+J218+J231+J244+J257+J270+J283+J296+J309+J322+J335+J348+J361+J374+J387+J400+J413+J426+J439+J452+J465 -> -6.188687926 | K75: -6.315970713 | L75: -6.621257562 | M75: =M88+M101+M114+M127+M140+M153+M166+M179+M192+M205+M218+M231+M244+M257+M270+M283+M296+M309+M322+M335+M348+M361+M374+M387+M400+M413+M426+M439+M452+M465 -> -6.801754627 | N75: 0 | O75: 0 | P75: 0 | Q75: =Q88+Q101+Q114+Q127+Q140+Q153+Q166+Q179+Q192+Q205+Q218+Q231+Q244+Q257+Q270+Q283+Q296+Q309+Q322+Q335+Q348+Q361+Q374+Q387+Q400+Q413+Q426+Q439+Q452+Q465 -> 0
C76: =Asset1 -> OriginalPipeline | E76: Opening RAB | H76: =IF(H$3>A1remlife,A1value-$G$630-SUM($G76:G76),IF(A1remlife="N/A","n/a",(A1value-$G$630)/A1remlife)) -> 1.691180533 | I76: =IF(I$3>A1remlife,A1value-$G$630-SUM($G76:H76),IF(A1remlife="N/A","n/a",(A1value-$G$630)/A1remlife)) -> 1.691180533 | J76: =IF(J$3>A1remlife,A1value-$G$630-SUM($G76:I76),IF(A1remlife="N/A","n/a",(A1value-$G$630)/A1remlife)) -> 1.691180533 | K76: =IF(K$3>A1remlife,A1value-$G$630-SUM($G76:J76),IF(A1remlife="N/A","n/a",(A1value-$G$630)/A1remlife)) -> 1.691180533 | L76: =IF(L$3>A1remlife,A1value-$G$630-SUM($G76:K76),IF(A1remlife="N/A","n/a",(A1value-$G$630)/A1remlife)) -> 1.691180533 | M76: =IF(M$3>A1remlife,A1value-$G$630-SUM($G76:L76),IF(A1remlife="N/A","n/a",(A1value-$G$630)/A1remlife)) -> 1.691180533 | N76: =IF(N$3>A1remlife,A1value-$G$630-SUM($G76:M76),IF(A1remlife="N/A","n/a",(A1value-$G$630)/A1remlife)) -> 1.691180533 | O76: =IF(O$3>A1remlife,A1value-$G$630-SUM($G76:N76),IF(A1remlife="N/A","n/a",(A1value-$G$630)/A1remlife)) -> 1.691180533 | P76: =IF(P$3>A1remlife,A1value-$G$630-SUM($G76:O76),IF(A1remlife="N/A","n/a",(A1value-$G$630)/A1remlife)) -> 1.691180533 | Q76: =IF(Q$3>A1remlife,A1value-$G$630-SUM($G76:P76),IF(A1remlife="N/A","n/a",(A1value-$G$630)/A1remlife)) -> 1.691180533
E77: Capex in year | F77: Adj | H77: =-'APA_Act 2007-11 Real'!E58/1000 -> -0.1572575864 | I77: =-'APA_Act 2007-11 Real'!F58/1000 -> -0.1846608351 | J77: =-'APA_Act 2007-11 Real'!G58/1000 -> -0.9976238419 | K77: =-'APA_Act 2007-11 Real'!H58/1000 -> -1.08905824 | L77: =-'APA_Act 2007-11 Real'!I58/1000 -> -1.216908048 | M77: =-'APA_Act 2007-11 Real'!J58/1000 -> -1.313307391
F78: 1 | I78: =IF(A1stdlife="n/a","n/a",IF(I$3>(A1stdlife+$F78),(Input!$H$211*(1+vanilla1)^0.5)-SUM($H78:H78),(Input!$H$211*(1+vanilla1)^0.5)/A1stdlife)) -> 0 | J78: =IF(A1stdlife="n/a","n/a",IF(J$3>(A1stdlife+$F78),(Input!$H$211*(1+vanilla1)^0.5)-SUM($H78:I78),(Input!$H$211*(1+vanilla1)^0.5)/A1stdlife)) -> 0 | K78: =IF(A1stdlife="n/a","n/a",IF(K$3>(A1stdlife+$F78),(Input!$H$211*(1+vanilla1)^0.5)-SUM($H78:J78),(Input!$H$211*(1+vanilla1)^0.5)/A1stdlife)) -> 0 | L78: =IF(A1stdlife="n/a","n/a",IF(L$3>(A1stdlife+$F78),(Input!$H$211*(1+vanilla1)^0.5)-SUM($H78:K78),(Input!$H$211*(1+vanilla1)^0.5)/A1stdlife)) -> 0 | M78: =IF(A1stdlife="n/a","n/a",IF(M$3>(A1stdlife+$F78),(Input!$H$211*(1+vanilla1)^0.5)-SUM($H78:L78),(Input!$H$211*(1+vanilla1)^0.5)/A1stdlife)) -> 0 | N78: =IF(A1stdlife="n/a","n/a",IF(N$3>(A1stdlife+$F78),(Input!$H$211*(1+vanilla1)^0.5)-SUM($H78:M78),(Input!$H$211*(1+vanilla1)^0.5)/A1stdlife)) -> 0 | O78: =IF(A1stdlife="n/a","n/a",IF(O$3>(A1stdlife+$F78),(Input!$H$211*(1+vanilla1)^0.5)-SUM($H78:N78),(Input!$H$211*(1+vanilla1)^0.5)/A1stdlife)) -> 0 | P78: =IF(A1stdlife="n/a","n/a",IF(P$3>(A1stdlife+$F78),(Input!$H$211*(1+vanilla1)^0.5)-SUM($H78:O78),(Input!$H$211*(1+vanilla1)^0.5)/A1stdlife)) -> 0 | Q78: =IF(A1stdlife="n/a","n/a",IF(Q$3>(A1stdlife+$F78),(Input!$H$211*(1+vanilla1)^0.5)-SUM($H78:P78),(Input!$H$211*(1+vanilla1)^0.5)/A1stdlife)) -> 0
F79: 2 | J79: =IF(A1stdlife="n/a","n/a",IF(J$3>(A1stdlife+$F79),(Input!$I$211*(1+vanilla2)^0.5)-SUM($I79:I79),(Input!$I$211*(1+vanilla2)^0.5)/A1stdlife)) -> 0 | K79: =IF(A1stdlife="n/a","n/a",IF(K$3>(A1stdlife+$F79),(Input!$I$211*(1+vanilla2)^0.5)-SUM($I79:J79),(Input!$I$211*(1+vanilla2)^0.5)/A1stdlife)) -> 0 | L79: =IF(A1stdlife="n/a","n/a",IF(L$3>(A1stdlife+$F79),(Input!$I$211*(1+vanilla2)^0.5)-SUM($I79:K79),(Input!$I$211*(1+vanilla2)^0.5)/A1stdlife)) -> 0 | M79: =IF(A1stdlife="n/a","n/a",IF(M$3>(A1stdlife+$F79),(Input!$I$211*(1+vanilla2)^0.5)-SUM($I79:L79),(Input!$I$211*(1+vanilla2)^0.5)/A1stdlife)) -> 0 | N79: =IF(A1stdlife="n/a","n/a",IF(N$3>(A1stdlife+$F79),(Input!$I$211*(1+vanilla2)^0.5)-SUM($I79:M79),(Input!$I$211*(1+vanilla2)^0.5)/A1stdlife)) -> 0 | O79: =IF(A1stdlife="n/a","n/a",IF(O$3>(A1stdlife+$F79),(Input!$I$211*(1+vanilla2)^0.5)-SUM($I79:N79),(Input!$I$211*(1+vanilla2)^0.5)/A1stdlife)) -> 0 | P79: =IF(A1stdlife="n/a","n/a",IF(P$3>(A1stdlife+$F79),(Input!$I$211*(1+vanilla2)^0.5)-SUM($I79:O79),(Input!$I$211*(1+vanilla2)^0.5)/A1stdlife)) -> 0 | Q79: =IF(A1stdlife="n/a","n/a",IF(Q$3>(A1stdlife+$F79),(Input!$I$211*(1+vanilla2)^0.5)-SUM($I79:P79),(Input!$I$211*(1+vanilla2)^0.5)/A1stdlife)) -> 0
F80: 3 | K80: =IF(A1stdlife="n/a","n/a",IF(K$3>(A1stdlife+$F80),(Input!$J$211*(1+vanilla3)^0.5)-SUM($J80:J80),(Input!$J$211*(1+vanilla3)^0.5)/A1stdlife)) -> 0 | L80: =IF(A1stdlife="n/a","n/a",IF(L$3>(A1stdlife+$F80),(Input!$J$211*(1+vanilla3)^0.5)-SUM($J80:K80),(Input!$J$211*(1+vanilla3)^0.5)/A1stdlife)) -> 0 | M80: =IF(A1stdlife="n/a","n/a",IF(M$3>(A1stdlife+$F80),(Input!$J$211*(1+vanilla3)^0.5)-SUM($J80:L80),(Input!$J$211*(1+vanilla3)^0.5)/A1stdlife)) -> 0 | N80: =IF(A1stdlife="n/a","n/a",IF(N$3>(A1stdlife+$F80),(Input!$J$211*(1+vanilla3)^0.5)-SUM($J80:M80),(Input!$J$211*(1+vanilla3)^0.5)/A1stdlife)) -> 0 | O80: =IF(A1stdlife="n/a","n/a",IF(O$3>(A1stdlife+$F80),(Input!$J$211*(1+vanilla3)^0.5)-SUM($J80:N80),(Input!$J$211*(1+vanilla3)^0.5)/A1stdlife)) -> 0 | P80: =IF(A1stdlife="n/a","n/a",IF(P$3>(A1stdlife+$F80),(Input!$J$211*(1+vanilla3)^0.5)-SUM($J80:O80),(Input!$J$211*(1+vanilla3)^0.5)/A1stdlife)) -> 0 | Q80: =IF(A1stdlife="n/a","n/a",IF(Q$3>(A1stdlife+$F80),(Input!$J$211*(1+vanilla3)^0.5)-SUM($J80:P80),(Input!$J$211*(1+vanilla3)^0.5)/A1stdlife)) -> 0
F81: 4 | L81: =IF(A1stdlife="n/a","n/a",IF(L$3>(A1stdlife+$F81),(Input!$K$211*(1+vanilla4)^0.5)-SUM($K81:K81),(Input!$K$211*(1+vanilla4)^0.5)/A1stdlife)) -> 0 | M81: =IF(A1stdlife="n/a","n/a",IF(M$3>(A1stdlife+$F81),(Input!$K$211*(1+vanilla4)^0.5)-SUM($K81:L81),(Input!$K$211*(1+vanilla4)^0.5)/A1stdlife)) -> 0 | N81: =IF(A1stdlife="n/a","n/a",IF(N$3>(A1stdlife+$F81),(Input!$K$211*(1+vanilla4)^0.5)-SUM($K81:M81),(Input!$K$211*(1+vanilla4)^0.5)/A1stdlife)) -> 0 | O81: =IF(A1stdlife="n/a","n/a",IF(O$3>(A1stdlife+$F81),(Input!$K$211*(1+vanilla4)^0.5)-SUM($K81:N81),(Input!$K$211*(1+vanilla4)^0.5)/A1stdlife)) -> 0 | P81: =IF(A1stdlife="n/a","n/a",IF(P$3>(A1stdlife+$F81),(Input!$K$211*(1+vanilla4)^0.5)-SUM($K81:O81),(Input!$K$211*(1+vanilla4)^0.5)/A1stdlife)) -> 0 | Q81: =IF(A1stdlife="n/a","n/a",IF(Q$3>(A1stdlife+$F81),(Input!$K$211*(1+vanilla4)^0.5)-SUM($K81:P81),(Input!$K$211*(1+vanilla4)^0.5)/A1stdlife)) -> 0
F82: 5 | M82: =IF(A1stdlife="n/a","n/a",IF(M$3>(A1stdlife+$F82),(Input!$L$211*(1+vanilla5)^0.5)-SUM($L82:L82),(Input!$L$211*(1+vanilla5)^0.5)/A1stdlife)) -> 0 | N82: =IF(A1stdlife="n/a","n/a",IF(N$3>(A1stdlife+$F82),(Input!$L$211*(1+vanilla5)^0.5)-SUM($L82:M82),(Input!$L$211*(1+vanilla5)^0.5)/A1stdlife)) -> 0 | O82: =IF(A1stdlife="n/a","n/a",IF(O$3>(A1stdlife+$F82),(Input!$L$211*(1+vanilla5)^0.5)-SUM($L82:N82),(Input!$L$211*(1+vanilla5)^0.5)/A1stdlife)) -> 0 | P82: =IF(A1stdlife="n/a","n/a",IF(P$3>(A1stdlife+$F82),(Input!$L$211*(1+vanilla5)^0.5)-SUM($L82:O82),(Input!$L$211*(1+vanilla5)^0.5)/A1stdlife)) -> 0 | Q82: =IF(A1stdlife="n/a","n/a",IF(Q$3>(A1stdlife+$F82),(Input!$L$211*(1+vanilla5)^0.5)-SUM($L82:P82),(Input!$L$211*(1+vanilla5)^0.5)/A1stdlife)) -> 0
F83: 6 | N83: =IF(A1stdlife="n/a","n/a",IF(N$3>(A1stdlife+$F83),(Input!$M$211*(1+vanilla6)^0.5)-SUM($M83:M83),(Input!$M$211*(1+vanilla6)^0.5)/A1stdlife)) -> 0 | O83: =IF(A1stdlife="n/a","n/a",IF(O$3>(A1stdlife+$F83),(Input!$M$211*(1+vanilla6)^0.5)-SUM($M83:N83),(Input!$M$211*(1+vanilla6)^0.5)/A1stdlife)) -> 0 | P83: =IF(A1stdlife="n/a","n/a",IF(P$3>(A1stdlife+$F83),(Input!$M$211*(1+vanilla6)^0.5)-SUM($M83:O83),(Input!$M$211*(1+vanilla6)^0.5)/A1stdlife)) -> 0 | Q83: =IF(A1stdlife="n/a","n/a",IF(Q$3>(A1stdlife+$F83),(Input!$M$211*(1+vanilla6)^0.5)-SUM($M83:P83),(Input!$M$211*(1+vanilla6)^0.5)/A1stdlife)) -> 0
F84: 7 | O84: =IF(A1stdlife="n/a","n/a",IF(O$3>(A1stdlife+$F84),(Input!$N$211*(1+vanilla7)^0.5)-SUM($N84:N84),(Input!$N$211*(1+vanilla7)^0.5)/A1stdlife)) -> 0 | P84: =IF(A1stdlife="n/a","n/a",IF(P$3>(A1stdlife+$F84),(Input!$N$211*(1+vanilla7)^0.5)-SUM($N84:O84),(Input!$N$211*(1+vanilla7)^0.5)/A1stdlife)) -> 0 | Q84: =IF(A1stdlife="n/a","n/a",IF(Q$3>(A1stdlife+$F84),(Input!$N$211*(1+vanilla7)^0.5)-SUM($N84:P84),(Input!$N$211*(1+vanilla7)^0.5)/A1stdlife)) -> 0
F85: 8 | P85: =IF(A1stdlife="n/a","n/a",IF(P$3>(A1stdlife+$F85),(Input!$O$211*(1+vanilla8)^0.5)-SUM($O85:O85),(Input!$O$211*(1+vanilla8)^0.5)/A1stdlife)) -> 0 | Q85: =IF(A1stdlife="n/a","n/a",IF(Q$3>(A1stdlife+$F85),(Input!$O$211*(1+vanilla8)^0.5)-SUM($O85:P85),(Input!$O$211*(1+vanilla8)^0.5)/A1stdlife)) -> 0
F86: 9 | Q86: =IF(A1stdlife="n/a","n/a",IF(Q$3>(A1stdlife+$F86),(Input!$P$211*(1+vanilla9)^0.5)-SUM($P86:P86),(Input!$P$211*(1+vanilla9)^0.5)/A1stdlife)) -> 0
F87: 10
D88: =Asset1 -> OriginalPipeline | H88: =-SUM(H76:H87) -> -1.533922946 | I88: =-SUM(I76:I87) -> -1.506519697 | J88: =-SUM(J76:J87) -> -0.6935566907 | K88: =-SUM(K76:K87) -> -0.6021222921 | L88: =-SUM(L76:L87) -> -0.4742724847 | M88: =IF(COUNT($H88:L88)>=Input!$W$7,0, -SUM(M76:M87)) -> -0.3778731415 | N88: =IF(COUNT($H88:M88)>=Input!$W$7,0, -SUM(N76:N87)) -> 0 | O88: =IF(COUNT($H88:N88)>=Input!$W$7,0, -SUM(O76:O87)) -> 0 | P88: =IF(COUNT($H88:O88)>=Input!$W$7,0, -SUM(P76:P87)) -> 0 | Q88: =IF(COUNT($H88:P88)>=Input!$W$7,0, -SUM(Q76:Q87)) -> 0
C89: =Asset2 -> Looping 1 | E89: Opening RAB | H89: =IF(H$3>A2remlife,A2value-$G$631-SUM($G89:G89),IF(A2remlife="N/A","n/a",(A2value-$G$631)/A2remlife)) -> 0.1475713087 | I89: =IF(I$3>A2remlife,A2value-$G$631-SUM($G89:H89),IF(A2remlife="N/A","n/a",(A2value-$G$631)/A2remlife)) -> 0.1475713087 | J89: =IF(J$3>A2remlife,A2value-$G$631-SUM($G89:I89),IF(A2remlife="N/A","n/a",(A2value-$G$631)/A2remlife)) -> 0.1475713087 | K89: =IF(K$3>A2remlife,A2value-$G$631-SUM($G89:J89),IF(A2remlife="N/A","n/a",(A2value-$G$631)/A2remlife)) -> 0.1475713087 | L89: =IF(L$3>A2remlife,A2value-$G$631-SUM($G89:K89),IF(A2remlife="N/A","n/a",(A2value-$G$631)/A2remlife)) -> 0.1475713087 | M89: =IF(M$3>A2remlife,A2value-$G$631-SUM($G89:L89),IF(A2remlife="N/A","n/a",(A2value-$G$631)/A2remlife)) -> 0.1475713087 | N89: =IF(N$3>A2remlife,A2value-$G$631-SUM($G89:M89),IF(A2remlife="N/A","n/a",(A2value-$G$631)/A2remlife)) -> 0.1475713087 | O89: =IF(O$3>A2remlife,A2value-$G$631-SUM($G89:N89),IF(A2remlife="N/A","n/a",(A2value-$G$631)/A2remlife)) -> 0.1475713087 | P89: =IF(P$3>A2remlife,A2value-$G$631-SUM($G89:O89),IF(A2remlife="N/A","n/a",(A2value-$G$631)/A2remlife)) -> 0.1475713087 | Q89: =IF(Q$3>A2remlife,A2value-$G$631-SUM($G89:P89),IF(A2remlife="N/A","n/a",(A2value-$G$631)/A2remlife)) -> 0.1475713087
E90: Capex in year | F90: Adj | H90: =-'APA_Act 2007-11 Real'!E65/1000 -> -0.01372219428 | I90: =-'APA_Act 2007-11 Real'!F65/1000 -> -0.01611338386 | J90: =-'APA_Act 2007-11 Real'!G65/1000 -> -0.08705200486 | K90: =-'APA_Act 2007-11 Real'!H65/1000 -> -0.09503051076 | L90: =-'APA_Act 2007-11 Real'!I65/1000 -> -0.1061866015 | M90: =-'APA_Act 2007-11 Real'!J65/1000 -> -0.1145983452
F91: 1 | I91: =IF(A2stdlife="n/a","n/a",IF(I$3>(A2stdlife+$F91),(Input!$H$212*(1+vanilla1)^0.5)-SUM($H91:H91),(Input!$H$212*(1+vanilla1)^0.5)/A2stdlife)) -> 0 | J91: =IF(A2stdlife="n/a","n/a",IF(J$3>(A2stdlife+$F91),(Input!$H$212*(1+vanilla1)^0.5)-SUM($H91:I91),(Input!$H$212*(1+vanilla1)^0.5)/A2stdlife)) -> 0 | K91: =IF(A2stdlife="n/a","n/a",IF(K$3>(A2stdlife+$F91),(Input!$H$212*(1+vanilla1)^0.5)-SUM($H91:J91),(Input!$H$212*(1+vanilla1)^0.5)/A2stdlife)) -> 0 | L91: =IF(A2stdlife="n/a","n/a",IF(L$3>(A2stdlife+$F91),(Input!$H$212*(1+vanilla1)^0.5)-SUM($H91:K91),(Input!$H$212*(1+vanilla1)^0.5)/A2stdlife)) -> 0 | M91: =IF(A2stdlife="n/a","n/a",IF(M$3>(A2stdlife+$F91),(Input!$H$212*(1+vanilla1)^0.5)-SUM($H91:L91),(Input!$H$212*(1+vanilla1)^0.5)/A2stdlife)) -> 0 | N91: =IF(A2stdlife="n/a","n/a",IF(N$3>(A2stdlife+$F91),(Input!$H$212*(1+vanilla1)^0.5)-SUM($H91:M91),(Input!$H$212*(1+vanilla1)^0.5)/A2stdlife)) -> 0 | O91: =IF(A2stdlife="n/a","n/a",IF(O$3>(A2stdlife+$F91),(Input!$H$212*(1+vanilla1)^0.5)-SUM($H91:N91),(Input!$H$212*(1+vanilla1)^0.5)/A2stdlife)) -> 0 | P91: =IF(A2stdlife="n/a","n/a",IF(P$3>(A2stdlife+$F91),(Input!$H$212*(1+vanilla1)^0.5)-SUM($H91:O91),(Input!$H$212*(1+vanilla1)^0.5)/A2stdlife)) -> 0 | Q91: =IF(A2stdlife="n/a","n/a",IF(Q$3>(A2stdlife+$F91),(Input!$H$212*(1+vanilla1)^0.5)-SUM($H91:P91),(Input!$H$212*(1+vanilla1)^0.5)/A2stdlife)) -> 0
F92: 2 | J92: =IF(A2stdlife="n/a","n/a",IF(J$3>(A2stdlife+$F92),(Input!$I$212*(1+vanilla2)^0.5)-SUM($I92:I92),(Input!$I$212*(1+vanilla2)^0.5)/A2stdlife)) -> 0 | K92: =IF(A2stdlife="n/a","n/a",IF(K$3>(A2stdlife+$F92),(Input!$I$212*(1+vanilla2)^0.5)-SUM($I92:J92),(Input!$I$212*(1+vanilla2)^0.5)/A2stdlife)) -> 0 | L92: =IF(A2stdlife="n/a","n/a",IF(L$3>(A2stdlife+$F92),(Input!$I$212*(1+vanilla2)^0.5)-SUM($I92:K92),(Input!$I$212*(1+vanilla2)^0.5)/A2stdlife)) -> 0 | M92: =IF(A2stdlife="n/a","n/a",IF(M$3>(A2stdlife+$F92),(Input!$I$212*(1+vanilla2)^0.5)-SUM($I92:L92),(Input!$I$212*(1+vanilla2)^0.5)/A2stdlife)) -> 0 | N92: =IF(A2stdlife="n/a","n/a",IF(N$3>(A2stdlife+$F92),(Input!$I$212*(1+vanilla2)^0.5)-SUM($I92:M92),(Input!$I$212*(1+vanilla2)^0.5)/A2stdlife)) -> 0 | O92: =IF(A2stdlife="n/a","n/a",IF(O$3>(A2stdlife+$F92),(Input!$I$212*(1+vanilla2)^0.5)-SUM($I92:N92),(Input!$I$212*(1+vanilla2)^0.5)/A2stdlife)) -> 0 | P92: =IF(A2stdlife="n/a","n/a",IF(P$3>(A2stdlife+$F92),(Input!$I$212*(1+vanilla2)^0.5)-SUM($I92:O92),(Input!$I$212*(1+vanilla2)^0.5)/A2stdlife)) -> 0 | Q92: =IF(A2stdlife="n/a","n/a",IF(Q$3>(A2stdlife+$F92),(Input!$I$212*(1+vanilla2)^0.5)-SUM($I92:P92),(Input!$I$212*(1+vanilla2)^0.5)/A2stdlife)) -> 0
F93: 3 | K93: =IF(A2stdlife="n/a","n/a",IF(K$3>(A2stdlife+$F93),(Input!$J$212*(1+vanilla3)^0.5)-SUM($J93:J93),(Input!$J$212*(1+vanilla3)^0.5)/A2stdlife)) -> 0 | L93: =IF(A2stdlife="n/a","n/a",IF(L$3>(A2stdlife+$F93),(Input!$J$212*(1+vanilla3)^0.5)-SUM($J93:K93),(Input!$J$212*(1+vanilla3)^0.5)/A2stdlife)) -> 0 | M93: =IF(A2stdlife="n/a","n/a",IF(M$3>(A2stdlife+$F93),(Input!$J$212*(1+vanilla3)^0.5)-SUM($J93:L93),(Input!$J$212*(1+vanilla3)^0.5)/A2stdlife)) -> 0 | N93: =IF(A2stdlife="n/a","n/a",IF(N$3>(A2stdlife+$F93),(Input!$J$212*(1+vanilla3)^0.5)-SUM($J93:M93),(Input!$J$212*(1+vanilla3)^0.5)/A2stdlife)) -> 0 | O93: =IF(A2stdlife="n/a","n/a",IF(O$3>(A2stdlife+$F93),(Input!$J$212*(1+vanilla3)^0.5)-SUM($J93:N93),(Input!$J$212*(1+vanilla3)^0.5)/A2stdlife)) -> 0 | P93: =IF(A2stdlife="n/a","n/a",IF(P$3>(A2stdlife+$F93),(Input!$J$212*(1+vanilla3)^0.5)-SUM($J93:O93),(Input!$J$212*(1+vanilla3)^0.5)/A2stdlife)) -> 0 | Q93: =IF(A2stdlife="n/a","n/a",IF(Q$3>(A2stdlife+$F93),(Input!$J$212*(1+vanilla3)^0.5)-SUM($J93:P93),(Input!$J$212*(1+vanilla3)^0.5)/A2stdlife)) -> 0
F94: 4 | L94: =IF(A2stdlife="n/a","n/a",IF(L$3>(A2stdlife+$F94),(Input!$K$212*(1+vanilla4)^0.5)-SUM($K94:K94),(Input!$K$212*(1+vanilla4)^0.5)/A2stdlife)) -> 0 | M94: =IF(A2stdlife="n/a","n/a",IF(M$3>(A2stdlife+$F94),(Input!$K$212*(1+vanilla4)^0.5)-SUM($K94:L94),(Input!$K$212*(1+vanilla4)^0.5)/A2stdlife)) -> 0 | N94: =IF(A2stdlife="n/a","n/a",IF(N$3>(A2stdlife+$F94),(Input!$K$212*(1+vanilla4)^0.5)-SUM($K94:M94),(Input!$K$212*(1+vanilla4)^0.5)/A2stdlife)) -> 0 | O94: =IF(A2stdlife="n/a","n/a",IF(O$3>(A2stdlife+$F94),(Input!$K$212*(1+vanilla4)^0.5)-SUM($K94:N94),(Input!$K$212*(1+vanilla4)^0.5)/A2stdlife)) -> 0 | P94: =IF(A2stdlife="n/a","n/a",IF(P$3>(A2stdlife+$F94),(Input!$K$212*(1+vanilla4)^0.5)-SUM($K94:O94),(Input!$K$212*(1+vanilla4)^0.5)/A2stdlife)) -> 0 | Q94: =IF(A2stdlife="n/a","n/a",IF(Q$3>(A2stdlife+$F94),(Input!$K$212*(1+vanilla4)^0.5)-SUM($K94:P94),(Input!$K$212*(1+vanilla4)^0.5)/A2stdlife)) -> 0
F95: 5 | M95: =IF(A2stdlife="n/a","n/a",IF(M$3>(A2stdlife+$F95),(Input!$L$212*(1+vanilla5)^0.5)-SUM($L95:L95),(Input!$L$212*(1+vanilla5)^0.5)/A2stdlife)) -> 0 | N95: =IF(A2stdlife="n/a","n/a",IF(N$3>(A2stdlife+$F95),(Input!$L$212*(1+vanilla5)^0.5)-SUM($L95:M95),(Input!$L$212*(1+vanilla5)^0.5)/A2stdlife)) -> 0 | O95: =IF(A2stdlife="n/a","n/a",IF(O$3>(A2stdlife+$F95),(Input!$L$212*(1+vanilla5)^0.5)-SUM($L95:N95),(Input!$L$212*(1+vanilla5)^0.5)/A2stdlife)) -> 0 | P95: =IF(A2stdlife="n/a","n/a",IF(P$3>(A2stdlife+$F95),(Input!$L$212*(1+vanilla5)^0.5)-SUM($L95:O95),(Input!$L$212*(1+vanilla5)^0.5)/A2stdlife)) -> 0 | Q95: =IF(A2stdlife="n/a","n/a",IF(Q$3>(A2stdlife+$F95),(Input!$L$212*(1+vanilla5)^0.5)-SUM($L95:P95),(Input!$L$212*(1+vanilla5)^0.5)/A2stdlife)) -> 0
F96: 6 | N96: =IF(A2stdlife="n/a","n/a",IF(N$3>(A2stdlife+$F96),(Input!$M$212*(1+vanilla6)^0.5)-SUM($M96:M96),(Input!$M$212*(1+vanilla6)^0.5)/A2stdlife)) -> 0 | O96: =IF(A2stdlife="n/a","n/a",IF(O$3>(A2stdlife+$F96),(Input!$M$212*(1+vanilla6)^0.5)-SUM($M96:N96),(Input!$M$212*(1+vanilla6)^0.5)/A2stdlife)) -> 0 | P96: =IF(A2stdlife="n/a","n/a",IF(P$3>(A2stdlife+$F96),(Input!$M$212*(1+vanilla6)^0.5)-SUM($M96:O96),(Input!$M$212*(1+vanilla6)^0.5)/A2stdlife)) -> 0 | Q96: =IF(A2stdlife="n/a","n/a",IF(Q$3>(A2stdlife+$F96),(Input!$M$212*(1+vanilla6)^0.5)-SUM($M96:P96),(Input!$M$212*(1+vanilla6)^0.5)/A2stdlife)) -> 0
F97: 7 | O97: =IF(A2stdlife="n/a","n/a",IF(O$3>(A2stdlife+$F97),(Input!$N$212*(1+vanilla7)^0.5)-SUM($N97:N97),(Input!$N$212*(1+vanilla7)^0.5)/A2stdlife)) -> 0 | P97: =IF(A2stdlife="n/a","n/a",IF(P$3>(A2stdlife+$F97),(Input!$N$212*(1+vanilla7)^0.5)-SUM($N97:O97),(Input!$N$212*(1+vanilla7)^0.5)/A2stdlife)) -> 0 | Q97: =IF(A2stdlife="n/a","n/a",IF(Q$3>(A2stdlife+$F97),(Input!$N$212*(1+vanilla7)^0.5)-SUM($N97:P97),(Input!$N$212*(1+vanilla7)^0.5)/A2stdlife)) -> 0
F98: 8 | P98: =IF(A2stdlife="n/a","n/a",IF(P$3>(A2stdlife+$F98),(Input!$O$212*(1+vanilla8)^0.5)-SUM($O98:O98),(Input!$O$212*(1+vanilla8)^0.5)/A2stdlife)) -> 0 | Q98: =IF(A2stdlife="n/a","n/a",IF(Q$3>(A2stdlife+$F98),(Input!$O$212*(1+vanilla8)^0.5)-SUM($O98:P98),(Input!$O$212*(1+vanilla8)^0.5)/A2stdlife)) -> 0
F99: 9 | Q99: =IF(A2stdlife="n/a","n/a",IF(Q$3>(A2stdlife+$F99),(Input!$P$212*(1+vanilla9)^0.5)-SUM($P99:P99),(Input!$P$212*(1+vanilla9)^0.5)/A2stdlife)) -> 0
F100: 10
D101: =Asset2 -> Looping 1 | H101: =-SUM(H89:H100) -> -0.1338491144 | I101: =-SUM(I89:I100) -> -0.1314579248 | J101: =-SUM(J89:J100) -> -0.06051930385 | K101: =-SUM(K89:K100) -> -0.05254079795 | L101: =-SUM(L89:L100) -> -0.04138470725 | M101: =IF(COUNT($H101:L101)>=Input!$W$7,0, -SUM(M89:M100)) -> -0.03297296353 | N101: =IF(COUNT($H101:M101)>=Input!$W$7,0, -SUM(N89:N100)) -> 0 | O101: =IF(COUNT($H101:N101)>=Input!$W$7,0, -SUM(O89:O100)) -> 0 | P101: =IF(COUNT($H101:O101)>=Input!$W$7,0, -SUM(P89:P100)) -> 0 | Q101: =IF(COUNT($H101:P101)>=Input!$W$7,0, -SUM(Q89:Q100)) -> 0
C102: =Asset3 -> Looping 2 | E102: Opening RAB | H102: =IF(H$3>A3remlife,A3value-$G$632-SUM($G102:G102),IF(A3remlife="N/A","n/a",(A3value-$G$632)/A3remlife)) -> 0.1717078458 | I102: =IF(I$3>A3remlife,A3value-$G$632-SUM($G102:H102),IF(A3remlife="N/A","n/a",(A3value-$G$632)/A3remlife)) -> 0.1717078458 | J102: =IF(J$3>A3remlife,A3value-$G$632-SUM($G102:I102),IF(A3remlife="N/A","n/a",(A3value-$G$632)/A3remlife)) -> 0.1717078458 | K102: =IF(K$3>A3remlife,A3value-$G$632-SUM($G102:J102),IF(A3remlife="N/A","n/a",(A3value-$G$632)/A3remlife)) -> 0.1717078458 | L102: =IF(L$3>A3remlife,A3value-$G$632-SUM($G102:K102),IF(A3remlife="N/A","n/a",(A3value-$G$632)/A3remlife)) -> 0.1717078458 | M102: =IF(M$3>A3remlife,A3value-$G$632-SUM($G102:L102),IF(A3remlife="N/A","n/a",(A3value-$G$632)/A3remlife)) -> 0.1717078458 | N102: =IF(N$3>A3remlife,A3value-$G$632-SUM($G102:M102),IF(A3remlife="N/A","n/a",(A3value-$G$632)/A3remlife)) -> 0.1717078458 | O102: =IF(O$3>A3remlife,A3value-$G$632-SUM($G102:N102),IF(A3remlife="N/A","n/a",(A3value-$G$632)/A3remlife)) -> 0.1717078458 | P102: =IF(P$3>A3remlife,A3value-$G$632-SUM($G102:O102),IF(A3remlife="N/A","n/a",(A3value-$G$632)/A3remlife)) -> 0.1717078458 | Q102: =IF(Q$3>A3remlife,A3value-$G$632-SUM($G102:P102),IF(A3remlife="N/A","n/a",(A3value-$G$632)/A3remlife)) -> 0.1717078458
E103: Capex in year | F103: Adj | H103: =-'APA_Act 2007-11 Real'!E72/1000 -> -0.01596657535 | I103: =-'APA_Act 2007-11 Real'!F72/1000 -> -0.01874886424 | J103: =-'APA_Act 2007-11 Real'!G72/1000 -> -0.1012900974 | K103: =-'APA_Act 2007-11 Real'!H72/1000 -> -0.1105735555 | L103: =-'APA_Act 2007-11 Real'!I72/1000 -> -0.1235543193 | M103: =-'APA_Act 2007-11 Real'!J72/1000 -> -0.1333418749
F104: 1 | I104: =IF(A3stdlife="n/a","n/a",IF(I$3>(A3stdlife+$F104),(Input!$H$213*(1+vanilla1)^0.5)-SUM($H104:H104),(Input!$H$213*(1+vanilla1)^0.5)/A3stdlife)) -> 0 | J104: =IF(A3stdlife="n/a","n/a",IF(J$3>(A3stdlife+$F104),(Input!$H$213*(1+vanilla1)^0.5)-SUM($H104:I104),(Input!$H$213*(1+vanilla1)^0.5)/A3stdlife)) -> 0 | K104: =IF(A3stdlife="n/a","n/a",IF(K$3>(A3stdlife+$F104),(Input!$H$213*(1+vanilla1)^0.5)-SUM($H104:J104),(Input!$H$213*(1+vanilla1)^0.5)/A3stdlife)) -> 0 | L104: =IF(A3stdlife="n/a","n/a",IF(L$3>(A3stdlife+$F104),(Input!$H$213*(1+vanilla1)^0.5)-SUM($H104:K104),(Input!$H$213*(1+vanilla1)^0.5)/A3stdlife)) -> 0 | M104: =IF(A3stdlife="n/a","n/a",IF(M$3>(A3stdlife+$F104),(Input!$H$213*(1+vanilla1)^0.5)-SUM($H104:L104),(Input!$H$213*(1+vanilla1)^0.5)/A3stdlife)) -> 0 | N104: =IF(A3stdlife="n/a","n/a",IF(N$3>(A3stdlife+$F104),(Input!$H$213*(1+vanilla1)^0.5)-SUM($H104:M104),(Input!$H$213*(1+vanilla1)^0.5)/A3stdlife)) -> 0 | O104: =IF(A3stdlife="n/a","n/a",IF(O$3>(A3stdlife+$F104),(Input!$H$213*(1+vanilla1)^0.5)-SUM($H104:N104),(Input!$H$213*(1+vanilla1)^0.5)/A3stdlife)) -> 0 | P104: =IF(A3stdlife="n/a","n/a",IF(P$3>(A3stdlife+$F104),(Input!$H$213*(1+vanilla1)^0.5)-SUM($H104:O104),(Input!$H$213*(1+vanilla1)^0.5)/A3stdlife)) -> 0 | Q104: =IF(A3stdlife="n/a","n/a",IF(Q$3>(A3stdlife+$F104),(Input!$H$213*(1+vanilla1)^0.5)-SUM($H104:P104),(Input!$H$213*(1+vanilla1)^0.5)/A3stdlife)) -> 0
F105: 2 | J105: =IF(A3stdlife="n/a","n/a",IF(J$3>(A3stdlife+$F105),(Input!$I$213*(1+vanilla2)^0.5)-SUM($I105:I105),(Input!$I$213*(1+vanilla2)^0.5)/A3stdlife)) -> 0 | K105: =IF(A3stdlife="n/a","n/a",IF(K$3>(A3stdlife+$F105),(Input!$I$213*(1+vanilla2)^0.5)-SUM($I105:J105),(Input!$I$213*(1+vanilla2)^0.5)/A3stdlife)) -> 0 | L105: =IF(A3stdlife="n/a","n/a",IF(L$3>(A3stdlife+$F105),(Input!$I$213*(1+vanilla2)^0.5)-SUM($I105:K105),(Input!$I$213*(1+vanilla2)^0.5)/A3stdlife)) -> 0 | M105: =IF(A3stdlife="n/a","n/a",IF(M$3>(A3stdlife+$F105),(Input!$I$213*(1+vanilla2)^0.5)-SUM($I105:L105),(Input!$I$213*(1+vanilla2)^0.5)/A3stdlife)) -> 0 | N105: =IF(A3stdlife="n/a","n/a",IF(N$3>(A3stdlife+$F105),(Input!$I$213*(1+vanilla2)^0.5)-SUM($I105:M105),(Input!$I$213*(1+vanilla2)^0.5)/A3stdlife)) -> 0 | O105: =IF(A3stdlife="n/a","n/a",IF(O$3>(A3stdlife+$F105),(Input!$I$213*(1+vanilla2)^0.5)-SUM($I105:N105),(Input!$I$213*(1+vanilla2)^0.5)/A3stdlife)) -> 0 | P105: =IF(A3stdlife="n/a","n/a",IF(P$3>(A3stdlife+$F105),(Input!$I$213*(1+vanilla2)^0.5)-SUM($I105:O105),(Input!$I$213*(1+vanilla2)^0.5)/A3stdlife)) -> 0 | Q105: =IF(A3stdlife="n/a","n/a",IF(Q$3>(A3stdlife+$F105),(Input!$I$213*(1+vanilla2)^0.5)-SUM($I105:P105),(Input!$I$213*(1+vanilla2)^0.5)/A3stdlife)) -> 0
F106: 3 | K106: =IF(A3stdlife="n/a","n/a",IF(K$3>(A3stdlife+$F106),(Input!$J$213*(1+vanilla3)^0.5)-SUM($J106:J106),(Input!$J$213*(1+vanilla3)^0.5)/A3stdlife)) -> 0 | L106: =IF(A3stdlife="n/a","n/a",IF(L$3>(A3stdlife+$F106),(Input!$J$213*(1+vanilla3)^0.5)-SUM($J106:K106),(Input!$J$213*(1+vanilla3)^0.5)/A3stdlife)) -> 0 | M106: =IF(A3stdlife="n/a","n/a",IF(M$3>(A3stdlife+$F106),(Input!$J$213*(1+vanilla3)^0.5)-SUM($J106:L106),(Input!$J$213*(1+vanilla3)^0.5)/A3stdlife)) -> 0 | N106: =IF(A3stdlife="n/a","n/a",IF(N$3>(A3stdlife+$F106),(Input!$J$213*(1+vanilla3)^0.5)-SUM($J106:M106),(Input!$J$213*(1+vanilla3)^0.5)/A3stdlife)) -> 0 | O106: =IF(A3stdlife="n/a","n/a",IF(O$3>(A3stdlife+$F106),(Input!$J$213*(1+vanilla3)^0.5)-SUM($J106:N106),(Input!$J$213*(1+vanilla3)^0.5)/A3stdlife)) -> 0 | P106: =IF(A3stdlife="n/a","n/a",IF(P$3>(A3stdlife+$F106),(Input!$J$213*(1+vanilla3)^0.5)-SUM($J106:O106),(Input!$J$213*(1+vanilla3)^0.5)/A3stdlife)) -> 0 | Q106: =IF(A3stdlife="n/a","n/a",IF(Q$3>(A3stdlife+$F106),(Input!$J$213*(1+vanilla3)^0.5)-SUM($J106:P106),(Input!$J$213*(1+vanilla3)^0.5)/A3stdlife)) -> 0
F107: 4 | L107: =IF(A3stdlife="n/a","n/a",IF(L$3>(A3stdlife+$F107),(Input!$K$213*(1+vanilla4)^0.5)-SUM($K107:K107),(Input!$K$213*(1+vanilla4)^0.5)/A3stdlife)) -> 0 | M107: =IF(A3stdlife="n/a","n/a",IF(M$3>(A3stdlife+$F107),(Input!$K$213*(1+vanilla4)^0.5)-SUM($K107:L107),(Input!$K$213*(1+vanilla4)^0.5)/A3stdlife)) -> 0 | N107: =IF(A3stdlife="n/a","n/a",IF(N$3>(A3stdlife+$F107),(Input!$K$213*(1+vanilla4)^0.5)-SUM($K107:M107),(Input!$K$213*(1+vanilla4)^0.5)/A3stdlife)) -> 0 | O107: =IF(A3stdlife="n/a","n/a",IF(O$3>(A3stdlife+$F107),(Input!$K$213*(1+vanilla4)^0.5)-SUM($K107:N107),(Input!$K$213*(1+vanilla4)^0.5)/A3stdlife)) -> 0 | P107: =IF(A3stdlife="n/a","n/a",IF(P$3>(A3stdlife+$F107),(Input!$K$213*(1+vanilla4)^0.5)-SUM($K107:O107),(Input!$K$213*(1+vanilla4)^0.5)/A3stdlife)) -> 0 | Q107: =IF(A3stdlife="n/a","n/a",IF(Q$3>(A3stdlife+$F107),(Input!$K$213*(1+vanilla4)^0.5)-SUM($K107:P107),(Input!$K$213*(1+vanilla4)^0.5)/A3stdlife)) -> 0
F108: 5 | M108: =IF(A3stdlife="n/a","n/a",IF(M$3>(A3stdlife+$F108),(Input!$L$213*(1+vanilla5)^0.5)-SUM($L108:L108),(Input!$L$213*(1+vanilla5)^0.5)/A3stdlife)) -> 0 | N108: =IF(A3stdlife="n/a","n/a",IF(N$3>(A3stdlife+$F108),(Input!$L$213*(1+vanilla5)^0.5)-SUM($L108:M108),(Input!$L$213*(1+vanilla5)^0.5)/A3stdlife)) -> 0 | O108: =IF(A3stdlife="n/a","n/a",IF(O$3>(A3stdlife+$F108),(Input!$L$213*(1+vanilla5)^0.5)-SUM($L108:N108),(Input!$L$213*(1+vanilla5)^0.5)/A3stdlife)) -> 0 | P108: =IF(A3stdlife="n/a","n/a",IF(P$3>(A3stdlife+$F108),(Input!$L$213*(1+vanilla5)^0.5)-SUM($L108:O108),(Input!$L$213*(1+vanilla5)^0.5)/A3stdlife)) -> 0 | Q108: =IF(A3stdlife="n/a","n/a",IF(Q$3>(A3stdlife+$F108),(Input!$L$213*(1+vanilla5)^0.5)-SUM($L108:P108),(Input!$L$213*(1+vanilla5)^0.5)/A3stdlife)) -> 0
F109: 6 | N109: =IF(A3stdlife="n/a","n/a",IF(N$3>(A3stdlife+$F109),(Input!$M$213*(1+vanilla6)^0.5)-SUM($M109:M109),(Input!$M$213*(1+vanilla6)^0.5)/A3stdlife)) -> 0 | O109: =IF(A3stdlife="n/a","n/a",IF(O$3>(A3stdlife+$F109),(Input!$M$213*(1+vanilla6)^0.5)-SUM($M109:N109),(Input!$M$213*(1+vanilla6)^0.5)/A3stdlife)) -> 0 | P109: =IF(A3stdlife="n/a","n/a",IF(P$3>(A3stdlife+$F109),(Input!$M$213*(1+vanilla6)^0.5)-SUM($M109:O109),(Input!$M$213*(1+vanilla6)^0.5)/A3stdlife)) -> 0 | Q109: =IF(A3stdlife="n/a","n/a",IF(Q$3>(A3stdlife+$F109),(Input!$M$213*(1+vanilla6)^0.5)-SUM($M109:P109),(Input!$M$213*(1+vanilla6)^0.5)/A3stdlife)) -> 0
F110: 7 | O110: =IF(A3stdlife="n/a","n/a",IF(O$3>(A3stdlife+$F110),(Input!$N$213*(1+vanilla7)^0.5)-SUM($N110:N110),(Input!$N$213*(1+vanilla7)^0.5)/A3stdlife)) -> 0 | P110: =IF(A3stdlife="n/a","n/a",IF(P$3>(A3stdlife+$F110),(Input!$N$213*(1+vanilla7)^0.5)-SUM($N110:O110),(Input!$N$213*(1+vanilla7)^0.5)/A3stdlife)) -> 0 | Q110: =IF(A3stdlife="n/a","n/a",IF(Q$3>(A3stdlife+$F110),(Input!$N$213*(1+vanilla7)^0.5)-SUM($N110:P110),(Input!$N$213*(1+vanilla7)^0.5)/A3stdlife)) -> 0
F111: 8 | P111: =IF(A3stdlife="n/a","n/a",IF(P$3>(A3stdlife+$F111),(Input!$O$213*(1+vanilla8)^0.5)-SUM($O111:O111),(Input!$O$213*(1+vanilla8)^0.5)/A3stdlife)) -> 0 | Q111: =IF(A3stdlife="n/a","n/a",IF(Q$3>(A3stdlife+$F111),(Input!$O$213*(1+vanilla8)^0.5)-SUM($O111:P111),(Input!$O$213*(1+vanilla8)^0.5)/A3stdlife)) -> 0
F112: 9 | Q112: =IF(A3stdlife="n/a","n/a",IF(Q$3>(A3stdlife+$F112),(Input!$P$213*(1+vanilla9)^0.5)-SUM($P112:P112),(Input!$P$213*(1+vanilla9)^0.5)/A3stdlife)) -> 0
F113: 10
D114: =Asset3 -> Looping 2 | H114: =-SUM(H102:H113) -> -0.1557412705 | I114: =-SUM(I102:I113) -> -0.1529589816 | J114: =-SUM(J102:J113) -> -0.07041774845 | K114: =-SUM(K102:K113) -> -0.06113429035 | L114: =-SUM(L102:L113) -> -0.04815352656 | M114: =IF(COUNT($H114:L114)>=Input!$W$7,0, -SUM(M102:M113)) -> -0.03836597092 | N114: =IF(COUNT($H114:M114)>=Input!$W$7,0, -SUM(N102:N113)) -> 0 | O114: =IF(COUNT($H114:N114)>=Input!$W$7,0, -SUM(O102:O113)) -> 0 | P114: =IF(COUNT($H114:O114)>=Input!$W$7,0, -SUM(P102:P113)) -> 0 | Q114: =IF(COUNT($H114:P114)>=Input!$W$7,0, -SUM(Q102:Q113)) -> 0
C115: =Asset4 -> Looping 3 | E115: Opening RAB | H115: =IF(H$3>A4remlife,A4value-$G$633-SUM($G115:G115),IF(A4remlife="N/A","n/a",(A4value-$G$633)/A4remlife)) -> 0.2865189191 | I115: =IF(I$3>A4remlife,A4value-$G$633-SUM($G115:H115),IF(A4remlife="N/A","n/a",(A4value-$G$633)/A4remlife)) -> 0.2865189191 | J115: =IF(J$3>A4remlife,A4value-$G$633-SUM($G115:I115),IF(A4remlife="N/A","n/a",(A4value-$G$633)/A4remlife)) -> 0.2865189191 | K115: =IF(K$3>A4remlife,A4value-$G$633-SUM($G115:J115),IF(A4remlife="N/A","n/a",(A4value-$G$633)/A4remlife)) -> 0.2865189191 | L115: =IF(L$3>A4remlife,A4value-$G$633-SUM($G115:K115),IF(A4remlife="N/A","n/a",(A4value-$G$633)/A4remlife)) -> 0.2865189191 | M115: =IF(M$3>A4remlife,A4value-$G$633-SUM($G115:L115),IF(A4remlife="N/A","n/a",(A4value-$G$633)/A4remlife)) -> 0.2865189191 | N115: =IF(N$3>A4remlife,A4value-$G$633-SUM($G115:M115),IF(A4remlife="N/A","n/a",(A4value-$G$633)/A4remlife)) -> 0.2865189191 | O115: =IF(O$3>A4remlife,A4value-$G$633-SUM($G115:N115),IF(A4remlife="N/A","n/a",(A4value-$G$633)/A4remlife)) -> 0.2865189191 | P115: =IF(P$3>A4remlife,A4value-$G$633-SUM($G115:O115),IF(A4remlife="N/A","n/a",(A4value-$G$633)/A4remlife)) -> 0.2865189191 | Q115: =IF(Q$3>A4remlife,A4value-$G$633-SUM($G115:P115),IF(A4remlife="N/A","n/a",(A4value-$G$633)/A4remlife)) -> 0.2865189191
E116: Capex in year | F116: Adj | H116: =-'APA_Act 2007-11 Real'!E79/1000 -> -0.02664249782 | I116: =-'APA_Act 2007-11 Real'!F79/1000 -> -0.03128514185 | J116: =-'APA_Act 2007-11 Real'!G79/1000 -> -0.1690169082 | K116: =-'APA_Act 2007-11 Real'!H79/1000 -> -0.1845076761 | L116: =-'APA_Act 2007-11 Real'!I79/1000 -> -0.2061679234 | M116: =-'APA_Act 2007-11 Real'!J79/1000 -> -0.2224998496
F117: 1 | I117: =IF(A4stdlife="n/a","n/a",IF(I$3>(A4stdlife+$F117),(Input!$H$214*(1+vanilla1)^0.5)-SUM($H117:H117),(Input!$H$214*(1+vanilla1)^0.5)/A4stdlife)) -> 0 | J117: =IF(A4stdlife="n/a","n/a",IF(J$3>(A4stdlife+$F117),(Input!$H$214*(1+vanilla1)^0.5)-SUM($H117:I117),(Input!$H$214*(1+vanilla1)^0.5)/A4stdlife)) -> 0 | K117: =IF(A4stdlife="n/a","n/a",IF(K$3>(A4stdlife+$F117),(Input!$H$214*(1+vanilla1)^0.5)-SUM($H117:J117),(Input!$H$214*(1+vanilla1)^0.5)/A4stdlife)) -> 0 | L117: =IF(A4stdlife="n/a","n/a",IF(L$3>(A4stdlife+$F117),(Input!$H$214*(1+vanilla1)^0.5)-SUM($H117:K117),(Input!$H$214*(1+vanilla1)^0.5)/A4stdlife)) -> 0 | M117: =IF(A4stdlife="n/a","n/a",IF(M$3>(A4stdlife+$F117),(Input!$H$214*(1+vanilla1)^0.5)-SUM($H117:L117),(Input!$H$214*(1+vanilla1)^0.5)/A4stdlife)) -> 0 | N117: =IF(A4stdlife="n/a","n/a",IF(N$3>(A4stdlife+$F117),(Input!$H$214*(1+vanilla1)^0.5)-SUM($H117:M117),(Input!$H$214*(1+vanilla1)^0.5)/A4stdlife)) -> 0 | O117: =IF(A4stdlife="n/a","n/a",IF(O$3>(A4stdlife+$F117),(Input!$H$214*(1+vanilla1)^0.5)-SUM($H117:N117),(Input!$H$214*(1+vanilla1)^0.5)/A4stdlife)) -> 0 | P117: =IF(A4stdlife="n/a","n/a",IF(P$3>(A4stdlife+$F117),(Input!$H$214*(1+vanilla1)^0.5)-SUM($H117:O117),(Input!$H$214*(1+vanilla1)^0.5)/A4stdlife)) -> 0 | Q117: =IF(A4stdlife="n/a","n/a",IF(Q$3>(A4stdlife+$F117),(Input!$H$214*(1+vanilla1)^0.5)-SUM($H117:P117),(Input!$H$214*(1+vanilla1)^0.5)/A4stdlife)) -> 0
F118: 2 | J118: =IF(A4stdlife="n/a","n/a",IF(J$3>(A4stdlife+$F118),(Input!$I$214*(1+vanilla2)^0.5)-SUM($I118:I118),(Input!$I$214*(1+vanilla2)^0.5)/A4stdlife)) -> 0 | K118: =IF(A4stdlife="n/a","n/a",IF(K$3>(A4stdlife+$F118),(Input!$I$214*(1+vanilla2)^0.5)-SUM($I118:J118),(Input!$I$214*(1+vanilla2)^0.5)/A4stdlife)) -> 0 | L118: =IF(A4stdlife="n/a","n/a",IF(L$3>(A4stdlife+$F118),(Input!$I$214*(1+vanilla2)^0.5)-SUM($I118:K118),(Input!$I$214*(1+vanilla2)^0.5)/A4stdlife)) -> 0 | M118: =IF(A4stdlife="n/a","n/a",IF(M$3>(A4stdlife+$F118),(Input!$I$214*(1+vanilla2)^0.5)-SUM($I118:L118),(Input!$I$214*(1+vanilla2)^0.5)/A4stdlife)) -> 0 | N118: =IF(A4stdlife="n/a","n/a",IF(N$3>(A4stdlife+$F118),(Input!$I$214*(1+vanilla2)^0.5)-SUM($I118:M118),(Input!$I$214*(1+vanilla2)^0.5)/A4stdlife)) -> 0 | O118: =IF(A4stdlife="n/a","n/a",IF(O$3>(A4stdlife+$F118),(Input!$I$214*(1+vanilla2)^0.5)-SUM($I118:N118),(Input!$I$214*(1+vanilla2)^0.5)/A4stdlife)) -> 0 | P118: =IF(A4stdlife="n/a","n/a",IF(P$3>(A4stdlife+$F118),(Input!$I$214*(1+vanilla2)^0.5)-SUM($I118:O118),(Input!$I$214*(1+vanilla2)^0.5)/A4stdlife)) -> 0 | Q118: =IF(A4stdlife="n/a","n/a",IF(Q$3>(A4stdlife+$F118),(Input!$I$214*(1+vanilla2)^0.5)-SUM($I118:P118),(Input!$I$214*(1+vanilla2)^0.5)/A4stdlife)) -> 0
F119: 3 | K119: =IF(A4stdlife="n/a","n/a",IF(K$3>(A4stdlife+$F119),(Input!$J$214*(1+vanilla3)^0.5)-SUM($J119:J119),(Input!$J$214*(1+vanilla3)^0.5)/A4stdlife)) -> 0 | L119: =IF(A4stdlife="n/a","n/a",IF(L$3>(A4stdlife+$F119),(Input!$J$214*(1+vanilla3)^0.5)-SUM($J119:K119),(Input!$J$214*(1+vanilla3)^0.5)/A4stdlife)) -> 0 | M119: =IF(A4stdlife="n/a","n/a",IF(M$3>(A4stdlife+$F119),(Input!$J$214*(1+vanilla3)^0.5)-SUM($J119:L119),(Input!$J$214*(1+vanilla3)^0.5)/A4stdlife)) -> 0 | N119: =IF(A4stdlife="n/a","n/a",IF(N$3>(A4stdlife+$F119),(Input!$J$214*(1+vanilla3)^0.5)-SUM($J119:M119),(Input!$J$214*(1+vanilla3)^0.5)/A4stdlife)) -> 0 | O119: =IF(A4stdlife="n/a","n/a",IF(O$3>(A4stdlife+$F119),(Input!$J$214*(1+vanilla3)^0.5)-SUM($J119:N119),(Input!$J$214*(1+vanilla3)^0.5)/A4stdlife)) -> 0 | P119: =IF(A4stdlife="n/a","n/a",IF(P$3>(A4stdlife+$F119),(Input!$J$214*(1+vanilla3)^0.5)-SUM($J119:O119),(Input!$J$214*(1+vanilla3)^0.5)/A4stdlife)) -> 0 | Q119: =IF(A4stdlife="n/a","n/a",IF(Q$3>(A4stdlife+$F119),(Input!$J$214*(1+vanilla3)^0.5)-SUM($J119:P119),(Input!$J$214*(1+vanilla3)^0.5)/A4stdlife)) -> 0
F120: 4 | L120: =IF(A4stdlife="n/a","n/a",IF(L$3>(A4stdlife+$F120),(Input!$K$214*(1+vanilla4)^0.5)-SUM($K120:K120),(Input!$K$214*(1+vanilla4)^0.5)/A4stdlife)) -> 0 | M120: =IF(A4stdlife="n/a","n/a",IF(M$3>(A4stdlife+$F120),(Input!$K$214*(1+vanilla4)^0.5)-SUM($K120:L120),(Input!$K$214*(1+vanilla4)^0.5)/A4stdlife)) -> 0 | N120: =IF(A4stdlife="n/a","n/a",IF(N$3>(A4stdlife+$F120),(Input!$K$214*(1+vanilla4)^0.5)-SUM($K120:M120),(Input!$K$214*(1+vanilla4)^0.5)/A4stdlife)) -> 0 | O120: =IF(A4stdlife="n/a","n/a",IF(O$3>(A4stdlife+$F120),(Input!$K$214*(1+vanilla4)^0.5)-SUM($K120:N120),(Input!$K$214*(1+vanilla4)^0.5)/A4stdlife)) -> 0 | P120: =IF(A4stdlife="n/a","n/a",IF(P$3>(A4stdlife+$F120),(Input!$K$214*(1+vanilla4)^0.5)-SUM($K120:O120),(Input!$K$214*(1+vanilla4)^0.5)/A4stdlife)) -> 0 | Q120: =IF(A4stdlife="n/a","n/a",IF(Q$3>(A4stdlife+$F120),(Input!$K$214*(1+vanilla4)^0.5)-SUM($K120:P120),(Input!$K$214*(1+vanilla4)^0.5)/A4stdlife)) -> 0
F121: 5 | M121: =IF(A4stdlife="n/a","n/a",IF(M$3>(A4stdlife+$F121),(Input!$L$214*(1+vanilla5)^0.5)-SUM($L121:L121),(Input!$L$214*(1+vanilla5)^0.5)/A4stdlife)) -> 0 | N121: =IF(A4stdlife="n/a","n/a",IF(N$3>(A4stdlife+$F121),(Input!$L$214*(1+vanilla5)^0.5)-SUM($L121:M121),(Input!$L$214*(1+vanilla5)^0.5)/A4stdlife)) -> 0 | O121: =IF(A4stdlife="n/a","n/a",IF(O$3>(A4stdlife+$F121),(Input!$L$214*(1+vanilla5)^0.5)-SUM($L121:N121),(Input!$L$214*(1+vanilla5)^0.5)/A4stdlife)) -> 0 | P121: =IF(A4stdlife="n/a","n/a",IF(P$3>(A4stdlife+$F121),(Input!$L$214*(1+vanilla5)^0.5)-SUM($L121:O121),(Input!$L$214*(1+vanilla5)^0.5)/A4stdlife)) -> 0 | Q121: =IF(A4stdlife="n/a","n/a",IF(Q$3>(A4stdlife+$F121),(Input!$L$214*(1+vanilla5)^0.5)-SUM($L121:P121),(Input!$L$214*(1+vanilla5)^0.5)/A4stdlife)) -> 0
F122: 6 | N122: =IF(A4stdlife="n/a","n/a",IF(N$3>(A4stdlife+$F122),(Input!$M$214*(1+vanilla6)^0.5)-SUM($M122:M122),(Input!$M$214*(1+vanilla6)^0.5)/A4stdlife)) -> 0 | O122: =IF(A4stdlife="n/a","n/a",IF(O$3>(A4stdlife+$F122),(Input!$M$214*(1+vanilla6)^0.5)-SUM($M122:N122),(Input!$M$214*(1+vanilla6)^0.5)/A4stdlife)) -> 0 | P122: =IF(A4stdlife="n/a","n/a",IF(P$3>(A4stdlife+$F122),(Input!$M$214*(1+vanilla6)^0.5)-SUM($M122:O122),(Input!$M$214*(1+vanilla6)^0.5)/A4stdlife)) -> 0 | Q122: =IF(A4stdlife="n/a","n/a",IF(Q$3>(A4stdlife+$F122),(Input!$M$214*(1+vanilla6)^0.5)-SUM($M122:P122),(Input!$M$214*(1+vanilla6)^0.5)/A4stdlife)) -> 0
F123: 7 | O123: =IF(A4stdlife="n/a","n/a",IF(O$3>(A4stdlife+$F123),(Input!$N$214*(1+vanilla7)^0.5)-SUM($N123:N123),(Input!$N$214*(1+vanilla7)^0.5)/A4stdlife)) -> 0 | P123: =IF(A4stdlife="n/a","n/a",IF(P$3>(A4stdlife+$F123),(Input!$N$214*(1+vanilla7)^0.5)-SUM($N123:O123),(Input!$N$214*(1+vanilla7)^0.5)/A4stdlife)) -> 0 | Q123: =IF(A4stdlife="n/a","n/a",IF(Q$3>(A4stdlife+$F123),(Input!$N$214*(1+vanilla7)^0.5)-SUM($N123:P123),(Input!$N$214*(1+vanilla7)^0.5)/A4stdlife)) -> 0
F124: 8 | P124: =IF(A4stdlife="n/a","n/a",IF(P$3>(A4stdlife+$F124),(Input!$O$214*(1+vanilla8)^0.5)-SUM($O124:O124),(Input!$O$214*(1+vanilla8)^0.5)/A4stdlife)) -> 0 | Q124: =IF(A4stdlife="n/a","n/a",IF(Q$3>(A4stdlife+$F124),(Input!$O$214*(1+vanilla8)^0.5)-SUM($O124:P124),(Input!$O$214*(1+vanilla8)^0.5)/A4stdlife)) -> 0
F125: 9 | Q125: =IF(A4stdlife="n/a","n/a",IF(Q$3>(A4stdlife+$F125),(Input!$P$214*(1+vanilla9)^0.5)-SUM($P125:P125),(Input!$P$214*(1+vanilla9)^0.5)/A4stdlife)) -> 0
F126: 10
D127: =Asset4 -> Looping 3 | H127: =-SUM(H115:H126) -> -0.2598764212 | I127: =-SUM(I115:I126) -> -0.2552337772 | J127: =-SUM(J115:J126) -> -0.1175020109 | K127: =-SUM(K115:K126) -> -0.102011243 | L127: =-SUM(L115:L126) -> -0.08035099568 | M127: =IF(COUNT($H127:L127)>=Input!$W$7,0, -SUM(M115:M126)) -> -0.0640190695 | N127: =IF(COUNT($H127:M127)>=Input!$W$7,0, -SUM(N115:N126)) -> 0 | O127: =IF(COUNT($H127:N127)>=Input!$W$7,0, -SUM(O115:O126)) -> 0 | P127: =IF(COUNT($H127:O127)>=Input!$W$7,0, -SUM(P115:P126)) -> 0 | Q127: =IF(COUNT($H127:P127)>=Input!$W$7,0, -SUM(Q115:Q126)) -> 0
C128: =Asset5 -> Looping 4 | E128: Opening RAB | H128: =IF(H$3>A5remlife,A5value-$G$634-SUM($G128:G128),IF(A5remlife="N/A","n/a",(A5value-$G$634)/A5remlife)) -> 0.3915894029 | I128: =IF(I$3>A5remlife,A5value-$G$634-SUM($G128:H128),IF(A5remlife="N/A","n/a",(A5value-$G$634)/A5remlife)) -> 0.3915894029 | J128: =IF(J$3>A5remlife,A5value-$G$634-SUM($G128:I128),IF(A5remlife="N/A","n/a",(A5value-$G$634)/A5remlife)) -> 0.3915894029 | K128: =IF(K$3>A5remlife,A5value-$G$634-SUM($G128:J128),IF(A5remlife="N/A","n/a",(A5value-$G$634)/A5remlife)) -> 0.3915894029 | L128: =IF(L$3>A5remlife,A5value-$G$634-SUM($G128:K128),IF(A5remlife="N/A","n/a",(A5value-$G$634)/A5remlife)) -> 0.3915894029 | M128: =IF(M$3>A5remlife,A5value-$G$634-SUM($G128:L128),IF(A5remlife="N/A","n/a",(A5value-$G$634)/A5remlife)) -> 0.3915894029 | N128: =IF(N$3>A5remlife,A5value-$G$634-SUM($G128:M128),IF(A5remlife="N/A","n/a",(A5value-$G$634)/A5remlife)) -> 0.3915894029 | O128: =IF(O$3>A5remlife,A5value-$G$634-SUM($G128:N128),IF(A5remlife="N/A","n/a",(A5value-$G$634)/A5remlife)) -> 0.3915894029 | P128: =IF(P$3>A5remlife,A5value-$G$634-SUM($G128:O128),IF(A5remlife="N/A","n/a",(A5value-$G$634)/A5remlife)) -> 0.3915894029 | Q128: =IF(Q$3>A5remlife,A5value-$G$634-SUM($G128:P128),IF(A5remlife="N/A","n/a",(A5value-$G$634)/A5remlife)) -> 0.3915894029
E129: Capex in year | F129: Adj | H129: =-'APA_Act 2007-11 Real'!E86/1000 -> -0.03641267337 | I129: =-'APA_Act 2007-11 Real'!F86/1000 -> -0.04275783971 | J129: =-'APA_Act 2007-11 Real'!G86/1000 -> -0.2309977658 | K129: =-'APA_Act 2007-11 Real'!H86/1000 -> -0.2521692142 | L129: =-'APA_Act 2007-11 Real'!I86/1000 -> -0.2817725764 | M129: =-'APA_Act 2007-11 Real'!J86/1000 -> -0.3040936477
F130: 1 | I130: =IF(A5stdlife="n/a","n/a",IF(I$3>(A5stdlife+$F130),(Input!$H$215*(1+vanilla1)^0.5)-SUM($H130:H130),(Input!$H$215*(1+vanilla1)^0.5)/A5stdlife)) -> 0 | J130: =IF(A5stdlife="n/a","n/a",IF(J$3>(A5stdlife+$F130),(Input!$H$215*(1+vanilla1)^0.5)-SUM($H130:I130),(Input!$H$215*(1+vanilla1)^0.5)/A5stdlife)) -> 0 | K130: =IF(A5stdlife="n/a","n/a",IF(K$3>(A5stdlife+$F130),(Input!$H$215*(1+vanilla1)^0.5)-SUM($H130:J130),(Input!$H$215*(1+vanilla1)^0.5)/A5stdlife)) -> 0 | L130: =IF(A5stdlife="n/a","n/a",IF(L$3>(A5stdlife+$F130),(Input!$H$215*(1+vanilla1)^0.5)-SUM($H130:K130),(Input!$H$215*(1+vanilla1)^0.5)/A5stdlife)) -> 0 | M130: =IF(A5stdlife="n/a","n/a",IF(M$3>(A5stdlife+$F130),(Input!$H$215*(1+vanilla1)^0.5)-SUM($H130:L130),(Input!$H$215*(1+vanilla1)^0.5)/A5stdlife)) -> 0 | N130: =IF(A5stdlife="n/a","n/a",IF(N$3>(A5stdlife+$F130),(Input!$H$215*(1+vanilla1)^0.5)-SUM($H130:M130),(Input!$H$215*(1+vanilla1)^0.5)/A5stdlife)) -> 0 | O130: =IF(A5stdlife="n/a","n/a",IF(O$3>(A5stdlife+$F130),(Input!$H$215*(1+vanilla1)^0.5)-SUM($H130:N130),(Input!$H$215*(1+vanilla1)^0.5)/A5stdlife)) -> 0 | P130: =IF(A5stdlife="n/a","n/a",IF(P$3>(A5stdlife+$F130),(Input!$H$215*(1+vanilla1)^0.5)-SUM($H130:O130),(Input!$H$215*(1+vanilla1)^0.5)/A5stdlife)) -> 0 | Q130: =IF(A5stdlife="n/a","n/a",IF(Q$3>(A5stdlife+$F130),(Input!$H$215*(1+vanilla1)^0.5)-SUM($H130:P130),(Input!$H$215*(1+vanilla1)^0.5)/A5stdlife)) -> 0
F131: 2 | J131: =IF(A5stdlife="n/a","n/a",IF(J$3>(A5stdlife+$F131),(Input!$I$215*(1+vanilla2)^0.5)-SUM($I131:I131),(Input!$I$215*(1+vanilla2)^0.5)/A5stdlife)) -> 0 | K131: =IF(A5stdlife="n/a","n/a",IF(K$3>(A5stdlife+$F131),(Input!$I$215*(1+vanilla2)^0.5)-SUM($I131:J131),(Input!$I$215*(1+vanilla2)^0.5)/A5stdlife)) -> 0 | L131: =IF(A5stdlife="n/a","n/a",IF(L$3>(A5stdlife+$F131),(Input!$I$215*(1+vanilla2)^0.5)-SUM($I131:K131),(Input!$I$215*(1+vanilla2)^0.5)/A5stdlife)) -> 0 | M131: =IF(A5stdlife="n/a","n/a",IF(M$3>(A5stdlife+$F131),(Input!$I$215*(1+vanilla2)^0.5)-SUM($I131:L131),(Input!$I$215*(1+vanilla2)^0.5)/A5stdlife)) -> 0 | N131: =IF(A5stdlife="n/a","n/a",IF(N$3>(A5stdlife+$F131),(Input!$I$215*(1+vanilla2)^0.5)-SUM($I131:M131),(Input!$I$215*(1+vanilla2)^0.5)/A5stdlife)) -> 0 | O131: =IF(A5stdlife="n/a","n/a",IF(O$3>(A5stdlife+$F131),(Input!$I$215*(1+vanilla2)^0.5)-SUM($I131:N131),(Input!$I$215*(1+vanilla2)^0.5)/A5stdlife)) -> 0 | P131: =IF(A5stdlife="n/a","n/a",IF(P$3>(A5stdlife+$F131),(Input!$I$215*(1+vanilla2)^0.5)-SUM($I131:O131),(Input!$I$215*(1+vanilla2)^0.5)/A5stdlife)) -> 0 | Q131: =IF(A5stdlife="n/a","n/a",IF(Q$3>(A5stdlife+$F131),(Input!$I$215*(1+vanilla2)^0.5)-SUM($I131:P131),(Input!$I$215*(1+vanilla2)^0.5)/A5stdlife)) -> 0
F132: 3 | K132: =IF(A5stdlife="n/a","n/a",IF(K$3>(A5stdlife+$F132),(Input!$J$215*(1+vanilla3)^0.5)-SUM($J132:J132),(Input!$J$215*(1+vanilla3)^0.5)/A5stdlife)) -> 0 | L132: =IF(A5stdlife="n/a","n/a",IF(L$3>(A5stdlife+$F132),(Input!$J$215*(1+vanilla3)^0.5)-SUM($J132:K132),(Input!$J$215*(1+vanilla3)^0.5)/A5stdlife)) -> 0 | M132: =IF(A5stdlife="n/a","n/a",IF(M$3>(A5stdlife+$F132),(Input!$J$215*(1+vanilla3)^0.5)-SUM($J132:L132),(Input!$J$215*(1+vanilla3)^0.5)/A5stdlife)) -> 0 | N132: =IF(A5stdlife="n/a","n/a",IF(N$3>(A5stdlife+$F132),(Input!$J$215*(1+vanilla3)^0.5)-SUM($J132:M132),(Input!$J$215*(1+vanilla3)^0.5)/A5stdlife)) -> 0 | O132: =IF(A5stdlife="n/a","n/a",IF(O$3>(A5stdlife+$F132),(Input!$J$215*(1+vanilla3)^0.5)-SUM($J132:N132),(Input!$J$215*(1+vanilla3)^0.5)/A5stdlife)) -> 0 | P132: =IF(A5stdlife="n/a","n/a",IF(P$3>(A5stdlife+$F132),(Input!$J$215*(1+vanilla3)^0.5)-SUM($J132:O132),(Input!$J$215*(1+vanilla3)^0.5)/A5stdlife)) -> 0 | Q132: =IF(A5stdlife="n/a","n/a",IF(Q$3>(A5stdlife+$F132),(Input!$J$215*(1+vanilla3)^0.5)-SUM($J132:P132),(Input!$J$215*(1+vanilla3)^0.5)/A5stdlife)) -> 0
F133: 4 | L133: =IF(A5stdlife="n/a","n/a",IF(L$3>(A5stdlife+$F133),(Input!$K$215*(1+vanilla4)^0.5)-SUM($K133:K133),(Input!$K$215*(1+vanilla4)^0.5)/A5stdlife)) -> 0 | M133: =IF(A5stdlife="n/a","n/a",IF(M$3>(A5stdlife+$F133),(Input!$K$215*(1+vanilla4)^0.5)-SUM($K133:L133),(Input!$K$215*(1+vanilla4)^0.5)/A5stdlife)) -> 0 | N133: =IF(A5stdlife="n/a","n/a",IF(N$3>(A5stdlife+$F133),(Input!$K$215*(1+vanilla4)^0.5)-SUM($K133:M133),(Input!$K$215*(1+vanilla4)^0.5)/A5stdlife)) -> 0 | O133: =IF(A5stdlife="n/a","n/a",IF(O$3>(A5stdlife+$F133),(Input!$K$215*(1+vanilla4)^0.5)-SUM($K133:N133),(Input!$K$215*(1+vanilla4)^0.5)/A5stdlife)) -> 0 | P133: =IF(A5stdlife="n/a","n/a",IF(P$3>(A5stdlife+$F133),(Input!$K$215*(1+vanilla4)^0.5)-SUM($K133:O133),(Input!$K$215*(1+vanilla4)^0.5)/A5stdlife)) -> 0 | Q133: =IF(A5stdlife="n/a","n/a",IF(Q$3>(A5stdlife+$F133),(Input!$K$215*(1+vanilla4)^0.5)-SUM($K133:P133),(Input!$K$215*(1+vanilla4)^0.5)/A5stdlife)) -> 0
F134: 5 | M134: =IF(A5stdlife="n/a","n/a",IF(M$3>(A5stdlife+$F134),(Input!$L$215*(1+vanilla5)^0.5)-SUM($L134:L134),(Input!$L$215*(1+vanilla5)^0.5)/A5stdlife)) -> 0 | N134: =IF(A5stdlife="n/a","n/a",IF(N$3>(A5stdlife+$F134),(Input!$L$215*(1+vanilla5)^0.5)-SUM($L134:M134),(Input!$L$215*(1+vanilla5)^0.5)/A5stdlife)) -> 0 | O134: =IF(A5stdlife="n/a","n/a",IF(O$3>(A5stdlife+$F134),(Input!$L$215*(1+vanilla5)^0.5)-SUM($L134:N134),(Input!$L$215*(1+vanilla5)^0.5)/A5stdlife)) -> 0 | P134: =IF(A5stdlife="n/a","n/a",IF(P$3>(A5stdlife+$F134),(Input!$L$215*(1+vanilla5)^0.5)-SUM($L134:O134),(Input!$L$215*(1+vanilla5)^0.5)/A5stdlife)) -> 0 | Q134: =IF(A5stdlife="n/a","n/a",IF(Q$3>(A5stdlife+$F134),(Input!$L$215*(1+vanilla5)^0.5)-SUM($L134:P134),(Input!$L$215*(1+vanilla5)^0.5)/A5stdlife)) -> 0
F135: 6 | N135: =IF(A5stdlife="n/a","n/a",IF(N$3>(A5stdlife+$F135),(Input!$M$215*(1+vanilla6)^0.5)-SUM($M135:M135),(Input!$M$215*(1+vanilla6)^0.5)/A5stdlife)) -> 0 | O135: =IF(A5stdlife="n/a","n/a",IF(O$3>(A5stdlife+$F135),(Input!$M$215*(1+vanilla6)^0.5)-SUM($M135:N135),(Input!$M$215*(1+vanilla6)^0.5)/A5stdlife)) -> 0 | P135: =IF(A5stdlife="n/a","n/a",IF(P$3>(A5stdlife+$F135),(Input!$M$215*(1+vanilla6)^0.5)-SUM($M135:O135),(Input!$M$215*(1+vanilla6)^0.5)/A5stdlife)) -> 0 | Q135: =IF(A5stdlife="n/a","n/a",IF(Q$3>(A5stdlife+$F135),(Input!$M$215*(1+vanilla6)^0.5)-SUM($M135:P135),(Input!$M$215*(1+vanilla6)^0.5)/A5stdlife)) -> 0
F136: 7 | O136: =IF(A5stdlife="n/a","n/a",IF(O$3>(A5stdlife+$F136),(Input!$N$215*(1+vanilla7)^0.5)-SUM($N136:N136),(Input!$N$215*(1+vanilla7)^0.5)/A5stdlife)) -> 0 | P136: =IF(A5stdlife="n/a","n/a",IF(P$3>(A5stdlife+$F136),(Input!$N$215*(1+vanilla7)^0.5)-SUM($N136:O136),(Input!$N$215*(1+vanilla7)^0.5)/A5stdlife)) -> 0 | Q136: =IF(A5stdlife="n/a","n/a",IF(Q$3>(A5stdlife+$F136),(Input!$N$215*(1+vanilla7)^0.5)-SUM($N136:P136),(Input!$N$215*(1+vanilla7)^0.5)/A5stdlife)) -> 0
F137: 8 | P137: =IF(A5stdlife="n/a","n/a",IF(P$3>(A5stdlife+$F137),(Input!$O$215*(1+vanilla8)^0.5)-SUM($O137:O137),(Input!$O$215*(1+vanilla8)^0.5)/A5stdlife)) -> 0 | Q137: =IF(A5stdlife="n/a","n/a",IF(Q$3>(A5stdlife+$F137),(Input!$O$215*(1+vanilla8)^0.5)-SUM($O137:P137),(Input!$O$215*(1+vanilla8)^0.5)/A5stdlife)) -> 0
F138: 9 | Q138: =IF(A5stdlife="n/a","n/a",IF(Q$3>(A5stdlife+$F138),(Input!$P$215*(1+vanilla9)^0.5)-SUM($P138:P138),(Input!$P$215*(1+vanilla9)^0.5)/A5stdlife)) -> 0
F139: 10
D140: =Asset5 -> Looping 4 | H140: =-SUM(H128:H139) -> -0.3551767295 | I140: =-SUM(I128:I139) -> -0.3488315631 | J140: =-SUM(J128:J139) -> -0.1605916371 | K140: =-SUM(K128:K139) -> -0.1394201886 | L140: =-SUM(L128:L139) -> -0.1098168265 | M140: =IF(COUNT($H140:L140)>=Input!$W$7,0, -SUM(M128:M139)) -> -0.08749575518 | N140: =IF(COUNT($H140:M140)>=Input!$W$7,0, -SUM(N128:N139)) -> 0 | O140: =IF(COUNT($H140:N140)>=Input!$W$7,0, -SUM(O128:O139)) -> 0 | P140: =IF(COUNT($H140:O140)>=Input!$W$7,0, -SUM(P128:P139)) -> 0 | Q140: =IF(COUNT($H140:P140)>=Input!$W$7,0, -SUM(Q128:Q139)) -> 0
C141: =Asset6 -> Looping 5 | E141: Opening RAB | H141: =IF(H$3>A6remlife,A6value-$G$635-SUM($G141:G141),IF(A6remlife="N/A","n/a",(A6value-$G$635)/A6remlife)) -> 1.211988877 | I141: =IF(I$3>A6remlife,A6value-$G$635-SUM($G141:H141),IF(A6remlife="N/A","n/a",(A6value-$G$635)/A6remlife)) -> 1.211988877 | J141: =IF(J$3>A6remlife,A6value-$G$635-SUM($G141:I141),IF(A6remlife="N/A","n/a",(A6value-$G$635)/A6remlife)) -> 1.211988877 | K141: =IF(K$3>A6remlife,A6value-$G$635-SUM($G141:J141),IF(A6remlife="N/A","n/a",(A6value-$G$635)/A6remlife)) -> 1.211988877 | L141: =IF(L$3>A6remlife,A6value-$G$635-SUM($G141:K141),IF(A6remlife="N/A","n/a",(A6value-$G$635)/A6remlife)) -> 1.211988877 | M141: =IF(M$3>A6remlife,A6value-$G$635-SUM($G141:L141),IF(A6remlife="N/A","n/a",(A6value-$G$635)/A6remlife)) -> 1.211988877 | N141: =IF(N$3>A6remlife,A6value-$G$635-SUM($G141:M141),IF(A6remlife="N/A","n/a",(A6value-$G$635)/A6remlife)) -> 1.211988877 | O141: =IF(O$3>A6remlife,A6value-$G$635-SUM($G141:N141),IF(A6remlife="N/A","n/a",(A6value-$G$635)/A6remlife)) -> 1.211988877 | P141: =IF(P$3>A6remlife,A6value-$G$635-SUM($G141:O141),IF(A6remlife="N/A","n/a",(A6value-$G$635)/A6remlife)) -> 1.211988877 | Q141: =IF(Q$3>A6remlife,A6value-$G$635-SUM($G141:P141),IF(A6remlife="N/A","n/a",(A6value-$G$635)/A6remlife)) -> 1.211988877
E142: Capex in year | F142: Adj | H142: =-'APA_Act 2007-11 Real'!E93/1000 -> -0.1126990536 | I142: =-'APA_Act 2007-11 Real'!F93/1000 -> -0.1323376623 | J142: =-'APA_Act 2007-11 Real'!G93/1000 -> -0.7149496916 | K142: =-'APA_Act 2007-11 Real'!H93/1000 -> -0.7804763884 | L142: =-'APA_Act 2007-11 Real'!I93/1000 -> -0.8721002816 | M142: =-'APA_Act 2007-11 Real'!J93/1000 -> -0.9411851188
F143: 1 | I143: =IF(A6stdlife="n/a","n/a",IF(I$3>(A6stdlife+$F143),(Input!$H$216*(1+vanilla1)^0.5)-SUM($H143:H143),(Input!$H$216*(1+vanilla1)^0.5)/A6stdlife)) -> 0 | J143: =IF(A6stdlife="n/a","n/a",IF(J$3>(A6stdlife+$F143),(Input!$H$216*(1+vanilla1)^0.5)-SUM($H143:I143),(Input!$H$216*(1+vanilla1)^0.5)/A6stdlife)) -> 0 | K143: =IF(A6stdlife="n/a","n/a",IF(K$3>(A6stdlife+$F143),(Input!$H$216*(1+vanilla1)^0.5)-SUM($H143:J143),(Input!$H$216*(1+vanilla1)^0.5)/A6stdlife)) -> 0 | L143: =IF(A6stdlife="n/a","n/a",IF(L$3>(A6stdlife+$F143),(Input!$H$216*(1+vanilla1)^0.5)-SUM($H143:K143),(Input!$H$216*(1+vanilla1)^0.5)/A6stdlife)) -> 0 | M143: =IF(A6stdlife="n/a","n/a",IF(M$3>(A6stdlife+$F143),(Input!$H$216*(1+vanilla1)^0.5)-SUM($H143:L143),(Input!$H$216*(1+vanilla1)^0.5)/A6stdlife)) -> 0 | N143: =IF(A6stdlife="n/a","n/a",IF(N$3>(A6stdlife+$F143),(Input!$H$216*(1+vanilla1)^0.5)-SUM($H143:M143),(Input!$H$216*(1+vanilla1)^0.5)/A6stdlife)) -> 0 | O143: =IF(A6stdlife="n/a","n/a",IF(O$3>(A6stdlife+$F143),(Input!$H$216*(1+vanilla1)^0.5)-SUM($H143:N143),(Input!$H$216*(1+vanilla1)^0.5)/A6stdlife)) -> 0 | P143: =IF(A6stdlife="n/a","n/a",IF(P$3>(A6stdlife+$F143),(Input!$H$216*(1+vanilla1)^0.5)-SUM($H143:O143),(Input!$H$216*(1+vanilla1)^0.5)/A6stdlife)) -> 0 | Q143: =IF(A6stdlife="n/a","n/a",IF(Q$3>(A6stdlife+$F143),(Input!$H$216*(1+vanilla1)^0.5)-SUM($H143:P143),(Input!$H$216*(1+vanilla1)^0.5)/A6stdlife)) -> 0
F144: 2 | J144: =IF(A6stdlife="n/a","n/a",IF(J$3>(A6stdlife+$F144),(Input!$I$216*(1+vanilla2)^0.5)-SUM($I144:I144),(Input!$I$216*(1+vanilla2)^0.5)/A6stdlife)) -> 0 | K144: =IF(A6stdlife="n/a","n/a",IF(K$3>(A6stdlife+$F144),(Input!$I$216*(1+vanilla2)^0.5)-SUM($I144:J144),(Input!$I$216*(1+vanilla2)^0.5)/A6stdlife)) -> 0 | L144: =IF(A6stdlife="n/a","n/a",IF(L$3>(A6stdlife+$F144),(Input!$I$216*(1+vanilla2)^0.5)-SUM($I144:K144),(Input!$I$216*(1+vanilla2)^0.5)/A6stdlife)) -> 0 | M144: =IF(A6stdlife="n/a","n/a",IF(M$3>(A6stdlife+$F144),(Input!$I$216*(1+vanilla2)^0.5)-SUM($I144:L144),(Input!$I$216*(1+vanilla2)^0.5)/A6stdlife)) -> 0 | N144: =IF(A6stdlife="n/a","n/a",IF(N$3>(A6stdlife+$F144),(Input!$I$216*(1+vanilla2)^0.5)-SUM($I144:M144),(Input!$I$216*(1+vanilla2)^0.5)/A6stdlife)) -> 0 | O144: =IF(A6stdlife="n/a","n/a",IF(O$3>(A6stdlife+$F144),(Input!$I$216*(1+vanilla2)^0.5)-SUM($I144:N144),(Input!$I$216*(1+vanilla2)^0.5)/A6stdlife)) -> 0 | P144: =IF(A6stdlife="n/a","n/a",IF(P$3>(A6stdlife+$F144),(Input!$I$216*(1+vanilla2)^0.5)-SUM($I144:O144),(Input!$I$216*(1+vanilla2)^0.5)/A6stdlife)) -> 0 | Q144: =IF(A6stdlife="n/a","n/a",IF(Q$3>(A6stdlife+$F144),(Input!$I$216*(1+vanilla2)^0.5)-SUM($I144:P144),(Input!$I$216*(1+vanilla2)^0.5)/A6stdlife)) -> 0
F145: 3 | K145: =IF(A6stdlife="n/a","n/a",IF(K$3>(A6stdlife+$F145),(Input!$J$216*(1+vanilla3)^0.5)-SUM($J145:J145),(Input!$J$216*(1+vanilla3)^0.5)/A6stdlife)) -> 0 | L145: =IF(A6stdlife="n/a","n/a",IF(L$3>(A6stdlife+$F145),(Input!$J$216*(1+vanilla3)^0.5)-SUM($J145:K145),(Input!$J$216*(1+vanilla3)^0.5)/A6stdlife)) -> 0 | M145: =IF(A6stdlife="n/a","n/a",IF(M$3>(A6stdlife+$F145),(Input!$J$216*(1+vanilla3)^0.5)-SUM($J145:L145),(Input!$J$216*(1+vanilla3)^0.5)/A6stdlife)) -> 0 | N145: =IF(A6stdlife="n/a","n/a",IF(N$3>(A6stdlife+$F145),(Input!$J$216*(1+vanilla3)^0.5)-SUM($J145:M145),(Input!$J$216*(1+vanilla3)^0.5)/A6stdlife)) -> 0 | O145: =IF(A6stdlife="n/a","n/a",IF(O$3>(A6stdlife+$F145),(Input!$J$216*(1+vanilla3)^0.5)-SUM($J145:N145),(Input!$J$216*(1+vanilla3)^0.5)/A6stdlife)) -> 0 | P145: =IF(A6stdlife="n/a","n/a",IF(P$3>(A6stdlife+$F145),(Input!$J$216*(1+vanilla3)^0.5)-SUM($J145:O145),(Input!$J$216*(1+vanilla3)^0.5)/A6stdlife)) -> 0 | Q145: =IF(A6stdlife="n/a","n/a",IF(Q$3>(A6stdlife+$F145),(Input!$J$216*(1+vanilla3)^0.5)-SUM($J145:P145),(Input!$J$216*(1+vanilla3)^0.5)/A6stdlife)) -> 0
F146: 4 | L146: =IF(A6stdlife="n/a","n/a",IF(L$3>(A6stdlife+$F146),(Input!$K$216*(1+vanilla4)^0.5)-SUM($K146:K146),(Input!$K$216*(1+vanilla4)^0.5)/A6stdlife)) -> 0 | M146: =IF(A6stdlife="n/a","n/a",IF(M$3>(A6stdlife+$F146),(Input!$K$216*(1+vanilla4)^0.5)-SUM($K146:L146),(Input!$K$216*(1+vanilla4)^0.5)/A6stdlife)) -> 0 | N146: =IF(A6stdlife="n/a","n/a",IF(N$3>(A6stdlife+$F146),(Input!$K$216*(1+vanilla4)^0.5)-SUM($K146:M146),(Input!$K$216*(1+vanilla4)^0.5)/A6stdlife)) -> 0 | O146: =IF(A6stdlife="n/a","n/a",IF(O$3>(A6stdlife+$F146),(Input!$K$216*(1+vanilla4)^0.5)-SUM($K146:N146),(Input!$K$216*(1+vanilla4)^0.5)/A6stdlife)) -> 0 | P146: =IF(A6stdlife="n/a","n/a",IF(P$3>(A6stdlife+$F146),(Input!$K$216*(1+vanilla4)^0.5)-SUM($K146:O146),(Input!$K$216*(1+vanilla4)^0.5)/A6stdlife)) -> 0 | Q146: =IF(A6stdlife="n/a","n/a",IF(Q$3>(A6stdlife+$F146),(Input!$K$216*(1+vanilla4)^0.5)-SUM($K146:P146),(Input!$K$216*(1+vanilla4)^0.5)/A6stdlife)) -> 0
F147: 5 | M147: =IF(A6stdlife="n/a","n/a",IF(M$3>(A6stdlife+$F147),(Input!$L$216*(1+vanilla5)^0.5)-SUM($L147:L147),(Input!$L$216*(1+vanilla5)^0.5)/A6stdlife)) -> 0 | N147: =IF(A6stdlife="n/a","n/a",IF(N$3>(A6stdlife+$F147),(Input!$L$216*(1+vanilla5)^0.5)-SUM($L147:M147),(Input!$L$216*(1+vanilla5)^0.5)/A6stdlife)) -> 0 | O147: =IF(A6stdlife="n/a","n/a",IF(O$3>(A6stdlife+$F147),(Input!$L$216*(1+vanilla5)^0.5)-SUM($L147:N147),(Input!$L$216*(1+vanilla5)^0.5)/A6stdlife)) -> 0 | P147: =IF(A6stdlife="n/a","n/a",IF(P$3>(A6stdlife+$F147),(Input!$L$216*(1+vanilla5)^0.5)-SUM($L147:O147),(Input!$L$216*(1+vanilla5)^0.5)/A6stdlife)) -> 0 | Q147: =IF(A6stdlife="n/a","n/a",IF(Q$3>(A6stdlife+$F147),(Input!$L$216*(1+vanilla5)^0.5)-SUM($L147:P147),(Input!$L$216*(1+vanilla5)^0.5)/A6stdlife)) -> 0
F148: 6 | N148: =IF(A6stdlife="n/a","n/a",IF(N$3>(A6stdlife+$F148),(Input!$M$216*(1+vanilla6)^0.5)-SUM($M148:M148),(Input!$M$216*(1+vanilla6)^0.5)/A6stdlife)) -> 0 | O148: =IF(A6stdlife="n/a","n/a",IF(O$3>(A6stdlife+$F148),(Input!$M$216*(1+vanilla6)^0.5)-SUM($M148:N148),(Input!$M$216*(1+vanilla6)^0.5)/A6stdlife)) -> 0 | P148: =IF(A6stdlife="n/a","n/a",IF(P$3>(A6stdlife+$F148),(Input!$M$216*(1+vanilla6)^0.5)-SUM($M148:O148),(Input!$M$216*(1+vanilla6)^0.5)/A6stdlife)) -> 0 | Q148: =IF(A6stdlife="n/a","n/a",IF(Q$3>(A6stdlife+$F148),(Input!$M$216*(1+vanilla6)^0.5)-SUM($M148:P148),(Input!$M$216*(1+vanilla6)^0.5)/A6stdlife)) -> 0
F149: 7 | O149: =IF(A6stdlife="n/a","n/a",IF(O$3>(A6stdlife+$F149),(Input!$N$216*(1+vanilla7)^0.5)-SUM($N149:N149),(Input!$N$216*(1+vanilla7)^0.5)/A6stdlife)) -> 0 | P149: =IF(A6stdlife="n/a","n/a",IF(P$3>(A6stdlife+$F149),(Input!$N$216*(1+vanilla7)^0.5)-SUM($N149:O149),(Input!$N$216*(1+vanilla7)^0.5)/A6stdlife)) -> 0 | Q149: =IF(A6stdlife="n/a","n/a",IF(Q$3>(A6stdlife+$F149),(Input!$N$216*(1+vanilla7)^0.5)-SUM($N149:P149),(Input!$N$216*(1+vanilla7)^0.5)/A6stdlife)) -> 0
F150: 8 | P150: =IF(A6stdlife="n/a","n/a",IF(P$3>(A6stdlife+$F150),(Input!$O$216*(1+vanilla8)^0.5)-SUM($O150:O150),(Input!$O$216*(1+vanilla8)^0.5)/A6stdlife)) -> 0 | Q150: =IF(A6stdlife="n/a","n/a",IF(Q$3>(A6stdlife+$F150),(Input!$O$216*(1+vanilla8)^0.5)-SUM($O150:P150),(Input!$O$216*(1+vanilla8)^0.5)/A6stdlife)) -> 0
F151: 9 | Q151: =IF(A6stdlife="n/a","n/a",IF(Q$3>(A6stdlife+$F151),(Input!$P$216*(1+vanilla9)^0.5)-SUM($P151:P151),(Input!$P$216*(1+vanilla9)^0.5)/A6stdlife)) -> 0
F152: 10
D153: =Asset6 -> Looping 5 | H153: =-SUM(H141:H152) -> -1.099289824 | I153: =-SUM(I141:I152) -> -1.079651215 | J153: =-SUM(J141:J152) -> -0.4970391858 | K153: =-SUM(K141:K152) -> -0.4315124889 | L153: =-SUM(L141:L152) -> -0.3398885957 | M153: =IF(COUNT($H153:L153)>=Input!$W$7,0, -SUM(M141:M152)) -> -0.2708037585 | N153: =IF(COUNT($H153:M153)>=Input!$W$7,0, -SUM(N141:N152)) -> 0 | O153: =IF(COUNT($H153:N153)>=Input!$W$7,0, -SUM(O141:O152)) -> 0 | P153: =IF(COUNT($H153:O153)>=Input!$W$7,0, -SUM(P141:P152)) -> 0 | Q153: =IF(COUNT($H153:P153)>=Input!$W$7,0, -SUM(Q141:Q152)) -> 0
C154: =Asset7 -> Looping 6 | E154: Opening RAB | H154: =IF(H$3>A7remlife,A7value-$G$636-SUM($G154:G154),IF(A7remlife="N/A","n/a",(A7value-$G$636)/A7remlife)) -> 0.2148114615 | I154: =IF(I$3>A7remlife,A7value-$G$636-SUM($G154:H154),IF(A7remlife="N/A","n/a",(A7value-$G$636)/A7remlife)) -> 0.2148114615 | J154: =IF(J$3>A7remlife,A7value-$G$636-SUM($G154:I154),IF(A7remlife="N/A","n/a",(A7value-$G$636)/A7remlife)) -> 0.2148114615 | K154: =IF(K$3>A7remlife,A7value-$G$636-SUM($G154:J154),IF(A7remlife="N/A","n/a",(A7value-$G$636)/A7remlife)) -> 0.2148114615 | L154: =IF(L$3>A7remlife,A7value-$G$636-SUM($G154:K154),IF(A7remlife="N/A","n/a",(A7value-$G$636)/A7remlife)) -> 0.2148114615 | M154: =IF(M$3>A7remlife,A7value-$G$636-SUM($G154:L154),IF(A7remlife="N/A","n/a",(A7value-$G$636)/A7remlife)) -> 0.2148114615 | N154: =IF(N$3>A7remlife,A7value-$G$636-SUM($G154:M154),IF(A7remlife="N/A","n/a",(A7value-$G$636)/A7remlife)) -> 0.2148114615 | O154: =IF(O$3>A7remlife,A7value-$G$636-SUM($G154:N154),IF(A7remlife="N/A","n/a",(A7value-$G$636)/A7remlife)) -> 0.2148114615 | P154: =IF(P$3>A7remlife,A7value-$G$636-SUM($G154:O154),IF(A7remlife="N/A","n/a",(A7value-$G$636)/A7remlife)) -> 0.2148114615 | Q154: =IF(Q$3>A7remlife,A7value-$G$636-SUM($G154:P154),IF(A7remlife="N/A","n/a",(A7value-$G$636)/A7remlife)) -> 0.2148114615
E155: Capex in year | F155: Adj | H155: =-'APA_Act 2007-11 Real'!E100/1000 -> -0.0199746457 | I155: =-'APA_Act 2007-11 Real'!F100/1000 -> -0.02345536925 | J155: =-'APA_Act 2007-11 Real'!G100/1000 -> -0.1267168297 | K155: =-'APA_Act 2007-11 Real'!H100/1000 -> -0.1383307032 | L155: =-'APA_Act 2007-11 Real'!I100/1000 -> -0.1545700126 | M155: =-'APA_Act 2007-11 Real'!J100/1000 -> -0.1668145267
F156: 1 | I156: =IF(A7stdlife="n/a","n/a",IF(I$3>(A7stdlife+$F156),(Input!$H$217*(1+vanilla1)^0.5)-SUM($H156:H156),(Input!$H$217*(1+vanilla1)^0.5)/A7stdlife)) -> 0 | J156: =IF(A7stdlife="n/a","n/a",IF(J$3>(A7stdlife+$F156),(Input!$H$217*(1+vanilla1)^0.5)-SUM($H156:I156),(Input!$H$217*(1+vanilla1)^0.5)/A7stdlife)) -> 0 | K156: =IF(A7stdlife="n/a","n/a",IF(K$3>(A7stdlife+$F156),(Input!$H$217*(1+vanilla1)^0.5)-SUM($H156:J156),(Input!$H$217*(1+vanilla1)^0.5)/A7stdlife)) -> 0 | L156: =IF(A7stdlife="n/a","n/a",IF(L$3>(A7stdlife+$F156),(Input!$H$217*(1+vanilla1)^0.5)-SUM($H156:K156),(Input!$H$217*(1+vanilla1)^0.5)/A7stdlife)) -> 0 | M156: =IF(A7stdlife="n/a","n/a",IF(M$3>(A7stdlife+$F156),(Input!$H$217*(1+vanilla1)^0.5)-SUM($H156:L156),(Input!$H$217*(1+vanilla1)^0.5)/A7stdlife)) -> 0 | N156: =IF(A7stdlife="n/a","n/a",IF(N$3>(A7stdlife+$F156),(Input!$H$217*(1+vanilla1)^0.5)-SUM($H156:M156),(Input!$H$217*(1+vanilla1)^0.5)/A7stdlife)) -> 0 | O156: =IF(A7stdlife="n/a","n/a",IF(O$3>(A7stdlife+$F156),(Input!$H$217*(1+vanilla1)^0.5)-SUM($H156:N156),(Input!$H$217*(1+vanilla1)^0.5)/A7stdlife)) -> 0 | P156: =IF(A7stdlife="n/a","n/a",IF(P$3>(A7stdlife+$F156),(Input!$H$217*(1+vanilla1)^0.5)-SUM($H156:O156),(Input!$H$217*(1+vanilla1)^0.5)/A7stdlife)) -> 0 | Q156: =IF(A7stdlife="n/a","n/a",IF(Q$3>(A7stdlife+$F156),(Input!$H$217*(1+vanilla1)^0.5)-SUM($H156:P156),(Input!$H$217*(1+vanilla1)^0.5)/A7stdlife)) -> 0
F157: 2 | J157: =IF(A7stdlife="n/a","n/a",IF(J$3>(A7stdlife+$F157),(Input!$I$217*(1+vanilla2)^0.5)-SUM($I157:I157),(Input!$I$217*(1+vanilla2)^0.5)/A7stdlife)) -> 0 | K157: =IF(A7stdlife="n/a","n/a",IF(K$3>(A7stdlife+$F157),(Input!$I$217*(1+vanilla2)^0.5)-SUM($I157:J157),(Input!$I$217*(1+vanilla2)^0.5)/A7stdlife)) -> 0 | L157: =IF(A7stdlife="n/a","n/a",IF(L$3>(A7stdlife+$F157),(Input!$I$217*(1+vanilla2)^0.5)-SUM($I157:K157),(Input!$I$217*(1+vanilla2)^0.5)/A7stdlife)) -> 0 | M157: =IF(A7stdlife="n/a","n/a",IF(M$3>(A7stdlife+$F157),(Input!$I$217*(1+vanilla2)^0.5)-SUM($I157:L157),(Input!$I$217*(1+vanilla2)^0.5)/A7stdlife)) -> 0 | N157: =IF(A7stdlife="n/a","n/a",IF(N$3>(A7stdlife+$F157),(Input!$I$217*(1+vanilla2)^0.5)-SUM($I157:M157),(Input!$I$217*(1+vanilla2)^0.5)/A7stdlife)) -> 0 | O157: =IF(A7stdlife="n/a","n/a",IF(O$3>(A7stdlife+$F157),(Input!$I$217*(1+vanilla2)^0.5)-SUM($I157:N157),(Input!$I$217*(1+vanilla2)^0.5)/A7stdlife)) -> 0 | P157: =IF(A7stdlife="n/a","n/a",IF(P$3>(A7stdlife+$F157),(Input!$I$217*(1+vanilla2)^0.5)-SUM($I157:O157),(Input!$I$217*(1+vanilla2)^0.5)/A7stdlife)) -> 0 | Q157: =IF(A7stdlife="n/a","n/a",IF(Q$3>(A7stdlife+$F157),(Input!$I$217*(1+vanilla2)^0.5)-SUM($I157:P157),(Input!$I$217*(1+vanilla2)^0.5)/A7stdlife)) -> 0
F158: 3 | K158: =IF(A7stdlife="n/a","n/a",IF(K$3>(A7stdlife+$F158),(Input!$J$217*(1+vanilla3)^0.5)-SUM($J158:J158),(Input!$J$217*(1+vanilla3)^0.5)/A7stdlife)) -> 0 | L158: =IF(A7stdlife="n/a","n/a",IF(L$3>(A7stdlife+$F158),(Input!$J$217*(1+vanilla3)^0.5)-SUM($J158:K158),(Input!$J$217*(1+vanilla3)^0.5)/A7stdlife)) -> 0 | M158: =IF(A7stdlife="n/a","n/a",IF(M$3>(A7stdlife+$F158),(Input!$J$217*(1+vanilla3)^0.5)-SUM($J158:L158),(Input!$J$217*(1+vanilla3)^0.5)/A7stdlife)) -> 0 | N158: =IF(A7stdlife="n/a","n/a",IF(N$3>(A7stdlife+$F158),(Input!$J$217*(1+vanilla3)^0.5)-SUM($J158:M158),(Input!$J$217*(1+vanilla3)^0.5)/A7stdlife)) -> 0 | O158: =IF(A7stdlife="n/a","n/a",IF(O$3>(A7stdlife+$F158),(Input!$J$217*(1+vanilla3)^0.5)-SUM($J158:N158),(Input!$J$217*(1+vanilla3)^0.5)/A7stdlife)) -> 0 | P158: =IF(A7stdlife="n/a","n/a",IF(P$3>(A7stdlife+$F158),(Input!$J$217*(1+vanilla3)^0.5)-SUM($J158:O158),(Input!$J$217*(1+vanilla3)^0.5)/A7stdlife)) -> 0 | Q158: =IF(A7stdlife="n/a","n/a",IF(Q$3>(A7stdlife+$F158),(Input!$J$217*(1+vanilla3)^0.5)-SUM($J158:P158),(Input!$J$217*(1+vanilla3)^0.5)/A7stdlife)) -> 0
F159: 4 | L159: =IF(A7stdlife="n/a","n/a",IF(L$3>(A7stdlife+$F159),(Input!$K$217*(1+vanilla4)^0.5)-SUM($K159:K159),(Input!$K$217*(1+vanilla4)^0.5)/A7stdlife)) -> 0 | M159: =IF(A7stdlife="n/a","n/a",IF(M$3>(A7stdlife+$F159),(Input!$K$217*(1+vanilla4)^0.5)-SUM($K159:L159),(Input!$K$217*(1+vanilla4)^0.5)/A7stdlife)) -> 0 | N159: =IF(A7stdlife="n/a","n/a",IF(N$3>(A7stdlife+$F159),(Input!$K$217*(1+vanilla4)^0.5)-SUM($K159:M159),(Input!$K$217*(1+vanilla4)^0.5)/A7stdlife)) -> 0 | O159: =IF(A7stdlife="n/a","n/a",IF(O$3>(A7stdlife+$F159),(Input!$K$217*(1+vanilla4)^0.5)-SUM($K159:N159),(Input!$K$217*(1+vanilla4)^0.5)/A7stdlife)) -> 0 | P159: =IF(A7stdlife="n/a","n/a",IF(P$3>(A7stdlife+$F159),(Input!$K$217*(1+vanilla4)^0.5)-SUM($K159:O159),(Input!$K$217*(1+vanilla4)^0.5)/A7stdlife)) -> 0 | Q159: =IF(A7stdlife="n/a","n/a",IF(Q$3>(A7stdlife+$F159),(Input!$K$217*(1+vanilla4)^0.5)-SUM($K159:P159),(Input!$K$217*(1+vanilla4)^0.5)/A7stdlife)) -> 0
F160: 5 | M160: =IF(A7stdlife="n/a","n/a",IF(M$3>(A7stdlife+$F160),(Input!$L$217*(1+vanilla5)^0.5)-SUM($L160:L160),(Input!$L$217*(1+vanilla5)^0.5)/A7stdlife)) -> 0 | N160: =IF(A7stdlife="n/a","n/a",IF(N$3>(A7stdlife+$F160),(Input!$L$217*(1+vanilla5)^0.5)-SUM($L160:M160),(Input!$L$217*(1+vanilla5)^0.5)/A7stdlife)) -> 0 | O160: =IF(A7stdlife="n/a","n/a",IF(O$3>(A7stdlife+$F160),(Input!$L$217*(1+vanilla5)^0.5)-SUM($L160:N160),(Input!$L$217*(1+vanilla5)^0.5)/A7stdlife)) -> 0 | P160: =IF(A7stdlife="n/a","n/a",IF(P$3>(A7stdlife+$F160),(Input!$L$217*(1+vanilla5)^0.5)-SUM($L160:O160),(Input!$L$217*(1+vanilla5)^0.5)/A7stdlife)) -> 0 | Q160: =IF(A7stdlife="n/a","n/a",IF(Q$3>(A7stdlife+$F160),(Input!$L$217*(1+vanilla5)^0.5)-SUM($L160:P160),(Input!$L$217*(1+vanilla5)^0.5)/A7stdlife)) -> 0
F161: 6 | N161: =IF(A7stdlife="n/a","n/a",IF(N$3>(A7stdlife+$F161),(Input!$M$217*(1+vanilla6)^0.5)-SUM($M161:M161),(Input!$M$217*(1+vanilla6)^0.5)/A7stdlife)) -> 0 | O161: =IF(A7stdlife="n/a","n/a",IF(O$3>(A7stdlife+$F161),(Input!$M$217*(1+vanilla6)^0.5)-SUM($M161:N161),(Input!$M$217*(1+vanilla6)^0.5)/A7stdlife)) -> 0 | P161: =IF(A7stdlife="n/a","n/a",IF(P$3>(A7stdlife+$F161),(Input!$M$217*(1+vanilla6)^0.5)-SUM($M161:O161),(Input!$M$217*(1+vanilla6)^0.5)/A7stdlife)) -> 0 | Q161: =IF(A7stdlife="n/a","n/a",IF(Q$3>(A7stdlife+$F161),(Input!$M$217*(1+vanilla6)^0.5)-SUM($M161:P161),(Input!$M$217*(1+vanilla6)^0.5)/A7stdlife)) -> 0
F162: 7 | O162: =IF(A7stdlife="n/a","n/a",IF(O$3>(A7stdlife+$F162),(Input!$N$217*(1+vanilla7)^0.5)-SUM($N162:N162),(Input!$N$217*(1+vanilla7)^0.5)/A7stdlife)) -> 0 | P162: =IF(A7stdlife="n/a","n/a",IF(P$3>(A7stdlife+$F162),(Input!$N$217*(1+vanilla7)^0.5)-SUM($N162:O162),(Input!$N$217*(1+vanilla7)^0.5)/A7stdlife)) -> 0 | Q162: =IF(A7stdlife="n/a","n/a",IF(Q$3>(A7stdlife+$F162),(Input!$N$217*(1+vanilla7)^0.5)-SUM($N162:P162),(Input!$N$217*(1+vanilla7)^0.5)/A7stdlife)) -> 0
F163: 8 | P163: =IF(A7stdlife="n/a","n/a",IF(P$3>(A7stdlife+$F163),(Input!$O$217*(1+vanilla8)^0.5)-SUM($O163:O163),(Input!$O$217*(1+vanilla8)^0.5)/A7stdlife)) -> 0 | Q163: =IF(A7stdlife="n/a","n/a",IF(Q$3>(A7stdlife+$F163),(Input!$O$217*(1+vanilla8)^0.5)-SUM($O163:P163),(Input!$O$217*(1+vanilla8)^0.5)/A7stdlife)) -> 0
F164: 9 | Q164: =IF(A7stdlife="n/a","n/a",IF(Q$3>(A7stdlife+$F164),(Input!$P$217*(1+vanilla9)^0.5)-SUM($P164:P164),(Input!$P$217*(1+vanilla9)^0.5)/A7stdlife)) -> 0
F165: 10
D166: =Asset7 -> Looping 6 | H166: =-SUM(H154:H165) -> -0.1948368158 | I166: =-SUM(I154:I165) -> -0.1913560922 | J166: =-SUM(J154:J165) -> -0.08809463181 | K166: =-SUM(K154:K165) -> -0.0764807583 | L166: =-SUM(L154:L165) -> -0.06024144886 | M166: =IF(COUNT($H166:L166)>=Input!$W$7,0, -SUM(M154:M165)) -> -0.04799693482 | N166: =IF(COUNT($H166:M166)>=Input!$W$7,0, -SUM(N154:N165)) -> 0 | O166: =IF(COUNT($H166:N166)>=Input!$W$7,0, -SUM(O154:O165)) -> 0 | P166: =IF(COUNT($H166:O166)>=Input!$W$7,0, -SUM(P154:P165)) -> 0 | Q166: =IF(COUNT($H166:P166)>=Input!$W$7,0, -SUM(Q154:Q165)) -> 0
C167: =Asset8 -> Lateral | E167: Opening RAB | H167: =IF(H$3>A8remlife,A8value-$G$637-SUM($G167:G167),IF(A8remlife="N/A","n/a",(A8value-$G$637)/A8remlife)) -> 0.5621590201 | I167: =IF(I$3>A8remlife,A8value-$G$637-SUM($G167:H167),IF(A8remlife="N/A","n/a",(A8value-$G$637)/A8remlife)) -> 0.5621590201 | J167: =IF(J$3>A8remlife,A8value-$G$637-SUM($G167:I167),IF(A8remlife="N/A","n/a",(A8value-$G$637)/A8remlife)) -> 0.5621590201 | K167: =IF(K$3>A8remlife,A8value-$G$637-SUM($G167:J167),IF(A8remlife="N/A","n/a",(A8value-$G$637)/A8remlife)) -> 0.5621590201 | L167: =IF(L$3>A8remlife,A8value-$G$637-SUM($G167:K167),IF(A8remlife="N/A","n/a",(A8value-$G$637)/A8remlife)) -> 0.5621590201 | M167: =IF(M$3>A8remlife,A8value-$G$637-SUM($G167:L167),IF(A8remlife="N/A","n/a",(A8value-$G$637)/A8remlife)) -> 0.5621590201 | N167: =IF(N$3>A8remlife,A8value-$G$637-SUM($G167:M167),IF(A8remlife="N/A","n/a",(A8value-$G$637)/A8remlife)) -> 0.5621590201 | O167: =IF(O$3>A8remlife,A8value-$G$637-SUM($G167:N167),IF(A8remlife="N/A","n/a",(A8value-$G$637)/A8remlife)) -> 0.5621590201 | P167: =IF(P$3>A8remlife,A8value-$G$637-SUM($G167:O167),IF(A8remlife="N/A","n/a",(A8value-$G$637)/A8remlife)) -> 0.5621590201 | Q167: =IF(Q$3>A8remlife,A8value-$G$637-SUM($G167:P167),IF(A8remlife="N/A","n/a",(A8value-$G$637)/A8remlife)) -> 0.5621590201
E168: Capex in year | F168: Adj | H168: =-'APA_Act 2007-11 Real'!E107/1000 -> -0.05227340839 | I168: =-'APA_Act 2007-11 Real'!F107/1000 -> -0.0613824202 | J168: =-'APA_Act 2007-11 Real'!G107/1000 -> -0.3316164245 | K168: =-'APA_Act 2007-11 Real'!H107/1000 -> -0.3620097922 | L168: =-'APA_Act 2007-11 Real'!I107/1000 -> -0.4045078704 | M168: =-'APA_Act 2007-11 Real'!J107/1000 -> -0.4365516169
F169: 1 | I169: =IF(A8stdlife="n/a","n/a",IF(I$3>(A8stdlife+$F169),(Input!$H$218*(1+vanilla1)^0.5)-SUM($H169:H169),(Input!$H$218*(1+vanilla1)^0.5)/A8stdlife)) -> 0 | J169: =IF(A8stdlife="n/a","n/a",IF(J$3>(A8stdlife+$F169),(Input!$H$218*(1+vanilla1)^0.5)-SUM($H169:I169),(Input!$H$218*(1+vanilla1)^0.5)/A8stdlife)) -> 0 | K169: =IF(A8stdlife="n/a","n/a",IF(K$3>(A8stdlife+$F169),(Input!$H$218*(1+vanilla1)^0.5)-SUM($H169:J169),(Input!$H$218*(1+vanilla1)^0.5)/A8stdlife)) -> 0 | L169: =IF(A8stdlife="n/a","n/a",IF(L$3>(A8stdlife+$F169),(Input!$H$218*(1+vanilla1)^0.5)-SUM($H169:K169),(Input!$H$218*(1+vanilla1)^0.5)/A8stdlife)) -> 0 | M169: =IF(A8stdlife="n/a","n/a",IF(M$3>(A8stdlife+$F169),(Input!$H$218*(1+vanilla1)^0.5)-SUM($H169:L169),(Input!$H$218*(1+vanilla1)^0.5)/A8stdlife)) -> 0 | N169: =IF(A8stdlife="n/a","n/a",IF(N$3>(A8stdlife+$F169),(Input!$H$218*(1+vanilla1)^0.5)-SUM($H169:M169),(Input!$H$218*(1+vanilla1)^0.5)/A8stdlife)) -> 0 | O169: =IF(A8stdlife="n/a","n/a",IF(O$3>(A8stdlife+$F169),(Input!$H$218*(1+vanilla1)^0.5)-SUM($H169:N169),(Input!$H$218*(1+vanilla1)^0.5)/A8stdlife)) -> 0 | P169: =IF(A8stdlife="n/a","n/a",IF(P$3>(A8stdlife+$F169),(Input!$H$218*(1+vanilla1)^0.5)-SUM($H169:O169),(Input!$H$218*(1+vanilla1)^0.5)/A8stdlife)) -> 0 | Q169: =IF(A8stdlife="n/a","n/a",IF(Q$3>(A8stdlife+$F169),(Input!$H$218*(1+vanilla1)^0.5)-SUM($H169:P169),(Input!$H$218*(1+vanilla1)^0.5)/A8stdlife)) -> 0
F170: 2 | J170: =IF(A8stdlife="n/a","n/a",IF(J$3>(A8stdlife+$F170),(Input!$I$218*(1+vanilla2)^0.5)-SUM($I170:I170),(Input!$I$218*(1+vanilla2)^0.5)/A8stdlife)) -> 0 | K170: =IF(A8stdlife="n/a","n/a",IF(K$3>(A8stdlife+$F170),(Input!$I$218*(1+vanilla2)^0.5)-SUM($I170:J170),(Input!$I$218*(1+vanilla2)^0.5)/A8stdlife)) -> 0 | L170: =IF(A8stdlife="n/a","n/a",IF(L$3>(A8stdlife+$F170),(Input!$I$218*(1+vanilla2)^0.5)-SUM($I170:K170),(Input!$I$218*(1+vanilla2)^0.5)/A8stdlife)) -> 0 | M170: =IF(A8stdlife="n/a","n/a",IF(M$3>(A8stdlife+$F170),(Input!$I$218*(1+vanilla2)^0.5)-SUM($I170:L170),(Input!$I$218*(1+vanilla2)^0.5)/A8stdlife)) -> 0 | N170: =IF(A8stdlife="n/a","n/a",IF(N$3>(A8stdlife+$F170),(Input!$I$218*(1+vanilla2)^0.5)-SUM($I170:M170),(Input!$I$218*(1+vanilla2)^0.5)/A8stdlife)) -> 0 | O170: =IF(A8stdlife="n/a","n/a",IF(O$3>(A8stdlife+$F170),(Input!$I$218*(1+vanilla2)^0.5)-SUM($I170:N170),(Input!$I$218*(1+vanilla2)^0.5)/A8stdlife)) -> 0 | P170: =IF(A8stdlife="n/a","n/a",IF(P$3>(A8stdlife+$F170),(Input!$I$218*(1+vanilla2)^0.5)-SUM($I170:O170),(Input!$I$218*(1+vanilla2)^0.5)/A8stdlife)) -> 0 | Q170: =IF(A8stdlife="n/a","n/a",IF(Q$3>(A8stdlife+$F170),(Input!$I$218*(1+vanilla2)^0.5)-SUM($I170:P170),(Input!$I$218*(1+vanilla2)^0.5)/A8stdlife)) -> 0
F171: 3 | K171: =IF(A8stdlife="n/a","n/a",IF(K$3>(A8stdlife+$F171),(Input!$J$218*(1+vanilla3)^0.5)-SUM($J171:J171),(Input!$J$218*(1+vanilla3)^0.5)/A8stdlife)) -> 0 | L171: =IF(A8stdlife="n/a","n/a",IF(L$3>(A8stdlife+$F171),(Input!$J$218*(1+vanilla3)^0.5)-SUM($J171:K171),(Input!$J$218*(1+vanilla3)^0.5)/A8stdlife)) -> 0 | M171: =IF(A8stdlife="n/a","n/a",IF(M$3>(A8stdlife+$F171),(Input!$J$218*(1+vanilla3)^0.5)-SUM($J171:L171),(Input!$J$218*(1+vanilla3)^0.5)/A8stdlife)) -> 0 | N171: =IF(A8stdlife="n/a","n/a",IF(N$3>(A8stdlife+$F171),(Input!$J$218*(1+vanilla3)^0.5)-SUM($J171:M171),(Input!$J$218*(1+vanilla3)^0.5)/A8stdlife)) -> 0 | O171: =IF(A8stdlife="n/a","n/a",IF(O$3>(A8stdlife+$F171),(Input!$J$218*(1+vanilla3)^0.5)-SUM($J171:N171),(Input!$J$218*(1+vanilla3)^0.5)/A8stdlife)) -> 0 | P171: =IF(A8stdlife="n/a","n/a",IF(P$3>(A8stdlife+$F171),(Input!$J$218*(1+vanilla3)^0.5)-SUM($J171:O171),(Input!$J$218*(1+vanilla3)^0.5)/A8stdlife)) -> 0 | Q171: =IF(A8stdlife="n/a","n/a",IF(Q$3>(A8stdlife+$F171),(Input!$J$218*(1+vanilla3)^0.5)-SUM($J171:P171),(Input!$J$218*(1+vanilla3)^0.5)/A8stdlife)) -> 0
F172: 4 | L172: =IF(A8stdlife="n/a","n/a",IF(L$3>(A8stdlife+$F172),(Input!$K$218*(1+vanilla4)^0.5)-SUM($K172:K172),(Input!$K$218*(1+vanilla4)^0.5)/A8stdlife)) -> 0 | M172: =IF(A8stdlife="n/a","n/a",IF(M$3>(A8stdlife+$F172),(Input!$K$218*(1+vanilla4)^0.5)-SUM($K172:L172),(Input!$K$218*(1+vanilla4)^0.5)/A8stdlife)) -> 0 | N172: =IF(A8stdlife="n/a","n/a",IF(N$3>(A8stdlife+$F172),(Input!$K$218*(1+vanilla4)^0.5)-SUM($K172:M172),(Input!$K$218*(1+vanilla4)^0.5)/A8stdlife)) -> 0 | O172: =IF(A8stdlife="n/a","n/a",IF(O$3>(A8stdlife+$F172),(Input!$K$218*(1+vanilla4)^0.5)-SUM($K172:N172),(Input!$K$218*(1+vanilla4)^0.5)/A8stdlife)) -> 0 | P172: =IF(A8stdlife="n/a","n/a",IF(P$3>(A8stdlife+$F172),(Input!$K$218*(1+vanilla4)^0.5)-SUM($K172:O172),(Input!$K$218*(1+vanilla4)^0.5)/A8stdlife)) -> 0 | Q172: =IF(A8stdlife="n/a","n/a",IF(Q$3>(A8stdlife+$F172),(Input!$K$218*(1+vanilla4)^0.5)-SUM($K172:P172),(Input!$K$218*(1+vanilla4)^0.5)/A8stdlife)) -> 0
F173: 5 | M173: =IF(A8stdlife="n/a","n/a",IF(M$3>(A8stdlife+$F173),(Input!$L$218*(1+vanilla5)^0.5)-SUM($L173:L173),(Input!$L$218*(1+vanilla5)^0.5)/A8stdlife)) -> 0 | N173: =IF(A8stdlife="n/a","n/a",IF(N$3>(A8stdlife+$F173),(Input!$L$218*(1+vanilla5)^0.5)-SUM($L173:M173),(Input!$L$218*(1+vanilla5)^0.5)/A8stdlife)) -> 0 | O173: =IF(A8stdlife="n/a","n/a",IF(O$3>(A8stdlife+$F173),(Input!$L$218*(1+vanilla5)^0.5)-SUM($L173:N173),(Input!$L$218*(1+vanilla5)^0.5)/A8stdlife)) -> 0 | P173: =IF(A8stdlife="n/a","n/a",IF(P$3>(A8stdlife+$F173),(Input!$L$218*(1+vanilla5)^0.5)-SUM($L173:O173),(Input!$L$218*(1+vanilla5)^0.5)/A8stdlife)) -> 0 | Q173: =IF(A8stdlife="n/a","n/a",IF(Q$3>(A8stdlife+$F173),(Input!$L$218*(1+vanilla5)^0.5)-SUM($L173:P173),(Input!$L$218*(1+vanilla5)^0.5)/A8stdlife)) -> 0
F174: 6 | N174: =IF(A8stdlife="n/a","n/a",IF(N$3>(A8stdlife+$F174),(Input!$M$218*(1+vanilla6)^0.5)-SUM($M174:M174),(Input!$M$218*(1+vanilla6)^0.5)/A8stdlife)) -> 0 | O174: =IF(A8stdlife="n/a","n/a",IF(O$3>(A8stdlife+$F174),(Input!$M$218*(1+vanilla6)^0.5)-SUM($M174:N174),(Input!$M$218*(1+vanilla6)^0.5)/A8stdlife)) -> 0 | P174: =IF(A8stdlife="n/a","n/a",IF(P$3>(A8stdlife+$F174),(Input!$M$218*(1+vanilla6)^0.5)-SUM($M174:O174),(Input!$M$218*(1+vanilla6)^0.5)/A8stdlife)) -> 0 | Q174: =IF(A8stdlife="n/a","n/a",IF(Q$3>(A8stdlife+$F174),(Input!$M$218*(1+vanilla6)^0.5)-SUM($M174:P174),(Input!$M$218*(1+vanilla6)^0.5)/A8stdlife)) -> 0
F175: 7 | O175: =IF(A8stdlife="n/a","n/a",IF(O$3>(A8stdlife+$F175),(Input!$N$218*(1+vanilla7)^0.5)-SUM($N175:N175),(Input!$N$218*(1+vanilla7)^0.5)/A8stdlife)) -> 0 | P175: =IF(A8stdlife="n/a","n/a",IF(P$3>(A8stdlife+$F175),(Input!$N$218*(1+vanilla7)^0.5)-SUM($N175:O175),(Input!$N$218*(1+vanilla7)^0.5)/A8stdlife)) -> 0 | Q175: =IF(A8stdlife="n/a","n/a",IF(Q$3>(A8stdlife+$F175),(Input!$N$218*(1+vanilla7)^0.5)-SUM($N175:P175),(Input!$N$218*(1+vanilla7)^0.5)/A8stdlife)) -> 0
F176: 8 | P176: =IF(A8stdlife="n/a","n/a",IF(P$3>(A8stdlife+$F176),(Input!$O$218*(1+vanilla8)^0.5)-SUM($O176:O176),(Input!$O$218*(1+vanilla8)^0.5)/A8stdlife)) -> 0 | Q176: =IF(A8stdlife="n/a","n/a",IF(Q$3>(A8stdlife+$F176),(Input!$O$218*(1+vanilla8)^0.5)-SUM($O176:P176),(Input!$O$218*(1+vanilla8)^0.5)/A8stdlife)) -> 0
F177: 9 | Q177: =IF(A8stdlife="n/a","n/a",IF(Q$3>(A8stdlife+$F177),(Input!$P$218*(1+vanilla9)^0.5)-SUM($P177:P177),(Input!$P$218*(1+vanilla9)^0.5)/A8stdlife)) -> 0
F178: 10
D179: =Asset8 -> Lateral | H179: =-SUM(H167:H178) -> -0.5098856117 | I179: =-SUM(I167:I178) -> -0.5007765999 | J179: =-SUM(J167:J178) -> -0.2305425956 | K179: =-SUM(K167:K178) -> -0.2001492278 | L179: =-SUM(L167:L178) -> -0.1576511497 | M179: =IF(COUNT($H179:L179)>=Input!$W$7,0, -SUM(M167:M178)) -> -0.1256074031 | N179: =IF(COUNT($H179:M179)>=Input!$W$7,0, -SUM(N167:N178)) -> 0 | O179: =IF(COUNT($H179:N179)>=Input!$W$7,0, -SUM(O167:O178)) -> 0 | P179: =IF(COUNT($H179:O179)>=Input!$W$7,0, -SUM(P167:P178)) -> 0 | Q179: =IF(COUNT($H179:P179)>=Input!$W$7,0, -SUM(Q167:Q178)) -> 0
C180: =Asset9 -> DalbyCompressor | E180: Opening RAB | H180: =IF(H$3>A9remlife,A9value-$G$638-SUM($G180:G180),IF(A9remlife="N/A","n/a",(A9value-$G$638)/A9remlife)) -> 0.2254278776 | I180: =IF(I$3>A9remlife,A9value-$G$638-SUM($G180:H180),IF(A9remlife="N/A","n/a",(A9value-$G$638)/A9remlife)) -> 0.2254278776 | J180: =IF(J$3>A9remlife,A9value-$G$638-SUM($G180:I180),IF(A9remlife="N/A","n/a",(A9value-$G$638)/A9remlife)) -> 0.2254278776 | K180: =IF(K$3>A9remlife,A9value-$G$638-SUM($G180:J180),IF(A9remlife="N/A","n/a",(A9value-$G$638)/A9remlife)) -> 0.2254278776 | L180: =IF(L$3>A9remlife,A9value-$G$638-SUM($G180:K180),IF(A9remlife="N/A","n/a",(A9value-$G$638)/A9remlife)) -> 0.2254278776 | M180: =IF(M$3>A9remlife,A9value-$G$638-SUM($G180:L180),IF(A9remlife="N/A","n/a",(A9value-$G$638)/A9remlife)) -> 0.2254278776 | N180: =IF(N$3>A9remlife,A9value-$G$638-SUM($G180:M180),IF(A9remlife="N/A","n/a",(A9value-$G$638)/A9remlife)) -> 0.2254278776 | O180: =IF(O$3>A9remlife,A9value-$G$638-SUM($G180:N180),IF(A9remlife="N/A","n/a",(A9value-$G$638)/A9remlife)) -> 0.2254278776 | P180: =IF(P$3>A9remlife,A9value-$G$638-SUM($G180:O180),IF(A9remlife="N/A","n/a",(A9value-$G$638)/A9remlife)) -> 0.2254278776 | Q180: =IF(Q$3>A9remlife,A9value-$G$638-SUM($G180:P180),IF(A9remlife="N/A","n/a",(A9value-$G$638)/A9remlife)) -> 0.2254278776
E181: Capex in year | F181: Adj | H181: =-'APA_Act 2007-11 Real'!E114/1000 -> -0.02096183302 | I181: =-'APA_Act 2007-11 Real'!F114/1000 -> -0.02461458095 | J181: =-'APA_Act 2007-11 Real'!G114/1000 -> -0.1329794312 | K181: =-'APA_Act 2007-11 Real'!H114/1000 -> -0.1451672858 | L181: =-'APA_Act 2007-11 Real'!I114/1000 -> -0.1622091747 | M181: =-'APA_Act 2007-11 Real'!J114/1000 -> -0.1750588373
F182: 1 | I182: =IF(A9stdlife="n/a","n/a",IF(I$3>(A9stdlife+$F182),(Input!$H$219*(1+vanilla1)^0.5)-SUM($H182:H182),(Input!$H$219*(1+vanilla1)^0.5)/A9stdlife)) -> 0 | J182: =IF(A9stdlife="n/a","n/a",IF(J$3>(A9stdlife+$F182),(Input!$H$219*(1+vanilla1)^0.5)-SUM($H182:I182),(Input!$H$219*(1+vanilla1)^0.5)/A9stdlife)) -> 0 | K182: =IF(A9stdlife="n/a","n/a",IF(K$3>(A9stdlife+$F182),(Input!$H$219*(1+vanilla1)^0.5)-SUM($H182:J182),(Input!$H$219*(1+vanilla1)^0.5)/A9stdlife)) -> 0 | L182: =IF(A9stdlife="n/a","n/a",IF(L$3>(A9stdlife+$F182),(Input!$H$219*(1+vanilla1)^0.5)-SUM($H182:K182),(Input!$H$219*(1+vanilla1)^0.5)/A9stdlife)) -> 0 | M182: =IF(A9stdlife="n/a","n/a",IF(M$3>(A9stdlife+$F182),(Input!$H$219*(1+vanilla1)^0.5)-SUM($H182:L182),(Input!$H$219*(1+vanilla1)^0.5)/A9stdlife)) -> 0 | N182: =IF(A9stdlife="n/a","n/a",IF(N$3>(A9stdlife+$F182),(Input!$H$219*(1+vanilla1)^0.5)-SUM($H182:M182),(Input!$H$219*(1+vanilla1)^0.5)/A9stdlife)) -> 0 | O182: =IF(A9stdlife="n/a","n/a",IF(O$3>(A9stdlife+$F182),(Input!$H$219*(1+vanilla1)^0.5)-SUM($H182:N182),(Input!$H$219*(1+vanilla1)^0.5)/A9stdlife)) -> 0 | P182: =IF(A9stdlife="n/a","n/a",IF(P$3>(A9stdlife+$F182),(Input!$H$219*(1+vanilla1)^0.5)-SUM($H182:O182),(Input!$H$219*(1+vanilla1)^0.5)/A9stdlife)) -> 0 | Q182: =IF(A9stdlife="n/a","n/a",IF(Q$3>(A9stdlife+$F182),(Input!$H$219*(1+vanilla1)^0.5)-SUM($H182:P182),(Input!$H$219*(1+vanilla1)^0.5)/A9stdlife)) -> 0
F183: 2 | J183: =IF(A9stdlife="n/a","n/a",IF(J$3>(A9stdlife+$F183),(Input!$I$219*(1+vanilla2)^0.5)-SUM($I183:I183),(Input!$I$219*(1+vanilla2)^0.5)/A9stdlife)) -> 0 | K183: =IF(A9stdlife="n/a","n/a",IF(K$3>(A9stdlife+$F183),(Input!$I$219*(1+vanilla2)^0.5)-SUM($I183:J183),(Input!$I$219*(1+vanilla2)^0.5)/A9stdlife)) -> 0 | L183: =IF(A9stdlife="n/a","n/a",IF(L$3>(A9stdlife+$F183),(Input!$I$219*(1+vanilla2)^0.5)-SUM($I183:K183),(Input!$I$219*(1+vanilla2)^0.5)/A9stdlife)) -> 0 | M183: =IF(A9stdlife="n/a","n/a",IF(M$3>(A9stdlife+$F183),(Input!$I$219*(1+vanilla2)^0.5)-SUM($I183:L183),(Input!$I$219*(1+vanilla2)^0.5)/A9stdlife)) -> 0 | N183: =IF(A9stdlife="n/a","n/a",IF(N$3>(A9stdlife+$F183),(Input!$I$219*(1+vanilla2)^0.5)-SUM($I183:M183),(Input!$I$219*(1+vanilla2)^0.5)/A9stdlife)) -> 0 | O183: =IF(A9stdlife="n/a","n/a",IF(O$3>(A9stdlife+$F183),(Input!$I$219*(1+vanilla2)^0.5)-SUM($I183:N183),(Input!$I$219*(1+vanilla2)^0.5)/A9stdlife)) -> 0 | P183: =IF(A9stdlife="n/a","n/a",IF(P$3>(A9stdlife+$F183),(Input!$I$219*(1+vanilla2)^0.5)-SUM($I183:O183),(Input!$I$219*(1+vanilla2)^0.5)/A9stdlife)) -> 0 | Q183: =IF(A9stdlife="n/a","n/a",IF(Q$3>(A9stdlife+$F183),(Input!$I$219*(1+vanilla2)^0.5)-SUM($I183:P183),(Input!$I$219*(1+vanilla2)^0.5)/A9stdlife)) -> 0
F184: 3 | K184: =IF(A9stdlife="n/a","n/a",IF(K$3>(A9stdlife+$F184),(Input!$J$219*(1+vanilla3)^0.5)-SUM($J184:J184),(Input!$J$219*(1+vanilla3)^0.5)/A9stdlife)) -> 0 | L184: =IF(A9stdlife="n/a","n/a",IF(L$3>(A9stdlife+$F184),(Input!$J$219*(1+vanilla3)^0.5)-SUM($J184:K184),(Input!$J$219*(1+vanilla3)^0.5)/A9stdlife)) -> 0 | M184: =IF(A9stdlife="n/a","n/a",IF(M$3>(A9stdlife+$F184),(Input!$J$219*(1+vanilla3)^0.5)-SUM($J184:L184),(Input!$J$219*(1+vanilla3)^0.5)/A9stdlife)) -> 0 | N184: =IF(A9stdlife="n/a","n/a",IF(N$3>(A9stdlife+$F184),(Input!$J$219*(1+vanilla3)^0.5)-SUM($J184:M184),(Input!$J$219*(1+vanilla3)^0.5)/A9stdlife)) -> 0 | O184: =IF(A9stdlife="n/a","n/a",IF(O$3>(A9stdlife+$F184),(Input!$J$219*(1+vanilla3)^0.5)-SUM($J184:N184),(Input!$J$219*(1+vanilla3)^0.5)/A9stdlife)) -> 0 | P184: =IF(A9stdlife="n/a","n/a",IF(P$3>(A9stdlife+$F184),(Input!$J$219*(1+vanilla3)^0.5)-SUM($J184:O184),(Input!$J$219*(1+vanilla3)^0.5)/A9stdlife)) -> 0 | Q184: =IF(A9stdlife="n/a","n/a",IF(Q$3>(A9stdlife+$F184),(Input!$J$219*(1+vanilla3)^0.5)-SUM($J184:P184),(Input!$J$219*(1+vanilla3)^0.5)/A9stdlife)) -> 0
F185: 4 | L185: =IF(A9stdlife="n/a","n/a",IF(L$3>(A9stdlife+$F185),(Input!$K$219*(1+vanilla4)^0.5)-SUM($K185:K185),(Input!$K$219*(1+vanilla4)^0.5)/A9stdlife)) -> 0 | M185: =IF(A9stdlife="n/a","n/a",IF(M$3>(A9stdlife+$F185),(Input!$K$219*(1+vanilla4)^0.5)-SUM($K185:L185),(Input!$K$219*(1+vanilla4)^0.5)/A9stdlife)) -> 0 | N185: =IF(A9stdlife="n/a","n/a",IF(N$3>(A9stdlife+$F185),(Input!$K$219*(1+vanilla4)^0.5)-SUM($K185:M185),(Input!$K$219*(1+vanilla4)^0.5)/A9stdlife)) -> 0 | O185: =IF(A9stdlife="n/a","n/a",IF(O$3>(A9stdlife+$F185),(Input!$K$219*(1+vanilla4)^0.5)-SUM($K185:N185),(Input!$K$219*(1+vanilla4)^0.5)/A9stdlife)) -> 0 | P185: =IF(A9stdlife="n/a","n/a",IF(P$3>(A9stdlife+$F185),(Input!$K$219*(1+vanilla4)^0.5)-SUM($K185:O185),(Input!$K$219*(1+vanilla4)^0.5)/A9stdlife)) -> 0 | Q185: =IF(A9stdlife="n/a","n/a",IF(Q$3>(A9stdlife+$F185),(Input!$K$219*(1+vanilla4)^0.5)-SUM($K185:P185),(Input!$K$219*(1+vanilla4)^0.5)/A9stdlife)) -> 0
F186: 5 | M186: =IF(A9stdlife="n/a","n/a",IF(M$3>(A9stdlife+$F186),(Input!$L$219*(1+vanilla5)^0.5)-SUM($L186:L186),(Input!$L$219*(1+vanilla5)^0.5)/A9stdlife)) -> 0 | N186: =IF(A9stdlife="n/a","n/a",IF(N$3>(A9stdlife+$F186),(Input!$L$219*(1+vanilla5)^0.5)-SUM($L186:M186),(Input!$L$219*(1+vanilla5)^0.5)/A9stdlife)) -> 0 | O186: =IF(A9stdlife="n/a","n/a",IF(O$3>(A9stdlife+$F186),(Input!$L$219*(1+vanilla5)^0.5)-SUM($L186:N186),(Input!$L$219*(1+vanilla5)^0.5)/A9stdlife)) -> 0 | P186: =IF(A9stdlife="n/a","n/a",IF(P$3>(A9stdlife+$F186),(Input!$L$219*(1+vanilla5)^0.5)-SUM($L186:O186),(Input!$L$219*(1+vanilla5)^0.5)/A9stdlife)) -> 0 | Q186: =IF(A9stdlife="n/a","n/a",IF(Q$3>(A9stdlife+$F186),(Input!$L$219*(1+vanilla5)^0.5)-SUM($L186:P186),(Input!$L$219*(1+vanilla5)^0.5)/A9stdlife)) -> 0
F187: 6 | N187: =IF(A9stdlife="n/a","n/a",IF(N$3>(A9stdlife+$F187),(Input!$M$219*(1+vanilla6)^0.5)-SUM($M187:M187),(Input!$M$219*(1+vanilla6)^0.5)/A9stdlife)) -> 0 | O187: =IF(A9stdlife="n/a","n/a",IF(O$3>(A9stdlife+$F187),(Input!$M$219*(1+vanilla6)^0.5)-SUM($M187:N187),(Input!$M$219*(1+vanilla6)^0.5)/A9stdlife)) -> 0 | P187: =IF(A9stdlife="n/a","n/a",IF(P$3>(A9stdlife+$F187),(Input!$M$219*(1+vanilla6)^0.5)-SUM($M187:O187),(Input!$M$219*(1+vanilla6)^0.5)/A9stdlife)) -> 0 | Q187: =IF(A9stdlife="n/a","n/a",IF(Q$3>(A9stdlife+$F187),(Input!$M$219*(1+vanilla6)^0.5)-SUM($M187:P187),(Input!$M$219*(1+vanilla6)^0.5)/A9stdlife)) -> 0
F188: 7 | O188: =IF(A9stdlife="n/a","n/a",IF(O$3>(A9stdlife+$F188),(Input!$N$219*(1+vanilla7)^0.5)-SUM($N188:N188),(Input!$N$219*(1+vanilla7)^0.5)/A9stdlife)) -> 0 | P188: =IF(A9stdlife="n/a","n/a",IF(P$3>(A9stdlife+$F188),(Input!$N$219*(1+vanilla7)^0.5)-SUM($N188:O188),(Input!$N$219*(1+vanilla7)^0.5)/A9stdlife)) -> 0 | Q188: =IF(A9stdlife="n/a","n/a",IF(Q$3>(A9stdlife+$F188),(Input!$N$219*(1+vanilla7)^0.5)-SUM($N188:P188),(Input!$N$219*(1+vanilla7)^0.5)/A9stdlife)) -> 0
F189: 8 | P189: =IF(A9stdlife="n/a","n/a",IF(P$3>(A9stdlife+$F189),(Input!$O$219*(1+vanilla8)^0.5)-SUM($O189:O189),(Input!$O$219*(1+vanilla8)^0.5)/A9stdlife)) -> 0 | Q189: =IF(A9stdlife="n/a","n/a",IF(Q$3>(A9stdlife+$F189),(Input!$O$219*(1+vanilla8)^0.5)-SUM($O189:P189),(Input!$O$219*(1+vanilla8)^0.5)/A9stdlife)) -> 0
F190: 9 | Q190: =IF(A9stdlife="n/a","n/a",IF(Q$3>(A9stdlife+$F190),(Input!$P$219*(1+vanilla9)^0.5)-SUM($P190:P190),(Input!$P$219*(1+vanilla9)^0.5)/A9stdlife)) -> 0
F191: 10
D192: =Asset9 -> DalbyCompressor | H192: =-SUM(H180:H191) -> -0.2044660445 | I192: =-SUM(I180:I191) -> -0.2008132966 | J192: =-SUM(J180:J191) -> -0.09244844636 | K192: =-SUM(K180:K191) -> -0.08026059178 | L192: =-SUM(L180:L191) -> -0.06321870288 | M192: =IF(COUNT($H192:L192)>=Input!$W$7,0, -SUM(M180:M191)) -> -0.05036904023 | N192: =IF(COUNT($H192:M192)>=Input!$W$7,0, -SUM(N180:N191)) -> 0 | O192: =IF(COUNT($H192:N192)>=Input!$W$7,0, -SUM(O180:O191)) -> 0 | P192: =IF(COUNT($H192:O192)>=Input!$W$7,0, -SUM(P180:P191)) -> 0 | Q192: =IF(COUNT($H192:P192)>=Input!$W$7,0, -SUM(Q180:Q191)) -> 0
C193: =Asset10 -> KoganCompressor | E193: Opening RAB | H193: =IF(H$3>A10remlife,A10value-$G$639-SUM($G193:G193),IF(A10remlife="N/A","n/a",(A10value-$G$639)/A10remlife)) -> 0.1334962711 | I193: =IF(I$3>A10remlife,A10value-$G$639-SUM($G193:H193),IF(A10remlife="N/A","n/a",(A10value-$G$639)/A10remlife)) -> 0.1334962711 | J193: =IF(J$3>A10remlife,A10value-$G$639-SUM($G193:I193),IF(A10remlife="N/A","n/a",(A10value-$G$639)/A10remlife)) -> 0.1334962711 | K193: =IF(K$3>A10remlife,A10value-$G$639-SUM($G193:J193),IF(A10remlife="N/A","n/a",(A10value-$G$639)/A10remlife)) -> 0.1334962711 | L193: =IF(L$3>A10remlife,A10value-$G$639-SUM($G193:K193),IF(A10remlife="N/A","n/a",(A10value-$G$639)/A10remlife)) -> 0.1334962711 | M193: =IF(M$3>A10remlife,A10value-$G$639-SUM($G193:L193),IF(A10remlife="N/A","n/a",(A10value-$G$639)/A10remlife)) -> 0.1334962711 | N193: =IF(N$3>A10remlife,A10value-$G$639-SUM($G193:M193),IF(A10remlife="N/A","n/a",(A10value-$G$639)/A10remlife)) -> 0.1334962711 | O193: =IF(O$3>A10remlife,A10value-$G$639-SUM($G193:N193),IF(A10remlife="N/A","n/a",(A10value-$G$639)/A10remlife)) -> 0.1334962711 | P193: =IF(P$3>A10remlife,A10value-$G$639-SUM($G193:O193),IF(A10remlife="N/A","n/a",(A10value-$G$639)/A10remlife)) -> 0.1334962711 | Q193: =IF(Q$3>A10remlife,A10value-$G$639-SUM($G193:P193),IF(A10remlife="N/A","n/a",(A10value-$G$639)/A10remlife)) -> 0.1334962711
E194: Capex in year | F194: Adj | H194: =-'APA_Act 2007-11 Real'!E121/1000 -> -0.01241340057 | I194: =-'APA_Act 2007-11 Real'!F121/1000 -> -0.01457652358 | J194: =-'APA_Act 2007-11 Real'!G121/1000 -> -0.07874916976 | K194: =-'APA_Act 2007-11 Real'!H121/1000 -> -0.08596670274 | L194: =-'APA_Act 2007-11 Real'!I121/1000 -> -0.09605874922 | M194: =-'APA_Act 2007-11 Real'!J121/1000 -> -0.1036681987
F195: 1 | I195: =IF(A10stdlife="n/a","n/a",IF(I$3>(A10stdlife+$F195),(Input!$H$220*(1+vanilla1)^0.5)-SUM($H195:H195),(Input!$H$220*(1+vanilla1)^0.5)/A10stdlife)) -> 0 | J195: =IF(A10stdlife="n/a","n/a",IF(J$3>(A10stdlife+$F195),(Input!$H$220*(1+vanilla1)^0.5)-SUM($H195:I195),(Input!$H$220*(1+vanilla1)^0.5)/A10stdlife)) -> 0 | K195: =IF(A10stdlife="n/a","n/a",IF(K$3>(A10stdlife+$F195),(Input!$H$220*(1+vanilla1)^0.5)-SUM($H195:J195),(Input!$H$220*(1+vanilla1)^0.5)/A10stdlife)) -> 0 | L195: =IF(A10stdlife="n/a","n/a",IF(L$3>(A10stdlife+$F195),(Input!$H$220*(1+vanilla1)^0.5)-SUM($H195:K195),(Input!$H$220*(1+vanilla1)^0.5)/A10stdlife)) -> 0 | M195: =IF(A10stdlife="n/a","n/a",IF(M$3>(A10stdlife+$F195),(Input!$H$220*(1+vanilla1)^0.5)-SUM($H195:L195),(Input!$H$220*(1+vanilla1)^0.5)/A10stdlife)) -> 0 | N195: =IF(A10stdlife="n/a","n/a",IF(N$3>(A10stdlife+$F195),(Input!$H$220*(1+vanilla1)^0.5)-SUM($H195:M195),(Input!$H$220*(1+vanilla1)^0.5)/A10stdlife)) -> 0 | O195: =IF(A10stdlife="n/a","n/a",IF(O$3>(A10stdlife+$F195),(Input!$H$220*(1+vanilla1)^0.5)-SUM($H195:N195),(Input!$H$220*(1+vanilla1)^0.5)/A10stdlife)) -> 0 | P195: =IF(A10stdlife="n/a","n/a",IF(P$3>(A10stdlife+$F195),(Input!$H$220*(1+vanilla1)^0.5)-SUM($H195:O195),(Input!$H$220*(1+vanilla1)^0.5)/A10stdlife)) -> 0 | Q195: =IF(A10stdlife="n/a","n/a",IF(Q$3>(A10stdlife+$F195),(Input!$H$220*(1+vanilla1)^0.5)-SUM($H195:P195),(Input!$H$220*(1+vanilla1)^0.5)/A10stdlife)) -> 0
F196: 2 | J196: =IF(A10stdlife="n/a","n/a",IF(J$3>(A10stdlife+$F196),(Input!$I$220*(1+vanilla2)^0.5)-SUM($I196:I196),(Input!$I$220*(1+vanilla2)^0.5)/A10stdlife)) -> 0 | K196: =IF(A10stdlife="n/a","n/a",IF(K$3>(A10stdlife+$F196),(Input!$I$220*(1+vanilla2)^0.5)-SUM($I196:J196),(Input!$I$220*(1+vanilla2)^0.5)/A10stdlife)) -> 0 | L196: =IF(A10stdlife="n/a","n/a",IF(L$3>(A10stdlife+$F196),(Input!$I$220*(1+vanilla2)^0.5)-SUM($I196:K196),(Input!$I$220*(1+vanilla2)^0.5)/A10stdlife)) -> 0 | M196: =IF(A10stdlife="n/a","n/a",IF(M$3>(A10stdlife+$F196),(Input!$I$220*(1+vanilla2)^0.5)-SUM($I196:L196),(Input!$I$220*(1+vanilla2)^0.5)/A10stdlife)) -> 0 | N196: =IF(A10stdlife="n/a","n/a",IF(N$3>(A10stdlife+$F196),(Input!$I$220*(1+vanilla2)^0.5)-SUM($I196:M196),(Input!$I$220*(1+vanilla2)^0.5)/A10stdlife)) -> 0 | O196: =IF(A10stdlife="n/a","n/a",IF(O$3>(A10stdlife+$F196),(Input!$I$220*(1+vanilla2)^0.5)-SUM($I196:N196),(Input!$I$220*(1+vanilla2)^0.5)/A10stdlife)) -> 0 | P196: =IF(A10stdlife="n/a","n/a",IF(P$3>(A10stdlife+$F196),(Input!$I$220*(1+vanilla2)^0.5)-SUM($I196:O196),(Input!$I$220*(1+vanilla2)^0.5)/A10stdlife)) -> 0 | Q196: =IF(A10stdlife="n/a","n/a",IF(Q$3>(A10stdlife+$F196),(Input!$I$220*(1+vanilla2)^0.5)-SUM($I196:P196),(Input!$I$220*(1+vanilla2)^0.5)/A10stdlife)) -> 0
F197: 3 | K197: =IF(A10stdlife="n/a","n/a",IF(K$3>(A10stdlife+$F197),(Input!$J$220*(1+vanilla3)^0.5)-SUM($J197:J197),(Input!$J$220*(1+vanilla3)^0.5)/A10stdlife)) -> 0 | L197: =IF(A10stdlife="n/a","n/a",IF(L$3>(A10stdlife+$F197),(Input!$J$220*(1+vanilla3)^0.5)-SUM($J197:K197),(Input!$J$220*(1+vanilla3)^0.5)/A10stdlife)) -> 0 | M197: =IF(A10stdlife="n/a","n/a",IF(M$3>(A10stdlife+$F197),(Input!$J$220*(1+vanilla3)^0.5)-SUM($J197:L197),(Input!$J$220*(1+vanilla3)^0.5)/A10stdlife)) -> 0 | N197: =IF(A10stdlife="n/a","n/a",IF(N$3>(A10stdlife+$F197),(Input!$J$220*(1+vanilla3)^0.5)-SUM($J197:M197),(Input!$J$220*(1+vanilla3)^0.5)/A10stdlife)) -> 0 | O197: =IF(A10stdlife="n/a","n/a",IF(O$3>(A10stdlife+$F197),(Input!$J$220*(1+vanilla3)^0.5)-SUM($J197:N197),(Input!$J$220*(1+vanilla3)^0.5)/A10stdlife)) -> 0 | P197: =IF(A10stdlife="n/a","n/a",IF(P$3>(A10stdlife+$F197),(Input!$J$220*(1+vanilla3)^0.5)-SUM($J197:O197),(Input!$J$220*(1+vanilla3)^0.5)/A10stdlife)) -> 0 | Q197: =IF(A10stdlife="n/a","n/a",IF(Q$3>(A10stdlife+$F197),(Input!$J$220*(1+vanilla3)^0.5)-SUM($J197:P197),(Input!$J$220*(1+vanilla3)^0.5)/A10stdlife)) -> 0
F198: 4 | L198: =IF(A10stdlife="n/a","n/a",IF(L$3>(A10stdlife+$F198),(Input!$K$220*(1+vanilla4)^0.5)-SUM($K198:K198),(Input!$K$220*(1+vanilla4)^0.5)/A10stdlife)) -> 0 | M198: =IF(A10stdlife="n/a","n/a",IF(M$3>(A10stdlife+$F198),(Input!$K$220*(1+vanilla4)^0.5)-SUM($K198:L198),(Input!$K$220*(1+vanilla4)^0.5)/A10stdlife)) -> 0 | N198: =IF(A10stdlife="n/a","n/a",IF(N$3>(A10stdlife+$F198),(Input!$K$220*(1+vanilla4)^0.5)-SUM($K198:M198),(Input!$K$220*(1+vanilla4)^0.5)/A10stdlife)) -> 0 | O198: =IF(A10stdlife="n/a","n/a",IF(O$3>(A10stdlife+$F198),(Input!$K$220*(1+vanilla4)^0.5)-SUM($K198:N198),(Input!$K$220*(1+vanilla4)^0.5)/A10stdlife)) -> 0 | P198: =IF(A10stdlife="n/a","n/a",IF(P$3>(A10stdlife+$F198),(Input!$K$220*(1+vanilla4)^0.5)-SUM($K198:O198),(Input!$K$220*(1+vanilla4)^0.5)/A10stdlife)) -> 0 | Q198: =IF(A10stdlife="n/a","n/a",IF(Q$3>(A10stdlife+$F198),(Input!$K$220*(1+vanilla4)^0.5)-SUM($K198:P198),(Input!$K$220*(1+vanilla4)^0.5)/A10stdlife)) -> 0
F199: 5 | M199: =IF(A10stdlife="n/a","n/a",IF(M$3>(A10stdlife+$F199),(Input!$L$220*(1+vanilla5)^0.5)-SUM($L199:L199),(Input!$L$220*(1+vanilla5)^0.5)/A10stdlife)) -> 0 | N199: =IF(A10stdlife="n/a","n/a",IF(N$3>(A10stdlife+$F199),(Input!$L$220*(1+vanilla5)^0.5)-SUM($L199:M199),(Input!$L$220*(1+vanilla5)^0.5)/A10stdlife)) -> 0 | O199: =IF(A10stdlife="n/a","n/a",IF(O$3>(A10stdlife+$F199),(Input!$L$220*(1+vanilla5)^0.5)-SUM($L199:N199),(Input!$L$220*(1+vanilla5)^0.5)/A10stdlife)) -> 0 | P199: =IF(A10stdlife="n/a","n/a",IF(P$3>(A10stdlife+$F199),(Input!$L$220*(1+vanilla5)^0.5)-SUM($L199:O199),(Input!$L$220*(1+vanilla5)^0.5)/A10stdlife)) -> 0 | Q199: =IF(A10stdlife="n/a","n/a",IF(Q$3>(A10stdlife+$F199),(Input!$L$220*(1+vanilla5)^0.5)-SUM($L199:P199),(Input!$L$220*(1+vanilla5)^0.5)/A10stdlife)) -> 0
F200: 6 | N200: =IF(A10stdlife="n/a","n/a",IF(N$3>(A10stdlife+$F200),(Input!$M$220*(1+vanilla6)^0.5)-SUM($M200:M200),(Input!$M$220*(1+vanilla6)^0.5)/A10stdlife)) -> 0 | O200: =IF(A10stdlife="n/a","n/a",IF(O$3>(A10stdlife+$F200),(Input!$M$220*(1+vanilla6)^0.5)-SUM($M200:N200),(Input!$M$220*(1+vanilla6)^0.5)/A10stdlife)) -> 0 | P200: =IF(A10stdlife="n/a","n/a",IF(P$3>(A10stdlife+$F200),(Input!$M$220*(1+vanilla6)^0.5)-SUM($M200:O200),(Input!$M$220*(1+vanilla6)^0.5)/A10stdlife)) -> 0 | Q200: =IF(A10stdlife="n/a","n/a",IF(Q$3>(A10stdlife+$F200),(Input!$M$220*(1+vanilla6)^0.5)-SUM($M200:P200),(Input!$M$220*(1+vanilla6)^0.5)/A10stdlife)) -> 0
F201: 7 | O201: =IF(A10stdlife="n/a","n/a",IF(O$3>(A10stdlife+$F201),(Input!$N$220*(1+vanilla7)^0.5)-SUM($N201:N201),(Input!$N$220*(1+vanilla7)^0.5)/A10stdlife)) -> 0 | P201: =IF(A10stdlife="n/a","n/a",IF(P$3>(A10stdlife+$F201),(Input!$N$220*(1+vanilla7)^0.5)-SUM($N201:O201),(Input!$N$220*(1+vanilla7)^0.5)/A10stdlife)) -> 0 | Q201: =IF(A10stdlife="n/a","n/a",IF(Q$3>(A10stdlife+$F201),(Input!$N$220*(1+vanilla7)^0.5)-SUM($N201:P201),(Input!$N$220*(1+vanilla7)^0.5)/A10stdlife)) -> 0
F202: 8 | P202: =IF(A10stdlife="n/a","n/a",IF(P$3>(A10stdlife+$F202),(Input!$O$220*(1+vanilla8)^0.5)-SUM($O202:O202),(Input!$O$220*(1+vanilla8)^0.5)/A10stdlife)) -> 0 | Q202: =IF(A10stdlife="n/a","n/a",IF(Q$3>(A10stdlife+$F202),(Input!$O$220*(1+vanilla8)^0.5)-SUM($O202:P202),(Input!$O$220*(1+vanilla8)^0.5)/A10stdlife)) -> 0
F203: 9 | Q203: =IF(A10stdlife="n/a","n/a",IF(Q$3>(A10stdlife+$F203),(Input!$P$220*(1+vanilla9)^0.5)-SUM($P203:P203),(Input!$P$220*(1+vanilla9)^0.5)/A10stdlife)) -> 0
F204: 10
D205: =Asset10 -> KoganCompressor | H205: =-SUM(H193:H204) -> -0.1210828705 | I205: =-SUM(I193:I204) -> -0.1189197475 | J205: =-SUM(J193:J204) -> -0.05474710134 | K205: =-SUM(K193:K204) -> -0.04752956837 | L205: =-SUM(L193:L204) -> -0.03743752188 | M205: =IF(COUNT($H205:L205)>=Input!$W$7,0, -SUM(M193:M204)) -> -0.02982807239 | N205: =IF(COUNT($H205:M205)>=Input!$W$7,0, -SUM(N193:N204)) -> 0 | O205: =IF(COUNT($H205:N205)>=Input!$W$7,0, -SUM(O193:O204)) -> 0 | P205: =IF(COUNT($H205:O205)>=Input!$W$7,0, -SUM(P193:P204)) -> 0 | Q205: =IF(COUNT($H205:P205)>=Input!$W$7,0, -SUM(Q193:Q204)) -> 0
C206: =Asset11 -> OakeyCompressor | E206: Opening RAB | H206: =IF(H$3>A11remlife,A11value-$G$640-SUM($G206:G206),IF(A11remlife="N/A","n/a",(A11value-$G$640)/A11remlife)) -> 0.1714455636 | I206: =IF(I$3>A11remlife,A11value-$G$640-SUM($G206:H206),IF(A11remlife="N/A","n/a",(A11value-$G$640)/A11remlife)) -> 0.1714455636 | J206: =IF(J$3>A11remlife,A11value-$G$640-SUM($G206:I206),IF(A11remlife="N/A","n/a",(A11value-$G$640)/A11remlife)) -> 0.1714455636 | K206: =IF(K$3>A11remlife,A11value-$G$640-SUM($G206:J206),IF(A11remlife="N/A","n/a",(A11value-$G$640)/A11remlife)) -> 0.1714455636 | L206: =IF(L$3>A11remlife,A11value-$G$640-SUM($G206:K206),IF(A11remlife="N/A","n/a",(A11value-$G$640)/A11remlife)) -> 0.1714455636 | M206: =IF(M$3>A11remlife,A11value-$G$640-SUM($G206:L206),IF(A11remlife="N/A","n/a",(A11value-$G$640)/A11remlife)) -> 0.1714455636 | N206: =IF(N$3>A11remlife,A11value-$G$640-SUM($G206:M206),IF(A11remlife="N/A","n/a",(A11value-$G$640)/A11remlife)) -> 0.1714455636 | O206: =IF(O$3>A11remlife,A11value-$G$640-SUM($G206:N206),IF(A11remlife="N/A","n/a",(A11value-$G$640)/A11remlife)) -> 0.1714455636 | P206: =IF(P$3>A11remlife,A11value-$G$640-SUM($G206:O206),IF(A11remlife="N/A","n/a",(A11value-$G$640)/A11remlife)) -> 0.1714455636 | Q206: =IF(Q$3>A11remlife,A11value-$G$640-SUM($G206:P206),IF(A11remlife="N/A","n/a",(A11value-$G$640)/A11remlife)) -> 0.1714455636
... 800 more rows

Sheet Total actual RAB roll forward
C2: ="Total Asset Base Roll Forward - RFM "&Intro!L4 -> Total Asset Base Roll Forward - RFM Version: 2.0
G3: 0 | H3: =G3+1 -> 1 | I3: 2 | J3: 3 | K3: 4 | L3: 5 | M3: 6
C4: Year | G4: =Input!G40 -> 2005-06 | H4: =Input!H40 -> 2006-07 | I4: =Input!I40 -> 2007-08 | J4: =Input!J40 -> 2008-09 | K4: =Input!K40 -> 2009-10 | L4: =Input!L40 -> 2010-11 | M4: =Input!M40 -> 2011-12 | N4: =Input!N40 -> 2012-13 | O4: =Input!O40 -> 2013-14 | P4: =Input!P40 -> 2014-15 | Q4: =Input!Q40 -> 2015-16
C5: Asset Values – Partially As Incurred ($m Nominal)
C7: Nominal Opening Regulatory Asset Base | G7: =SUM(G8:G37) -> 296.3508366 | H7: =SUM(H8:H37) -> 296.3508366 | I7: =SUM(I8:I37) -> 300.2223425 | J7: 340.8783385 | K7: 345.6595342 | L7: 359.9762658 | M7: 374.7964347 | N7: 0 | O7: 0 | P7: 0 | Q7: =SUM(Q8:Q37) -> 0
D8: =Asset1 -> OriginalPipeline | G8: ='Actual RAB roll forward'!G470 -> 38.89715225 | H8: =G8+G40+G72+G104+G136+G168 -> 38.89715225 | I8: =H8+H40+H72 -> 38.26493351 | J8: 38.29874563 | K8: 38.48055039 | L8: 38.91344287 | M8: =IF(COUNT($H8:L8)>=Input!$W$7,0,L8+L40+L72) -> 39.66072309 | N8: =IF(COUNT($H8:M8)>=Input!$W$7,0,M8+M40+M72) -> 0 | O8: =IF(COUNT($H8:N8)>=Input!$W$7,0,N8+N40+N72) -> 0 | P8: =IF(COUNT($H8:O8)>=Input!$W$7,0,O8+O40+O72) -> 0 | Q8: =IF(COUNT($H8:P8)>=Input!$W$7,0,P8+P40+P72) -> 0
D9: =Asset2 -> Looping 1 | G9: ='Actual RAB roll forward'!G471 -> 9.14942114 | H9: 9.14942114 | I9: 9.234442031 | J9: 9.487457332 | K9: 9.654875968 | L9: 9.874515248 | M9: =IF(COUNT($H9:L9)>=Input!$W$7,0,L9+L41+L73) -> 10.15568755 | N9: =IF(COUNT($H9:M9)>=Input!$W$7,0,M9+M41+M73) -> 0 | O9: =IF(COUNT($H9:N9)>=Input!$W$7,0,N9+N41+N73) -> 0 | P9: =IF(COUNT($H9:O9)>=Input!$W$7,0,O9+O41+O73) -> 0 | Q9: =IF(COUNT($H9:P9)>=Input!$W$7,0,P9+P41+P73) -> 0
D10: =Asset3 -> Looping 2 | G10: ='Actual RAB roll forward'!G472 -> 10.98930213 | H10: 10.98930213 | I10: 11.09659388 | J10: 11.40591326 | K10: 11.60975783 | L10: 11.87617283 | M10: =IF(COUNT($H10:L10)>=Input!$W$7,0,L10+L42+L74) -> 12.21621981 | N10: =IF(COUNT($H10:M10)>=Input!$W$7,0,M10+M42+M74) -> 0 | O10: =IF(COUNT($H10:N10)>=Input!$W$7,0,N10+N42+N74) -> 0 | P10: =IF(COUNT($H10:O10)>=Input!$W$7,0,O10+O42+O74) -> 0 | Q10: =IF(COUNT($H10:P10)>=Input!$W$7,0,P10+P42+P74) -> 0
D11: =Asset4 -> Looping 3 | G11: ='Actual RAB roll forward'!G473 -> 20.62936217 | H11: 20.62936217 | I11: 20.8642262 | J11: 21.47996265 | K11: 21.88046575 | L11: 22.39744836 | M11: =IF(COUNT($H11:L11)>=Input!$W$7,0,L11+L43+L75) -> 23.0508773 | N11: =IF(COUNT($H11:M11)>=Input!$W$7,0,M11+M43+M75) -> 0 | O11: =IF(COUNT($H11:N11)>=Input!$W$7,0,N11+N43+N75) -> 0 | P11: =IF(COUNT($H11:O11)>=Input!$W$7,0,O11+O43+O75) -> 0 | Q11: =IF(COUNT($H11:P11)>=Input!$W$7,0,P11+P43+P75) -> 0
D12: =Asset5 -> Looping 4 | G12: ='Actual RAB roll forward'!G474 -> 29.36920521 | H12: 29.36920521 | I12: 29.71881231 | J12: 30.61139116 | K12: 31.18969964 | L12: 31.93338935 | M12: =IF(COUNT($H12:L12)>=Input!$W$7,0,L12+L44+L76) -> 32.8705226 | N12: =IF(COUNT($H12:M12)>=Input!$W$7,0,M12+M44+M76) -> 0 | O12: =IF(COUNT($H12:N12)>=Input!$W$7,0,N12+N44+N76) -> 0 | P12: =IF(COUNT($H12:O12)>=Input!$W$7,0,O12+O44+O76) -> 0 | Q12: =IF(COUNT($H12:P12)>=Input!$W$7,0,P12+P44+P76) -> 0
D13: =Asset6 -> Looping 5 | G13: ='Actual RAB roll forward'!G475 -> 93.32314355 | H13: 93.32314355 | I13: 94.46423865 | J13: 97.332136 | K13: 99.18586067 | L13: 101.5642148 | M13: =IF(COUNT($H13:L13)>=Input!$W$7,0,L13+L45+L77) -> 104.5556483 | N13: =IF(COUNT($H13:M13)>=Input!$W$7,0,M13+M45+M77) -> 0 | O13: =IF(COUNT($H13:N13)>=Input!$W$7,0,N13+N45+N77) -> 0 | P13: =IF(COUNT($H13:O13)>=Input!$W$7,0,O13+O45+O77) -> 0 | Q13: =IF(COUNT($H13:P13)>=Input!$W$7,0,P13+P45+P77) -> 0
D14: =Asset7 -> Looping 6 | G14: ='Actual RAB roll forward'!G476 -> 16.54048253 | H14: 16.54048253 | I14: 16.74272887 | J14: 17.25103157 | K14: 17.57958351 | L14: 18.00112015 | M14: =IF(COUNT($H14:L14)>=Input!$W$7,0,L14+L46+L78) -> 18.53131825 | N14: =IF(COUNT($H14:M14)>=Input!$W$7,0,M14+M46+M78) -> 0 | O14: =IF(COUNT($H14:N14)>=Input!$W$7,0,N14+N46+N78) -> 0 | P14: =IF(COUNT($H14:O14)>=Input!$W$7,0,O14+O46+O78) -> 0 | Q14: =IF(COUNT($H14:P14)>=Input!$W$7,0,P14+P46+P78) -> 0
D15: =Asset8 -> Lateral | G15: ='Actual RAB roll forward'!G477 -> 42.1619265 | H15: 42.1619265 | I15: 42.66381645 | J15: 43.94518731 | K15: 44.77539703 | L15: 45.84302521 | M15: =IF(COUNT($H15:L15)>=Input!$W$7,0,L15+L47+L79) -> 47.1883576 | N15: =IF(COUNT($H15:M15)>=Input!$W$7,0,M15+M47+M79) -> 0 | O15: =IF(COUNT($H15:N15)>=Input!$W$7,0,N15+N47+N79) -> 0 | P15: =IF(COUNT($H15:O15)>=Input!$W$7,0,O15+O47+O79) -> 0 | Q15: =IF(COUNT($H15:P15)>=Input!$W$7,0,P15+P47+P79) -> 0
D16: =Asset9 -> DalbyCompressor | G16: ='Actual RAB roll forward'!G478 -> 2.479706653 | H16: 2.479706653 | I16: 2.3295423 | J16: 2.216512211 | K16: 2.169511472 | L16: 2.14173284 | M16: =IF(COUNT($H16:L16)>=Input!$W$7,0,L16+L48+L80) -> 2.1398331 | N16: =IF(COUNT($H16:M16)>=Input!$W$7,0,M16+M48+M80) -> 0 | O16: =IF(COUNT($H16:N16)>=Input!$W$7,0,N16+N48+N80) -> 0 | P16: =IF(COUNT($H16:O16)>=Input!$W$7,0,O16+O48+O80) -> 0 | Q16: =IF(COUNT($H16:P16)>=Input!$W$7,0,P16+P48+P80) -> 0
D17: =Asset10 -> KoganCompressor | G17: ='Actual RAB roll forward'!G479 -> 1.468458982 | H17: 1.468458982 | I17: 1.379533063 | J17: 1.312597706 | K17: 1.28476431 | L17: 1.268314066 | M17: =IF(COUNT($H17:L17)>=Input!$W$7,0,L17+L49+L81) -> 1.267189057 | N17: =IF(COUNT($H17:M17)>=Input!$W$7,0,M17+M49+M81) -> 0 | O17: =IF(COUNT($H17:N17)>=Input!$W$7,0,N17+N49+N81) -> 0 | P17: =IF(COUNT($H17:O17)>=Input!$W$7,0,O17+O49+O81) -> 0 | Q17: =IF(COUNT($H17:P17)>=Input!$W$7,0,P17+P49+P81) -> 0
D18: =Asset11 -> OakeyCompressor | G18: ='Actual RAB roll forward'!G480 -> 2.057346764 | H18: 2.057346764 | I18: 1.947317762 | J18: 1.868803785 | K18: 1.837572821 | L18: 1.821863862 | M18: =IF(COUNT($H18:L18)>=Input!$W$7,0,L18+L50+L82) -> 1.826852486 | N18: =IF(COUNT($H18:M18)>=Input!$W$7,0,M18+M50+M82) -> 0 | O18: =IF(COUNT($H18:N18)>=Input!$W$7,0,N18+N50+N82) -> 0 | P18: =IF(COUNT($H18:O18)>=Input!$W$7,0,O18+O50+O82) -> 0 | Q18: =IF(COUNT($H18:P18)>=Input!$W$7,0,P18+P50+P82) -> 0
D19: =Asset12 -> CondamineCompressor | G19: ='Actual RAB roll forward'!G481 -> 3.111231734 | H19: 3.111231734 | I19: 2.963468786 | J19: 2.864267599 | K19: 2.826973634 | L19: 2.812607696 | M19: =IF(COUNT($H19:L19)>=Input!$W$7,0,L19+L51+L83) -> 2.828552066 | N19: =IF(COUNT($H19:M19)>=Input!$W$7,0,M19+M51+M83) -> 0 | O19: =IF(COUNT($H19:N19)>=Input!$W$7,0,N19+N51+N83) -> 0 | P19: =IF(COUNT($H19:O19)>=Input!$W$7,0,O19+O51+O83) -> 0 | Q19: =IF(COUNT($H19:P19)>=Input!$W$7,0,P19+P51+P83) -> 0
D20: =Asset13 -> YulebaCompressor | G20: ='Actual RAB roll forward'!G482 -> 4.502890475 | H20: 4.502890475 | I20: 4.332171537 | J20: 4.23382724 | K20: 4.202858392 | L20: 4.203810814 | M20: =IF(COUNT($H20:L20)>=Input!$W$7,0,L20+L52+L84) -> 4.246339559 | N20: =IF(COUNT($H20:M20)>=Input!$W$7,0,M20+M52+M84) -> 0 | O20: =IF(COUNT($H20:N20)>=Input!$W$7,0,N20+N52+N84) -> 0 | P20: =IF(COUNT($H20:O20)>=Input!$W$7,0,O20+O52+O84) -> 0 | Q20: =IF(COUNT($H20:P20)>=Input!$W$7,0,P20+P52+P84) -> 0
D21: =Asset14 -> GattonCompressor | G21: ='Actual RAB roll forward'!G483 -> 5.081738288 | H21: 5.081738288 | I21: 4.908851293 | J21: 4.818601445 | K21: 4.794199537 | L21: 4.805243563 | M21: =IF(COUNT($H21:L21)>=Input!$W$7,0,L21+L53+L85) -> 4.862157816 | N21: =IF(COUNT($H21:M21)>=Input!$W$7,0,M21+M53+M85) -> 0 | O21: =IF(COUNT($H21:N21)>=Input!$W$7,0,N21+N53+N85) -> 0 | P21: =IF(COUNT($H21:O21)>=Input!$W$7,0,O21+O53+O85) -> 0 | Q21: =IF(COUNT($H21:P21)>=Input!$W$7,0,P21+P53+P85) -> 0
D22: =Asset15 -> Easements | G22: ='Actual RAB roll forward'!G484 -> 13.27530471 | H22: 13.27530471 | I22: 13.58446972 | J22: 14.14613235 | K22: 14.47982965 | L22: 14.88248661 | M22: =IF(COUNT($H22:L22)>=Input!$W$7,0,L22+L54+L86) -> 15.36258782 | N22: =IF(COUNT($H22:M22)>=Input!$W$7,0,M22+M54+M86) -> 0 | O22: =IF(COUNT($H22:N22)>=Input!$W$7,0,N22+N54+N86) -> 0 | P22: =IF(COUNT($H22:O22)>=Input!$W$7,0,O22+O54+O86) -> 0 | Q22: =IF(COUNT($H22:P22)>=Input!$W$7,0,P22+P54+P86) -> 0
D23: =Asset16 -> Communications | G23: ='Actual RAB roll forward'!G485 -> 3.31416346 | H23: 3.31416346 | I23: 3.053587622 | J23: 2.833493817 | K23: 2.538924724 | L23: 2.238817872 | M23: =IF(COUNT($H23:L23)>=Input!$W$7,0,L23+L55+L87) -> 1.929226862 | N23: =IF(COUNT($H23:M23)>=Input!$W$7,0,M23+M55+M87) -> 0 | O23: =IF(COUNT($H23:N23)>=Input!$W$7,0,N23+N55+N87) -> 0 | P23: =IF(COUNT($H23:O23)>=Input!$W$7,0,O23+O55+O87) -> 0 | Q23: =IF(COUNT($H23:P23)>=Input!$W$7,0,P23+P55+P87) -> 0
D24: =Asset17 -> Other | G24: ='Actual RAB roll forward'!G486 -> 0 | H24: 0 | I24: 0 | J24: 0 | K24: 0 | L24: 0 | M24: =IF(COUNT($H24:L24)>=Input!$W$7,0,L24+L56+L88) -> 0 | N24: =IF(COUNT($H24:M24)>=Input!$W$7,0,M24+M56+M88) -> 0 | O24: =IF(COUNT($H24:N24)>=Input!$W$7,0,N24+N56+N88) -> 0 | P24: =IF(COUNT($H24:O24)>=Input!$W$7,0,O24+O56+O88) -> 0 | Q24: =IF(COUNT($H24:P24)>=Input!$W$7,0,P24+P56+P88) -> 0
D25: =Asset18 -> Capitalised AA costs | G25: ='Actual RAB roll forward'!G487 -> 0 | H25: 0 | I25: 0.5323289605 | J25: 0.4458493668 | K25: 0.3431594191 | L25: 0.2380138308 | M25: =IF(COUNT($H25:L25)>=Input!$W$7,0,L25+L57+L89) -> 0.1853865997 | N25: =IF(COUNT($H25:M25)>=Input!$W$7,0,M25+M57+M89) -> 0 | O25: =IF(COUNT($H25:N25)>=Input!$W$7,0,N25+N57+N89) -> 0 | P25: =IF(COUNT($H25:O25)>=Input!$W$7,0,O25+O57+O89) -> 0 | Q25: =IF(COUNT($H25:P25)>=Input!$W$7,0,P25+P57+P89) -> 0
D26: =Asset19 -> Pipelines / Laterals | G26: ='Actual RAB roll forward'!G488 -> 0 | H26: 0 | I26: 0.07064932196 | J26: 0.07274138797 | K26: 0.07359225829 | L26: 0.07475141258 | M26: =IF(COUNT($H26:L26)>=Input!$W$7,0,L26+L58+L90) -> 0.3437775208 | N26: =IF(COUNT($H26:M26)>=Input!$W$7,0,M26+M58+M90) -> 0 | O26: =IF(COUNT($H26:N26)>=Input!$W$7,0,N26+N58+N90) -> 0 | P26: =IF(COUNT($H26:O26)>=Input!$W$7,0,O26+O58+O90) -> 0 | Q26: =IF(COUNT($H26:P26)>=Input!$W$7,0,P26+P58+P90) -> 0
D27: =Asset20 -> Group IT | G27: ='Actual RAB roll forward'!G489 -> 0 | H27: 0 | I27: 0 | J27: 0 | K27: 0.1450055331 | L27: 0.4114458834 | M27: =IF(COUNT($H27:L27)>=Input!$W$7,0,L27+L59+L91) -> 1.289968239 | N27: =IF(COUNT($H27:M27)>=Input!$W$7,0,M27+M59+M91) -> 0 | O27: =IF(COUNT($H27:N27)>=Input!$W$7,0,N27+N59+N91) -> 0 | P27: =IF(COUNT($H27:O27)>=Input!$W$7,0,O27+O59+O91) -> 0 | Q27: =IF(COUNT($H27:P27)>=Input!$W$7,0,P27+P59+P91) -> 0
D28: =Asset21 -> SIB Capex | G28: ='Actual RAB roll forward'!G490 -> 0 | H28: =G28+G60+G92+G124+G156+G188 -> 0 | I28: =H28+H60+H92 -> 1.305875458 | J28: =I28+I60+I92 -> 3.657934539 | K28: 5.246436973 | L28: 8.099972904 | M28: =IF(COUNT($H28:L28)>=Input!$W$7,0,L28+L60+L92) -> 7.613883556 | N28: =IF(COUNT($H28:M28)>=Input!$W$7,0,M28+M60+M92) -> 0 | O28: =IF(COUNT($H28:N28)>=Input!$W$7,0,N28+N60+N92) -> 0 | P28: =IF(COUNT($H28:O28)>=Input!$W$7,0,O28+O60+O92) -> 0 | Q28: =IF(COUNT($H28:P28)>=Input!$W$7,0,P28+P60+P92) -> 0
D29: =Asset22 -> PMA | G29: ='Actual RAB roll forward'!G491 -> 0 | H29: 0 | I29: =H29+H61+H93 -> 0 | J29: 31.52550397 | K29: 29.564393 | L29: 27.61214426 | M29: =IF(COUNT($H29:L29)>=Input!$W$7,0,L29+L61+L93) -> 25.64541262 | N29: =IF(COUNT($H29:M29)>=Input!$W$7,0,M29+M61+M93) -> 0 | O29: =IF(COUNT($H29:N29)>=Input!$W$7,0,N29+N61+N93) -> 0 | P29: =IF(COUNT($H29:O29)>=Input!$W$7,0,O29+O61+O93) -> 0 | Q29: =IF(COUNT($H29:P29)>=Input!$W$7,0,P29+P61+P93) -> 0
D30: =Asset23 -> Regulators and meters | G30: ='Actual RAB roll forward'!G492 -> 0 | H30: 0 | I30: 0.7647547965 | J30: 0.9161125802 | K30: 1.282677761 | L30: 1.288919224 | M30: =IF(COUNT($H30:L30)>=Input!$W$7,0,L30+L62+L94) -> 1.296772572 | N30: =IF(COUNT($H30:M30)>=Input!$W$7,0,M30+M62+M94) -> 0 | O30: =IF(COUNT($H30:N30)>=Input!$W$7,0,N30+N62+N94) -> 0 | P30: =IF(COUNT($H30:O30)>=Input!$W$7,0,O30+O62+O94) -> 0 | Q30: =IF(COUNT($H30:P30)>=Input!$W$7,0,P30+P62+P94) -> 0
D31: =Asset24 -> Lytton lateral | G31: ='Actual RAB roll forward'!G493 -> 0 | H31: 0 | I31: 0 | J31: 0 | K31: 0 | L31: 6.625148811 | M31: =IF(COUNT($H31:L31)>=Input!$W$7,0,L31+L63+L95) -> 9.656960182 | N31: =IF(COUNT($H31:M31)>=Input!$W$7,0,M31+M63+M95) -> 0 | O31: =IF(COUNT($H31:N31)>=Input!$W$7,0,N31+N63+N95) -> 0 | P31: =IF(COUNT($H31:O31)>=Input!$W$7,0,O31+O63+O95) -> 0 | Q31: =IF(COUNT($H31:P31)>=Input!$W$7,0,P31+P63+P95) -> 0
D32: =Asset25 -> RBP Expansion 8 | G32: ='Actual RAB roll forward'!G494 -> 0 | H32: 0 | I32: 0 | J32: 0.1541356253 | K32: 0.5134438977 | L32: 1.047663318 | M32: =IF(COUNT($H32:L32)>=Input!$W$7,0,L32+L64+L96) -> 6.072180233 | N32: =IF(COUNT($H32:M32)>=Input!$W$7,0,M32+M64+M96) -> 0 | O32: =IF(COUNT($H32:N32)>=Input!$W$7,0,N32+N64+N96) -> 0 | P32: =IF(COUNT($H32:O32)>=Input!$W$7,0,O32+O64+O96) -> 0 | Q32: =IF(COUNT($H32:P32)>=Input!$W$7,0,P32+P64+P96) -> 0
D33: =Asset26 -> Asset26 | G33: ='Actual RAB roll forward'!G495 -> 0 | H33: 0 | I33: 0 | J33: 0 | K33: 0 | L33: 0 | M33: =IF(COUNT($H33:L33)>=Input!$W$7,0,L33+L65+L97) -> 0 | N33: =IF(COUNT($H33:M33)>=Input!$W$7,0,M33+M65+M97) -> 0 | O33: =IF(COUNT($H33:N33)>=Input!$W$7,0,N33+N65+N97) -> 0 | P33: =IF(COUNT($H33:O33)>=Input!$W$7,0,O33+O65+O97) -> 0 | Q33: =IF(COUNT($H33:P33)>=Input!$W$7,0,P33+P65+P97) -> 0
D34: =Asset27 -> Asset27 | G34: ='Actual RAB roll forward'!G496 -> 0 | H34: 0 | I34: 0 | J34: 0 | K34: 0 | L34: 0 | M34: =IF(COUNT($H34:L34)>=Input!$W$7,0,L34+L66+L98) -> 0 | N34: =IF(COUNT($H34:M34)>=Input!$W$7,0,M34+M66+M98) -> 0 | O34: =IF(COUNT($H34:N34)>=Input!$W$7,0,N34+N66+N98) -> 0 | P34: =IF(COUNT($H34:O34)>=Input!$W$7,0,O34+O66+O98) -> 0 | Q34: =IF(COUNT($H34:P34)>=Input!$W$7,0,P34+P66+P98) -> 0
D35: =Asset28 -> Asset28 | G35: ='Actual RAB roll forward'!G497 -> 0 | H35: 0 | I35: 0 | J35: 0 | K35: 0 | L35: 0 | M35: =IF(COUNT($H35:L35)>=Input!$W$7,0,L35+L67+L99) -> 0 | N35: =IF(COUNT($H35:M35)>=Input!$W$7,0,M35+M67+M99) -> 0 | O35: =IF(COUNT($H35:N35)>=Input!$W$7,0,N35+N67+N99) -> 0 | P35: =IF(COUNT($H35:O35)>=Input!$W$7,0,O35+O67+O99) -> 0 | Q35: =IF(COUNT($H35:P35)>=Input!$W$7,0,P35+P67+P99) -> 0
D36: =Asset29 -> Asset29 | G36: ='Actual RAB roll forward'!G498 -> 0 | H36: =G36+G68+G100+G132+G164+G196 -> 0 | I36: 0 | J36: 0 | K36: 0 | L36: 0 | M36: =IF(COUNT($H36:L36)>=Input!$W$7,0,L36+L68+L100) -> 0 | N36: =IF(COUNT($H36:M36)>=Input!$W$7,0,M36+M68+M100) -> 0 | O36: =IF(COUNT($H36:N36)>=Input!$W$7,0,N36+N68+N100) -> 0 | P36: =IF(COUNT($H36:O36)>=Input!$W$7,0,O36+O68+O100) -> 0 | Q36: =IF(COUNT($H36:P36)>=Input!$W$7,0,P36+P68+P100) -> 0
D37: =Asset30 -> Asset30 | G37: ='Actual RAB roll forward'!G499 -> 0 | H37: =G37+G69+G101+G133+G165+G197 -> 0 | I37: 0 | J37: =I37+I69+I101 -> 0 | K37: =J37+J69+J101 -> 0 | L37: =K37+K69+K101 -> 0 | M37: =IF(COUNT($H37:L37)>=Input!$W$7,0,L37+L69+L101) -> 0 | N37: =IF(COUNT($H37:M37)>=Input!$W$7,0,M37+M69+M101) -> 0 | O37: =IF(COUNT($H37:N37)>=Input!$W$7,0,N37+N69+N101) -> 0 | P37: =IF(COUNT($H37:O37)>=Input!$W$7,0,O37+O69+O101) -> 0 | Q37: =IF(COUNT($H37:P37)>=Input!$W$7,0,P37+P69+P101) -> 0
C39: Nominal Actual Net Capex | G39: =SUM(G40:G69) -> 0 | H39: =SUM(H40:H69) -> 2.673608537 | I39: =SUM(I40:I69) -> 34.38234907 | J39: 3.180283624 | K39: 11.45049209 | L39: 10.49712991 | M39: 51.67804339 | N39: 0 | O39: 0 | P39: 0 | Q39: =SUM(Q40:Q69) -> 0
D40: =Asset1 -> OriginalPipeline | G40: ='Actual RAB roll forward'!G502 -> 0 | H40: ='Actual RAB roll forward'!H502 -> 0 | I40: ='Actual RAB roll forward'!I502 -> 0 | J40: ='Actual RAB roll forward'!J502 -> 0 | K40: ='Actual RAB roll forward'!K502 -> 0 | L40: ='Actual RAB roll forward'!L502 -> 0 | M40: ='Actual RAB roll forward'!M502 -> 0 | N40: ='Actual RAB roll forward'!N502 -> 0 | O40: ='Actual RAB roll forward'!O502 -> 0 | P40: ='Actual RAB roll forward'!P502 -> 0 | Q40: ='Actual RAB roll forward'!Q502 -> 0
D41: =Asset2 -> Looping 1 | G41: ='Actual RAB roll forward'!G503 -> 0 | H41: ='Actual RAB roll forward'!H503 -> 0 | I41: ='Actual RAB roll forward'!I503 -> 0 | J41: ='Actual RAB roll forward'!J503 -> 0 | K41: ='Actual RAB roll forward'!K503 -> 0 | L41: ='Actual RAB roll forward'!L503 -> 0 | M41: ='Actual RAB roll forward'!M503 -> 0 | N41: ='Actual RAB roll forward'!N503 -> 0 | O41: ='Actual RAB roll forward'!O503 -> 0 | P41: ='Actual RAB roll forward'!P503 -> 0 | Q41: ='Actual RAB roll forward'!Q503 -> 0
D42: =Asset3 -> Looping 2 | G42: ='Actual RAB roll forward'!G504 -> 0 | H42: ='Actual RAB roll forward'!H504 -> 0 | I42: ='Actual RAB roll forward'!I504 -> 0 | J42: ='Actual RAB roll forward'!J504 -> 0 | K42: ='Actual RAB roll forward'!K504 -> 0 | L42: ='Actual RAB roll forward'!L504 -> 0 | M42: ='Actual RAB roll forward'!M504 -> 0 | N42: ='Actual RAB roll forward'!N504 -> 0 | O42: ='Actual RAB roll forward'!O504 -> 0 | P42: ='Actual RAB roll forward'!P504 -> 0 | Q42: ='Actual RAB roll forward'!Q504 -> 0
D43: =Asset4 -> Looping 3 | G43: ='Actual RAB roll forward'!G505 -> 0 | H43: ='Actual RAB roll forward'!H505 -> 0 | I43: ='Actual RAB roll forward'!I505 -> 0 | J43: ='Actual RAB roll forward'!J505 -> 0 | K43: ='Actual RAB roll forward'!K505 -> 0 | L43: ='Actual RAB roll forward'!L505 -> 0 | M43: ='Actual RAB roll forward'!M505 -> 0 | N43: ='Actual RAB roll forward'!N505 -> 0 | O43: ='Actual RAB roll forward'!O505 -> 0 | P43: ='Actual RAB roll forward'!P505 -> 0 | Q43: ='Actual RAB roll forward'!Q505 -> 0
D44: =Asset5 -> Looping 4 | G44: ='Actual RAB roll forward'!G506 -> 0 | H44: ='Actual RAB roll forward'!H506 -> 0 | I44: ='Actual RAB roll forward'!I506 -> 0 | J44: ='Actual RAB roll forward'!J506 -> 0 | K44: ='Actual RAB roll forward'!K506 -> 0 | L44: ='Actual RAB roll forward'!L506 -> 0 | M44: ='Actual RAB roll forward'!M506 -> 0 | N44: ='Actual RAB roll forward'!N506 -> 0 | O44: ='Actual RAB roll forward'!O506 -> 0 | P44: ='Actual RAB roll forward'!P506 -> 0 | Q44: ='Actual RAB roll forward'!Q506 -> 0
D45: =Asset6 -> Looping 5 | G45: ='Actual RAB roll forward'!G507 -> 0 | H45: ='Actual RAB roll forward'!H507 -> 0 | I45: ='Actual RAB roll forward'!I507 -> 0 | J45: ='Actual RAB roll forward'!J507 -> 0 | K45: ='Actual RAB roll forward'!K507 -> 0 | L45: ='Actual RAB roll forward'!L507 -> 0 | M45: ='Actual RAB roll forward'!M507 -> 0 | N45: ='Actual RAB roll forward'!N507 -> 0 | O45: ='Actual RAB roll forward'!O507 -> 0 | P45: ='Actual RAB roll forward'!P507 -> 0 | Q45: ='Actual RAB roll forward'!Q507 -> 0
D46: =Asset7 -> Looping 6 | G46: ='Actual RAB roll forward'!G508 -> 0 | H46: ='Actual RAB roll forward'!H508 -> 0 | I46: ='Actual RAB roll forward'!I508 -> 0 | J46: ='Actual RAB roll forward'!J508 -> 0 | K46: ='Actual RAB roll forward'!K508 -> 0 | L46: ='Actual RAB roll forward'!L508 -> 0 | M46: ='Actual RAB roll forward'!M508 -> 0 | N46: ='Actual RAB roll forward'!N508 -> 0 | O46: ='Actual RAB roll forward'!O508 -> 0 | P46: ='Actual RAB roll forward'!P508 -> 0 | Q46: ='Actual RAB roll forward'!Q508 -> 0
D47: =Asset8 -> Lateral | G47: ='Actual RAB roll forward'!G509 -> 0 | H47: ='Actual RAB roll forward'!H509 -> 0 | I47: ='Actual RAB roll forward'!I509 -> 0 | J47: ='Actual RAB roll forward'!J509 -> 0 | K47: ='Actual RAB roll forward'!K509 -> 0 | L47: ='Actual RAB roll forward'!L509 -> 0 | M47: ='Actual RAB roll forward'!M509 -> 0 | N47: ='Actual RAB roll forward'!N509 -> 0 | O47: ='Actual RAB roll forward'!O509 -> 0 | P47: ='Actual RAB roll forward'!P509 -> 0 | Q47: ='Actual RAB roll forward'!Q509 -> 0
D48: =Asset9 -> DalbyCompressor | G48: ='Actual RAB roll forward'!G510 -> 0 | H48: ='Actual RAB roll forward'!H510 -> 0 | I48: ='Actual RAB roll forward'!I510 -> 0 | J48: ='Actual RAB roll forward'!J510 -> 0 | K48: ='Actual RAB roll forward'!K510 -> 0 | L48: ='Actual RAB roll forward'!L510 -> 0 | M48: ='Actual RAB roll forward'!M510 -> 0 | N48: ='Actual RAB roll forward'!N510 -> 0 | O48: ='Actual RAB roll forward'!O510 -> 0 | P48: ='Actual RAB roll forward'!P510 -> 0 | Q48: ='Actual RAB roll forward'!Q510 -> 0
D49: =Asset10 -> KoganCompressor | G49: ='Actual RAB roll forward'!G511 -> 0 | H49: ='Actual RAB roll forward'!H511 -> 0 | I49: ='Actual RAB roll forward'!I511 -> 0 | J49: ='Actual RAB roll forward'!J511 -> 0 | K49: ='Actual RAB roll forward'!K511 -> 0 | L49: ='Actual RAB roll forward'!L511 -> 0 | M49: ='Actual RAB roll forward'!M511 -> 0 | N49: ='Actual RAB roll forward'!N511 -> 0 | O49: ='Actual RAB roll forward'!O511 -> 0 | P49: ='Actual RAB roll forward'!P511 -> 0 | Q49: ='Actual RAB roll forward'!Q511 -> 0
D50: =Asset11 -> OakeyCompressor | G50: ='Actual RAB roll forward'!G512 -> 0 | H50: ='Actual RAB roll forward'!H512 -> 0 | I50: ='Actual RAB roll forward'!I512 -> 0 | J50: ='Actual RAB roll forward'!J512 -> 0 | K50: ='Actual RAB roll forward'!K512 -> 0 | L50: ='Actual RAB roll forward'!L512 -> 0 | M50: ='Actual RAB roll forward'!M512 -> 0 | N50: ='Actual RAB roll forward'!N512 -> 0 | O50: ='Actual RAB roll forward'!O512 -> 0 | P50: ='Actual RAB roll forward'!P512 -> 0 | Q50: ='Actual RAB roll forward'!Q512 -> 0
D51: =Asset12 -> CondamineCompressor | G51: ='Actual RAB roll forward'!G513 -> 0 | H51: ='Actual RAB roll forward'!H513 -> 0 | I51: ='Actual RAB roll forward'!I513 -> 0 | J51: ='Actual RAB roll forward'!J513 -> 0 | K51: ='Actual RAB roll forward'!K513 -> 0 | L51: ='Actual RAB roll forward'!L513 -> 0 | M51: ='Actual RAB roll forward'!M513 -> 0 | N51: ='Actual RAB roll forward'!N513 -> 0 | O51: ='Actual RAB roll forward'!O513 -> 0 | P51: ='Actual RAB roll forward'!P513 -> 0 | Q51: ='Actual RAB roll forward'!Q513 -> 0
D52: =Asset13 -> YulebaCompressor | G52: ='Actual RAB roll forward'!G514 -> 0 | H52: ='Actual RAB roll forward'!H514 -> 0 | I52: ='Actual RAB roll forward'!I514 -> 0 | J52: ='Actual RAB roll forward'!J514 -> 0 | K52: ='Actual RAB roll forward'!K514 -> 0 | L52: ='Actual RAB roll forward'!L514 -> 0 | M52: ='Actual RAB roll forward'!M514 -> 0 | N52: ='Actual RAB roll forward'!N514 -> 0 | O52: ='Actual RAB roll forward'!O514 -> 0 | P52: ='Actual RAB roll forward'!P514 -> 0 | Q52: ='Actual RAB roll forward'!Q514 -> 0
D53: =Asset14 -> GattonCompressor | G53: ='Actual RAB roll forward'!G515 -> 0 | H53: ='Actual RAB roll forward'!H515 -> 0 | I53: ='Actual RAB roll forward'!I515 -> 0 | J53: ='Actual RAB roll forward'!J515 -> 0 | K53: ='Actual RAB roll forward'!K515 -> 0 | L53: ='Actual RAB roll forward'!L515 -> 0 | M53: ='Actual RAB roll forward'!M515 -> 0 | N53: ='Actual RAB roll forward'!N515 -> 0 | O53: ='Actual RAB roll forward'!O515 -> 0 | P53: ='Actual RAB roll forward'!P515 -> 0 | Q53: ='Actual RAB roll forward'!Q515 -> 0
D54: =Asset15 -> Easements | G54: ='Actual RAB roll forward'!G516 -> 0 | H54: ='Actual RAB roll forward'!H516 -> 0 | I54: ='Actual RAB roll forward'!I516 -> 0 | J54: ='Actual RAB roll forward'!J516 -> 0 | K54: ='Actual RAB roll forward'!K516 -> 0 | L54: ='Actual RAB roll forward'!L516 -> 0 | M54: ='Actual RAB roll forward'!M516 -> 0 | N54: ='Actual RAB roll forward'!N516 -> 0 | O54: ='Actual RAB roll forward'!O516 -> 0 | P54: ='Actual RAB roll forward'!P516 -> 0 | Q54: ='Actual RAB roll forward'!Q516 -> 0
D55: =Asset16 -> Communications | G55: ='Actual RAB roll forward'!G517 -> 0 | H55: ='Actual RAB roll forward'!H517 -> 0 | I55: ='Actual RAB roll forward'!I517 -> 0 | J55: ='Actual RAB roll forward'!J517 -> 0 | K55: ='Actual RAB roll forward'!K517 -> 0 | L55: ='Actual RAB roll forward'!L517 -> 0 | M55: ='Actual RAB roll forward'!M517 -> 0 | N55: ='Actual RAB roll forward'!N517 -> 0 | O55: ='Actual RAB roll forward'!O517 -> 0 | P55: ='Actual RAB roll forward'!P517 -> 0 | Q55: ='Actual RAB roll forward'!Q517 -> 0
D56: =Asset17 -> Other | G56: ='Actual RAB roll forward'!G518 -> 0 | H56: ='Actual RAB roll forward'!H518 -> 0 | I56: ='Actual RAB roll forward'!I518 -> 0 | J56: ='Actual RAB roll forward'!J518 -> 0 | K56: ='Actual RAB roll forward'!K518 -> 0 | L56: ='Actual RAB roll forward'!L518 -> 0 | M56: ='Actual RAB roll forward'!M518 -> 0 | N56: ='Actual RAB roll forward'!N518 -> 0 | O56: ='Actual RAB roll forward'!O518 -> 0 | P56: ='Actual RAB roll forward'!P518 -> 0 | Q56: ='Actual RAB roll forward'!Q518 -> 0
D57: =Asset18 -> Capitalised AA costs | G57: ='Actual RAB roll forward'!G519 -> 0 | H57: ='Actual RAB roll forward'!H519 -> 0.5323289605 | I57: ='Actual RAB roll forward'!I519 -> 0 | J57: ='Actual RAB roll forward'!J519 -> 0 | K57: ='Actual RAB roll forward'!K519 -> 0.001432245957 | L57: ='Actual RAB roll forward'!L519 -> 0.05958656338 | M57: ='Actual RAB roll forward'!M519 -> 0.6198219321 | N57: ='Actual RAB roll forward'!N519 -> 0 | O57: ='Actual RAB roll forward'!O519 -> 0 | P57: ='Actual RAB roll forward'!P519 -> 0 | Q57: ='Actual RAB roll forward'!Q519 -> 0
D58: =Asset19 -> Pipelines / Laterals | G58: ='Actual RAB roll forward'!G520 -> 0 | H58: ='Actual RAB roll forward'!H520 -> 0.07064932196 | I58: ='Actual RAB roll forward'!I520 -> 0 | J58: ='Actual RAB roll forward'!J520 -> 0 | K58: ='Actual RAB roll forward'!K520 -> 0 | L58: ='Actual RAB roll forward'!L520 -> 0.2675285546 | M58: ='Actual RAB roll forward'!M520 -> 0 | N58: ='Actual RAB roll forward'!N520 -> 0 | O58: ='Actual RAB roll forward'!O520 -> 0 | P58: ='Actual RAB roll forward'!P520 -> 0 | Q58: ='Actual RAB roll forward'!Q520 -> 0
D59: =Asset20 -> Group IT | G59: ='Actual RAB roll forward'!G521 -> 0 | H59: ='Actual RAB roll forward'!H521 -> 0 | I59: ='Actual RAB roll forward'!I521 -> 0 | J59: ='Actual RAB roll forward'!J521 -> 0.1450055331 | K59: ='Actual RAB roll forward'!K521 -> 0.2919687653 | L59: ='Actual RAB roll forward'!L521 -> 0.9554622404 | M59: ='Actual RAB roll forward'!M521 -> 0.9962099973 | N59: ='Actual RAB roll forward'!N521 -> 0 | O59: ='Actual RAB roll forward'!O521 -> 0 | P59: ='Actual RAB roll forward'!P521 -> 0 | Q59: ='Actual RAB roll forward'!Q521 -> 0
D60: =Asset21 -> SIB Capex | G60: ='Actual RAB roll forward'!G522 -> 0 | H60: ='Actual RAB roll forward'!H522 -> 1.305875458 | I60: ='Actual RAB roll forward'!I522 -> 2.564205305 | J60: ='Actual RAB roll forward'!J522 -> 2.311773182 | K60: ='Actual RAB roll forward'!K522 -> 4.009310888 | L60: ='Actual RAB roll forward'!L522 -> 1.413984669 | M60: ='Actual RAB roll forward'!M522 -> 2.285838041 | N60: ='Actual RAB roll forward'!N522 -> 0 | O60: ='Actual RAB roll forward'!O522 -> 0 | P60: ='Actual RAB roll forward'!P522 -> 0 | Q60: ='Actual RAB roll forward'!Q522 -> 0
D61: =Asset22 -> PMA | G61: ='Actual RAB roll forward'!G523 -> 0 | H61: ='Actual RAB roll forward'!H523 -> 0 | I61: ='Actual RAB roll forward'!I523 -> 31.52550397 | J61: ='Actual RAB roll forward'!J523 -> 0 | K61: ='Actual RAB roll forward'!K523 -> 0 | L61: ='Actual RAB roll forward'!L523 -> 0 | M61: ='Actual RAB roll forward'!M523 -> 0 | N61: ='Actual RAB roll forward'!N523 -> 0 | O61: ='Actual RAB roll forward'!O523 -> 0 | P61: ='Actual RAB roll forward'!P523 -> 0 | Q61: ='Actual RAB roll forward'!Q523 -> 0
D62: =Asset23 -> Regulators and meters | G62: ='Actual RAB roll forward'!G524 -> 0 | H62: ='Actual RAB roll forward'!H524 -> 0.7647547965 | I62: ='Actual RAB roll forward'!I524 -> 0.1385041681 | J62: ='Actual RAB roll forward'!J524 -> 0.3679977619 | K62: ='Actual RAB roll forward'!K524 -> 0.003240667409 | L62: ='Actual RAB roll forward'!L524 -> 0 | M62: ='Actual RAB roll forward'!M524 -> 0 | N62: ='Actual RAB roll forward'!N524 -> 0 | O62: ='Actual RAB roll forward'!O524 -> 0 | P62: ='Actual RAB roll forward'!P524 -> 0 | Q62: ='Actual RAB roll forward'!Q524 -> 0
D63: =Asset24 -> Lytton lateral | G63: ='Actual RAB roll forward'!G525 -> 0 | H63: ='Actual RAB roll forward'!H525 -> 0 | I63: ='Actual RAB roll forward'!I525 -> 0 | J63: ='Actual RAB roll forward'!J525 -> 0 | K63: ='Actual RAB roll forward'!K525 -> 6.625148811 | L63: ='Actual RAB roll forward'!L525 -> 2.810973077 | M63: ='Actual RAB roll forward'!M525 -> 0 | N63: ='Actual RAB roll forward'!N525 -> 0 | O63: ='Actual RAB roll forward'!O525 -> 0 | P63: ='Actual RAB roll forward'!P525 -> 0 | Q63: ='Actual RAB roll forward'!Q525 -> 0
D64: =Asset25 -> RBP Expansion 8 | G64: ='Actual RAB roll forward'!G526 -> 0 | H64: ='Actual RAB roll forward'!H526 -> 0 | I64: ='Actual RAB roll forward'!I526 -> 0.1541356253 | J64: ='Actual RAB roll forward'!J526 -> 0.3555071472 | K64: ='Actual RAB roll forward'!K526 -> 0.5193907155 | L64: ='Actual RAB roll forward'!L526 -> 4.989594804 | M64: ='Actual RAB roll forward'!M526 -> 47.77617342 | N64: ='Actual RAB roll forward'!N526 -> 0 | O64: ='Actual RAB roll forward'!O526 -> 0 | P64: ='Actual RAB roll forward'!P526 -> 0 | Q64: ='Actual RAB roll forward'!Q526 -> 0
D65: =Asset26 -> Asset26 | G65: ='Actual RAB roll forward'!G527 -> 0 | H65: ='Actual RAB roll forward'!H527 -> 0 | I65: ='Actual RAB roll forward'!I527 -> 0 | J65: ='Actual RAB roll forward'!J527 -> 0 | K65: ='Actual RAB roll forward'!K527 -> 0 | L65: ='Actual RAB roll forward'!L527 -> 0 | M65: ='Actual RAB roll forward'!M527 -> 0 | N65: ='Actual RAB roll forward'!N527 -> 0 | O65: ='Actual RAB roll forward'!O527 -> 0 | P65: ='Actual RAB roll forward'!P527 -> 0 | Q65: ='Actual RAB roll forward'!Q527 -> 0
D66: =Asset27 -> Asset27 | G66: ='Actual RAB roll forward'!G528 -> 0 | H66: ='Actual RAB roll forward'!H528 -> 0 | I66: ='Actual RAB roll forward'!I528 -> 0 | J66: ='Actual RAB roll forward'!J528 -> 0 | K66: ='Actual RAB roll forward'!K528 -> 0 | L66: ='Actual RAB roll forward'!L528 -> 0 | M66: ='Actual RAB roll forward'!M528 -> 0 | N66: ='Actual RAB roll forward'!N528 -> 0 | O66: ='Actual RAB roll forward'!O528 -> 0 | P66: ='Actual RAB roll forward'!P528 -> 0 | Q66: ='Actual RAB roll forward'!Q528 -> 0
D67: =Asset28 -> Asset28 | G67: ='Actual RAB roll forward'!G529 -> 0 | H67: ='Actual RAB roll forward'!H529 -> 0 | I67: ='Actual RAB roll forward'!I529 -> 0 | J67: ='Actual RAB roll forward'!J529 -> 0 | K67: ='Actual RAB roll forward'!K529 -> 0 | L67: ='Actual RAB roll forward'!L529 -> 0 | M67: ='Actual RAB roll forward'!M529 -> 0 | N67: ='Actual RAB roll forward'!N529 -> 0 | O67: ='Actual RAB roll forward'!O529 -> 0 | P67: ='Actual RAB roll forward'!P529 -> 0 | Q67: ='Actual RAB roll forward'!Q529 -> 0
D68: =Asset29 -> Asset29 | G68: ='Actual RAB roll forward'!G530 -> 0 | H68: ='Actual RAB roll forward'!H530 -> 0 | I68: ='Actual RAB roll forward'!I530 -> 0 | J68: ='Actual RAB roll forward'!J530 -> 0 | K68: ='Actual RAB roll forward'!K530 -> 0 | L68: ='Actual RAB roll forward'!L530 -> 0 | M68: ='Actual RAB roll forward'!M530 -> 0 | N68: ='Actual RAB roll forward'!N530 -> 0 | O68: ='Actual RAB roll forward'!O530 -> 0 | P68: ='Actual RAB roll forward'!P530 -> 0 | Q68: ='Actual RAB roll forward'!Q530 -> 0
D69: =Asset30 -> Asset30 | G69: ='Actual RAB roll forward'!G531 -> 0 | H69: ='Actual RAB roll forward'!H531 -> 0 | I69: ='Actual RAB roll forward'!I531 -> 0 | J69: ='Actual RAB roll forward'!J531 -> 0 | K69: ='Actual RAB roll forward'!K531 -> 0 | L69: ='Actual RAB roll forward'!L531 -> 0 | M69: ='Actual RAB roll forward'!M531 -> 0 | N69: ='Actual RAB roll forward'!N531 -> 0 | O69: ='Actual RAB roll forward'!O531 -> 0 | P69: ='Actual RAB roll forward'!P531 -> 0 | Q69: ='Actual RAB roll forward'!Q531 -> 0
C71: Nominal Actual Regulatory Depreciation | G71: =SUM(G72:G101) -> 0 | H71: =SUM(H72:H101) -> 1.197897407 | I71: =SUM(I72:I101) -> 6.273646958 | J71: 1.600912006 | K71: 2.866239496 | L71: 4.323039075 | M71: 1.221639393 | N71: 0 | O71: 0 | P71: 0 | Q71: =SUM(Q72:Q101) -> 0
D72: =Asset1 -> OriginalPipeline | G72: ='Actual RAB roll forward'!G534 -> 0 | H72: ='Actual RAB roll forward'!H534 -> -0.632218743 | I72: ='Actual RAB roll forward'!I534 -> 0.03381212257 | J72: ='Actual RAB roll forward'!J534 -> 0.1818047572 | K72: ='Actual RAB roll forward'!K534 -> 0.4328924835 | L72: ='Actual RAB roll forward'!L534 -> 0.7472802207 | M72: ='Actual RAB roll forward'!M534 -> 0.5388388629 | N72: ='Actual RAB roll forward'!N534 -> 0 | O72: ='Actual RAB roll forward'!O534 -> 0 | P72: ='Actual RAB roll forward'!P534 -> 0 | Q72: ='Actual RAB roll forward'!Q534 -> 0
D73: =Asset2 -> Looping 1 | G73: ='Actual RAB roll forward'!G535 -> 0 | H73: ='Actual RAB roll forward'!H535 -> 0.08502089117 | I73: ='Actual RAB roll forward'!I535 -> 0.253015301 | J73: ='Actual RAB roll forward'!J535 -> 0.1674186355 | K73: ='Actual RAB roll forward'!K535 -> 0.2196392807 | L73: ='Actual RAB roll forward'!L535 -> 0.2811723053 | M73: ='Actual RAB roll forward'!M535 -> 0.2143916963 | N73: ='Actual RAB roll forward'!N535 -> 0 | O73: ='Actual RAB roll forward'!O535 -> 0 | P73: ='Actual RAB roll forward'!P535 -> 0 | Q73: ='Actual RAB roll forward'!Q535 -> 0
D74: =Asset3 -> Looping 2 | G74: ='Actual RAB roll forward'!G536 -> 0 | H74: ='Actual RAB roll forward'!H536 -> 0.107291742 | I74: ='Actual RAB roll forward'!I536 -> 0.3093193834 | J74: ='Actual RAB roll forward'!J536 -> 0.2038445755 | K74: ='Actual RAB roll forward'!K536 -> 0.2664149903 | L74: ='Actual RAB roll forward'!L536 -> 0.3400469832 | M74: ='Actual RAB roll forward'!M536 -> 0.2594443626 | N74: ='Actual RAB roll forward'!N536 -> 0 | O74: ='Actual RAB roll forward'!O536 -> 0 | P74: ='Actual RAB roll forward'!P536 -> 0 | Q74: ='Actual RAB roll forward'!Q536 -> 0
D75: =Asset4 -> Looping 3 | G75: ='Actual RAB roll forward'!G537 -> 0 | H75: ='Actual RAB roll forward'!H537 -> 0.2348640258 | I75: ='Actual RAB roll forward'!I537 -> 0.6157364533 | J75: ='Actual RAB roll forward'!J537 -> 0.4005030977 | K75: ='Actual RAB roll forward'!K537 -> 0.5169826148 | L75: ='Actual RAB roll forward'!L537 -> 0.6534289324 | M75: ='Actual RAB roll forward'!M537 -> 0.4995792573 | N75: ='Actual RAB roll forward'!N537 -> 0 | O75: ='Actual RAB roll forward'!O537 -> 0 | P75: ='Actual RAB roll forward'!P537 -> 0 | Q75: ='Actual RAB roll forward'!Q537 -> 0
D76: =Asset5 -> Looping 4 | G76: ='Actual RAB roll forward'!G538 -> 0 | H76: ='Actual RAB roll forward'!H538 -> 0.3496070969 | I76: ='Actual RAB roll forward'!I538 -> 0.8925788519 | J76: ='Actual RAB roll forward'!J538 -> 0.5783084746 | K76: ='Actual RAB roll forward'!K538 -> 0.7436897162 | L76: ='Actual RAB roll forward'!L538 -> 0.9371332452 | M76: ='Actual RAB roll forward'!M538 -> 0.7169461162 | N76: ='Actual RAB roll forward'!N538 -> 0 | O76: ='Actual RAB roll forward'!O538 -> 0 | P76: ='Actual RAB roll forward'!P538 -> 0 | Q76: ='Actual RAB roll forward'!Q538 -> 0
D77: =Asset6 -> Looping 5 | G77: ='Actual RAB roll forward'!G539 -> 0 | H77: ='Actual RAB roll forward'!H539 -> 1.141095097 | I77: ='Actual RAB roll forward'!I539 -> 2.86789735 | J77: ='Actual RAB roll forward'!J539 -> 1.853724668 | K77: ='Actual RAB roll forward'!K539 -> 2.378354097 | L77: ='Actual RAB roll forward'!L539 -> 2.991433488 | M77: ='Actual RAB roll forward'!M539 -> 2.289477483 | N77: ='Actual RAB roll forward'!N539 -> 0 | O77: ='Actual RAB roll forward'!O539 -> 0 | P77: ='Actual RAB roll forward'!P539 -> 0 | Q77: ='Actual RAB roll forward'!Q539 -> 0
D78: =Asset7 -> Looping 6 | G78: ='Actual RAB roll forward'!G540 -> 0 | H78: ='Actual RAB roll forward'!H540 -> 0.2022463325 | I78: ='Actual RAB roll forward'!I540 -> 0.508302702 | J78: ='Actual RAB roll forward'!J540 -> 0.3285519468 | K78: ='Actual RAB roll forward'!K540 -> 0.4215366404 | L78: ='Actual RAB roll forward'!L540 -> 0.5301980995 | M78: ='Actual RAB roll forward'!M540 -> 0.4057842555 | N78: ='Actual RAB roll forward'!N540 -> 0 | O78: ='Actual RAB roll forward'!O540 -> 0 | P78: ='Actual RAB roll forward'!P540 -> 0 | Q78: ='Actual RAB roll forward'!Q540 -> 0
D79: =Asset8 -> Lateral | G79: ='Actual RAB roll forward'!G541 -> 0 | H79: ='Actual RAB roll forward'!H541 -> 0.5018899428 | I79: ='Actual RAB roll forward'!I541 -> 1.281370867 | J79: ='Actual RAB roll forward'!J541 -> 0.830209712 | K79: ='Actual RAB roll forward'!K541 -> 1.067628182 | L79: ='Actual RAB roll forward'!L541 -> 1.345332389 | M79: ='Actual RAB roll forward'!M541 -> 1.029235529 | N79: ='Actual RAB roll forward'!N541 -> 0 | O79: ='Actual RAB roll forward'!O541 -> 0 | P79: ='Actual RAB roll forward'!P541 -> 0 | Q79: ='Actual RAB roll forward'!Q541 -> 0
D80: =Asset9 -> DalbyCompressor | G80: ='Actual RAB roll forward'!G542 -> 0 | H80: ='Actual RAB roll forward'!H542 -> -0.1501643527 | I80: ='Actual RAB roll forward'!I542 -> -0.1130300896 | J80: ='Actual RAB roll forward'!J542 -> -0.04700073895 | K80: ='Actual RAB roll forward'!K542 -> -0.02777863137 | L80: ='Actual RAB roll forward'!L542 -> -0.001899740527 | M80: ='Actual RAB roll forward'!M542 -> -0.006844575274 | N80: ='Actual RAB roll forward'!N542 -> 0 | O80: ='Actual RAB roll forward'!O542 -> 0 | P80: ='Actual RAB roll forward'!P542 -> 0 | Q80: ='Actual RAB roll forward'!Q542 -> 0
